Workbook

Sheet Fiche d'intervention (hidden)
F1: FICHE D'INTERVENTION MAINTENANCE | N1: FI23
C7: Compte-rendu d'intervention
C9: Demandeur | I9: Système | M9: Compteur machine | P9: Statut fiche d'intervention
C10: Nom: | D10: romain.dehan | I10: Machine à laver | M10: 0
C12: Intervenant(s) | G12: Priorité | K12: Date de création de la demande
C13: Nom : | D13: T.HEMART | G13: 1 | I13: TRUE | K13: 2016-03-30
C14: Nom : | G14: 2 | I14: FALSE | P14: Intervention en attente
C15: Secteur Maintenance | G15: 3 | H15: TRUE | I15: FALSE | P15: Intervention finalisée
C16: Localisation de l'intervention | P16: Intervention en attente de pièce
C18: Description de la demande | P18: Intervention en cours
C19: La machine à laver ne fonctionne plus.
C25: Type de maintenance | F25: Type d'intervention | K25: Cause de défaillance
C27: Corrective | E27: TRUE | F27: Electrique | G27: FALSE | H27: Mesure | I27: FALSE | K27: Usure normale | N27: TRUE
C28: Préventive | E28: FALSE | F28: Mécanique | G28: TRUE | I28: TRUE | K28: Défaut utilisateur | N28: FALSE
C29: Préparation essais | F29: Hydraulique | G29: FALSE | I29: FALSE | K29: Défaut produit | N29: FALSE
C30: Amélioration | F30: Informatique | K30: Autre | N30: FALSE
C31: Cause liée à la défaillance
M33: Temps d'intervention en heure
M37: Date de fin d'intervention
C40: Rapport d'intervention
C42: La DA pour la pompe est faite et validée par Philippe. L'envoi de la pompe a été anticipé par le fournisseur JEAN BREL S.A.
C49: Pièces de rechange et consommables
C51: Désignation | H51: Marque / Référence | L51: Quantité

Sheet BDD (hidden)
A1: N° intervention | B1: Demandeur | C1: Nom Intervenant | D1: Nom intervenant | E1: Priorité 1 2 3 | H1: Systéme | I1: Compteur machine | J1: Date | K1: Description de la demande | L1: Corrective | M1: Préventive | N1: Préparation essai | O1: Amélioration | P1: Electrique | Q1: Mécanique | R1: Hydraulique | S1: Informatique | T1: Mesure | U1: Usure normale | V1: Défaut utilisateur | W1: Défaut produit | X1: Autre | Y1: Cause lié à la défaillance | Z1: Temps d'intervention | AA1: Date de fin d'intervention | AB1: Rapport d'intervention | AC1: Désignation | AM1: Marque / Référence | AW1: Quantité | BG1: Formule | BH1: Formule
A7: FI6 | B7: GUILLAUME SEBASTIEN | C7: HEMART | E7: TRUE | F7: FALSE | G7: FALSE | H7: Banc 128 | I7: 1234 | J7: 2016-03-18 | K7: Problème sur limiteur de pression Ligne M | L7: TRUE | M7: FALSE | P7: FALSE | Q7: FALSE | R7: TRUE | U7: FALSE | V7: FALSE | W7: TRUE | X7: FALSE | Y7: Pollution | Z7: 1 | AB7: DEMONTAGE NETTOYAGE ET REMONTAGE DU LIMIEUR DE PRESSION | BG7: =H7&L7&M7 -> Banc 128VRAIFAUX | BH7: =H7&L7&M7&P7&Q7&R7 -> Banc 128VRAIFAUXFAUXFAUXVRAI
A8: FI7 | B8: C.GAUVIN | C8: A.DELAUNAY | E8: TRUE | F8: FALSE | G8: FALSE | H8: Banc 126 | I8: 9316 | J8: 2016-03-18 | K8: TLC_RPP-516-941 prog automate + câblage bobines voir Jonathan BARRA - Chronogramme dans la TLC | L8: FALSE | M8: TRUE | P8: TRUE | Q8: FALSE | R8: FALSE | U8: FALSE | V8: FALSE | W8: FALSE | X8: TRUE | Y8: AUCUNE | Z8: 0.3 | AB8: Programme finalisé, en attente par la suite du montage de l'essai sur le banc. | BG8: Banc 126FAUXVRAI | BH8: Banc 126FAUXVRAIVRAIFAUXFAUX
A9: FI8 | B9: C.GAUVIN | C9: T.HEMART | E9: TRUE | F9: FALSE | G9: FALSE | H9: Banc 125 | I9: 59195 | J9: 2016-03-22 | K9: VIBRATIONS ANORMALES DES 2 RETOURS P10 SUR REFRIGERANTS | L9: TRUE | M9: FALSE | P9: FALSE | Q9: FALSE | R9: TRUE | U9: TRUE | V9: FALSE | W9: FALSE | X9: FALSE | Y9: VIEILLISSEMENT DES 2 P10 SUR RETOUR REFRIGERANT | Z9: 2.3 | AB9: CHANGEMENT DES 2 P10 PAR DES NEUFS | BG9: Banc 125VRAIFAUX | BH9: Banc 125VRAIFAUXFAUXFAUXVRAI
A10: FI9 | B10: C.GAUVIN | C10: T.HEMART | D10: J.BOUCHER | E10: TRUE | F10: FALSE | G10: FALSE | H10: Banc 123 | I10: 75697 | J10: 2016-03-22 | K10: VIDANGE DE L'HUILE XV32 / RINCAGE / REMPLISSAGE EN HUILE HV46 DISPONIBILITE DU BANC POUR VENDREDI MATIN | L10: FALSE | M10: TRUE | P10: FALSE | Q10: FALSE | R10: TRUE | U10: FALSE | V10: FALSE | W10: FALSE | X10: FALSE | Y10: USURE DE L'HUILE XV32 PREMATUREE | Z10: 32 | AB10: Vidange, rinçage, nettoyage, remplissage en HV 46 et changement de tout les filtres | AC10: Filtre | AM10: Relumix 483-4/P10 | AW10: 3 | BG10: Banc 123FAUXVRAI | BH10: Banc 123FAUXVRAIFAUXFAUXVRAI
A11: FI10 | B11: GARCIA SANCHEZ | C11: GARCIA SANCHEZ | E11: TRUE | F11: FALSE | G11: FALSE | H11: Banc P7 | I11: 7569 | J11: 2016-03-22 | K11: Le variateur ne demarre pas | L11: TRUE | M11: FALSE | P11: TRUE | Q11: FALSE | R11: FALSE | U11: FALSE | V11: TRUE | W11: FALSE | X11: FALSE | Y11: Arrêt d'urgence variateur activer | Z11: 0.15 | AB11: Désactivation arrêt d'urgence | BG11: Banc P7VRAIFAUX | BH11: Banc P7VRAIFAUXVRAIFAUXFAUX
A12: FI11 | B12: BARRA | C12: J.BOUCHER | E12: TRUE | F12: FALSE | G12: FALSE | H12: Banc 104 | I12: 4210,35 | J12: 2016-03-22 | K12: LA PRESSION N'EST PAS STABLE SUR LA LIGNE 8 | L12: FALSE | M12: TRUE | P12: FALSE | Q12: FALSE | R12: TRUE | U12: FALSE | V12: FALSE | W12: FALSE | X12: TRUE | Y12: AUCUNE | Z12: 1 | AB12: DEMONTAGE / NETTOYAGE / REMONTAGE DU LP8 | AC12: LIMITEUR DE PRESSION 8 | AW12: 1 | BG12: Banc 104FAUXVRAI | BH12: Banc 104FAUXVRAIFAUXFAUXVRAI
A13: FI12 | B13: BARRA | C13: J.BOUCHER | E13: TRUE | F13: FALSE | G13: FALSE | H13: Banc 104 | I13: 4210,35 | J13: 2016-03-22 | K13: Probleme de régulation de RD8 (vitesse du moteur en test trop instable en PEV) | L13: TRUE | M13: FALSE | P13: FALSE | Q13: FALSE | R13: TRUE | U13: FALSE | V13: FALSE | W13: FALSE | X13: FALSE | Z13: 2 | AB13: Remplacement du RD8 par RD9 | AC13: Réducteur de debit | AW13: 1 envoyer chez équipe | BG13: Banc 104VRAIFAUX | BH13: Banc 104VRAIFAUXFAUXFAUXVRAI
A14: FI13 | B14: romain.dehan | C14: Boucher | E14: FALSE | F14: TRUE | G14: FALSE | H14: Banc 124 | I14: 12795 | J14: 2016-03-21 | K14: REFAIRE LE NIVEAU D'HUILE JUSQU'AU MILIEU DE LA SECONDE BULLE | L14: FALSE | M14: TRUE | P14: FALSE | Q14: FALSE | R14: TRUE | U14: FALSE | V14: FALSE | W14: FALSE | X14: TRUE | Y14: Fuite dans le recepteur du 124bis. | Z14: 0.3 | AB14: RAS | BG14: Banc 124FAUXVRAI | BH14: Banc 124FAUXVRAIFAUXFAUXVRAI
A15: FI15 | B15: christophe.gauvin | C15: A. DELAUNAY | E15: TRUE | F15: FALSE | G15: FALSE | H15: Chambre froide | I15: 2731 | J15: 2016-03-24 | K15: RPP_624-500-965 Installation d'un clignoteur pour le pilotage d'un distributeur. Voir Aëlig | L15: FALSE | M15: TRUE | P15: TRUE | Q15: FALSE | R15: FALSE | U15: FALSE | V15: FALSE | W15: FALSE | X15: FALSE | Y15: Installation a réaliser dans le cdre d'un essai RPP_624-500-965 | Z15: 0.3 | AB15: Installation du clignoteur effectué, branchement de la bobine du distributeur faite et relié à une alimentation 24VDC se situant au banc d'essais P1 | AC15: Câble | AM15: 2X1 HO7RNF | AW15: 10 M | BG15: Chambre froideFAUXVRAI | BH15: Chambre froideFAUXVRAIVRAIFAUXFAUX
A17: FI16 | B17: romain.dehan | C17: J. BOUCHER | E17: FALSE | F17: TRUE | G17: FALSE | H17: Banc 120 | I17: 26687 | J17: 2016-03-29 | K17: Refaire 3 plaques de fermeture sur le réservoir dont une équiper d'un filtre à air | L17: FALSE | M17: TRUE | P17: FALSE | Q17: FALSE | R17: TRUE | U17: FALSE | V17: FALSE | W17: FALSE | X17: TRUE | Y17: Perte des bouchons de réservoir liés à l'installation des retours directs dans le réservoir | Z17: 0.1 | AB17: Mise en place de 2 bouchons et changement de la 3eme plaque par une plaque pleine.
A18: FI17 | B18: romain.dehan | E18: FALSE | F18: FALSE | G18: FALSE | H18: Banc 104 | I18: 4206 | J18: 2016-03-30 | K18: Intervertir RD8 et RD9 pour test de pilotage | L18: FALSE | M18: FALSE | P18: FALSE | Q18: FALSE | R18: FALSE | U18: FALSE | V18: FALSE | W18: FALSE | X18: FALSE
A19: FI18 | B19: romain.dehan | C19: HEMART Thibault | E19: FALSE | F19: FALSE | G19: FALSE | H19: Banc 125 | I19: 59350 | J19: 2016-03-30 | K19: Remplacement du bloc pelle par un gros CETOP 5 avant le contrôle des débits sur HP MENANT | L19: TRUE | M19: FALSE | P19: FALSE | Q19: FALSE | R19: TRUE | U19: FALSE | V19: FALSE | W19: FALSE | X19: TRUE | Z19: 2.5 | AB19: Changement du distributeur afin de déterminer si celui-ci est la cause des oscillations de pressions enregistrées sur le banc. | AC19: Distributeur électro-hydraulique 4/3 croisé parallèle centre en H | AM19: ATOS | AW19: 1
A20: FI19 | B20: romain.dehan | C20: Delaunay Alexandre | E20: FALSE | F20: FALSE | G20: FALSE | H20: Porte bâtiment | I20: 0 | J20: 2016-03-30 | K20: Problème détection du capteur de porte déroulante côté véhicule | L20: TRUE | M20: FALSE | P20: TRUE | Q20: FALSE | R20: FALSE | U20: FALSE | V20: FALSE | W20: FALSE | X20: FALSE | Y20: Capteur mal régleé par l'installateur sous traitant | Z20: 0.5 | AB20: Réglage des axes x et y du capteur
A21: FI20 | B21: romain.dehan | E21: FALSE | F21: FALSE | G21: FALSE | H21: Banc 104 | I21: 4206 | J21: 2016-03-30 | K21: Intervertir RD8 et RD9 pour test de pilotage | L21: FALSE | M21: FALSE | P21: FALSE | Q21: FALSE | R21: FALSE | U21: FALSE | V21: FALSE | W21: FALSE | X21: FALSE
A22: FI21 | B22: romain.dehan | C22: David Garcia | E22: TRUE | F22: FALSE | G22: FALSE | H22: Banc P1 | I22: 59173 | J22: 2016-03-24 | K22: Variateur en défaut | L22: TRUE | M22: FALSE | P22: TRUE | Q22: FALSE | R22: FALSE | U22: FALSE | V22: FALSE | W22: FALSE | X22: TRUE | Y22: Moteur chauffe trop par rapport a l'essai demander | Z22: 0.02 | AB22: Reset défaut variateur
A23: FI22 | B23: romain.dehan | C23: Delaunay Alexandre | D23: Potier Hubert | E23: FALSE | F23: FALSE | G23: FALSE | H23: Banc 123 | I23: 75740 | J23: 30/30/2016 | K23: Refixer l'armoire à Mano + fixer le mano se trouvant au sol sur celle-ci | L23: TRUE | M23: FALSE | P23: FALSE | Q23: TRUE | R23: FALSE | U23: FALSE | V23: FALSE | W23: FALSE | X23: TRUE | Z23: 0.5 | AB23: Coffret des manos soudé sur le pupitre, le mano se trouvant sur le sol n'a pas été fixer car le banc va être très bientôt rénové.
A24: FI23 | B24: romain.dehan | C24: T.HEMART | E24: TRUE | F24: FALSE | G24: FALSE | H24: Machine à laver | I24: 0 | J24: 2016-03-30 | K24: La machine à laver ne fonctionne plus. | L24: TRUE | M24: FALSE | P24: FALSE | Q24: TRUE | R24: FALSE | T24: FALSE | U24: TRUE | V24: FALSE | W24: FALSE | X24: FALSE | AB24: La DA pour la pompe est faite et validée par Philippe. L'envoi de la pompe a été anticipé par le fournisseur JEAN BREL S.A.
A25: FI24 | B25: romain.dehan | E25: FALSE | F25: FALSE | G25: FALSE | H25: Banc 128 | I25: 4124 | J25: 31/04/2016 | K25: Le réducteur de débit RD BAL présente des signes de collage. | L25: FALSE | M25: FALSE | P25: FALSE | Q25: FALSE | R25: FALSE | U25: FALSE | V25: FALSE | W25: FALSE | X25: FALSE
A26: FI25 | B26: lilian.charlier | E26: FALSE | F26: FALSE | G26: FALSE | H26: Banc électroniques | I26: 0 | J26: 2016-04-04 | K26: Demande officielle pour le déplacement des bancs électroniques situés derrière le nouveau P9 (bancs + armoires). Ils sont à replacer en face du magasin de raccords (au niveau des poteaux à coté de la TY45). Il faut aussi les raccorder électriquement. Merci d'avance, Lilian. | L26: FALSE | M26: FALSE | P26: FALSE | Q26: FALSE | R26: FALSE | U26: FALSE | V26: FALSE | W26: FALSE | X26: FALSE | BG26: Banc électroniquesFAUXFAUX | BH26: Banc électroniquesFAUXFAUXFAUXFAUXFAUX
A27: FI26 | B27: romain.dehan | E27: FALSE | F27: FALSE | G27: FALSE | H27: Banc 124 bis | I27: 7 | J27: 2016-04-04 | K27: Raccorder la remontée d’huile sur le bac de rétention de la platine d’essai | L27: FALSE | M27: FALSE | P27: FALSE | Q27: FALSE | R27: FALSE | U27: FALSE | V27: FALSE | W27: FALSE | X27: FALSE | BG27: Banc 124 bisFAUXFAUX | BH27: Banc 124 bisFAUXFAUXFAUXFAUXFAUX
A28: FI27 | B28: yann.nourricier | E28: FALSE | F28: FALSE | G28: FALSE | H28: Banc 128 | I28: 4128 | J28: 2016-04-05 | K28: Suite à la maintenance préventive d'InTest, il faut : Mettre en place des borniers, repérer les câbles et passé sur des plus petite section. | L28: FALSE | M28: FALSE | P28: FALSE | Q28: FALSE | R28: FALSE | U28: FALSE | V28: FALSE | W28: FALSE | X28: FALSE | BG28: Banc 128FAUXFAUX | BH28: Banc 128FAUXFAUXFAUXFAUXFAUX
A29: FI28 | B29: yann.nourricier | E29: FALSE | F29: FALSE | G29: FALSE | H29: Banc 128 | I29: 4128 | J29: 2016-04-05 | K29: Suite à la maintenance préventive d'InTest, il y a une fuite d'huile dans la centrale hydraulique dans le bac de rétention | L29: FALSE | M29: FALSE | P29: FALSE | Q29: FALSE | R29: FALSE | U29: FALSE | V29: FALSE | W29: FALSE | X29: FALSE | BG29: Banc 128FAUXFAUX | BH29: Banc 128FAUXFAUXFAUXFAUXFAUX
A30: FI29 | B30: yann.nourricier | E30: FALSE | F30: FALSE | G30: FALSE | H30: Banc 128 | I30: 4128 | J30: 2016-04-05 | K30: Il faudrait mettre à jours les schémas électrique. | L30: FALSE | M30: FALSE | P30: FALSE | Q30: FALSE | R30: FALSE | U30: FALSE | V30: FALSE | W30: FALSE | X30: FALSE | BG30: Banc 128FAUXFAUX | BH30: Banc 128FAUXFAUXFAUXFAUXFAUX
A31: FI30 | B31: yann.nourricier | C31: A.Delaunay | E31: FALSE | F31: TRUE | G31: FALSE | H31: Banc 131 | I31: 2309 | J31: 2016-04-05 | K31: Les relais de l'armoire de puissance n'ont pas de diode de roue libre. Est-il intéressant d'en mettre avec diode ? (pour éviter les arcs électrique) | L31: FALSE | M31: TRUE | P31: TRUE | Q31: FALSE | R31: FALSE | U31: FALSE | V31: FALSE | W31: FALSE | X31: TRUE | Z31: 0.1 | AB31: Les relais actuel supportent les arcs électriques | BG31: Banc 131FAUXVRAI | BH31: Banc 131FAUXVRAIVRAIFAUXFAUX
A32: FI31 | B32: yann.nourricier | E32: FALSE | F32: FALSE | G32: FALSE | H32: Banc 131 | I32: 2309 | J32: 2016-04-05 | K32: Il faudrait mettre à jours le schéma électrique du banc suite aux modifications apportées | L32: FALSE | M32: FALSE | P32: FALSE | Q32: FALSE | R32: FALSE | U32: FALSE | V32: FALSE | W32: FALSE | X32: FALSE | BG32: Banc 131FAUXFAUX | BH32: Banc 131FAUXFAUXFAUXFAUXFAUX
A33: FI32 | B33: yann.nourricier | E33: FALSE | F33: FALSE | G33: FALSE | H33: Banc 131 | I33: 2309 | J33: 2016-04-05 | K33: Le banc possède une centrale MX879 dans l'armoire de puissance. il faudrait la retirer et déplacer le câble connecté dessus (Pilotage de la pompe P90) vers la tranche AO2 du barreau phoenix. | L33: FALSE | M33: FALSE | P33: FALSE | Q33: FALSE | R33: FALSE | U33: FALSE | V33: FALSE | W33: FALSE | X33: FALSE | BG33: Banc 131FAUXFAUX | BH33: Banc 131FAUXFAUXFAUXFAUXFAUX
A34: FI33 | B34: yann.nourricier | C34: A.Delaunay | E34: FALSE | F34: TRUE | G34: FALSE | H34: Banc 104 | I34: 4217 | J34: 2016-04-05 | K34: La grille de ventillation de l'armoire est cassé. | L34: TRUE | M34: FALSE | P34: TRUE | Q34: FALSE | R34: FALSE | U34: FALSE | V34: FALSE | W34: FALSE | X34: TRUE | Y34: Bloc du ventilateur cassé | Z34: 0.1 | AB34: Pas de changement du bloc --> 500€/p le bloc ventilo, non génant pour son fonctionnement et pour la sécurité des personnes | BG34: Banc 104VRAIFAUX | BH34: Banc 104VRAIFAUXVRAIFAUXFAUX
A35: FI34 | B35: yann.nourricier | C35: A.Delaunay | E35: FALSE | F35: FALSE | G35: TRUE | H35: Banc 007 | I35: 840 | J35: 2016-04-05 | K35: Il manque le cache de la goullotte dans le coffret de mesure dans l'enceinte du banc. | L35: TRUE | M35: FALSE | P35: TRUE | Q35: FALSE | R35: FALSE | U35: FALSE | V35: FALSE | W35: FALSE | X35: TRUE | Y35: Câble de mesure gênant pour la remise en place d'un couvercle | Z35: 0.2 | AB35: Goulotte laissé sans couvercle qui n'est en rien génant pour le coffret tant esthétique que fonctionnel | BG35: Banc 007VRAIFAUX | BH35: Banc 007VRAIFAUXVRAIFAUXFAUX
A36: FI35 | B36: yann.nourricier | E36: FALSE | F36: FALSE | G36: FALSE | H36: Banc 008 | I36: 954 | J36: 2016-04-05 | K36: Il y a une fuite dans la centrale hydraulique. | L36: FALSE | M36: FALSE | P36: FALSE | Q36: FALSE | R36: FALSE | U36: FALSE | V36: FALSE | W36: FALSE | X36: FALSE | BG36: Banc 008FAUXFAUX | BH36: Banc 008FAUXFAUXFAUXFAUXFAUX
A37: FI36 | B37: yann.nourricier | C37: A.Delaunay | E37: FALSE | F37: FALSE | G37: TRUE | H37: Banc 008 | I37: 954 | J37: 2016-04-05 | K37: Il faudrait remplacer les filtres de l'armoire de puissance du banc et remettre en place un porte document dans l'armoire. | L37: TRUE | M37: FALSE | P37: TRUE | Q37: FALSE | R37: FALSE | U37: FALSE | V37: FALSE | W37: TRUE | X37: FALSE | Y37: Porte document de qualité médiocre | Z37: 0.1 | AB37: Mise en place d'un porte document, filtre changé tous les 6 mois (aout, décembre) | BG37: Banc 008VRAIFAUX | BH37: Banc 008VRAIFAUXVRAIFAUXFAUX
A38: FI37 | B38: yann.nourricier | C38: GARCIA | E38: FALSE | F38: TRUE | G38: FALSE | H38: Banc 101 | I38: 5376 | J38: 2016-04-05 | K38: Il faudrait changer les filtres de l'armoire électrique et un repérage manque sur un contact aux à côter de 42KM07 | L38: FALSE | M38: TRUE | P38: TRUE | Q38: FALSE | R38: FALSE | U38: FALSE | V38: FALSE | W38: FALSE | X38: TRUE | Z38: 0.1 | AB38: Mis en place de repères sur les fils du contact 42KM03 ainsi que sur le compteur car ce sont les fils qui vont du contact au compteur/ modification des schémas | BG38: Banc 101FAUXVRAI | BH38: Banc 101FAUXVRAIVRAIFAUXFAUX
A39: FI38 | B39: yann.nourricier | E39: FALSE | F39: FALSE | G39: FALSE | H39: Banc 101 | I39: 5376 | J39: 2016-04-05 | K39: Fuite d'huile dans la centrale hydraulique. | L39: FALSE | M39: FALSE | P39: FALSE | Q39: FALSE | R39: FALSE | U39: FALSE | V39: FALSE | W39: FALSE | X39: FALSE | BG39: Banc 101FAUXFAUX | BH39: Banc 101FAUXFAUXFAUXFAUXFAUX
A40: FI39 | B40: benjamin.eyraud | C40: HEMART Thibault | E40: TRUE | F40: FALSE | G40: FALSE | H40: Pompe à eau | I40: 27949 | J40: 2016-04-05 | K40: les ventilateurs des tours couinent de manière très audible. | L40: TRUE | M40: FALSE | P40: FALSE | Q40: TRUE | R40: FALSE | U40: TRUE | V40: FALSE | W40: FALSE | X40: FALSE | Y40: Courroies détendues | Z40: 1.3 | AB40: Tension des courroies
A41: FI40 | B41: romain.dehan | E41: FALSE | F41: FALSE | G41: FALSE | H41: Banc 124 bis | I41: 7 | J41: 2016-04-05 | K41: - Modifier le pont de clapet actuelle en correspondance avec le schéma hydraulique | L41: FALSE | M41: FALSE | P41: FALSE | Q41: FALSE | R41: FALSE | U41: FALSE | V41: FALSE | W41: FALSE | X41: FALSE | BG41: Banc 124 bisFAUXFAUX | BH41: Banc 124 bisFAUXFAUXFAUXFAUXFAUX
A42: FI41 | B42: romain.dehan | C42: A.Delaunay | E42: TRUE | F42: FALSE | G42: FALSE | H42: Banc 124 bis | I42: 7 | J42: 2016-04-05 | K42: - Mettre à jours le schéma électrique du banc | L42: TRUE | M42: FALSE | P42: TRUE | Q42: FALSE | R42: FALSE | U42: FALSE | V42: FALSE | W42: FALSE | X42: TRUE | Z42: 1 | AB42: Mise à jours des chémas électrique | BG42: Banc 124 bisVRAIFAUX | BH42: Banc 124 bisVRAIFAUXVRAIFAUXFAUX
A43: FI42 | B43: christophe.gauvin | C43: T. HEMART | E43: TRUE | F43: FALSE | G43: FALSE | H43: Pompe à eau | I43: 0 | J43: 2016-04-05 | K43: Fuite d'eau se trouvant sur le haut du bromisateur | L43: TRUE | M43: FALSE | P43: FALSE | Q43: FALSE | R43: TRUE | U43: TRUE | V43: FALSE | W43: FALSE | X43: FALSE | Z43: 1 | AB43: 1 | BG43: Pompe à eauVRAIFAUX | BH43: Pompe à eauVRAIFAUXFAUXFAUXVRAI
A44: FI43 | B44: romain.dehan | C44: HEMART Thibault | E44: TRUE | F44: FALSE | G44: FALSE | H44: Banc 113 | I44: 19594 | J44: 2016-04-05 | K44: La presssion carter est trop élevé 3 bars | L44: FALSE | M44: TRUE | P44: FALSE | Q44: FALSE | R44: TRUE | U44: TRUE | V44: FALSE | W44: FALSE | X44: FALSE | Z44: 0.05 | AB44: Nettoyage du filtre magnétique situé sur le côté du reservoir | BG44: Banc 113FAUXVRAI | BH44: Banc 113FAUXVRAIFAUXFAUXVRAI
A45: FI44 | B45: romain.dehan | C45: D.GARCIA | E45: FALSE | F45: FALSE | G45: FALSE | H45: Banc 124 bis | I45: 7 | J45: 2016-04-05 | K45: Recopie distributeur proportionnel démonté. Cable électrique des contacts de fin de course des limiteurs de pression décablé. Finir quand société extérieur viendra | L45: FALSE | M45: FALSE | N45: TRUE | P45: TRUE | Q45: FALSE | R45: FALSE | T45: FALSE | U45: FALSE | V45: FALSE | W45: FALSE | X45: TRUE | AB45: Devis fais mais attente intervention Eqhyp lorsque l'essai en cours sera terminer. | BG45: Banc 124 bisFAUXFAUX | BH45: Banc 124 bisFAUXFAUXVRAIFAUXFAUX
A46: FI45 | B46: romain.dehan | E46: FALSE | F46: FALSE | G46: FALSE | H46: Banc 124 | I46: 12924 | J46: 2016-04-05 | K46: Bruit anormale de la pompe de recirculation et intensité moteur trop importante. | L46: FALSE | M46: FALSE | P46: FALSE | Q46: FALSE | R46: FALSE | U46: FALSE | V46: FALSE | W46: FALSE | X46: FALSE | BG46: Banc 124FAUXFAUX | BH46: Banc 124FAUXFAUXFAUXFAUXFAUX
A47: FI46 | B47: romain.dehan | C47: J.BOUCHER | D47: T.HEMART | E47: FALSE | F47: TRUE | G47: FALSE | H47: Banc 124 | I47: 12924 | J47: 2016-04-05 | K47: Prévoir le perçage de la lanterne pour contrôler l'accouplement de GMP1 | L47: TRUE | M47: FALSE | P47: FALSE | Q47: TRUE | R47: FALSE | T47: FALSE | U47: FALSE | V47: FALSE | W47: FALSE | X47: TRUE | BG47: Banc 124VRAIFAUX | BH47: Banc 124VRAIFAUXFAUXVRAIFAUX
A48: FI47 | B48: romain.dehan | C48: T.HEMART | D48: J.BOUCHER | E48: TRUE | F48: FALSE | G48: FALSE | H48: Banc 124 | I48: 12924 | J48: 2016-04-05 | K48: Presence d'huile sur dessus du réservoir (joint de la pompe fuyard ???) | L48: TRUE | M48: FALSE | P48: FALSE | Q48: FALSE | R48: TRUE | T48: FALSE | U48: FALSE | V48: FALSE | W48: FALSE | X48: TRUE | BG48: Banc 124VRAIFAUX | BH48: Banc 124VRAIFAUXFAUXFAUXVRAI
A49: FI48 | B49: romain.dehan | E49: FALSE | F49: FALSE | G49: FALSE | H49: Banc 117 bis | I49: 9668 | J49: 2016-04-05 | K49: Prélèvement Huile | L49: FALSE | M49: FALSE | P49: FALSE | Q49: FALSE | R49: FALSE | T49: FALSE | U49: FALSE | V49: FALSE | W49: FALSE | X49: FALSE | BG49: Banc 117 bisFAUXFAUX | BH49: Banc 117 bisFAUXFAUXFAUXFAUXFAUX
A50: FI49 | B50: romain.dehan | E50: FALSE | F50: FALSE | G50: FALSE | H50: Banc 117 bis | I50: 9668 | J50: 2016-04-05 | K50: Fuite huile sur couvercle échangeur | L50: FALSE | M50: FALSE | P50: FALSE | Q50: FALSE | R50: FALSE | U50: FALSE | V50: FALSE | W50: FALSE | X50: FALSE | BG50: Banc 117 bisFAUXFAUX | BH50: Banc 117 bisFAUXFAUXFAUXFAUXFAUX
A51: FI50 | B51: romain.dehan | E51: FALSE | F51: FALSE | G51: FALSE | H51: Banc 117 bis | I51: 9668 | J51: 2016-04-05 | K51: niveau non isolé et non fixé | L51: FALSE | M51: FALSE | P51: FALSE | Q51: FALSE | R51: FALSE | U51: FALSE | V51: FALSE | W51: FALSE | X51: FALSE | BG51: Banc 117 bisFAUXFAUX | BH51: Banc 117 bisFAUXFAUXFAUXFAUXFAUX
A52: FI51 | B52: romain.dehan | E52: FALSE | F52: FALSE | G52: FALSE | H52: Banc 117 bis | I52: 9668 | J52: 2016-04-05 | K52: indicateur de colmatage non cablé | L52: FALSE | M52: FALSE | P52: FALSE | Q52: FALSE | R52: FALSE | U52: FALSE | V52: FALSE | W52: FALSE | X52: FALSE | BG52: Banc 117 bisFAUXFAUX | BH52: Banc 117 bisFAUXFAUXFAUXFAUXFAUX
A53: FI52 | B53: romain.dehan | E53: FALSE | F53: FALSE | G53: FALSE | H53: Banc 117 bis | I53: 9668 | J53: 2016-04-05 | K53: Resserage raccords et support tuyauterie BP | L53: FALSE | M53: FALSE | P53: FALSE | Q53: FALSE | R53: FALSE | U53: FALSE | V53: FALSE | W53: FALSE | X53: FALSE | BG53: Banc 117 bisFAUXFAUX | BH53: Banc 117 bisFAUXFAUXFAUXFAUXFAUX
A54: FI53 | B54: romain.dehan | E54: FALSE | F54: FALSE | G54: FALSE | H54: Banc 117 bis | I54: 9668 | J54: 2016-04-05 | K54: remplacement filtre "arlon" attention pas d'indicateur de colmatage | L54: FALSE | M54: FALSE | P54: FALSE | Q54: FALSE | R54: FALSE | U54: FALSE | V54: FALSE | W54: FALSE | X54: FALSE | BG54: Banc 117 bisFAUXFAUX | BH54: Banc 117 bisFAUXFAUXFAUXFAUXFAUX
A55: FI54 | B55: romain.dehan | E55: FALSE | F55: FALSE | G55: FALSE | H55: Banc 117 bis | I55: 9668 | J55: 2016-04-05 | K55: Moteur Limiteur de pression HP non isolé. Cable alimentation distributeur HP dénudé | L55: FALSE | M55: FALSE | P55: FALSE | Q55: FALSE | R55: FALSE | U55: FALSE | V55: FALSE | W55: FALSE | X55: FALSE | BG55: Banc 117 bisFAUXFAUX | BH55: Banc 117 bisFAUXFAUXFAUXFAUXFAUX
A56: FI55 | B56: romain.dehan | E56: FALSE | F56: FALSE | G56: FALSE | H56: Banc 117 bis | I56: 9668 | J56: 2016-04-05 | K56: Fuite sur vis de réglage limiteur de pression et sur plan de pose du distributeur NG10 ATOS du circuit BP. | L56: FALSE | M56: FALSE | P56: FALSE | Q56: FALSE | R56: FALSE | U56: FALSE | V56: FALSE | W56: FALSE | X56: FALSE | BG56: Banc 117 bisFAUXFAUX | BH56: Banc 117 bisFAUXFAUXFAUXFAUXFAUX
A57: FI56 | B57: romain.dehan | E57: FALSE | F57: FALSE | G57: FALSE | H57: Banc 117 bis | I57: 9668 | J57: 2016-04-05 | K57: Jeu sur canlures entre chaque tête de cardan. | L57: FALSE | M57: FALSE | P57: FALSE | Q57: FALSE | R57: FALSE | U57: FALSE | V57: FALSE | W57: FALSE | X57: FALSE | BG57: Banc 117 bisFAUXFAUX | BH57: Banc 117 bisFAUXFAUXFAUXFAUXFAUX
A58: FI57 | B58: romain.dehan | C58: T.Hemart | E58: FALSE | F58: FALSE | G58: FALSE | H58: Banc 115 | I58: 29024 | J58: 2016-04-05 | K58: Faire Prélèvement d'huile | L58: FALSE | M58: TRUE | P58: FALSE | Q58: FALSE | R58: TRUE | T58: FALSE | U58: FALSE | V58: FALSE | W58: FALSE | X58: TRUE | BG58: Banc 115FAUXVRAI | BH58: Banc 115FAUXVRAIFAUXFAUXVRAI
A59: FI58 | B59: romain.dehan | E59: FALSE | F59: FALSE | G59: FALSE | H59: Banc 115 | I59: 29024 | J59: 2016-04-05 | K59: indicateur de niveau non isolé et non fixé | L59: FALSE | M59: FALSE | P59: FALSE | Q59: FALSE | R59: FALSE | U59: FALSE | V59: FALSE | W59: FALSE | X59: FALSE | BG59: Banc 115FAUXFAUX | BH59: Banc 115FAUXFAUXFAUXFAUXFAUX
A60: FI59 | B60: romain.dehan | E60: FALSE | F60: FALSE | G60: FALSE | H60: Banc 115 | I60: 29024 | J60: 2016-04-05 | K60: Prévoir la vidange suite au résultat du prélèvement Contrôle colmatage des 2 filtres "pall + filtre gris pall | L60: FALSE | M60: FALSE | N60: FALSE | O60: FALSE | P60: FALSE | Q60: FALSE | R60: FALSE | S60: FALSE | T60: FALSE | U60: FALSE | V60: FALSE | W60: FALSE | X60: FALSE | BG60: Banc 115FAUXFAUX | BH60: Banc 115FAUXFAUXFAUXFAUXFAUX
A61: FI60 | B61: romain.dehan | E61: FALSE | F61: FALSE | G61: FALSE | H61: Banc 117 bis | I61: 9668 | J61: 2016-04-06 | K61: Prévoir la vidange du banc si prélèvement d'huile négatif | L61: FALSE | M61: FALSE | P61: FALSE | Q61: FALSE | R61: FALSE | T61: FALSE | U61: FALSE | V61: FALSE | W61: FALSE | X61: FALSE | BG61: Banc 117 bisFAUXFAUX | BH61: Banc 117 bisFAUXFAUXFAUXFAUXFAUX
A62: FI61 | B62: romain.dehan | E62: FALSE | F62: FALSE | G62: FALSE | H62: Banc 104 | I62: 4217 | J62: 2016-04-06 | K62: Colmatage du filtre de la ligne D détecté (HC 9801 FDS 4Z) | L62: FALSE | M62: FALSE | P62: FALSE | Q62: FALSE | R62: FALSE | T62: FALSE | U62: FALSE | V62: FALSE | W62: FALSE | X62: FALSE | BG62: Banc 104FAUXFAUX | BH62: Banc 104FAUXFAUXFAUXFAUXFAUX
A63: FI62 | B63: romain.dehan | E63: FALSE | F63: FALSE | G63: FALSE | H63: Banc 008 | I63: 954 | J63: 2016-04-06 | K63: Alarme Colmatage FC (UE219AN04Z) ainsi que Colmatage F8 (UE319AN40Z) Merci de changer les filtres | L63: FALSE | M63: FALSE | P63: FALSE | Q63: FALSE | R63: FALSE | T63: FALSE | U63: FALSE | V63: FALSE | W63: FALSE | X63: FALSE | BG63: Banc 008FAUXFAUX | BH63: Banc 008FAUXFAUXFAUXFAUXFAUX
A64: FI63 | B64: romain.dehan | E64: FALSE | F64: FALSE | G64: FALSE | H64: Banc 124 | I64: 12924 | J64: 2016-04-05 | K64: Prélèvement pour analyse d'huile | L64: FALSE | M64: FALSE | N64: FALSE | O64: FALSE | P64: FALSE | Q64: FALSE | R64: FALSE | S64: FALSE | T64: FALSE | U64: FALSE | V64: FALSE | W64: FALSE | X64: FALSE | BG64: Banc 124FAUXFAUX | BH64: Banc 124FAUXFAUXFAUXFAUXFAUX
A65: FI64 | B65: christophe.gauvin | C65: D.GARCIA SANCHEZ | E65: TRUE | F65: FALSE | G65: FALSE | H65: Banc 145 | I65: 7200 | J65: 2016-04-06 | K65: Faire un programme automate sur le banc 145 en rapport avec la TLC de l’essai 790-020-1038. Voir avec Jérôme MUNTREZ | L65: FALSE | M65: FALSE | N65: TRUE | O65: FALSE | P65: TRUE | Q65: FALSE | R65: FALSE | S65: FALSE | T65: FALSE | U65: FALSE | V65: FALSE | W65: FALSE | X65: TRUE | BG65: Banc 145FAUXFAUX | BH65: Banc 145FAUXFAUXVRAIFAUXFAUX
BG71: =H71&L71&M71 ->  | BH71: =H71&L71&M71&P71&Q71&R71 -> 
BG135: =H135&L135&M135 ->  | BH135: =H135&L135&M135&P135&Q135&R135 -> 
BG199: =H199&L199&M199 ->  | BH199: =H199&L199&M199&P199&Q199&R199 -> 
BG220: =H220&L220&M220 -> 
BH243: =H243&L243&M243&P243&Q243&R243 -> 
BG257: =H257&L257&M257 ->  | BH257: =H257&L257&M257&P257&Q257&R257 -> 
BG321: =H321&L321&M321 ->  | BH321: =H321&L321&M321&P321&Q321&R321 -> 
BG385: =H385&L385&M385 ->  | BH385: =H385&L385&M385&P385&Q385&R385 -> 
BG449: =H449&L449&M449 ->  | BH449: =H449&L449&M449&P449&Q449&R449 -> 

Sheet Liste (hidden)
A1: Liste des bancs | C1: Service maintenance | D1: MDP | E1: Fiche d'intervention | F1: BDD | G1: Liste
A2: Banc P1 | C2: Christophe Gauvin | D2: Christophe | E2: X | F2: X | G2: X
A3: Banc P2 | C3: David Garcia | D3: motdepasse | E3: X | F3: X
A4: Banc PowerTrain | C4: Alexandre Delaunay | D4: 123456 | E4: X | F4: X
A5: Banc P5 | C5: Jonhathan Boucher | D5: changer | E5: X | F5: X
A6: Banc P7 | C6: Thibault Hemart | D6: Changer2016 | E6: X | F6: X
A7: Banc P9 | C7: Romain Dehan | D7: 940606 | E7: X | F7: X | G7: X
A8: M73001 (Banc new P9) | C8: Benjamin Eyraud | E8: X | F8: X
A9: Banc HP | C9: Angela Andrino | E9: X | F9: X
A10: Banc Cisaillement | C10: Philippe Tavola | E10: X | F10: X
A11: Banc 007 | C11: Visiteur
A12: Banc 008
A13: Banc 101
A14: Banc 104
A15: Banc 111
A16: Banc 113
A17: Banc 115
A18: Banc 117
A19: Banc 117 bis
A20: Banc 119
A21: Banc 120
A22: Banc 120 bis
A23: Banc 121
A24: Banc 123
A25: Banc 124
A26: Banc 124 bis
A27: Banc 125
A28: Banc 126
A29: Banc 128
A30: Banc 129
A31: Banc 131
A32: Chambre sourde
A33: Banc 145
A34: Banc 156
A35: Chambre froide
A36: Banc W+B
A37: Ressort verticale
A38: Pompe à eau
A39: Porte bâtiment
A40: Mulet Alpha
A41: Mulet Househam
A42: Démo Truck
A43: Tech Truck
A44: Hamm HD130
A45: Volvo EC160
A46: Chariot C
A47: SSL John Deere
A48: Multi Phunction
A49: Volvo EC35
A50: Brodd SurPH
A51: TY45
A52: Boxer New
A53: CSF
A54: CNH BC2
A55: 208
A56: Renault Truck C460
A57: Plateau Lider
A58: Chariot BT2
A59: Machine à laver

Sheet Indicateur Zone5
B2: Suivi des arrêts par banc
A3: Banc zone 5 | B3: Janvier | C3: Février | D3: Mars | E3: Avril | F3: Mai | G3: Juin | H3: Juillet | I3: Août | J3: Septembre | K3: Octobre | L3: Novembre | M3: Décembre
A4: Banc 124 | B4: =SUMIF(BDD!$H$2:$H$3,'Indicateur Zone5'!$A4,BDD!$Z$2:$Z$3) -> 0 | C4: =SUMIF(BDD!$H$2:$H$3,'Indicateur Zone5'!$A4,BDD!$Z$2:$Z$3) -> 0 | D4: =SUMIF(BDD!$H$2:$H$25,'Indicateur Zone5'!$A4,BDD!$Z$2:$Z$25) -> 0.3 | E4: =SUMIF(BDD!$H$26:$H$600,'Indicateur Zone5'!$A4,BDD!$Z$26:$Z$600) -> 0 | F4: =SUMIF(BDD!$H$2:$H$3,'Indicateur Zone5'!$A4,BDD!$Z$2:$Z$3) -> 0 | G4: =SUMIF(BDD!$H$2:$H$3,'Indicateur Zone5'!$A4,BDD!$Z$2:$Z$3) -> 0 | H4: =SUMIF(BDD!$H$2:$H$3,'Indicateur Zone5'!$A4,BDD!$Z$2:$Z$3) -> 0 | I4: =SUMIF(BDD!$H$2:$H$3,'Indicateur Zone5'!$A4,BDD!$Z$2:$Z$3) -> 0 | J4: =SUMIF(BDD!$H$2:$H$3,'Indicateur Zone5'!$A4,BDD!$Z$2:$Z$3) -> 0 | K4: =SUMIF(BDD!$H$2:$H$3,'Indicateur Zone5'!$A4,BDD!$Z$2:$Z$3) -> 0 | L4: =SUMIF(BDD!$H$2:$H$3,'Indicateur Zone5'!$A4,BDD!$Z$2:$Z$3) -> 0 | M4: =SUMIF(BDD!$H$2:$H$3,'Indicateur Zone5'!$A4,BDD!$Z$2:$Z$3) -> 0
A5: Banc 124 bis | B5: =SUMIF(BDD!$H$2:$H$3,'Indicateur Zone5'!$A5,BDD!$Z$2:$Z$3) -> 0 | C5: =SUMIF(BDD!$H$2:$H$3,'Indicateur Zone5'!$A5,BDD!$Z$2:$Z$3) -> 0 | D5: =SUMIF(BDD!$H$2:$H$25,'Indicateur Zone5'!$A5,BDD!$Z$2:$Z$25) -> 0 | E5: =SUMIF(BDD!$H$26:$H$600,'Indicateur Zone5'!$A5,BDD!$Z$26:$Z$600) -> 1 | F5: =SUMIF(BDD!$H$2:$H$3,'Indicateur Zone5'!$A5,BDD!$Z$2:$Z$3) -> 0 | G5: =SUMIF(BDD!$H$2:$H$3,'Indicateur Zone5'!$A5,BDD!$Z$2:$Z$3) -> 0 | H5: =SUMIF(BDD!$H$2:$H$3,'Indicateur Zone5'!$A5,BDD!$Z$2:$Z$3) -> 0 | I5: =SUMIF(BDD!$H$2:$H$3,'Indicateur Zone5'!$A5,BDD!$Z$2:$Z$3) -> 0 | J5: =SUMIF(BDD!$H$2:$H$3,'Indicateur Zone5'!$A5,BDD!$Z$2:$Z$3) -> 0 | K5: =SUMIF(BDD!$H$2:$H$3,'Indicateur Zone5'!$A5,BDD!$Z$2:$Z$3) -> 0 | L5: =SUMIF(BDD!$H$2:$H$3,'Indicateur Zone5'!$A5,BDD!$Z$2:$Z$3) -> 0 | M5: =SUMIF(BDD!$H$2:$H$3,'Indicateur Zone5'!$A5,BDD!$Z$2:$Z$3) -> 0
A6: Banc 145 | B6: =SUMIF(BDD!$H$2:$H$3,'Indicateur Zone5'!$A6,BDD!$Z$2:$Z$3) -> 0 | C6: =SUMIF(BDD!$H$2:$H$3,'Indicateur Zone5'!$A6,BDD!$Z$2:$Z$3) -> 0 | D6: =SUMIF(BDD!$H$2:$H$25,'Indicateur Zone5'!$A6,BDD!$Z$2:$Z$25) -> 0 | E6: =SUMIF(BDD!$H$26:$H$600,'Indicateur Zone5'!$A6,BDD!$Z$26:$Z$600) -> 0 | F6: =SUMIF(BDD!$H$2:$H$3,'Indicateur Zone5'!$A6,BDD!$Z$2:$Z$3) -> 0 | G6: =SUMIF(BDD!$H$2:$H$3,'Indicateur Zone5'!$A6,BDD!$Z$2:$Z$3) -> 0 | H6: =SUMIF(BDD!$H$2:$H$3,'Indicateur Zone5'!$A6,BDD!$Z$2:$Z$3) -> 0 | I6: =SUMIF(BDD!$H$2:$H$3,'Indicateur Zone5'!$A6,BDD!$Z$2:$Z$3) -> 0 | J6: =SUMIF(BDD!$H$2:$H$3,'Indicateur Zone5'!$A6,BDD!$Z$2:$Z$3) -> 0 | K6: =SUMIF(BDD!$H$2:$H$3,'Indicateur Zone5'!$A6,BDD!$Z$2:$Z$3) -> 0 | L6: =SUMIF(BDD!$H$2:$H$3,'Indicateur Zone5'!$A6,BDD!$Z$2:$Z$3) -> 0 | M6: =SUMIF(BDD!$H$2:$H$3,'Indicateur Zone5'!$A6,BDD!$Z$2:$Z$3) -> 0
A7: Banc cisaillement | B7: =SUMIF(BDD!$H$2:$H$3,'Indicateur Zone5'!$A7,BDD!$Z$2:$Z$3) -> 0 | C7: =SUMIF(BDD!$H$2:$H$3,'Indicateur Zone5'!$A7,BDD!$Z$2:$Z$3) -> 0 | D7: =SUMIF(BDD!$H$2:$H$25,'Indicateur Zone5'!$A7,BDD!$Z$2:$Z$25) -> 0 | E7: =SUMIF(BDD!$H$26:$H$600,'Indicateur Zone5'!$A7,BDD!$Z$26:$Z$600) -> 0 | F7: =SUMIF(BDD!$H$2:$H$3,'Indicateur Zone5'!$A7,BDD!$Z$2:$Z$3) -> 0 | G7: =SUMIF(BDD!$H$2:$H$3,'Indicateur Zone5'!$A7,BDD!$Z$2:$Z$3) -> 0 | H7: =SUMIF(BDD!$H$2:$H$3,'Indicateur Zone5'!$A7,BDD!$Z$2:$Z$3) -> 0 | I7: =SUMIF(BDD!$H$2:$H$3,'Indicateur Zone5'!$A7,BDD!$Z$2:$Z$3) -> 0 | J7: =SUMIF(BDD!$H$2:$H$3,'Indicateur Zone5'!$A7,BDD!$Z$2:$Z$3) -> 0 | K7: =SUMIF(BDD!$H$2:$H$3,'Indicateur Zone5'!$A7,BDD!$Z$2:$Z$3) -> 0 | L7: =SUMIF(BDD!$H$2:$H$3,'Indicateur Zone5'!$A7,BDD!$Z$2:$Z$3) -> 0 | M7: =SUMIF(BDD!$H$2:$H$3,'Indicateur Zone5'!$A7,BDD!$Z$2:$Z$3) -> 0
A8: Banc HP | B8: =SUMIF(BDD!$H$2:$H$3,'Indicateur Zone5'!$A8,BDD!$Z$2:$Z$3) -> 0 | C8: =SUMIF(BDD!$H$2:$H$3,'Indicateur Zone5'!$A8,BDD!$Z$2:$Z$3) -> 0 | D8: =SUMIF(BDD!$H$2:$H$25,'Indicateur Zone5'!$A8,BDD!$Z$2:$Z$25) -> 0 | E8: =SUMIF(BDD!$H$26:$H$600,'Indicateur Zone5'!$A8,BDD!$Z$26:$Z$600) -> 0 | F8: =SUMIF(BDD!$H$2:$H$3,'Indicateur Zone5'!$A8,BDD!$Z$2:$Z$3) -> 0 | G8: =SUMIF(BDD!$H$2:$H$3,'Indicateur Zone5'!$A8,BDD!$Z$2:$Z$3) -> 0 | H8: =SUMIF(BDD!$H$2:$H$3,'Indicateur Zone5'!$A8,BDD!$Z$2:$Z$3) -> 0 | I8: =SUMIF(BDD!$H$2:$H$3,'Indicateur Zone5'!$A8,BDD!$Z$2:$Z$3) -> 0 | J8: =SUMIF(BDD!$H$2:$H$3,'Indicateur Zone5'!$A8,BDD!$Z$2:$Z$3) -> 0 | K8: =SUMIF(BDD!$H$2:$H$3,'Indicateur Zone5'!$A8,BDD!$Z$2:$Z$3) -> 0 | L8: =SUMIF(BDD!$H$2:$H$3,'Indicateur Zone5'!$A8,BDD!$Z$2:$Z$3) -> 0 | M8: =SUMIF(BDD!$H$2:$H$3,'Indicateur Zone5'!$A8,BDD!$Z$2:$Z$3) -> 0
A9: Banc W+B | B9: =SUMIF(BDD!$H$2:$H$3,'Indicateur Zone5'!$A9,BDD!$Z$2:$Z$3) -> 0 | C9: =SUMIF(BDD!$H$2:$H$3,'Indicateur Zone5'!$A9,BDD!$Z$2:$Z$3) -> 0 | D9: =SUMIF(BDD!$H$2:$H$25,'Indicateur Zone5'!$A9,BDD!$Z$2:$Z$25) -> 0 | E9: =SUMIF(BDD!$H$26:$H$600,'Indicateur Zone5'!$A9,BDD!$Z$26:$Z$600) -> 0 | F9: =SUMIF(BDD!$H$2:$H$3,'Indicateur Zone5'!$A9,BDD!$Z$2:$Z$3) -> 0 | G9: =SUMIF(BDD!$H$2:$H$3,'Indicateur Zone5'!$A9,BDD!$Z$2:$Z$3) -> 0 | H9: =SUMIF(BDD!$H$2:$H$3,'Indicateur Zone5'!$A9,BDD!$Z$2:$Z$3) -> 0 | I9: =SUMIF(BDD!$H$2:$H$3,'Indicateur Zone5'!$A9,BDD!$Z$2:$Z$3) -> 0 | J9: =SUMIF(BDD!$H$2:$H$3,'Indicateur Zone5'!$A9,BDD!$Z$2:$Z$3) -> 0 | K9: =SUMIF(BDD!$H$2:$H$3,'Indicateur Zone5'!$A9,BDD!$Z$2:$Z$3) -> 0 | L9: =SUMIF(BDD!$H$2:$H$3,'Indicateur Zone5'!$A9,BDD!$Z$2:$Z$3) -> 0 | M9: =SUMIF(BDD!$H$2:$H$3,'Indicateur Zone5'!$A9,BDD!$Z$2:$Z$3) -> 0
A10: Ressort verticale | B10: =SUMIF(BDD!$H$2:$H$3,'Indicateur Zone5'!$A10,BDD!$Z$2:$Z$3) -> 0 | C10: =SUMIF(BDD!$H$2:$H$3,'Indicateur Zone5'!$A10,BDD!$Z$2:$Z$3) -> 0 | D10: =SUMIF(BDD!$H$2:$H$25,'Indicateur Zone5'!$A10,BDD!$Z$2:$Z$25) -> 0 | E10: =SUMIF(BDD!$H$26:$H$600,'Indicateur Zone5'!$A10,BDD!$Z$26:$Z$600) -> 0 | F10: =SUMIF(BDD!$H$2:$H$3,'Indicateur Zone5'!$A10,BDD!$Z$2:$Z$3) -> 0 | G10: =SUMIF(BDD!$H$2:$H$3,'Indicateur Zone5'!$A10,BDD!$Z$2:$Z$3) -> 0 | H10: =SUMIF(BDD!$H$2:$H$3,'Indicateur Zone5'!$A10,BDD!$Z$2:$Z$3) -> 0 | I10: =SUMIF(BDD!$H$2:$H$3,'Indicateur Zone5'!$A10,BDD!$Z$2:$Z$3) -> 0 | J10: =SUMIF(BDD!$H$2:$H$3,'Indicateur Zone5'!$A10,BDD!$Z$2:$Z$3) -> 0 | K10: =SUMIF(BDD!$H$2:$H$3,'Indicateur Zone5'!$A10,BDD!$Z$2:$Z$3) -> 0 | L10: =SUMIF(BDD!$H$2:$H$3,'Indicateur Zone5'!$A10,BDD!$Z$2:$Z$3) -> 0 | M10: =SUMIF(BDD!$H$2:$H$3,'Indicateur Zone5'!$A10,BDD!$Z$2:$Z$3) -> 0
B32: Suivi du correctif et du préventif
A33: Type de maintenance | B33: Janvier | C33: Février | D33: Mars | E33: Avril | F33: Mai | G33: Juin | H33: Juillet | I33: Août | J33: Septembre | K33: Octobre | L33: Novembre | M33: Décembre
A34: Préventive | B34: =SUM(C59:C65) -> 0 | C34: =SUM(E59:E65) -> 0 | D34: =SUM(G59:G65) -> 0.3 | E34: =SUM(I59:I65) -> 0 | F34: =SUM(K59:K65) -> 0 | G34: =SUM(M59:M65) -> 0 | H34: =SUM(O59:O65) -> 0 | I34: =SUM(Q59:Q65) -> 0 | J34: =SUM(S59:S65) -> 0 | K34: =SUM(U59:U65) -> 0 | L34: =SUM(W59:W65) -> 0 | M34: =SUM(Y59:Y65) -> 0
A35: Corrective | B35: =SUM(B59:B65) -> 0 | C35: =SUM(D59:D65) -> 0 | D35: =SUM(F59:F65) -> 0 | E35: =SUM(H59:H65) -> 1 | F35: =SUM(J59:J65) -> 0 | G35: =SUM(L59:L65) -> 0 | H35: =SUM(N59:N65) -> 0 | I35: =SUM(N59:N65) -> 0 | J35: =SUM(R59:R65) -> 0 | K35: =SUM(T59:T65) -> 0 | L35: =SUM(V59:V65) -> 0 | M35: =SUM(X59:X65) -> 0
B56: Suivi du correctif et du préventif par banc
B57: Janvier | D57: Février | F57: Mars | H57: Avril | J57: Mai | L57: Juin | N57: Juillet | P57: Août | R57: Septembre | T57: Octobre | V57: Novembre | X57: Décembre
A58: Banc zone 5 | B58: Corrective | C58: Préventive | D58: Corrective | E58: Préventive | F58: Corrective | G58: Préventive | H58: Corrective | I58: Préventive | J58: Corrective | K58: Préventive | L58: Corrective | M58: Préventive | N58: Corrective | O58: Préventive | P58: Corrective | Q58: Préventive | R58: Corrective | S58: Préventive | T58: Corrective | U58: Préventive | V58: Corrective | W58: Préventive | X58: Corrective | Y58: Préventive
A59: Banc 124 | B59: =SUMIF(BDD!$BG$2:$BG$3,"Banc 124VRAIFAUX",BDD!$Z$2:$Z$3) -> 0 | C59: =SUMIF(BDD!$BG$2:$BG$3,"Banc 124FAUXVRAI",BDD!$Z$2:$Z$3) -> 0 | D59: =SUMIF(BDD!$BG$2:$BG$3,"Banc 124VRAIFAUX",BDD!$Z$2:$Z$3) -> 0 | E59: =SUMIF(BDD!$BG$2:$BG$3,"Banc 124FAUXVRAI",BDD!$Z$2:$Z$3) -> 0 | F59: =SUMIF(BDD!$BG$2:$BG$25,"Banc 124VRAIFAUX",BDD!$Z$2:$Z$25) -> 0 | G59: =SUMIF(BDD!$BG$2:$BG$25,"Banc 124FAUXvrai",BDD!$Z$2:$Z$25) -> 0.3 | H59: =SUMIF(BDD!$BG$26:$BG$600,"Banc 124VRAIFAUX",BDD!$Z$26:$Z$600) -> 0 | I59: =SUMIF(BDD!$BG$26:$BG$600,"Banc 124FAUXVRAI",BDD!$Z$26:$Z$600) -> 0 | J59: =SUMIF(BDD!$BG$2:$BG$3,"Banc 124VRAIFAUX",BDD!$Z$2:$Z$3) -> 0 | K59: =SUMIF(BDD!$BG$2:$BG$3,"Banc 124FAUXVRAI",BDD!$Z$2:$Z$3) -> 0 | L59: =SUMIF(BDD!$BG$2:$BG$3,"Banc 124VRAIFAUX",BDD!$Z$2:$Z$3) -> 0 | M59: =SUMIF(BDD!$BG$2:$BG$3,"Banc 124FAUXVRAI",BDD!$Z$2:$Z$3) -> 0 | N59: =SUMIF(BDD!$BG$2:$BG$3,"Banc 124VRAIFAUX",BDD!$Z$2:$Z$3) -> 0 | O59: =SUMIF(BDD!$BG$2:$BG$3,"Banc 124FAUXVRAI",BDD!$Z$2:$Z$3) -> 0 | P59: =SUMIF(BDD!$BG$2:$BG$3,"Banc 124VRAIFAUX",BDD!$Z$2:$Z$3) -> 0 | Q59: =SUMIF(BDD!$BG$2:$BG$3,"Banc 124FAUXVRAI",BDD!$Z$2:$Z$3) -> 0 | R59: =SUMIF(BDD!$BG$2:$BG$3,"Banc 124VRAIFAUX",BDD!$Z$2:$Z$3) -> 0 | S59: =SUMIF(BDD!$BG$2:$BG$3,"Banc 124FAUXVRAI",BDD!$Z$2:$Z$3) -> 0 | T59: =SUMIF(BDD!$BG$2:$BG$3,"Banc 124VRAIFAUX",BDD!$Z$2:$Z$3) -> 0 | U59: =SUMIF(BDD!$BG$2:$BG$3,"Banc 124FAUXVRAI",BDD!$Z$2:$Z$3) -> 0 | V59: =SUMIF(BDD!$BG$2:$BG$3,"Banc 124VRAIFAUX",BDD!$Z$2:$Z$3) -> 0 | W59: =SUMIF(BDD!$BG$2:$BG$3,"Banc 124FAUXVRAI",BDD!$Z$2:$Z$3) -> 0 | X59: =SUMIF(BDD!$BG$2:$BG$3,"Banc 124VRAIFAUX",BDD!$Z$2:$Z$3) -> 0 | Y59: =SUMIF(BDD!$BG$2:$BG$3,"Banc 124FAUXVRAI",BDD!$Z$2:$Z$3) -> 0
A60: Banc 124 bis | B60: =SUMIF(BDD!$BG$2:$BG$3,"Banc 124 bisVRAIFAUX",BDD!$Z$2:$Z$3) -> 0 | C60: =SUMIF(BDD!$BG$2:$BG$3,"Banc 124 bisFAUXVRAI",BDD!$Z$2:$Z$3) -> 0 | D60: =SUMIF(BDD!$BG$2:$BG$3,"Banc 124 bisVRAIFAUX",BDD!$Z$2:$Z$3) -> 0 | E60: =SUMIF(BDD!$BG$2:$BG$3,"Banc 124 bisFAUXVRAI",BDD!$Z$2:$Z$3) -> 0 | F60: =SUMIF(BDD!$BG$2:$BG$25,"Banc 124 bisVRAIFAUX",BDD!$Z$2:$Z$25) -> 0 | G60: =SUMIF(BDD!$BG$2:$BG$25,"Banc 124 bisFAUXVRAI",BDD!$Z$2:$Z$25) -> 0 | H60: =SUMIF(BDD!$BG$26:$BG$600,"Banc 124 bisVRAIFAUX",BDD!$Z$26:$Z$600) -> 1 | I60: =SUMIF(BDD!$BG$26:$BG$600,"Banc 124 bisFAUXVRAI",BDD!$Z$26:$Z$600) -> 0 | J60: =SUMIF(BDD!$BG$2:$BG$3,"Banc 124 bisVRAIFAUX",BDD!$Z$2:$Z$3) -> 0 | K60: =SUMIF(BDD!$BG$2:$BG$3,"Banc 124 bisFAUXVRAI",BDD!$Z$2:$Z$3) -> 0 | L60: =SUMIF(BDD!$BG$2:$BG$3,"Banc 124 bisVRAIFAUX",BDD!$Z$2:$Z$3) -> 0 | M60: =SUMIF(BDD!$BG$2:$BG$3,"Banc 124 bisFAUXVRAI",BDD!$Z$2:$Z$3) -> 0 | N60: =SUMIF(BDD!$BG$2:$BG$3,"Banc 124 bisVRAIFAUX",BDD!$Z$2:$Z$3) -> 0 | O60: =SUMIF(BDD!$BG$2:$BG$3,"Banc 124 bisFAUXVRAI",BDD!$Z$2:$Z$3) -> 0 | P60: =SUMIF(BDD!$BG$2:$BG$3,"Banc 124 bisVRAIFAUX",BDD!$Z$2:$Z$3) -> 0 | Q60: =SUMIF(BDD!$BG$2:$BG$3,"Banc 124 bisFAUXVRAI",BDD!$Z$2:$Z$3) -> 0 | R60: =SUMIF(BDD!$BG$2:$BG$3,"Banc 124 bisVRAIFAUX",BDD!$Z$2:$Z$3) -> 0 | S60: =SUMIF(BDD!$BG$2:$BG$3,"Banc 124 bisFAUXVRAI",BDD!$Z$2:$Z$3) -> 0 | T60: =SUMIF(BDD!$BG$2:$BG$3,"Banc 124 bisVRAIFAUX",BDD!$Z$2:$Z$3) -> 0 | U60: =SUMIF(BDD!$BG$2:$BG$3,"Banc 124 bisFAUXVRAI",BDD!$Z$2:$Z$3) -> 0 | V60: =SUMIF(BDD!$BG$2:$BG$3,"Banc 124 bisVRAIFAUX",BDD!$Z$2:$Z$3) -> 0 | W60: =SUMIF(BDD!$BG$2:$BG$3,"Banc 124 bisFAUXVRAI",BDD!$Z$2:$Z$3) -> 0 | X60: =SUMIF(BDD!$BG$2:$BG$3,"Banc 124 bisVRAIFAUX",BDD!$Z$2:$Z$3) -> 0 | Y60: =SUMIF(BDD!$BG$2:$BG$3,"Banc 124 bisFAUXVRAI",BDD!$Z$2:$Z$3) -> 0
A61: Banc 145 | B61: =SUMIF(BDD!$BG$2:$BG$683,"Banc 145VRAIFAUX",BDD!$Z$2:$Z$683) -> 0 | C61: =SUMIF(BDD!$BG$2:$BG$3,"Banc 145FAUXVRAI",BDD!$Z$2:$Z$3) -> 0 | D61: =SUMIF(BDD!$BG$2:$BG$683,"Banc 145VRAIFAUX",BDD!$Z$2:$Z$683) -> 0 | E61: =SUMIF(BDD!$BG$2:$BG$3,"Banc 145FAUXVRAI",BDD!$Z$2:$Z$3) -> 0 | F61: =SUMIF(BDD!$BG$2:$BG$25,"Banc 145VRAIFAUX",BDD!$Z$2:$Z$25) -> 0 | G61: =SUMIF(BDD!$BG$2:$BG$25,"Banc 145FAUXVRAI",BDD!$Z$2:$Z$25) -> 0 | H61: =SUMIF(BDD!$BG$26:$BG$600,"Banc 145VRAIFAUX",BDD!$Z$26:$Z$600) -> 0 | I61: =SUMIF(BDD!$BG$26:$BG$600,"Banc 145FAUXVRAI",BDD!$Z$26:$Z$600) -> 0 | J61: =SUMIF(BDD!$BG$2:$BG$683,"Banc 145VRAIFAUX",BDD!$Z$2:$Z$683) -> 0 | K61: =SUMIF(BDD!$BG$2:$BG$3,"Banc 145FAUXVRAI",BDD!$Z$2:$Z$3) -> 0 | L61: =SUMIF(BDD!$BG$2:$BG$683,"Banc 145VRAIFAUX",BDD!$Z$2:$Z$683) -> 0 | M61: =SUMIF(BDD!$BG$2:$BG$3,"Banc 145FAUXVRAI",BDD!$Z$2:$Z$3) -> 0 | N61: =SUMIF(BDD!$BG$2:$BG$683,"Banc 145VRAIFAUX",BDD!$Z$2:$Z$683) -> 0 | O61: =SUMIF(BDD!$BG$2:$BG$3,"Banc 145FAUXVRAI",BDD!$Z$2:$Z$3) -> 0 | P61: =SUMIF(BDD!$BG$2:$BG$683,"Banc 145VRAIFAUX",BDD!$Z$2:$Z$683) -> 0 | Q61: =SUMIF(BDD!$BG$2:$BG$3,"Banc 145FAUXVRAI",BDD!$Z$2:$Z$3) -> 0 | R61: =SUMIF(BDD!$BG$2:$BG$683,"Banc 145VRAIFAUX",BDD!$Z$2:$Z$683) -> 0 | S61: =SUMIF(BDD!$BG$2:$BG$3,"Banc 145FAUXVRAI",BDD!$Z$2:$Z$3) -> 0 | T61: =SUMIF(BDD!$BG$2:$BG$683,"Banc 145VRAIFAUX",BDD!$Z$2:$Z$683) -> 0 | U61: =SUMIF(BDD!$BG$2:$BG$3,"Banc 145FAUXVRAI",BDD!$Z$2:$Z$3) -> 0 | V61: =SUMIF(BDD!$BG$2:$BG$683,"Banc 145VRAIFAUX",BDD!$Z$2:$Z$683) -> 0 | W61: =SUMIF(BDD!$BG$2:$BG$3,"Banc 145FAUXVRAI",BDD!$Z$2:$Z$3) -> 0 | X61: =SUMIF(BDD!$BG$2:$BG$683,"Banc 145VRAIFAUX",BDD!$Z$2:$Z$683) -> 0 | Y61: =SUMIF(BDD!$BG$2:$BG$3,"Banc 145FAUXVRAI",BDD!$Z$2:$Z$3) -> 0
A62: Banc cisaillement | B62: =SUMIF(BDD!$BG$2:$BG$3,"Banc cisaillementVRAIFAUX",BDD!$Z$2:$Z$3) -> 0 | C62: =SUMIF(BDD!$BG$2:$BG$3,"Banc cisaillementFAUXVRAI",BDD!$Z$2:$Z$3) -> 0 | D62: =SUMIF(BDD!$BG$2:$BG$3,"Banc cisaillementVRAIFAUX",BDD!$Z$2:$Z$3) -> 0 | E62: =SUMIF(BDD!$BG$2:$BG$3,"Banc cisaillementFAUXVRAI",BDD!$Z$2:$Z$3) -> 0 | F62: =SUMIF(BDD!$BG$2:$BG$25,"Banc cisaillementVRAIFAUX",BDD!$Z$2:$Z$25) -> 0 | G62: =SUMIF(BDD!$BG$2:$BG$25,"Banc cisaillementFAUXVRAI",BDD!$Z$2:$Z$25) -> 0 | H62: =SUMIF(BDD!$BG$26:$BG$600,"Banc cisaillementVRAIFAUX",BDD!$Z$26:$Z$600) -> 0 | I62: =SUMIF(BDD!$BG$26:$BG$600,"Banc cisaillementFAUXVRAI",BDD!$Z$26:$Z$600) -> 0 | J62: =SUMIF(BDD!$BG$2:$BG$3,"Banc cisaillementVRAIFAUX",BDD!$Z$2:$Z$3) -> 0 | K62: =SUMIF(BDD!$BG$2:$BG$3,"Banc cisaillementFAUXVRAI",BDD!$Z$2:$Z$3) -> 0 | L62: =SUMIF(BDD!$BG$2:$BG$3,"Banc cisaillementVRAIFAUX",BDD!$Z$2:$Z$3) -> 0 | M62: =SUMIF(BDD!$BG$2:$BG$3,"Banc cisaillementFAUXVRAI",BDD!$Z$2:$Z$3) -> 0 | N62: =SUMIF(BDD!$BG$2:$BG$3,"Banc cisaillementVRAIFAUX",BDD!$Z$2:$Z$3) -> 0 | O62: =SUMIF(BDD!$BG$2:$BG$3,"Banc cisaillementFAUXVRAI",BDD!$Z$2:$Z$3) -> 0 | P62: =SUMIF(BDD!$BG$2:$BG$3,"Banc cisaillementVRAIFAUX",BDD!$Z$2:$Z$3) -> 0 | Q62: =SUMIF(BDD!$BG$2:$BG$3,"Banc cisaillementFAUXVRAI",BDD!$Z$2:$Z$3) -> 0 | R62: =SUMIF(BDD!$BG$2:$BG$3,"Banc cisaillementVRAIFAUX",BDD!$Z$2:$Z$3) -> 0 | S62: =SUMIF(BDD!$BG$2:$BG$3,"Banc cisaillementFAUXVRAI",BDD!$Z$2:$Z$3) -> 0 | T62: =SUMIF(BDD!$BG$2:$BG$3,"Banc cisaillementVRAIFAUX",BDD!$Z$2:$Z$3) -> 0 | U62: =SUMIF(BDD!$BG$2:$BG$3,"Banc cisaillementFAUXVRAI",BDD!$Z$2:$Z$3) -> 0 | V62: =SUMIF(BDD!$BG$2:$BG$3,"Banc cisaillementVRAIFAUX",BDD!$Z$2:$Z$3) -> 0 | W62: =SUMIF(BDD!$BG$2:$BG$3,"Banc cisaillementFAUXVRAI",BDD!$Z$2:$Z$3) -> 0 | X62: =SUMIF(BDD!$BG$2:$BG$3,"Banc cisaillementVRAIFAUX",BDD!$Z$2:$Z$3) -> 0 | Y62: =SUMIF(BDD!$BG$2:$BG$3,"Banc cisaillementFAUXVRAI",BDD!$Z$2:$Z$3) -> 0
A63: Banc HP | B63: =SUMIF(BDD!$BG$2:$BG$3,"Banc HPVRAIFAUX",BDD!$Z$2:$Z$3) -> 0 | C63: =SUMIF(BDD!$BG$2:$BG$3,"Banc HPFAUXVRAI",BDD!$Z$2:$Z$3) -> 0 | D63: =SUMIF(BDD!$BG$2:$BG$3,"Banc HPVRAIFAUX",BDD!$Z$2:$Z$3) -> 0 | E63: =SUMIF(BDD!$BG$2:$BG$3,"Banc HPFAUXVRAI",BDD!$Z$2:$Z$3) -> 0 | F63: =SUMIF(BDD!$BG$2:$BG$25,"Banc HPVRAIFAUX",BDD!$Z$2:$Z$25) -> 0 | G63: =SUMIF(BDD!$BG$2:$BG$25,"Banc HPFAUXVRAI",BDD!$Z$2:$Z$25) -> 0 | H63: =SUMIF(BDD!$BG$26:$BG$600,"Banc HPVRAIFAUX",BDD!$Z$26:$Z$600) -> 0 | I63: =SUMIF(BDD!$BG$26:$BG$600,"Banc HPFAUXVRAI",BDD!$Z$26:$Z$600) -> 0 | J63: =SUMIF(BDD!$BG$2:$BG$3,"Banc HPVRAIFAUX",BDD!$Z$2:$Z$3) -> 0 | K63: =SUMIF(BDD!$BG$2:$BG$3,"Banc HPFAUXVRAI",BDD!$Z$2:$Z$3) -> 0 | L63: =SUMIF(BDD!$BG$2:$BG$3,"Banc HPVRAIFAUX",BDD!$Z$2:$Z$3) -> 0 | M63: =SUMIF(BDD!$BG$2:$BG$3,"Banc HPFAUXVRAI",BDD!$Z$2:$Z$3) -> 0 | N63: =SUMIF(BDD!$BG$2:$BG$3,"Banc HPVRAIFAUX",BDD!$Z$2:$Z$3) -> 0 | O63: =SUMIF(BDD!$BG$2:$BG$3,"Banc HPFAUXVRAI",BDD!$Z$2:$Z$3) -> 0 | P63: =SUMIF(BDD!$BG$2:$BG$3,"Banc HPVRAIFAUX",BDD!$Z$2:$Z$3) -> 0 | Q63: =SUMIF(BDD!$BG$2:$BG$3,"Banc HPFAUXVRAI",BDD!$Z$2:$Z$3) -> 0 | R63: =SUMIF(BDD!$BG$2:$BG$3,"Banc HPVRAIFAUX",BDD!$Z$2:$Z$3) -> 0 | S63: =SUMIF(BDD!$BG$2:$BG$3,"Banc HPFAUXVRAI",BDD!$Z$2:$Z$3) -> 0 | T63: =SUMIF(BDD!$BG$2:$BG$3,"Banc HPVRAIFAUX",BDD!$Z$2:$Z$3) -> 0 | U63: =SUMIF(BDD!$BG$2:$BG$3,"Banc HPFAUXVRAI",BDD!$Z$2:$Z$3) -> 0 | V63: =SUMIF(BDD!$BG$2:$BG$3,"Banc HPVRAIFAUX",BDD!$Z$2:$Z$3) -> 0 | W63: =SUMIF(BDD!$BG$2:$BG$3,"Banc HPFAUXVRAI",BDD!$Z$2:$Z$3) -> 0 | X63: =SUMIF(BDD!$BG$2:$BG$3,"Banc HPVRAIFAUX",BDD!$Z$2:$Z$3) -> 0 | Y63: =SUMIF(BDD!$BG$2:$BG$3,"Banc HPFAUXVRAI",BDD!$Z$2:$Z$3) -> 0
A64: Banc W+B | B64: =SUMIF(BDD!$BG$2:$BG$3,"Banc W+BVRAIFAUX",BDD!$Z$2:$Z$3) -> 0 | C64: =SUMIF(BDD!$BG$2:$BG$3,"Banc W+BFAUXVRAI",BDD!$Z$2:$Z$3) -> 0 | D64: =SUMIF(BDD!$BG$2:$BG$3,"Banc W+BVRAIFAUX",BDD!$Z$2:$Z$3) -> 0 | E64: =SUMIF(BDD!$BG$2:$BG$3,"Banc W+BFAUXVRAI",BDD!$Z$2:$Z$3) -> 0 | F64: =SUMIF(BDD!$BG$2:$BG$25,"Banc W+BVRAIFAUX",BDD!$Z$2:$Z$25) -> 0 | G64: =SUMIF(BDD!$BG$2:$BG$25,"Banc W+BFAUXVRAI",BDD!$Z$2:$Z$25) -> 0 | H64: =SUMIF(BDD!$BG$26:$BG$600,"Banc W+BVRAIFAUX",BDD!$Z$26:$Z$600) -> 0 | I64: =SUMIF(BDD!$BG$26:$BG$600,"Banc W+BFAUXVRAI",BDD!$Z$26:$Z$600) -> 0 | J64: =SUMIF(BDD!$BG$2:$BG$3,"Banc W+BVRAIFAUX",BDD!$Z$2:$Z$3) -> 0 | K64: =SUMIF(BDD!$BG$2:$BG$3,"Banc W+BFAUXVRAI",BDD!$Z$2:$Z$3) -> 0 | L64: =SUMIF(BDD!$BG$2:$BG$3,"Banc W+BVRAIFAUX",BDD!$Z$2:$Z$3) -> 0 | M64: =SUMIF(BDD!$BG$2:$BG$3,"Banc W+BFAUXVRAI",BDD!$Z$2:$Z$3) -> 0 | N64: =SUMIF(BDD!$BG$2:$BG$3,"Banc W+BVRAIFAUX",BDD!$Z$2:$Z$3) -> 0 | O64: =SUMIF(BDD!$BG$2:$BG$3,"Banc W+BFAUXVRAI",BDD!$Z$2:$Z$3) -> 0 | P64: =SUMIF(BDD!$BG$2:$BG$3,"Banc W+BVRAIFAUX",BDD!$Z$2:$Z$3) -> 0 | Q64: =SUMIF(BDD!$BG$2:$BG$3,"Banc W+BFAUXVRAI",BDD!$Z$2:$Z$3) -> 0 | R64: =SUMIF(BDD!$BG$2:$BG$3,"Banc W+BVRAIFAUX",BDD!$Z$2:$Z$3) -> 0 | S64: =SUMIF(BDD!$BG$2:$BG$3,"Banc W+BFAUXVRAI",BDD!$Z$2:$Z$3) -> 0 | T64: =SUMIF(BDD!$BG$2:$BG$3,"Banc W+BVRAIFAUX",BDD!$Z$2:$Z$3) -> 0 | U64: =SUMIF(BDD!$BG$2:$BG$3,"Banc W+BFAUXVRAI",BDD!$Z$2:$Z$3) -> 0 | V64: =SUMIF(BDD!$BG$2:$BG$3,"Banc W+BVRAIFAUX",BDD!$Z$2:$Z$3) -> 0 | W64: =SUMIF(BDD!$BG$2:$BG$3,"Banc W+BFAUXVRAI",BDD!$Z$2:$Z$3) -> 0 | X64: =SUMIF(BDD!$BG$2:$BG$3,"Banc W+BVRAIFAUX",BDD!$Z$2:$Z$3) -> 0 | Y64: =SUMIF(BDD!$BG$2:$BG$3,"Banc W+BFAUXVRAI",BDD!$Z$2:$Z$3) -> 0
A65: Ressort verticale | B65: =SUMIF(BDD!$BG$2:$BG$3,"Ressort verticaleVRAIFAUX",BDD!$Z$2:$Z$3) -> 0 | C65: =SUMIF(BDD!$BG$2:$BG$3,"Ressort verticaleFAUXVRAI",BDD!$Z$2:$Z$3) -> 0 | D65: =SUMIF(BDD!$BG$2:$BG$3,"Ressort verticaleVRAIFAUX",BDD!$Z$2:$Z$3) -> 0 | E65: =SUMIF(BDD!$BG$2:$BG$3,"Ressort verticaleFAUXVRAI",BDD!$Z$2:$Z$3) -> 0 | F65: =SUMIF(BDD!$BG$2:$BG$25,"Ressort verticaleVRAIFAUX",BDD!$Z$2:$Z$25) -> 0 | G65: =SUMIF(BDD!$BG$2:$BG$25,"Ressort verticaleFAUXVRAI",BDD!$Z$2:$Z$25) -> 0 | H65: =SUMIF(BDD!$BG$26:$BG$600,"Ressort verticaleVRAIFAUX",BDD!$Z$26:$Z$600) -> 0 | I65: =SUMIF(BDD!$BG$26:$BG$600,"Ressort verticaleFAUXVRAI",BDD!$Z$26:$Z$600) -> 0 | J65: =SUMIF(BDD!$BG$2:$BG$3,"Ressort verticaleVRAIFAUX",BDD!$Z$2:$Z$3) -> 0 | K65: =SUMIF(BDD!$BG$2:$BG$3,"Ressort verticaleFAUXVRAI",BDD!$Z$2:$Z$3) -> 0 | L65: =SUMIF(BDD!$BG$2:$BG$3,"Ressort verticaleVRAIFAUX",BDD!$Z$2:$Z$3) -> 0 | M65: =SUMIF(BDD!$BG$2:$BG$3,"Ressort verticaleFAUXVRAI",BDD!$Z$2:$Z$3) -> 0 | N65: =SUMIF(BDD!$BG$2:$BG$3,"Ressort verticaleVRAIFAUX",BDD!$Z$2:$Z$3) -> 0 | O65: =SUMIF(BDD!$BG$2:$BG$3,"Ressort verticaleFAUXVRAI",BDD!$Z$2:$Z$3) -> 0 | P65: =SUMIF(BDD!$BG$2:$BG$3,"Ressort verticaleVRAIFAUX",BDD!$Z$2:$Z$3) -> 0 | Q65: =SUMIF(BDD!$BG$2:$BG$3,"Ressort verticaleFAUXVRAI",BDD!$Z$2:$Z$3) -> 0 | R65: =SUMIF(BDD!$BG$2:$BG$3,"Ressort verticaleVRAIFAUX",BDD!$Z$2:$Z$3) -> 0 | S65: =SUMIF(BDD!$BG$2:$BG$3,"Ressort verticaleFAUXVRAI",BDD!$Z$2:$Z$3) -> 0 | T65: =SUMIF(BDD!$BG$2:$BG$3,"Ressort verticaleVRAIFAUX",BDD!$Z$2:$Z$3) -> 0 | U65: =SUMIF(BDD!$BG$2:$BG$3,"Ressort verticaleFAUXVRAI",BDD!$Z$2:$Z$3) -> 0 | V65: =SUMIF(BDD!$BG$2:$BG$3,"Ressort verticaleVRAIFAUX",BDD!$Z$2:$Z$3) -> 0 | W65: =SUMIF(BDD!$BG$2:$BG$3,"Ressort verticaleFAUXVRAI",BDD!$Z$2:$Z$3) -> 0 | X65: =SUMIF(BDD!$BG$2:$BG$3,"Ressort verticaleVRAIFAUX",BDD!$Z$2:$Z$3) -> 0 | Y65: =SUMIF(BDD!$BG$2:$BG$3,"Ressort verticaleFAUXVRAI",BDD!$Z$2:$Z$3) -> 0
B88: Suivi du correctif et du préventif par banc
B89: Janvier | H89: Février | N89: Mars | T89: Avril | Z89: Mai | AF89: Juin | AL89: Juillet | AR89: Août | AX89: Septembre | BD89: Octobre | BJ89: Novembre | BP89: Décembre
B90: Corrective | E90: Préventive | H90: Corrective | K90: Préventive | N90: Corrective | Q90: Préventive | T90: Corrective | W90: Préventive | Z90: Corrective | AC90: Préventive | AF90: Corrective | AI90: Préventive | AL90: Corrective | AO90: Préventive | AR90: Corrective | AU90: Préventive | AX90: Corrective | BA90: Préventive | BD90: Corrective | BG90: Préventive | BJ90: Corrective | BM90: Préventive | BP90: Corrective | BS90: Préventive
A91: Banc zone 5 | B91: Electrique | C91: Mécanique | D91: Hydraulique | E91: Electrique | F91: Mécanique | G91: Hydraulique | H91: Electrique | I91: Mécanique | J91: Hydraulique | K91: Electrique | L91: Mécanique | M91: Hydraulique | N91: Electrique | O91: Mécanique | P91: Hydraulique | Q91: Electrique | R91: Mécanique | S91: Hydraulique | T91: Electrique | U91: Mécanique | V91: Hydraulique | W91: Electrique | X91: Mécanique | Y91: Hydraulique | Z91: Electrique | AA91: Mécanique | AB91: Hydraulique | AC91: Electrique | AD91: Mécanique | AE91: Hydraulique | AF91: Electrique | AG91: Mécanique | AH91: Hydraulique | AI91: Electrique | AJ91: Mécanique | AK91: Hydraulique | AL91: Electrique | AM91: Mécanique | AN91: Hydraulique | AO91: Electrique | AP91: Mécanique | AQ91: Hydraulique | AR91: Electrique | AS91: Mécanique | AT91: Hydraulique | AU91: Electrique | AV91: Mécanique | AW91: Hydraulique | AX91: Electrique | AY91: Mécanique | AZ91: Hydraulique | BA91: Electrique | BB91: Mécanique | BC91: Hydraulique | BD91: Electrique | BE91: Mécanique | BF91: Hydraulique | BG91: Electrique | BH91: Mécanique | BI91: Hydraulique | BJ91: Electrique | BK91: Mécanique | BL91: Hydraulique | BM91: Electrique | BN91: Mécanique | BO91: Hydraulique | BP91: Electrique | BQ91: Mécanique | BR91: Hydraulique | BS91: Electrique | BT91: Mécanique | BU91: Hydraulique
A92: Banc 124 | B92: =SUMIF(BDD!$BH$2:$BH$3,"Banc 124VRAIFAUXVRAIFAUXFAUX",BDD!$Z$2:$Z$3) -> 0 | C92: =SUMIF(BDD!$BH$2:$BH$3,"Banc 124VRAIFAUXFAUXVRAIFAUX",BDD!$Z$2:$Z$3) -> 0 | D92: =SUMIF(BDD!$BH$2:$BH$3,"Banc 124VRAIFAUXFAUXFAUXVRAI",BDD!$Z$2:$Z$3) -> 0 | E92: =SUMIF(BDD!$BH$2:$BH$3,"Banc 124FAUXVRAIVRAIFAUXFAUX",BDD!$Z$2:$Z$3) -> 0 | F92: =SUMIF(BDD!$BH$2:$BH$3,"Banc 124FAUXVRAIFAUXVRAIFAUX",BDD!$Z$2:$Z$3) -> 0 | G92: =SUMIF(BDD!$BH$2:$BH$3,"Banc 124FAUXVRAIFAUXFAUXVRAI",BDD!$Z$2:$Z$3) -> 0 | H92: =SUMIF(BDD!$BH$2:$BH$3,"Banc 124VRAIFAUXVRAIFAUXFAUX",BDD!$Z$2:$Z$3) -> 0 | I92: =SUMIF(BDD!$BH$2:$BH$3,"Banc 124VRAIFAUXFAUXVRAIFAUX",BDD!$Z$2:$Z$3) -> 0 | J92: =SUMIF(BDD!$BH$2:$BH$3,"Banc 124VRAIFAUXFAUXFAUXVRAI",BDD!$Z$2:$Z$3) -> 0 | K92: =SUMIF(BDD!$BH$2:$BH$3,"Banc 124FAUXVRAIVRAIFAUXFAUX",BDD!$Z$2:$Z$3) -> 0 | L92: =SUMIF(BDD!$BH$2:$BH$3,"Banc 124FAUXVRAIFAUXVRAIFAUX",BDD!$Z$2:$Z$3) -> 0 | M92: =SUMIF(BDD!$BH$2:$BH$3,"Banc 124FAUXVRAIFAUXFAUXVRAI",BDD!$Z$2:$Z$3) -> 0 | N92: =SUMIF(BDD!$BH$2:$BH$25,"Banc 124VRAIFAUXVRAIFAUXFAUX",BDD!$Z$2:$Z$25) -> 0 | O92: =SUMIF(BDD!$BH$2:$BH$25,"Banc 124VRAIFAUXFAUXVRAIFAUX",BDD!$Z$2:$Z$25) -> 0 | P92: =SUMIF(BDD!$BH$2:$BH$25,"Banc 124VRAIFAUXFAUXFAUXVRAI",BDD!$Z$2:$Z$25) -> 0 | Q92: =SUMIF(BDD!$BH$2:$BH$25,"Banc 124FAUXVRAIVRAIFAUXFAUX",BDD!$Z$2:$Z$25) -> 0 | R92: =SUMIF(BDD!$BH$2:$BH$25,"Banc 124FAUXVRAIFAUXVRAIFAUX",BDD!$Z$2:$Z$25) -> 0 | S92: =SUMIF(BDD!$BH$2:$BH$25,"Banc 124FAUXVRAIFAUXFAUXVRAI",BDD!$Z$2:$Z$25) -> 0.3 | T92: =SUMIF(BDD!$BH$26:$BH$266,"Banc 12664VRAIFAUXVRAIFAUXFAUX",BDD!$Z$26:$Z$266) -> 0 | U92: =SUMIF(BDD!$BH$26:$BH$266,"Banc 12664VRAIFAUXFAUXVRAIFAUX",BDD!$Z$26:$Z$266) -> 0 | V92: =SUMIF(BDD!$BH$26:$BH$266,"Banc 12664VRAIFAUXFAUXFAUXVRAI",BDD!$Z$26:$Z$266) -> 0 | W92: =SUMIF(BDD!$BH$26:$BH$266,"Banc 12664FAUXVRAIVRAIFAUXFAUX",BDD!$Z$26:$Z$266) -> 0 | X92: =SUMIF(BDD!$BH$26:$BH$266,"Banc 12664FAUXVRAIFAUXVRAIFAUX",BDD!$Z$26:$Z$266) -> 0 | Y92: =SUMIF(BDD!$BH$26:$BH$266,"Banc 12664FAUXVRAIFAUXFAUXVRAI",BDD!$Z$26:$Z$266) -> 0 | Z92: =SUMIF(BDD!$BH$2:$BH$3,"Banc 124VRAIFAUXVRAIFAUXFAUX",BDD!$Z$2:$Z$3) -> 0 | AA92: =SUMIF(BDD!$BH$2:$BH$3,"Banc 124VRAIFAUXFAUXVRAIFAUX",BDD!$Z$2:$Z$3) -> 0 | AB92: =SUMIF(BDD!$BH$2:$BH$3,"Banc 124VRAIFAUXFAUXFAUXVRAI",BDD!$Z$2:$Z$3) -> 0 | AC92: =SUMIF(BDD!$BH$2:$BH$3,"Banc 124FAUXVRAIVRAIFAUXFAUX",BDD!$Z$2:$Z$3) -> 0 | AD92: =SUMIF(BDD!$BH$2:$BH$3,"Banc 124FAUXVRAIFAUXVRAIFAUX",BDD!$Z$2:$Z$3) -> 0 | AE92: =SUMIF(BDD!$BH$2:$BH$3,"Banc 124FAUXVRAIFAUXFAUXVRAI",BDD!$Z$2:$Z$3) -> 0 | AF92: =SUMIF(BDD!$BH$2:$BH$3,"Banc 124VRAIFAUXVRAIFAUXFAUX",BDD!$Z$2:$Z$3) -> 0 | AG92: =SUMIF(BDD!$BH$2:$BH$3,"Banc 124VRAIFAUXFAUXVRAIFAUX",BDD!$Z$2:$Z$3) -> 0 | AH92: =SUMIF(BDD!$BH$2:$BH$3,"Banc 124VRAIFAUXFAUXFAUXVRAI",BDD!$Z$2:$Z$3) -> 0 | AI92: =SUMIF(BDD!$BH$2:$BH$3,"Banc 124FAUXVRAIVRAIFAUXFAUX",BDD!$Z$2:$Z$3) -> 0 | AJ92: =SUMIF(BDD!$BH$2:$BH$3,"Banc 124FAUXVRAIFAUXVRAIFAUX",BDD!$Z$2:$Z$3) -> 0 | AK92: =SUMIF(BDD!$BH$2:$BH$3,"Banc 124FAUXVRAIFAUXFAUXVRAI",BDD!$Z$2:$Z$3) -> 0 | AL92: =SUMIF(BDD!$BH$2:$BH$3,"Banc 124VRAIFAUXVRAIFAUXFAUX",BDD!$Z$2:$Z$3) -> 0 | AM92: =SUMIF(BDD!$BH$2:$BH$3,"Banc 124VRAIFAUXFAUXVRAIFAUX",BDD!$Z$2:$Z$3) -> 0 | AN92: =SUMIF(BDD!$BH$2:$BH$3,"Banc 124VRAIFAUXFAUXFAUXVRAI",BDD!$Z$2:$Z$3) -> 0 | AO92: =SUMIF(BDD!$BH$2:$BH$3,"Banc 124FAUXVRAIVRAIFAUXFAUX",BDD!$Z$2:$Z$3) -> 0 | AP92: =SUMIF(BDD!$BH$2:$BH$3,"Banc 124FAUXVRAIFAUXVRAIFAUX",BDD!$Z$2:$Z$3) -> 0 | AQ92: =SUMIF(BDD!$BH$2:$BH$3,"Banc 124FAUXVRAIFAUXFAUXVRAI",BDD!$Z$2:$Z$3) -> 0 | AR92: =SUMIF(BDD!$BH$2:$BH$3,"Banc 124VRAIFAUXVRAIFAUXFAUX",BDD!$Z$2:$Z$3) -> 0 | AS92: =SUMIF(BDD!$BH$2:$BH$3,"Banc 124VRAIFAUXFAUXVRAIFAUX",BDD!$Z$2:$Z$3) -> 0 | AT92: =SUMIF(BDD!$BH$2:$BH$3,"Banc 124VRAIFAUXFAUXFAUXVRAI",BDD!$Z$2:$Z$3) -> 0 | AU92: =SUMIF(BDD!$BH$2:$BH$3,"Banc 124FAUXVRAIVRAIFAUXFAUX",BDD!$Z$2:$Z$3) -> 0 | AV92: =SUMIF(BDD!$BH$2:$BH$3,"Banc 124FAUXVRAIFAUXVRAIFAUX",BDD!$Z$2:$Z$3) -> 0 | AW92: =SUMIF(BDD!$BH$2:$BH$3,"Banc 124FAUXVRAIFAUXFAUXVRAI",BDD!$Z$2:$Z$3) -> 0 | AX92: =SUMIF(BDD!$BH$2:$BH$3,"Banc 124VRAIFAUXVRAIFAUXFAUX",BDD!$Z$2:$Z$3) -> 0 | AY92: =SUMIF(BDD!$BH$2:$BH$3,"Banc 124VRAIFAUXFAUXVRAIFAUX",BDD!$Z$2:$Z$3) -> 0 | AZ92: =SUMIF(BDD!$BH$2:$BH$3,"Banc 124VRAIFAUXFAUXFAUXVRAI",BDD!$Z$2:$Z$3) -> 0 | BA92: =SUMIF(BDD!$BH$2:$BH$3,"Banc 124FAUXVRAIVRAIFAUXFAUX",BDD!$Z$2:$Z$3) -> 0 | BB92: =SUMIF(BDD!$BH$2:$BH$3,"Banc 124FAUXVRAIFAUXVRAIFAUX",BDD!$Z$2:$Z$3) -> 0 | BC92: =SUMIF(BDD!$BH$2:$BH$3,"Banc 124FAUXVRAIFAUXFAUXVRAI",BDD!$Z$2:$Z$3) -> 0 | BD92: =SUMIF(BDD!$BH$2:$BH$3,"Banc 124VRAIFAUXVRAIFAUXFAUX",BDD!$Z$2:$Z$3) -> 0 | BE92: =SUMIF(BDD!$BH$2:$BH$3,"Banc 124VRAIFAUXFAUXVRAIFAUX",BDD!$Z$2:$Z$3) -> 0 | BF92: =SUMIF(BDD!$BH$2:$BH$3,"Banc 124VRAIFAUXFAUXFAUXVRAI",BDD!$Z$2:$Z$3) -> 0 | BG92: =SUMIF(BDD!$BH$2:$BH$3,"Banc 124FAUXVRAIVRAIFAUXFAUX",BDD!$Z$2:$Z$3) -> 0 | BH92: =SUMIF(BDD!$BH$2:$BH$3,"Banc 124FAUXVRAIFAUXVRAIFAUX",BDD!$Z$2:$Z$3) -> 0 | BI92: =SUMIF(BDD!$BH$2:$BH$3,"Banc 124FAUXVRAIFAUXFAUXVRAI",BDD!$Z$2:$Z$3) -> 0 | BJ92: =SUMIF(BDD!$BH$2:$BH$3,"Banc 124VRAIFAUXVRAIFAUXFAUX",BDD!$Z$2:$Z$3) -> 0 | BK92: =SUMIF(BDD!$BH$2:$BH$3,"Banc 124VRAIFAUXFAUXVRAIFAUX",BDD!$Z$2:$Z$3) -> 0 | BL92: =SUMIF(BDD!$BH$2:$BH$3,"Banc 124VRAIFAUXFAUXFAUXVRAI",BDD!$Z$2:$Z$3) -> 0 | BM92: =SUMIF(BDD!$BH$2:$BH$3,"Banc 124FAUXVRAIVRAIFAUXFAUX",BDD!$Z$2:$Z$3) -> 0 | BN92: =SUMIF(BDD!$BH$2:$BH$3,"Banc 124FAUXVRAIFAUXVRAIFAUX",BDD!$Z$2:$Z$3) -> 0 | BO92: =SUMIF(BDD!$BH$2:$BH$3,"Banc 124FAUXVRAIFAUXFAUXVRAI",BDD!$Z$2:$Z$3) -> 0 | BP92: =SUMIF(BDD!$BH$2:$BH$3,"Banc 124VRAIFAUXVRAIFAUXFAUX",BDD!$Z$2:$Z$3) -> 0 | BQ92: =SUMIF(BDD!$BH$2:$BH$3,"Banc 124VRAIFAUXFAUXVRAIFAUX",BDD!$Z$2:$Z$3) -> 0 | BR92: =SUMIF(BDD!$BH$2:$BH$3,"Banc 124VRAIFAUXFAUXFAUXVRAI",BDD!$Z$2:$Z$3) -> 0 | BS92: =SUMIF(BDD!$BH$2:$BH$3,"Banc 124FAUXVRAIVRAIFAUXFAUX",BDD!$Z$2:$Z$3) -> 0 | BT92: =SUMIF(BDD!$BH$2:$BH$3,"Banc 124FAUXVRAIFAUXVRAIFAUX",BDD!$Z$2:$Z$3) -> 0 | BU92: =SUMIF(BDD!$BH$2:$BH$3,"Banc 124FAUXVRAIFAUXFAUXVRAI",BDD!$Z$2:$Z$3) -> 0
A93: Banc 124 bis | B93: =SUMIF(BDD!$BH$2:$BH$3,"Banc 124 bisVRAIFAUXVRAIFAUXFAUX",BDD!$Z$2:$Z$3) -> 0 | C93: =SUMIF(BDD!$BH$2:$BH$3,"Banc 124 bisVRAIFAUXFAUXVRAIFAUX",BDD!$Z$2:$Z$3) -> 0 | D93: =SUMIF(BDD!$BH$2:$BH$3,"Banc 124 bisVRAIFAUXFAUXFAUXVRAI",BDD!$Z$2:$Z$3) -> 0 | E93: =SUMIF(BDD!$BH$2:$BH$3,"Banc 124 bisFAUXVRAIVRAIFAUXFAUX",BDD!$Z$2:$Z$3) -> 0 | F93: =SUMIF(BDD!$BH$2:$BH$3,"Banc 124 bisFAUXVRAIFAUXVRAIFAUX",BDD!$Z$2:$Z$3) -> 0 | G93: =SUMIF(BDD!$BH$2:$BH$3,"Banc 124 bisFAUXVRAIFAUXFAUXVRAI",BDD!$Z$2:$Z$3) -> 0 | H93: =SUMIF(BDD!$BH$2:$BH$3,"Banc 124 bisVRAIFAUXVRAIFAUXFAUX",BDD!$Z$2:$Z$3) -> 0 | I93: =SUMIF(BDD!$BH$2:$BH$3,"Banc 124 bisVRAIFAUXFAUXVRAIFAUX",BDD!$Z$2:$Z$3) -> 0 | J93: =SUMIF(BDD!$BH$2:$BH$3,"Banc 124 bisVRAIFAUXFAUXFAUXVRAI",BDD!$Z$2:$Z$3) -> 0 | K93: =SUMIF(BDD!$BH$2:$BH$3,"Banc 124 bisFAUXVRAIVRAIFAUXFAUX",BDD!$Z$2:$Z$3) -> 0 | L93: =SUMIF(BDD!$BH$2:$BH$3,"Banc 124 bisFAUXVRAIFAUXVRAIFAUX",BDD!$Z$2:$Z$3) -> 0 | M93: =SUMIF(BDD!$BH$2:$BH$3,"Banc 124 bisFAUXVRAIFAUXFAUXVRAI",BDD!$Z$2:$Z$3) -> 0 | N93: =SUMIF(BDD!$BH$2:$BH$25,"Banc 124 bisVRAIFAUXVRAIFAUXFAUX",BDD!$Z$2:$Z$25) -> 0 | O93: =SUMIF(BDD!$BH$2:$BH$25,"Banc 124 bisVRAIFAUXFAUXVRAIFAUX",BDD!$Z$2:$Z$25) -> 0 | P93: =SUMIF(BDD!$BH$2:$BH$25,"Banc 124 bisVRAIFAUXFAUXFAUXVRAI",BDD!$Z$2:$Z$25) -> 0 | Q93: =SUMIF(BDD!$BH$2:$BH$25,"Banc 124 bisFAUXVRAIVRAIFAUXFAUX",BDD!$Z$2:$Z$25) -> 0 | R93: =SUMIF(BDD!$BH$2:$BH$25,"Banc 124 bisFAUXVRAIFAUXVRAIFAUX",BDD!$Z$2:$Z$25) -> 0 | S93: =SUMIF(BDD!$BH$2:$BH$25,"Banc 124 bisFAUXVRAIFAUXFAUXVRAI",BDD!$Z$2:$Z$25) -> 0 | T93: =SUMIF(BDD!$BH$26:$BH$266,"Banc 12664 bisVRAIFAUXVRAIFAUXFAUX",BDD!$Z$26:$Z$266) -> 0 | U93: =SUMIF(BDD!$BH$26:$BH$266,"Banc 12664 bisVRAIFAUXFAUXVRAIFAUX",BDD!$Z$26:$Z$266) -> 0 | V93: =SUMIF(BDD!$BH$26:$BH$266,"Banc 12664 bisVRAIFAUXFAUXFAUXVRAI",BDD!$Z$26:$Z$266) -> 0 | W93: =SUMIF(BDD!$BH$26:$BH$266,"Banc 12664 bisFAUXVRAIVRAIFAUXFAUX",BDD!$Z$26:$Z$266) -> 0 | X93: =SUMIF(BDD!$BH$26:$BH$266,"Banc 12664 bisFAUXVRAIFAUXVRAIFAUX",BDD!$Z$26:$Z$266) -> 0 | Y93: =SUMIF(BDD!$BH$26:$BH$266,"Banc 12664 bisFAUXVRAIFAUXFAUXVRAI",BDD!$Z$26:$Z$266) -> 0 | Z93: =SUMIF(BDD!$BH$2:$BH$3,"Banc 124 bisVRAIFAUXVRAIFAUXFAUX",BDD!$Z$2:$Z$3) -> 0 | AA93: =SUMIF(BDD!$BH$2:$BH$3,"Banc 124 bisVRAIFAUXFAUXVRAIFAUX",BDD!$Z$2:$Z$3) -> 0 | AB93: =SUMIF(BDD!$BH$2:$BH$3,"Banc 124 bisVRAIFAUXFAUXFAUXVRAI",BDD!$Z$2:$Z$3) -> 0 | AC93: =SUMIF(BDD!$BH$2:$BH$3,"Banc 124 bisFAUXVRAIVRAIFAUXFAUX",BDD!$Z$2:$Z$3) -> 0 | AD93: =SUMIF(BDD!$BH$2:$BH$3,"Banc 124 bisFAUXVRAIFAUXVRAIFAUX",BDD!$Z$2:$Z$3) -> 0 | AE93: =SUMIF(BDD!$BH$2:$BH$3,"Banc 124 bisFAUXVRAIFAUXFAUXVRAI",BDD!$Z$2:$Z$3) -> 0 | AF93: =SUMIF(BDD!$BH$2:$BH$3,"Banc 124 bisVRAIFAUXVRAIFAUXFAUX",BDD!$Z$2:$Z$3) -> 0 | AG93: =SUMIF(BDD!$BH$2:$BH$3,"Banc 124 bisVRAIFAUXFAUXVRAIFAUX",BDD!$Z$2:$Z$3) -> 0 | AH93: =SUMIF(BDD!$BH$2:$BH$3,"Banc 124 bisVRAIFAUXFAUXFAUXVRAI",BDD!$Z$2:$Z$3) -> 0 | AI93: =SUMIF(BDD!$BH$2:$BH$3,"Banc 124 bisFAUXVRAIVRAIFAUXFAUX",BDD!$Z$2:$Z$3) -> 0 | AJ93: =SUMIF(BDD!$BH$2:$BH$3,"Banc 124 bisFAUXVRAIFAUXVRAIFAUX",BDD!$Z$2:$Z$3) -> 0 | AK93: =SUMIF(BDD!$BH$2:$BH$3,"Banc 124 bisFAUXVRAIFAUXFAUXVRAI",BDD!$Z$2:$Z$3) -> 0 | AL93: =SUMIF(BDD!$BH$2:$BH$3,"Banc 124 bisVRAIFAUXVRAIFAUXFAUX",BDD!$Z$2:$Z$3) -> 0 | AM93: =SUMIF(BDD!$BH$2:$BH$3,"Banc 124 bisVRAIFAUXFAUXVRAIFAUX",BDD!$Z$2:$Z$3) -> 0 | AN93: =SUMIF(BDD!$BH$2:$BH$3,"Banc 124 bisVRAIFAUXFAUXFAUXVRAI",BDD!$Z$2:$Z$3) -> 0 | AO93: =SUMIF(BDD!$BH$2:$BH$3,"Banc 124 bisFAUXVRAIVRAIFAUXFAUX",BDD!$Z$2:$Z$3) -> 0 | AP93: =SUMIF(BDD!$BH$2:$BH$3,"Banc 124 bisFAUXVRAIFAUXVRAIFAUX",BDD!$Z$2:$Z$3) -> 0 | AQ93: =SUMIF(BDD!$BH$2:$BH$3,"Banc 124 bisFAUXVRAIFAUXFAUXVRAI",BDD!$Z$2:$Z$3) -> 0 | AR93: =SUMIF(BDD!$BH$2:$BH$3,"Banc 124 bisVRAIFAUXVRAIFAUXFAUX",BDD!$Z$2:$Z$3) -> 0 | AS93: =SUMIF(BDD!$BH$2:$BH$3,"Banc 124 bisVRAIFAUXFAUXVRAIFAUX",BDD!$Z$2:$Z$3) -> 0 | AT93: =SUMIF(BDD!$BH$2:$BH$3,"Banc 124 bisVRAIFAUXFAUXFAUXVRAI",BDD!$Z$2:$Z$3) -> 0 | AU93: =SUMIF(BDD!$BH$2:$BH$3,"Banc 124 bisFAUXVRAIVRAIFAUXFAUX",BDD!$Z$2:$Z$3) -> 0 | AV93: =SUMIF(BDD!$BH$2:$BH$3,"Banc 124 bisFAUXVRAIFAUXVRAIFAUX",BDD!$Z$2:$Z$3) -> 0 | AW93: =SUMIF(BDD!$BH$2:$BH$3,"Banc 124 bisFAUXVRAIFAUXFAUXVRAI",BDD!$Z$2:$Z$3) -> 0 | AX93: =SUMIF(BDD!$BH$2:$BH$3,"Banc 124 bisVRAIFAUXVRAIFAUXFAUX",BDD!$Z$2:$Z$3) -> 0 | AY93: =SUMIF(BDD!$BH$2:$BH$3,"Banc 124 bisVRAIFAUXFAUXVRAIFAUX",BDD!$Z$2:$Z$3) -> 0 | AZ93: =SUMIF(BDD!$BH$2:$BH$3,"Banc 124 bisVRAIFAUXFAUXFAUXVRAI",BDD!$Z$2:$Z$3) -> 0 | BA93: =SUMIF(BDD!$BH$2:$BH$3,"Banc 124 bisFAUXVRAIVRAIFAUXFAUX",BDD!$Z$2:$Z$3) -> 0 | BB93: =SUMIF(BDD!$BH$2:$BH$3,"Banc 124 bisFAUXVRAIFAUXVRAIFAUX",BDD!$Z$2:$Z$3) -> 0 | BC93: =SUMIF(BDD!$BH$2:$BH$3,"Banc 124 bisFAUXVRAIFAUXFAUXVRAI",BDD!$Z$2:$Z$3) -> 0 | BD93: =SUMIF(BDD!$BH$2:$BH$3,"Banc 124 bisVRAIFAUXVRAIFAUXFAUX",BDD!$Z$2:$Z$3) -> 0 | BE93: =SUMIF(BDD!$BH$2:$BH$3,"Banc 124 bisVRAIFAUXFAUXVRAIFAUX",BDD!$Z$2:$Z$3) -> 0 | BF93: =SUMIF(BDD!$BH$2:$BH$3,"Banc 124 bisVRAIFAUXFAUXFAUXVRAI",BDD!$Z$2:$Z$3) -> 0 | BG93: =SUMIF(BDD!$BH$2:$BH$3,"Banc 124 bisFAUXVRAIVRAIFAUXFAUX",BDD!$Z$2:$Z$3) -> 0 | BH93: =SUMIF(BDD!$BH$2:$BH$3,"Banc 124 bisFAUXVRAIFAUXVRAIFAUX",BDD!$Z$2:$Z$3) -> 0 | BI93: =SUMIF(BDD!$BH$2:$BH$3,"Banc 124 bisFAUXVRAIFAUXFAUXVRAI",BDD!$Z$2:$Z$3) -> 0 | BJ93: =SUMIF(BDD!$BH$2:$BH$3,"Banc 124 bisVRAIFAUXVRAIFAUXFAUX",BDD!$Z$2:$Z$3) -> 0 | BK93: =SUMIF(BDD!$BH$2:$BH$3,"Banc 124 bisVRAIFAUXFAUXVRAIFAUX",BDD!$Z$2:$Z$3) -> 0 | BL93: =SUMIF(BDD!$BH$2:$BH$3,"Banc 124 bisVRAIFAUXFAUXFAUXVRAI",BDD!$Z$2:$Z$3) -> 0 | BM93: =SUMIF(BDD!$BH$2:$BH$3,"Banc 124 bisFAUXVRAIVRAIFAUXFAUX",BDD!$Z$2:$Z$3) -> 0 | BN93: =SUMIF(BDD!$BH$2:$BH$3,"Banc 124 bisFAUXVRAIFAUXVRAIFAUX",BDD!$Z$2:$Z$3) -> 0 | BO93: =SUMIF(BDD!$BH$2:$BH$3,"Banc 124 bisFAUXVRAIFAUXFAUXVRAI",BDD!$Z$2:$Z$3) -> 0 | BP93: =SUMIF(BDD!$BH$2:$BH$3,"Banc 124 bisVRAIFAUXVRAIFAUXFAUX",BDD!$Z$2:$Z$3) -> 0 | BQ93: =SUMIF(BDD!$BH$2:$BH$3,"Banc 124 bisVRAIFAUXFAUXVRAIFAUX",BDD!$Z$2:$Z$3) -> 0 | BR93: =SUMIF(BDD!$BH$2:$BH$3,"Banc 124 bisVRAIFAUXFAUXFAUXVRAI",BDD!$Z$2:$Z$3) -> 0 | BS93: =SUMIF(BDD!$BH$2:$BH$3,"Banc 124 bisFAUXVRAIVRAIFAUXFAUX",BDD!$Z$2:$Z$3) -> 0 | BT93: =SUMIF(BDD!$BH$2:$BH$3,"Banc 124 bisFAUXVRAIFAUXVRAIFAUX",BDD!$Z$2:$Z$3) -> 0 | BU93: =SUMIF(BDD!$BH$2:$BH$3,"Banc 124 bisFAUXVRAIFAUXFAUXVRAI",BDD!$Z$2:$Z$3) -> 0
A94: Banc 145 | B94: =SUMIF(BDD!$BH$2:$BH$3,"Banc 145VRAIFAUXVRAIFAUXFAUX",BDD!$Z$2:$Z$3) -> 0 | C94: =SUMIF(BDD!$BH$2:$BH$3,"Banc 145VRAIFAUXFAUXVRAIFAUX",BDD!$Z$2:$Z$3) -> 0 | D94: =SUMIF(BDD!$BH$2:$BH$3,"Banc 145VRAIFAUXFAUXFAUXVRAI",BDD!$Z$2:$Z$3) -> 0 | E94: =SUMIF(BDD!$BH$2:$BH$3,"Banc 145FAUXVRAIVRAIFAUXFAUX",BDD!$Z$2:$Z$3) -> 0 | F94: =SUMIF(BDD!$BH$2:$BH$3,"Banc 145FAUXVRAIFAUXVRAIFAUX",BDD!$Z$2:$Z$3) -> 0 | G94: =SUMIF(BDD!$BH$2:$BH$3,"Banc 145FAUXVRAIFAUXFAUXVRAI",BDD!$Z$2:$Z$3) -> 0 | H94: =SUMIF(BDD!$BH$2:$BH$3,"Banc 145VRAIFAUXVRAIFAUXFAUX",BDD!$Z$2:$Z$3) -> 0 | I94: =SUMIF(BDD!$BH$2:$BH$3,"Banc 145VRAIFAUXFAUXVRAIFAUX",BDD!$Z$2:$Z$3) -> 0 | J94: =SUMIF(BDD!$BH$2:$BH$3,"Banc 145VRAIFAUXFAUXFAUXVRAI",BDD!$Z$2:$Z$3) -> 0 | K94: =SUMIF(BDD!$BH$2:$BH$3,"Banc 145FAUXVRAIVRAIFAUXFAUX",BDD!$Z$2:$Z$3) -> 0 | L94: =SUMIF(BDD!$BH$2:$BH$3,"Banc 145FAUXVRAIFAUXVRAIFAUX",BDD!$Z$2:$Z$3) -> 0 | M94: =SUMIF(BDD!$BH$2:$BH$3,"Banc 145FAUXVRAIFAUXFAUXVRAI",BDD!$Z$2:$Z$3) -> 0 | N94: =SUMIF(BDD!$BH$2:$BH$25,"Banc 145VRAIFAUXVRAIFAUXFAUX",BDD!$Z$2:$Z$25) -> 0 | O94: =SUMIF(BDD!$BH$2:$BH$25,"Banc 145VRAIFAUXFAUXVRAIFAUX",BDD!$Z$2:$Z$25) -> 0 | P94: =SUMIF(BDD!$BH$2:$BH$25,"Banc 145VRAIFAUXFAUXFAUXVRAI",BDD!$Z$2:$Z$25) -> 0 | Q94: =SUMIF(BDD!$BH$2:$BH$25,"Banc 145FAUXVRAIVRAIFAUXFAUX",BDD!$Z$2:$Z$25) -> 0 | R94: =SUMIF(BDD!$BH$2:$BH$25,"Banc 145FAUXVRAIFAUXVRAIFAUX",BDD!$Z$2:$Z$25) -> 0 | S94: =SUMIF(BDD!$BH$2:$BH$25,"Banc 145FAUXVRAIFAUXFAUXVRAI",BDD!$Z$2:$Z$25) -> 0 | T94: =SUMIF(BDD!$BH$26:$BH$266,"Banc 145VRAIFAUXVRAIFAUXFAUX",BDD!$Z$26:$Z$266) -> 0 | U94: =SUMIF(BDD!$BH$26:$BH$266,"Banc 145VRAIFAUXFAUXVRAIFAUX",BDD!$Z$26:$Z$266) -> 0 | V94: =SUMIF(BDD!$BH$26:$BH$266,"Banc 145VRAIFAUXFAUXFAUXVRAI",BDD!$Z$26:$Z$266) -> 0 | W94: =SUMIF(BDD!$BH$26:$BH$266,"Banc 145FAUXVRAIVRAIFAUXFAUX",BDD!$Z$26:$Z$266) -> 0 | X94: =SUMIF(BDD!$BH$26:$BH$266,"Banc 145FAUXVRAIFAUXVRAIFAUX",BDD!$Z$26:$Z$266) -> 0 | Y94: =SUMIF(BDD!$BH$26:$BH$266,"Banc 145FAUXVRAIFAUXFAUXVRAI",BDD!$Z$26:$Z$266) -> 0 | Z94: =SUMIF(BDD!$BH$2:$BH$3,"Banc 145VRAIFAUXVRAIFAUXFAUX",BDD!$Z$2:$Z$3) -> 0 | AA94: =SUMIF(BDD!$BH$2:$BH$3,"Banc 145VRAIFAUXFAUXVRAIFAUX",BDD!$Z$2:$Z$3) -> 0 | AB94: =SUMIF(BDD!$BH$2:$BH$3,"Banc 145VRAIFAUXFAUXFAUXVRAI",BDD!$Z$2:$Z$3) -> 0 | AC94: =SUMIF(BDD!$BH$2:$BH$3,"Banc 145FAUXVRAIVRAIFAUXFAUX",BDD!$Z$2:$Z$3) -> 0 | AD94: =SUMIF(BDD!$BH$2:$BH$3,"Banc 145FAUXVRAIFAUXVRAIFAUX",BDD!$Z$2:$Z$3) -> 0 | AE94: =SUMIF(BDD!$BH$2:$BH$3,"Banc 145FAUXVRAIFAUXFAUXVRAI",BDD!$Z$2:$Z$3) -> 0 | AF94: =SUMIF(BDD!$BH$2:$BH$3,"Banc 145VRAIFAUXVRAIFAUXFAUX",BDD!$Z$2:$Z$3) -> 0 | AG94: =SUMIF(BDD!$BH$2:$BH$3,"Banc 145VRAIFAUXFAUXVRAIFAUX",BDD!$Z$2:$Z$3) -> 0 | AH94: =SUMIF(BDD!$BH$2:$BH$3,"Banc 145VRAIFAUXFAUXFAUXVRAI",BDD!$Z$2:$Z$3) -> 0 | AI94: =SUMIF(BDD!$BH$2:$BH$3,"Banc 145FAUXVRAIVRAIFAUXFAUX",BDD!$Z$2:$Z$3) -> 0 | AJ94: =SUMIF(BDD!$BH$2:$BH$3,"Banc 145FAUXVRAIFAUXVRAIFAUX",BDD!$Z$2:$Z$3) -> 0 | AK94: =SUMIF(BDD!$BH$2:$BH$3,"Banc 145FAUXVRAIFAUXFAUXVRAI",BDD!$Z$2:$Z$3) -> 0 | AL94: =SUMIF(BDD!$BH$2:$BH$3,"Banc 145VRAIFAUXVRAIFAUXFAUX",BDD!$Z$2:$Z$3) -> 0 | AM94: =SUMIF(BDD!$BH$2:$BH$3,"Banc 145VRAIFAUXFAUXVRAIFAUX",BDD!$Z$2:$Z$3) -> 0 | AN94: =SUMIF(BDD!$BH$2:$BH$3,"Banc 145VRAIFAUXFAUXFAUXVRAI",BDD!$Z$2:$Z$3) -> 0 | AO94: =SUMIF(BDD!$BH$2:$BH$3,"Banc 145FAUXVRAIVRAIFAUXFAUX",BDD!$Z$2:$Z$3) -> 0 | AP94: =SUMIF(BDD!$BH$2:$BH$3,"Banc 145FAUXVRAIFAUXVRAIFAUX",BDD!$Z$2:$Z$3) -> 0 | AQ94: =SUMIF(BDD!$BH$2:$BH$3,"Banc 145FAUXVRAIFAUXFAUXVRAI",BDD!$Z$2:$Z$3) -> 0 | AR94: =SUMIF(BDD!$BH$2:$BH$3,"Banc 145VRAIFAUXVRAIFAUXFAUX",BDD!$Z$2:$Z$3) -> 0 | AS94: =SUMIF(BDD!$BH$2:$BH$3,"Banc 145VRAIFAUXFAUXVRAIFAUX",BDD!$Z$2:$Z$3) -> 0 | AT94: =SUMIF(BDD!$BH$2:$BH$3,"Banc 145VRAIFAUXFAUXFAUXVRAI",BDD!$Z$2:$Z$3) -> 0 | AU94: =SUMIF(BDD!$BH$2:$BH$3,"Banc 145FAUXVRAIVRAIFAUXFAUX",BDD!$Z$2:$Z$3) -> 0 | AV94: =SUMIF(BDD!$BH$2:$BH$3,"Banc 145FAUXVRAIFAUXVRAIFAUX",BDD!$Z$2:$Z$3) -> 0 | AW94: =SUMIF(BDD!$BH$2:$BH$3,"Banc 145FAUXVRAIFAUXFAUXVRAI",BDD!$Z$2:$Z$3) -> 0 | AX94: =SUMIF(BDD!$BH$2:$BH$3,"Banc 145VRAIFAUXVRAIFAUXFAUX",BDD!$Z$2:$Z$3) -> 0 | AY94: =SUMIF(BDD!$BH$2:$BH$3,"Banc 145VRAIFAUXFAUXVRAIFAUX",BDD!$Z$2:$Z$3) -> 0 | AZ94: =SUMIF(BDD!$BH$2:$BH$3,"Banc 145VRAIFAUXFAUXFAUXVRAI",BDD!$Z$2:$Z$3) -> 0 | BA94: =SUMIF(BDD!$BH$2:$BH$3,"Banc 145FAUXVRAIVRAIFAUXFAUX",BDD!$Z$2:$Z$3) -> 0 | BB94: =SUMIF(BDD!$BH$2:$BH$3,"Banc 145FAUXVRAIFAUXVRAIFAUX",BDD!$Z$2:$Z$3) -> 0 | BC94: =SUMIF(BDD!$BH$2:$BH$3,"Banc 145FAUXVRAIFAUXFAUXVRAI",BDD!$Z$2:$Z$3) -> 0 | BD94: =SUMIF(BDD!$BH$2:$BH$3,"Banc 145VRAIFAUXVRAIFAUXFAUX",BDD!$Z$2:$Z$3) -> 0 | BE94: =SUMIF(BDD!$BH$2:$BH$3,"Banc 145VRAIFAUXFAUXVRAIFAUX",BDD!$Z$2:$Z$3) -> 0 | BF94: =SUMIF(BDD!$BH$2:$BH$3,"Banc 145VRAIFAUXFAUXFAUXVRAI",BDD!$Z$2:$Z$3) -> 0 | BG94: =SUMIF(BDD!$BH$2:$BH$3,"Banc 145FAUXVRAIVRAIFAUXFAUX",BDD!$Z$2:$Z$3) -> 0 | BH94: =SUMIF(BDD!$BH$2:$BH$3,"Banc 145FAUXVRAIFAUXVRAIFAUX",BDD!$Z$2:$Z$3) -> 0 | BI94: =SUMIF(BDD!$BH$2:$BH$3,"Banc 145FAUXVRAIFAUXFAUXVRAI",BDD!$Z$2:$Z$3) -> 0 | BJ94: =SUMIF(BDD!$BH$2:$BH$3,"Banc 145VRAIFAUXVRAIFAUXFAUX",BDD!$Z$2:$Z$3) -> 0 | BK94: =SUMIF(BDD!$BH$2:$BH$3,"Banc 145VRAIFAUXFAUXVRAIFAUX",BDD!$Z$2:$Z$3) -> 0 | BL94: =SUMIF(BDD!$BH$2:$BH$3,"Banc 145VRAIFAUXFAUXFAUXVRAI",BDD!$Z$2:$Z$3) -> 0 | BM94: =SUMIF(BDD!$BH$2:$BH$3,"Banc 145FAUXVRAIVRAIFAUXFAUX",BDD!$Z$2:$Z$3) -> 0 | BN94: =SUMIF(BDD!$BH$2:$BH$3,"Banc 145FAUXVRAIFAUXVRAIFAUX",BDD!$Z$2:$Z$3) -> 0 | BO94: =SUMIF(BDD!$BH$2:$BH$3,"Banc 145FAUXVRAIFAUXFAUXVRAI",BDD!$Z$2:$Z$3) -> 0 | BP94: =SUMIF(BDD!$BH$2:$BH$3,"Banc 145VRAIFAUXVRAIFAUXFAUX",BDD!$Z$2:$Z$3) -> 0 | BQ94: =SUMIF(BDD!$BH$2:$BH$3,"Banc 145VRAIFAUXFAUXVRAIFAUX",BDD!$Z$2:$Z$3) -> 0 | BR94: =SUMIF(BDD!$BH$2:$BH$3,"Banc 145VRAIFAUXFAUXFAUXVRAI",BDD!$Z$2:$Z$3) -> 0 | BS94: =SUMIF(BDD!$BH$2:$BH$3,"Banc 145FAUXVRAIVRAIFAUXFAUX",BDD!$Z$2:$Z$3) -> 0 | BT94: =SUMIF(BDD!$BH$2:$BH$3,"Banc 145FAUXVRAIFAUXVRAIFAUX",BDD!$Z$2:$Z$3) -> 0 | BU94: =SUMIF(BDD!$BH$2:$BH$3,"Banc 145FAUXVRAIFAUXFAUXVRAI",BDD!$Z$2:$Z$3) -> 0
A95: Banc cisaillement | B95: =SUMIF(BDD!$BH$2:$BH$3,"Banc cisaillementVRAIFAUXVRAIFAUXFAUX",BDD!$Z$2:$Z$3) -> 0 | C95: =SUMIF(BDD!$BH$2:$BH$3,"Banc cisaillementVRAIFAUXFAUXVRAIFAUX",BDD!$Z$2:$Z$3) -> 0 | D95: =SUMIF(BDD!$BH$2:$BH$3,"Banc cisaillementVRAIFAUXFAUXFAUXVRAI",BDD!$Z$2:$Z$3) -> 0 | E95: =SUMIF(BDD!$BH$2:$BH$3,"Banc cisaillementFAUXVRAIVRAIFAUXFAUX",BDD!$Z$2:$Z$3) -> 0 | F95: =SUMIF(BDD!$BH$2:$BH$3,"Banc cisaillementFAUXVRAIFAUXVRAIFAUX",BDD!$Z$2:$Z$3) -> 0 | G95: =SUMIF(BDD!$BH$2:$BH$3,"Banc cisaillementFAUXVRAIFAUXFAUXVRAI",BDD!$Z$2:$Z$3) -> 0 | H95: =SUMIF(BDD!$BH$2:$BH$3,"Banc cisaillementVRAIFAUXVRAIFAUXFAUX",BDD!$Z$2:$Z$3) -> 0 | I95: =SUMIF(BDD!$BH$2:$BH$3,"Banc cisaillementVRAIFAUXFAUXVRAIFAUX",BDD!$Z$2:$Z$3) -> 0 | J95: =SUMIF(BDD!$BH$2:$BH$3,"Banc cisaillementVRAIFAUXFAUXFAUXVRAI",BDD!$Z$2:$Z$3) -> 0 | K95: =SUMIF(BDD!$BH$2:$BH$3,"Banc cisaillementFAUXVRAIVRAIFAUXFAUX",BDD!$Z$2:$Z$3) -> 0 | L95: =SUMIF(BDD!$BH$2:$BH$3,"Banc cisaillementFAUXVRAIFAUXVRAIFAUX",BDD!$Z$2:$Z$3) -> 0 | M95: =SUMIF(BDD!$BH$2:$BH$3,"Banc cisaillementFAUXVRAIFAUXFAUXVRAI",BDD!$Z$2:$Z$3) -> 0 | N95: =SUMIF(BDD!$BH$2:$BH$25,"Banc cisaillementVRAIFAUXVRAIFAUXFAUX",BDD!$Z$2:$Z$25) -> 0 | O95: =SUMIF(BDD!$BH$2:$BH$25,"Banc cisaillementVRAIFAUXFAUXVRAIFAUX",BDD!$Z$2:$Z$25) -> 0 | P95: =SUMIF(BDD!$BH$2:$BH$25,"Banc cisaillementVRAIFAUXFAUXFAUXVRAI",BDD!$Z$2:$Z$25) -> 0 | Q95: =SUMIF(BDD!$BH$2:$BH$25,"Banc cisaillementFAUXVRAIVRAIFAUXFAUX",BDD!$Z$2:$Z$25) -> 0 | R95: =SUMIF(BDD!$BH$2:$BH$25,"Banc cisaillementFAUXVRAIFAUXVRAIFAUX",BDD!$Z$2:$Z$25) -> 0 | S95: =SUMIF(BDD!$BH$2:$BH$25,"Banc cisaillementFAUXVRAIFAUXFAUXVRAI",BDD!$Z$2:$Z$25) -> 0 | T95: =SUMIF(BDD!$BH$26:$BH$26,"Banc cisaillementVRAIFAUXVRAIFAUXFAUX",BDD!$Z$26:$Z$26) -> 0 | U95: =SUMIF(BDD!$BH$26:$BH$26,"Banc cisaillementVRAIFAUXFAUXVRAIFAUX",BDD!$Z$26:$Z$26) -> 0 | V95: =SUMIF(BDD!$BH$26:$BH$26,"Banc cisaillementVRAIFAUXFAUXFAUXVRAI",BDD!$Z$26:$Z$26) -> 0 | W95: =SUMIF(BDD!$BH$26:$BH$26,"Banc cisaillementFAUXVRAIVRAIFAUXFAUX",BDD!$Z$26:$Z$26) -> 0 | X95: =SUMIF(BDD!$BH$26:$BH$26,"Banc cisaillementFAUXVRAIFAUXVRAIFAUX",BDD!$Z$26:$Z$26) -> 0 | Y95: =SUMIF(BDD!$BH$26:$BH$26,"Banc cisaillementFAUXVRAIFAUXFAUXVRAI",BDD!$Z$26:$Z$26) -> 0 | Z95: =SUMIF(BDD!$BH$2:$BH$3,"Banc cisaillementVRAIFAUXVRAIFAUXFAUX",BDD!$Z$2:$Z$3) -> 0 | AA95: =SUMIF(BDD!$BH$2:$BH$3,"Banc cisaillementVRAIFAUXFAUXVRAIFAUX",BDD!$Z$2:$Z$3) -> 0 | AB95: =SUMIF(BDD!$BH$2:$BH$3,"Banc cisaillementVRAIFAUXFAUXFAUXVRAI",BDD!$Z$2:$Z$3) -> 0 | AC95: =SUMIF(BDD!$BH$2:$BH$3,"Banc cisaillementFAUXVRAIVRAIFAUXFAUX",BDD!$Z$2:$Z$3) -> 0 | AD95: =SUMIF(BDD!$BH$2:$BH$3,"Banc cisaillementFAUXVRAIFAUXVRAIFAUX",BDD!$Z$2:$Z$3) -> 0 | AE95: =SUMIF(BDD!$BH$2:$BH$3,"Banc cisaillementFAUXVRAIFAUXFAUXVRAI",BDD!$Z$2:$Z$3) -> 0 | AF95: =SUMIF(BDD!$BH$2:$BH$3,"Banc cisaillementVRAIFAUXVRAIFAUXFAUX",BDD!$Z$2:$Z$3) -> 0 | AG95: =SUMIF(BDD!$BH$2:$BH$3,"Banc cisaillementVRAIFAUXFAUXVRAIFAUX",BDD!$Z$2:$Z$3) -> 0 | AH95: =SUMIF(BDD!$BH$2:$BH$3,"Banc cisaillementVRAIFAUXFAUXFAUXVRAI",BDD!$Z$2:$Z$3) -> 0 | AI95: =SUMIF(BDD!$BH$2:$BH$3,"Banc cisaillementFAUXVRAIVRAIFAUXFAUX",BDD!$Z$2:$Z$3) -> 0 | AJ95: =SUMIF(BDD!$BH$2:$BH$3,"Banc cisaillementFAUXVRAIFAUXVRAIFAUX",BDD!$Z$2:$Z$3) -> 0 | AK95: =SUMIF(BDD!$BH$2:$BH$3,"Banc cisaillementFAUXVRAIFAUXFAUXVRAI",BDD!$Z$2:$Z$3) -> 0 | AL95: =SUMIF(BDD!$BH$2:$BH$3,"Banc cisaillementVRAIFAUXVRAIFAUXFAUX",BDD!$Z$2:$Z$3) -> 0 | AM95: =SUMIF(BDD!$BH$2:$BH$3,"Banc cisaillementVRAIFAUXFAUXVRAIFAUX",BDD!$Z$2:$Z$3) -> 0 | AN95: =SUMIF(BDD!$BH$2:$BH$3,"Banc cisaillementVRAIFAUXFAUXFAUXVRAI",BDD!$Z$2:$Z$3) -> 0 | AO95: =SUMIF(BDD!$BH$2:$BH$3,"Banc cisaillementFAUXVRAIVRAIFAUXFAUX",BDD!$Z$2:$Z$3) -> 0 | AP95: =SUMIF(BDD!$BH$2:$BH$3,"Banc cisaillementFAUXVRAIFAUXVRAIFAUX",BDD!$Z$2:$Z$3) -> 0 | AQ95: =SUMIF(BDD!$BH$2:$BH$3,"Banc cisaillementFAUXVRAIFAUXFAUXVRAI",BDD!$Z$2:$Z$3) -> 0 | AR95: =SUMIF(BDD!$BH$2:$BH$3,"Banc cisaillementVRAIFAUXVRAIFAUXFAUX",BDD!$Z$2:$Z$3) -> 0 | AS95: =SUMIF(BDD!$BH$2:$BH$3,"Banc cisaillementVRAIFAUXFAUXVRAIFAUX",BDD!$Z$2:$Z$3) -> 0 | AT95: =SUMIF(BDD!$BH$2:$BH$3,"Banc cisaillementVRAIFAUXFAUXFAUXVRAI",BDD!$Z$2:$Z$3) -> 0 | AU95: =SUMIF(BDD!$BH$2:$BH$3,"Banc cisaillementFAUXVRAIVRAIFAUXFAUX",BDD!$Z$2:$Z$3) -> 0 | AV95: =SUMIF(BDD!$BH$2:$BH$3,"Banc cisaillementFAUXVRAIFAUXVRAIFAUX",BDD!$Z$2:$Z$3) -> 0 | AW95: =SUMIF(BDD!$BH$2:$BH$3,"Banc cisaillementFAUXVRAIFAUXFAUXVRAI",BDD!$Z$2:$Z$3) -> 0 | AX95: =SUMIF(BDD!$BH$2:$BH$3,"Banc cisaillementVRAIFAUXVRAIFAUXFAUX",BDD!$Z$2:$Z$3) -> 0 | AY95: =SUMIF(BDD!$BH$2:$BH$3,"Banc cisaillementVRAIFAUXFAUXVRAIFAUX",BDD!$Z$2:$Z$3) -> 0 | AZ95: =SUMIF(BDD!$BH$2:$BH$3,"Banc cisaillementVRAIFAUXFAUXFAUXVRAI",BDD!$Z$2:$Z$3) -> 0 | BA95: =SUMIF(BDD!$BH$2:$BH$3,"Banc cisaillementFAUXVRAIVRAIFAUXFAUX",BDD!$Z$2:$Z$3) -> 0 | BB95: =SUMIF(BDD!$BH$2:$BH$3,"Banc cisaillementFAUXVRAIFAUXVRAIFAUX",BDD!$Z$2:$Z$3) -> 0 | BC95: =SUMIF(BDD!$BH$2:$BH$3,"Banc cisaillementFAUXVRAIFAUXFAUXVRAI",BDD!$Z$2:$Z$3) -> 0 | BD95: =SUMIF(BDD!$BH$2:$BH$3,"Banc cisaillementVRAIFAUXVRAIFAUXFAUX",BDD!$Z$2:$Z$3) -> 0 | BE95: =SUMIF(BDD!$BH$2:$BH$3,"Banc cisaillementVRAIFAUXFAUXVRAIFAUX",BDD!$Z$2:$Z$3) -> 0 | BF95: =SUMIF(BDD!$BH$2:$BH$3,"Banc cisaillementVRAIFAUXFAUXFAUXVRAI",BDD!$Z$2:$Z$3) -> 0 | BG95: =SUMIF(BDD!$BH$2:$BH$3,"Banc cisaillementFAUXVRAIVRAIFAUXFAUX",BDD!$Z$2:$Z$3) -> 0 | BH95: =SUMIF(BDD!$BH$2:$BH$3,"Banc cisaillementFAUXVRAIFAUXVRAIFAUX",BDD!$Z$2:$Z$3) -> 0 | BI95: =SUMIF(BDD!$BH$2:$BH$3,"Banc cisaillementFAUXVRAIFAUXFAUXVRAI",BDD!$Z$2:$Z$3) -> 0 | BJ95: =SUMIF(BDD!$BH$2:$BH$3,"Banc cisaillementVRAIFAUXVRAIFAUXFAUX",BDD!$Z$2:$Z$3) -> 0 | BK95: =SUMIF(BDD!$BH$2:$BH$3,"Banc cisaillementVRAIFAUXFAUXVRAIFAUX",BDD!$Z$2:$Z$3) -> 0 | BL95: =SUMIF(BDD!$BH$2:$BH$3,"Banc cisaillementVRAIFAUXFAUXFAUXVRAI",BDD!$Z$2:$Z$3) -> 0 | BM95: =SUMIF(BDD!$BH$2:$BH$3,"Banc cisaillementFAUXVRAIVRAIFAUXFAUX",BDD!$Z$2:$Z$3) -> 0 | BN95: =SUMIF(BDD!$BH$2:$BH$3,"Banc cisaillementFAUXVRAIFAUXVRAIFAUX",BDD!$Z$2:$Z$3) -> 0 | BO95: =SUMIF(BDD!$BH$2:$BH$3,"Banc cisaillementFAUXVRAIFAUXFAUXVRAI",BDD!$Z$2:$Z$3) -> 0 | BP95: =SUMIF(BDD!$BH$2:$BH$3,"Banc cisaillementVRAIFAUXVRAIFAUXFAUX",BDD!$Z$2:$Z$3) -> 0 | BQ95: =SUMIF(BDD!$BH$2:$BH$3,"Banc cisaillementVRAIFAUXFAUXVRAIFAUX",BDD!$Z$2:$Z$3) -> 0 | BR95: =SUMIF(BDD!$BH$2:$BH$3,"Banc cisaillementVRAIFAUXFAUXFAUXVRAI",BDD!$Z$2:$Z$3) -> 0 | BS95: =SUMIF(BDD!$BH$2:$BH$3,"Banc cisaillementFAUXVRAIVRAIFAUXFAUX",BDD!$Z$2:$Z$3) -> 0 | BT95: =SUMIF(BDD!$BH$2:$BH$3,"Banc cisaillementFAUXVRAIFAUXVRAIFAUX",BDD!$Z$2:$Z$3) -> 0 | BU95: =SUMIF(BDD!$BH$2:$BH$3,"Banc cisaillementFAUXVRAIFAUXFAUXVRAI",BDD!$Z$2:$Z$3) -> 0
A96: Banc HP | B96: =SUMIF(BDD!$BH$2:$BH$3,"Banc HPVRAIFAUXVRAIFAUXFAUX",BDD!$Z$2:$Z$3) -> 0 | C96: =SUMIF(BDD!$BH$2:$BH$3,"Banc HPVRAIFAUXFAUXVRAIFAUX",BDD!$Z$2:$Z$3) -> 0 | D96: =SUMIF(BDD!$BH$2:$BH$3,"Banc HPVRAIFAUXFAUXFAUXVRAI",BDD!$Z$2:$Z$3) -> 0 | E96: =SUMIF(BDD!$BH$2:$BH$3,"Banc HPFAUXVRAIVRAIFAUXFAUX",BDD!$Z$2:$Z$3) -> 0 | F96: =SUMIF(BDD!$BH$2:$BH$3,"Banc HPFAUXVRAIFAUXVRAIFAUX",BDD!$Z$2:$Z$3) -> 0 | G96: =SUMIF(BDD!$BH$2:$BH$3,"Banc HPFAUXVRAIFAUXFAUXVRAI",BDD!$Z$2:$Z$3) -> 0 | H96: =SUMIF(BDD!$BH$2:$BH$3,"Banc HPVRAIFAUXVRAIFAUXFAUX",BDD!$Z$2:$Z$3) -> 0 | I96: =SUMIF(BDD!$BH$2:$BH$3,"Banc HPVRAIFAUXFAUXVRAIFAUX",BDD!$Z$2:$Z$3) -> 0 | J96: =SUMIF(BDD!$BH$2:$BH$3,"Banc HPVRAIFAUXFAUXFAUXVRAI",BDD!$Z$2:$Z$3) -> 0 | K96: =SUMIF(BDD!$BH$2:$BH$3,"Banc HPFAUXVRAIVRAIFAUXFAUX",BDD!$Z$2:$Z$3) -> 0 | L96: =SUMIF(BDD!$BH$2:$BH$3,"Banc HPFAUXVRAIFAUXVRAIFAUX",BDD!$Z$2:$Z$3) -> 0 | M96: =SUMIF(BDD!$BH$2:$BH$3,"Banc HPFAUXVRAIFAUXFAUXVRAI",BDD!$Z$2:$Z$3) -> 0 | N96: =SUMIF(BDD!$BH$2:$BH$25,"Banc HPVRAIFAUXVRAIFAUXFAUX",BDD!$Z$2:$Z$25) -> 0 | O96: =SUMIF(BDD!$BH$2:$BH$25,"Banc HPVRAIFAUXFAUXVRAIFAUX",BDD!$Z$2:$Z$25) -> 0 | P96: =SUMIF(BDD!$BH$2:$BH$25,"Banc HPVRAIFAUXFAUXFAUXVRAI",BDD!$Z$2:$Z$25) -> 0 | Q96: =SUMIF(BDD!$BH$2:$BH$25,"Banc HPFAUXVRAIVRAIFAUXFAUX",BDD!$Z$2:$Z$25) -> 0 | R96: =SUMIF(BDD!$BH$2:$BH$25,"Banc HPFAUXVRAIFAUXVRAIFAUX",BDD!$Z$2:$Z$25) -> 0 | S96: =SUMIF(BDD!$BH$2:$BH$25,"Banc HPFAUXVRAIFAUXFAUXVRAI",BDD!$Z$2:$Z$25) -> 0 | T96: =SUMIF(BDD!$BH$26:$BH$26,"Banc HPVRAIFAUXVRAIFAUXFAUX",BDD!$Z$26:$Z$26) -> 0 | U96: =SUMIF(BDD!$BH$26:$BH$26,"Banc HPVRAIFAUXFAUXVRAIFAUX",BDD!$Z$26:$Z$26) -> 0 | V96: =SUMIF(BDD!$BH$26:$BH$26,"Banc HPVRAIFAUXFAUXFAUXVRAI",BDD!$Z$26:$Z$26) -> 0 | W96: =SUMIF(BDD!$BH$26:$BH$26,"Banc HPFAUXVRAIVRAIFAUXFAUX",BDD!$Z$26:$Z$26) -> 0 | X96: =SUMIF(BDD!$BH$26:$BH$26,"Banc HPFAUXVRAIFAUXVRAIFAUX",BDD!$Z$26:$Z$26) -> 0 | Y96: =SUMIF(BDD!$BH$26:$BH$26,"Banc HPFAUXVRAIFAUXFAUXVRAI",BDD!$Z$26:$Z$26) -> 0 | Z96: =SUMIF(BDD!$BH$2:$BH$3,"Banc HPVRAIFAUXVRAIFAUXFAUX",BDD!$Z$2:$Z$3) -> 0 | AA96: =SUMIF(BDD!$BH$2:$BH$3,"Banc HPVRAIFAUXFAUXVRAIFAUX",BDD!$Z$2:$Z$3) -> 0 | AB96: =SUMIF(BDD!$BH$2:$BH$3,"Banc HPVRAIFAUXFAUXFAUXVRAI",BDD!$Z$2:$Z$3) -> 0 | AC96: =SUMIF(BDD!$BH$2:$BH$3,"Banc HPFAUXVRAIVRAIFAUXFAUX",BDD!$Z$2:$Z$3) -> 0 | AD96: =SUMIF(BDD!$BH$2:$BH$3,"Banc HPFAUXVRAIFAUXVRAIFAUX",BDD!$Z$2:$Z$3) -> 0 | AE96: =SUMIF(BDD!$BH$2:$BH$3,"Banc HPFAUXVRAIFAUXFAUXVRAI",BDD!$Z$2:$Z$3) -> 0 | AF96: =SUMIF(BDD!$BH$2:$BH$3,"Banc HPVRAIFAUXVRAIFAUXFAUX",BDD!$Z$2:$Z$3) -> 0 | AG96: =SUMIF(BDD!$BH$2:$BH$3,"Banc HPVRAIFAUXFAUXVRAIFAUX",BDD!$Z$2:$Z$3) -> 0 | AH96: =SUMIF(BDD!$BH$2:$BH$3,"Banc HPVRAIFAUXFAUXFAUXVRAI",BDD!$Z$2:$Z$3) -> 0 | AI96: =SUMIF(BDD!$BH$2:$BH$3,"Banc HPFAUXVRAIVRAIFAUXFAUX",BDD!$Z$2:$Z$3) -> 0 | AJ96: =SUMIF(BDD!$BH$2:$BH$3,"Banc HPFAUXVRAIFAUXVRAIFAUX",BDD!$Z$2:$Z$3) -> 0 | AK96: =SUMIF(BDD!$BH$2:$BH$3,"Banc HPFAUXVRAIFAUXFAUXVRAI",BDD!$Z$2:$Z$3) -> 0 | AL96: =SUMIF(BDD!$BH$2:$BH$3,"Banc HPVRAIFAUXVRAIFAUXFAUX",BDD!$Z$2:$Z$3) -> 0 | AM96: =SUMIF(BDD!$BH$2:$BH$3,"Banc HPVRAIFAUXFAUXVRAIFAUX",BDD!$Z$2:$Z$3) -> 0 | AN96: =SUMIF(BDD!$BH$2:$BH$3,"Banc HPVRAIFAUXFAUXFAUXVRAI",BDD!$Z$2:$Z$3) -> 0 | AO96: =SUMIF(BDD!$BH$2:$BH$3,"Banc HPFAUXVRAIVRAIFAUXFAUX",BDD!$Z$2:$Z$3) -> 0 | AP96: =SUMIF(BDD!$BH$2:$BH$3,"Banc HPFAUXVRAIFAUXVRAIFAUX",BDD!$Z$2:$Z$3) -> 0 | AQ96: =SUMIF(BDD!$BH$2:$BH$3,"Banc HPFAUXVRAIFAUXFAUXVRAI",BDD!$Z$2:$Z$3) -> 0 | AR96: =SUMIF(BDD!$BH$2:$BH$3,"Banc HPVRAIFAUXVRAIFAUXFAUX",BDD!$Z$2:$Z$3) -> 0 | AS96: =SUMIF(BDD!$BH$2:$BH$3,"Banc HPVRAIFAUXFAUXVRAIFAUX",BDD!$Z$2:$Z$3) -> 0 | AT96: =SUMIF(BDD!$BH$2:$BH$3,"Banc HPVRAIFAUXFAUXFAUXVRAI",BDD!$Z$2:$Z$3) -> 0 | AU96: =SUMIF(BDD!$BH$2:$BH$3,"Banc HPFAUXVRAIVRAIFAUXFAUX",BDD!$Z$2:$Z$3) -> 0 | AV96: =SUMIF(BDD!$BH$2:$BH$3,"Banc HPFAUXVRAIFAUXVRAIFAUX",BDD!$Z$2:$Z$3) -> 0 | AW96: =SUMIF(BDD!$BH$2:$BH$3,"Banc HPFAUXVRAIFAUXFAUXVRAI",BDD!$Z$2:$Z$3) -> 0 | AX96: =SUMIF(BDD!$BH$2:$BH$3,"Banc HPVRAIFAUXVRAIFAUXFAUX",BDD!$Z$2:$Z$3) -> 0 | AY96: =SUMIF(BDD!$BH$2:$BH$3,"Banc HPVRAIFAUXFAUXVRAIFAUX",BDD!$Z$2:$Z$3) -> 0 | AZ96: =SUMIF(BDD!$BH$2:$BH$3,"Banc HPVRAIFAUXFAUXFAUXVRAI",BDD!$Z$2:$Z$3) -> 0 | BA96: =SUMIF(BDD!$BH$2:$BH$3,"Banc HPFAUXVRAIVRAIFAUXFAUX",BDD!$Z$2:$Z$3) -> 0 | BB96: =SUMIF(BDD!$BH$2:$BH$3,"Banc HPFAUXVRAIFAUXVRAIFAUX",BDD!$Z$2:$Z$3) -> 0 | BC96: =SUMIF(BDD!$BH$2:$BH$3,"Banc HPFAUXVRAIFAUXFAUXVRAI",BDD!$Z$2:$Z$3) -> 0 | BD96: =SUMIF(BDD!$BH$2:$BH$3,"Banc HPVRAIFAUXVRAIFAUXFAUX",BDD!$Z$2:$Z$3) -> 0 | BE96: =SUMIF(BDD!$BH$2:$BH$3,"Banc HPVRAIFAUXFAUXVRAIFAUX",BDD!$Z$2:$Z$3) -> 0 | BF96: =SUMIF(BDD!$BH$2:$BH$3,"Banc HPVRAIFAUXFAUXFAUXVRAI",BDD!$Z$2:$Z$3) -> 0 | BG96: =SUMIF(BDD!$BH$2:$BH$3,"Banc HPFAUXVRAIVRAIFAUXFAUX",BDD!$Z$2:$Z$3) -> 0 | BH96: =SUMIF(BDD!$BH$2:$BH$3,"Banc HPFAUXVRAIFAUXVRAIFAUX",BDD!$Z$2:$Z$3) -> 0 | BI96: =SUMIF(BDD!$BH$2:$BH$3,"Banc HPFAUXVRAIFAUXFAUXVRAI",BDD!$Z$2:$Z$3) -> 0 | BJ96: =SUMIF(BDD!$BH$2:$BH$3,"Banc HPVRAIFAUXVRAIFAUXFAUX",BDD!$Z$2:$Z$3) -> 0 | BK96: =SUMIF(BDD!$BH$2:$BH$3,"Banc HPVRAIFAUXFAUXVRAIFAUX",BDD!$Z$2:$Z$3) -> 0 | BL96: =SUMIF(BDD!$BH$2:$BH$3,"Banc HPVRAIFAUXFAUXFAUXVRAI",BDD!$Z$2:$Z$3) -> 0 | BM96: =SUMIF(BDD!$BH$2:$BH$3,"Banc HPFAUXVRAIVRAIFAUXFAUX",BDD!$Z$2:$Z$3) -> 0 | BN96: =SUMIF(BDD!$BH$2:$BH$3,"Banc HPFAUXVRAIFAUXVRAIFAUX",BDD!$Z$2:$Z$3) -> 0 | BO96: =SUMIF(BDD!$BH$2:$BH$3,"Banc HPFAUXVRAIFAUXFAUXVRAI",BDD!$Z$2:$Z$3) -> 0 | BP96: =SUMIF(BDD!$BH$2:$BH$3,"Banc HPVRAIFAUXVRAIFAUXFAUX",BDD!$Z$2:$Z$3) -> 0 | BQ96: =SUMIF(BDD!$BH$2:$BH$3,"Banc HPVRAIFAUXFAUXVRAIFAUX",BDD!$Z$2:$Z$3) -> 0 | BR96: =SUMIF(BDD!$BH$2:$BH$3,"Banc HPVRAIFAUXFAUXFAUXVRAI",BDD!$Z$2:$Z$3) -> 0 | BS96: =SUMIF(BDD!$BH$2:$BH$3,"Banc HPFAUXVRAIVRAIFAUXFAUX",BDD!$Z$2:$Z$3) -> 0 | BT96: =SUMIF(BDD!$BH$2:$BH$3,"Banc HPFAUXVRAIFAUXVRAIFAUX",BDD!$Z$2:$Z$3) -> 0 | BU96: =SUMIF(BDD!$BH$2:$BH$3,"Banc HPFAUXVRAIFAUXFAUXVRAI",BDD!$Z$2:$Z$3) -> 0
A97: Banc W+B | B97: =SUMIF(BDD!$BH$2:$BH$3,"Banc W+BVRAIFAUXVRAIFAUXFAUX",BDD!$Z$2:$Z$3) -> 0 | C97: =SUMIF(BDD!$BH$2:$BH$3,"Banc W+BVRAIFAUXFAUXVRAIFAUX",BDD!$Z$2:$Z$3) -> 0 | D97: =SUMIF(BDD!$BH$2:$BH$3,"Banc W+BVRAIFAUXFAUXFAUXVRAI",BDD!$Z$2:$Z$3) -> 0 | E97: =SUMIF(BDD!$BH$2:$BH$3,"Banc W+BFAUXVRAIVRAIFAUXFAUX",BDD!$Z$2:$Z$3) -> 0 | F97: =SUMIF(BDD!$BH$2:$BH$3,"Banc W+BFAUXVRAIFAUXVRAIFAUX",BDD!$Z$2:$Z$3) -> 0 | G97: =SUMIF(BDD!$BH$2:$BH$3,"Banc W+BFAUXVRAIFAUXFAUXVRAI",BDD!$Z$2:$Z$3) -> 0 | H97: =SUMIF(BDD!$BH$2:$BH$3,"Banc W+BVRAIFAUXVRAIFAUXFAUX",BDD!$Z$2:$Z$3) -> 0 | I97: =SUMIF(BDD!$BH$2:$BH$3,"Banc W+BVRAIFAUXFAUXVRAIFAUX",BDD!$Z$2:$Z$3) -> 0 | J97: =SUMIF(BDD!$BH$2:$BH$3,"Banc W+BVRAIFAUXFAUXFAUXVRAI",BDD!$Z$2:$Z$3) -> 0 | K97: =SUMIF(BDD!$BH$2:$BH$3,"Banc W+BFAUXVRAIVRAIFAUXFAUX",BDD!$Z$2:$Z$3) -> 0 | L97: =SUMIF(BDD!$BH$2:$BH$3,"Banc W+BFAUXVRAIFAUXVRAIFAUX",BDD!$Z$2:$Z$3) -> 0 | M97: =SUMIF(BDD!$BH$2:$BH$3,"Banc W+BFAUXVRAIFAUXFAUXVRAI",BDD!$Z$2:$Z$3) -> 0 | N97: =SUMIF(BDD!$BH$2:$BH$25,"Banc W+BVRAIFAUXVRAIFAUXFAUX",BDD!$Z$2:$Z$25) -> 0 | O97: =SUMIF(BDD!$BH$2:$BH$25,"Banc W+BVRAIFAUXFAUXVRAIFAUX",BDD!$Z$2:$Z$25) -> 0 | P97: =SUMIF(BDD!$BH$2:$BH$25,"Banc W+BVRAIFAUXFAUXFAUXVRAI",BDD!$Z$2:$Z$25) -> 0 | Q97: =SUMIF(BDD!$BH$2:$BH$25,"Banc W+BFAUXVRAIVRAIFAUXFAUX",BDD!$Z$2:$Z$25) -> 0 | R97: =SUMIF(BDD!$BH$2:$BH$25,"Banc W+BFAUXVRAIFAUXVRAIFAUX",BDD!$Z$2:$Z$25) -> 0 | S97: =SUMIF(BDD!$BH$2:$BH$25,"Banc W+BFAUXVRAIFAUXFAUXVRAI",BDD!$Z$2:$Z$25) -> 0 | T97: =SUMIF(BDD!$BH$26:$BH$26,"Banc W+BVRAIFAUXVRAIFAUXFAUX",BDD!$Z$26:$Z$26) -> 0 | U97: =SUMIF(BDD!$BH$26:$BH$26,"Banc W+BVRAIFAUXFAUXVRAIFAUX",BDD!$Z$26:$Z$26) -> 0 | V97: =SUMIF(BDD!$BH$26:$BH$26,"Banc W+BVRAIFAUXFAUXFAUXVRAI",BDD!$Z$26:$Z$26) -> 0 | W97: =SUMIF(BDD!$BH$26:$BH$26,"Banc W+BFAUXVRAIVRAIFAUXFAUX",BDD!$Z$26:$Z$26) -> 0 | X97: =SUMIF(BDD!$BH$26:$BH$26,"Banc W+BFAUXVRAIFAUXVRAIFAUX",BDD!$Z$26:$Z$26) -> 0 | Y97: =SUMIF(BDD!$BH$26:$BH$26,"Banc W+BFAUXVRAIFAUXFAUXVRAI",BDD!$Z$26:$Z$26) -> 0 | Z97: =SUMIF(BDD!$BH$2:$BH$3,"Banc W+BVRAIFAUXVRAIFAUXFAUX",BDD!$Z$2:$Z$3) -> 0 | AA97: =SUMIF(BDD!$BH$2:$BH$3,"Banc W+BVRAIFAUXFAUXVRAIFAUX",BDD!$Z$2:$Z$3) -> 0 | AB97: =SUMIF(BDD!$BH$2:$BH$3,"Banc W+BVRAIFAUXFAUXFAUXVRAI",BDD!$Z$2:$Z$3) -> 0 | AC97: =SUMIF(BDD!$BH$2:$BH$3,"Banc W+BFAUXVRAIVRAIFAUXFAUX",BDD!$Z$2:$Z$3) -> 0 | AD97: =SUMIF(BDD!$BH$2:$BH$3,"Banc W+BFAUXVRAIFAUXVRAIFAUX",BDD!$Z$2:$Z$3) -> 0 | AE97: =SUMIF(BDD!$BH$2:$BH$3,"Banc W+BFAUXVRAIFAUXFAUXVRAI",BDD!$Z$2:$Z$3) -> 0 | AF97: =SUMIF(BDD!$BH$2:$BH$3,"Banc W+BVRAIFAUXVRAIFAUXFAUX",BDD!$Z$2:$Z$3) -> 0 | AG97: =SUMIF(BDD!$BH$2:$BH$3,"Banc W+BVRAIFAUXFAUXVRAIFAUX",BDD!$Z$2:$Z$3) -> 0 | AH97: =SUMIF(BDD!$BH$2:$BH$3,"Banc W+BVRAIFAUXFAUXFAUXVRAI",BDD!$Z$2:$Z$3) -> 0 | AI97: =SUMIF(BDD!$BH$2:$BH$3,"Banc W+BFAUXVRAIVRAIFAUXFAUX",BDD!$Z$2:$Z$3) -> 0 | AJ97: =SUMIF(BDD!$BH$2:$BH$3,"Banc W+BFAUXVRAIFAUXVRAIFAUX",BDD!$Z$2:$Z$3) -> 0 | AK97: =SUMIF(BDD!$BH$2:$BH$3,"Banc W+BFAUXVRAIFAUXFAUXVRAI",BDD!$Z$2:$Z$3) -> 0 | AL97: =SUMIF(BDD!$BH$2:$BH$3,"Banc W+BVRAIFAUXVRAIFAUXFAUX",BDD!$Z$2:$Z$3) -> 0 | AM97: =SUMIF(BDD!$BH$2:$BH$3,"Banc W+BVRAIFAUXFAUXVRAIFAUX",BDD!$Z$2:$Z$3) -> 0 | AN97: =SUMIF(BDD!$BH$2:$BH$3,"Banc W+BVRAIFAUXFAUXFAUXVRAI",BDD!$Z$2:$Z$3) -> 0 | AO97: =SUMIF(BDD!$BH$2:$BH$3,"Banc W+BFAUXVRAIVRAIFAUXFAUX",BDD!$Z$2:$Z$3) -> 0 | AP97: =SUMIF(BDD!$BH$2:$BH$3,"Banc W+BFAUXVRAIFAUXVRAIFAUX",BDD!$Z$2:$Z$3) -> 0 | AQ97: =SUMIF(BDD!$BH$2:$BH$3,"Banc W+BFAUXVRAIFAUXFAUXVRAI",BDD!$Z$2:$Z$3) -> 0 | AR97: =SUMIF(BDD!$BH$2:$BH$3,"Banc W+BVRAIFAUXVRAIFAUXFAUX",BDD!$Z$2:$Z$3) -> 0 | AS97: =SUMIF(BDD!$BH$2:$BH$3,"Banc W+BVRAIFAUXFAUXVRAIFAUX",BDD!$Z$2:$Z$3) -> 0 | AT97: =SUMIF(BDD!$BH$2:$BH$3,"Banc W+BVRAIFAUXFAUXFAUXVRAI",BDD!$Z$2:$Z$3) -> 0 | AU97: =SUMIF(BDD!$BH$2:$BH$3,"Banc W+BFAUXVRAIVRAIFAUXFAUX",BDD!$Z$2:$Z$3) -> 0 | AV97: =SUMIF(BDD!$BH$2:$BH$3,"Banc W+BFAUXVRAIFAUXVRAIFAUX",BDD!$Z$2:$Z$3) -> 0 | AW97: =SUMIF(BDD!$BH$2:$BH$3,"Banc W+BFAUXVRAIFAUXFAUXVRAI",BDD!$Z$2:$Z$3) -> 0 | AX97: =SUMIF(BDD!$BH$2:$BH$3,"Banc W+BVRAIFAUXVRAIFAUXFAUX",BDD!$Z$2:$Z$3) -> 0 | AY97: =SUMIF(BDD!$BH$2:$BH$3,"Banc W+BVRAIFAUXFAUXVRAIFAUX",BDD!$Z$2:$Z$3) -> 0 | AZ97: =SUMIF(BDD!$BH$2:$BH$3,"Banc W+BVRAIFAUXFAUXFAUXVRAI",BDD!$Z$2:$Z$3) -> 0 | BA97: =SUMIF(BDD!$BH$2:$BH$3,"Banc W+BFAUXVRAIVRAIFAUXFAUX",BDD!$Z$2:$Z$3) -> 0 | BB97: =SUMIF(BDD!$BH$2:$BH$3,"Banc W+BFAUXVRAIFAUXVRAIFAUX",BDD!$Z$2:$Z$3) -> 0 | BC97: =SUMIF(BDD!$BH$2:$BH$3,"Banc W+BFAUXVRAIFAUXFAUXVRAI",BDD!$Z$2:$Z$3) -> 0 | BD97: =SUMIF(BDD!$BH$2:$BH$3,"Banc W+BVRAIFAUXVRAIFAUXFAUX",BDD!$Z$2:$Z$3) -> 0 | BE97: =SUMIF(BDD!$BH$2:$BH$3,"Banc W+BVRAIFAUXFAUXVRAIFAUX",BDD!$Z$2:$Z$3) -> 0 | BF97: =SUMIF(BDD!$BH$2:$BH$3,"Banc W+BVRAIFAUXFAUXFAUXVRAI",BDD!$Z$2:$Z$3) -> 0 | BG97: =SUMIF(BDD!$BH$2:$BH$3,"Banc W+BFAUXVRAIVRAIFAUXFAUX",BDD!$Z$2:$Z$3) -> 0 | BH97: =SUMIF(BDD!$BH$2:$BH$3,"Banc W+BFAUXVRAIFAUXVRAIFAUX",BDD!$Z$2:$Z$3) -> 0 | BI97: =SUMIF(BDD!$BH$2:$BH$3,"Banc W+BFAUXVRAIFAUXFAUXVRAI",BDD!$Z$2:$Z$3) -> 0 | BJ97: =SUMIF(BDD!$BH$2:$BH$3,"Banc W+BVRAIFAUXVRAIFAUXFAUX",BDD!$Z$2:$Z$3) -> 0 | BK97: =SUMIF(BDD!$BH$2:$BH$3,"Banc W+BVRAIFAUXFAUXVRAIFAUX",BDD!$Z$2:$Z$3) -> 0 | BL97: =SUMIF(BDD!$BH$2:$BH$3,"Banc W+BVRAIFAUXFAUXFAUXVRAI",BDD!$Z$2:$Z$3) -> 0 | BM97: =SUMIF(BDD!$BH$2:$BH$3,"Banc W+BFAUXVRAIVRAIFAUXFAUX",BDD!$Z$2:$Z$3) -> 0 | BN97: =SUMIF(BDD!$BH$2:$BH$3,"Banc W+BFAUXVRAIFAUXVRAIFAUX",BDD!$Z$2:$Z$3) -> 0 | BO97: =SUMIF(BDD!$BH$2:$BH$3,"Banc W+BFAUXVRAIFAUXFAUXVRAI",BDD!$Z$2:$Z$3) -> 0 | BP97: =SUMIF(BDD!$BH$2:$BH$3,"Banc W+BVRAIFAUXVRAIFAUXFAUX",BDD!$Z$2:$Z$3) -> 0 | BQ97: =SUMIF(BDD!$BH$2:$BH$3,"Banc W+BVRAIFAUXFAUXVRAIFAUX",BDD!$Z$2:$Z$3) -> 0 | BR97: =SUMIF(BDD!$BH$2:$BH$3,"Banc W+BVRAIFAUXFAUXFAUXVRAI",BDD!$Z$2:$Z$3) -> 0 | BS97: =SUMIF(BDD!$BH$2:$BH$3,"Banc W+BFAUXVRAIVRAIFAUXFAUX",BDD!$Z$2:$Z$3) -> 0 | BT97: =SUMIF(BDD!$BH$2:$BH$3,"Banc W+BFAUXVRAIFAUXVRAIFAUX",BDD!$Z$2:$Z$3) -> 0 | BU97: =SUMIF(BDD!$BH$2:$BH$3,"Banc W+BFAUXVRAIFAUXFAUXVRAI",BDD!$Z$2:$Z$3) -> 0
A98: Ressort verticale | B98: =SUMIF(BDD!$BH$2:$BH$3,"Ressort verticaleVRAIFAUXVRAIFAUXFAUX",BDD!$Z$2:$Z$3) -> 0 | C98: =SUMIF(BDD!$BH$2:$BH$3,"Ressort verticaleVRAIFAUXFAUXVRAIFAUX",BDD!$Z$2:$Z$3) -> 0 | D98: =SUMIF(BDD!$BH$2:$BH$3,"Ressort verticaleVRAIFAUXFAUXFAUXVRAI",BDD!$Z$2:$Z$3) -> 0 | E98: =SUMIF(BDD!$BH$2:$BH$3,"Ressort verticaleFAUXVRAIVRAIFAUXFAUX",BDD!$Z$2:$Z$3) -> 0 | F98: =SUMIF(BDD!$BH$2:$BH$3,"Ressort verticaleFAUXVRAIFAUXVRAIFAUX",BDD!$Z$2:$Z$3) -> 0 | G98: =SUMIF(BDD!$BH$2:$BH$3,"Ressort verticaleFAUXVRAIFAUXFAUXVRAI",BDD!$Z$2:$Z$3) -> 0 | H98: =SUMIF(BDD!$BH$2:$BH$3,"Ressort verticaleVRAIFAUXVRAIFAUXFAUX",BDD!$Z$2:$Z$3) -> 0 | I98: =SUMIF(BDD!$BH$2:$BH$3,"Ressort verticaleVRAIFAUXFAUXVRAIFAUX",BDD!$Z$2:$Z$3) -> 0 | J98: =SUMIF(BDD!$BH$2:$BH$3,"Ressort verticaleVRAIFAUXFAUXFAUXVRAI",BDD!$Z$2:$Z$3) -> 0 | K98: =SUMIF(BDD!$BH$2:$BH$3,"Ressort verticaleFAUXVRAIVRAIFAUXFAUX",BDD!$Z$2:$Z$3) -> 0 | L98: =SUMIF(BDD!$BH$2:$BH$3,"Ressort verticaleFAUXVRAIFAUXVRAIFAUX",BDD!$Z$2:$Z$3) -> 0 | M98: =SUMIF(BDD!$BH$2:$BH$3,"Ressort verticaleFAUXVRAIFAUXFAUXVRAI",BDD!$Z$2:$Z$3) -> 0 | N98: =SUMIF(BDD!$BH$2:$BH$25,"Ressort verticaleVRAIFAUXVRAIFAUXFAUX",BDD!$Z$2:$Z$25) -> 0 | O98: =SUMIF(BDD!$BH$2:$BH$25,"Ressort verticaleVRAIFAUXFAUXVRAIFAUX",BDD!$Z$2:$Z$25) -> 0 | P98: =SUMIF(BDD!$BH$2:$BH$25,"Ressort verticaleVRAIFAUXFAUXFAUXVRAI",BDD!$Z$2:$Z$25) -> 0 | Q98: =SUMIF(BDD!$BH$2:$BH$25,"Ressort verticaleFAUXVRAIVRAIFAUXFAUX",BDD!$Z$2:$Z$25) -> 0 | R98: =SUMIF(BDD!$BH$2:$BH$25,"Ressort verticaleFAUXVRAIFAUXVRAIFAUX",BDD!$Z$2:$Z$25) -> 0 | S98: =SUMIF(BDD!$BH$2:$BH$25,"Ressort verticaleFAUXVRAIFAUXFAUXVRAI",BDD!$Z$2:$Z$25) -> 0 | T98: =SUMIF(BDD!$BH$26:$BH$26,"Ressort verticaleVRAIFAUXVRAIFAUXFAUX",BDD!$Z$26:$Z$26) -> 0 | U98: =SUMIF(BDD!$BH$26:$BH$26,"Ressort verticaleVRAIFAUXFAUXVRAIFAUX",BDD!$Z$26:$Z$26) -> 0 | V98: =SUMIF(BDD!$BH$26:$BH$26,"Ressort verticaleVRAIFAUXFAUXFAUXVRAI",BDD!$Z$26:$Z$26) -> 0 | W98: =SUMIF(BDD!$BH$26:$BH$26,"Ressort verticaleFAUXVRAIVRAIFAUXFAUX",BDD!$Z$26:$Z$26) -> 0 | X98: =SUMIF(BDD!$BH$26:$BH$26,"Ressort verticaleFAUXVRAIFAUXVRAIFAUX",BDD!$Z$26:$Z$26) -> 0 | Y98: =SUMIF(BDD!$BH$26:$BH$26,"Ressort verticaleFAUXVRAIFAUXFAUXVRAI",BDD!$Z$26:$Z$26) -> 0 | Z98: =SUMIF(BDD!$BH$2:$BH$3,"Ressort verticaleVRAIFAUXVRAIFAUXFAUX",BDD!$Z$2:$Z$3) -> 0 | AA98: =SUMIF(BDD!$BH$2:$BH$3,"Ressort verticaleVRAIFAUXFAUXVRAIFAUX",BDD!$Z$2:$Z$3) -> 0 | AB98: =SUMIF(BDD!$BH$2:$BH$3,"Ressort verticaleVRAIFAUXFAUXFAUXVRAI",BDD!$Z$2:$Z$3) -> 0 | AC98: =SUMIF(BDD!$BH$2:$BH$3,"Ressort verticaleFAUXVRAIVRAIFAUXFAUX",BDD!$Z$2:$Z$3) -> 0 | AD98: =SUMIF(BDD!$BH$2:$BH$3,"Ressort verticaleFAUXVRAIFAUXVRAIFAUX",BDD!$Z$2:$Z$3) -> 0 | AE98: =SUMIF(BDD!$BH$2:$BH$3,"Ressort verticaleFAUXVRAIFAUXFAUXVRAI",BDD!$Z$2:$Z$3) -> 0 | AF98: =SUMIF(BDD!$BH$2:$BH$3,"Ressort verticaleVRAIFAUXVRAIFAUXFAUX",BDD!$Z$2:$Z$3) -> 0 | AG98: =SUMIF(BDD!$BH$2:$BH$3,"Ressort verticaleVRAIFAUXFAUXVRAIFAUX",BDD!$Z$2:$Z$3) -> 0 | AH98: =SUMIF(BDD!$BH$2:$BH$3,"Ressort verticaleVRAIFAUXFAUXFAUXVRAI",BDD!$Z$2:$Z$3) -> 0 | AI98: =SUMIF(BDD!$BH$2:$BH$3,"Ressort verticaleFAUXVRAIVRAIFAUXFAUX",BDD!$Z$2:$Z$3) -> 0 | AJ98: =SUMIF(BDD!$BH$2:$BH$3,"Ressort verticaleFAUXVRAIFAUXVRAIFAUX",BDD!$Z$2:$Z$3) -> 0 | AK98: =SUMIF(BDD!$BH$2:$BH$3,"Ressort verticaleFAUXVRAIFAUXFAUXVRAI",BDD!$Z$2:$Z$3) -> 0 | AL98: =SUMIF(BDD!$BH$2:$BH$3,"Ressort verticaleVRAIFAUXVRAIFAUXFAUX",BDD!$Z$2:$Z$3) -> 0 | AM98: =SUMIF(BDD!$BH$2:$BH$3,"Ressort verticaleVRAIFAUXFAUXVRAIFAUX",BDD!$Z$2:$Z$3) -> 0 | AN98: =SUMIF(BDD!$BH$2:$BH$3,"Ressort verticaleVRAIFAUXFAUXFAUXVRAI",BDD!$Z$2:$Z$3) -> 0 | AO98: =SUMIF(BDD!$BH$2:$BH$3,"Ressort verticaleFAUXVRAIVRAIFAUXFAUX",BDD!$Z$2:$Z$3) -> 0 | AP98: =SUMIF(BDD!$BH$2:$BH$3,"Ressort verticaleFAUXVRAIFAUXVRAIFAUX",BDD!$Z$2:$Z$3) -> 0 | AQ98: =SUMIF(BDD!$BH$2:$BH$3,"Ressort verticaleFAUXVRAIFAUXFAUXVRAI",BDD!$Z$2:$Z$3) -> 0 | AR98: =SUMIF(BDD!$BH$2:$BH$3,"Ressort verticaleVRAIFAUXVRAIFAUXFAUX",BDD!$Z$2:$Z$3) -> 0 | AS98: =SUMIF(BDD!$BH$2:$BH$3,"Ressort verticaleVRAIFAUXFAUXVRAIFAUX",BDD!$Z$2:$Z$3) -> 0 | AT98: =SUMIF(BDD!$BH$2:$BH$3,"Ressort verticaleVRAIFAUXFAUXFAUXVRAI",BDD!$Z$2:$Z$3) -> 0 | AU98: =SUMIF(BDD!$BH$2:$BH$3,"Ressort verticaleFAUXVRAIVRAIFAUXFAUX",BDD!$Z$2:$Z$3) -> 0 | AV98: =SUMIF(BDD!$BH$2:$BH$3,"Ressort verticaleFAUXVRAIFAUXVRAIFAUX",BDD!$Z$2:$Z$3) -> 0 | AW98: =SUMIF(BDD!$BH$2:$BH$3,"Ressort verticaleFAUXVRAIFAUXFAUXVRAI",BDD!$Z$2:$Z$3) -> 0 | AX98: =SUMIF(BDD!$BH$2:$BH$3,"Ressort verticaleVRAIFAUXVRAIFAUXFAUX",BDD!$Z$2:$Z$3) -> 0 | AY98: =SUMIF(BDD!$BH$2:$BH$3,"Ressort verticaleVRAIFAUXFAUXVRAIFAUX",BDD!$Z$2:$Z$3) -> 0 | AZ98: =SUMIF(BDD!$BH$2:$BH$3,"Ressort verticaleVRAIFAUXFAUXFAUXVRAI",BDD!$Z$2:$Z$3) -> 0 | BA98: =SUMIF(BDD!$BH$2:$BH$3,"Ressort verticaleFAUXVRAIVRAIFAUXFAUX",BDD!$Z$2:$Z$3) -> 0 | BB98: =SUMIF(BDD!$BH$2:$BH$3,"Ressort verticaleFAUXVRAIFAUXVRAIFAUX",BDD!$Z$2:$Z$3) -> 0 | BC98: =SUMIF(BDD!$BH$2:$BH$3,"Ressort verticaleFAUXVRAIFAUXFAUXVRAI",BDD!$Z$2:$Z$3) -> 0 | BD98: =SUMIF(BDD!$BH$2:$BH$3,"Ressort verticaleVRAIFAUXVRAIFAUXFAUX",BDD!$Z$2:$Z$3) -> 0 | BE98: =SUMIF(BDD!$BH$2:$BH$3,"Ressort verticaleVRAIFAUXFAUXVRAIFAUX",BDD!$Z$2:$Z$3) -> 0 | BF98: =SUMIF(BDD!$BH$2:$BH$3,"Ressort verticaleVRAIFAUXFAUXFAUXVRAI",BDD!$Z$2:$Z$3) -> 0 | BG98: =SUMIF(BDD!$BH$2:$BH$3,"Ressort verticaleFAUXVRAIVRAIFAUXFAUX",BDD!$Z$2:$Z$3) -> 0 | BH98: =SUMIF(BDD!$BH$2:$BH$3,"Ressort verticaleFAUXVRAIFAUXVRAIFAUX",BDD!$Z$2:$Z$3) -> 0 | BI98: =SUMIF(BDD!$BH$2:$BH$3,"Ressort verticaleFAUXVRAIFAUXFAUXVRAI",BDD!$Z$2:$Z$3) -> 0 | BJ98: =SUMIF(BDD!$BH$2:$BH$3,"Ressort verticaleVRAIFAUXVRAIFAUXFAUX",BDD!$Z$2:$Z$3) -> 0 | BK98: =SUMIF(BDD!$BH$2:$BH$3,"Ressort verticaleVRAIFAUXFAUXVRAIFAUX",BDD!$Z$2:$Z$3) -> 0 | BL98: =SUMIF(BDD!$BH$2:$BH$3,"Ressort verticaleVRAIFAUXFAUXFAUXVRAI",BDD!$Z$2:$Z$3) -> 0 | BM98: =SUMIF(BDD!$BH$2:$BH$3,"Ressort verticaleFAUXVRAIVRAIFAUXFAUX",BDD!$Z$2:$Z$3) -> 0 | BN98: =SUMIF(BDD!$BH$2:$BH$3,"Ressort verticaleFAUXVRAIFAUXVRAIFAUX",BDD!$Z$2:$Z$3) -> 0 | BO98: =SUMIF(BDD!$BH$2:$BH$3,"Ressort verticaleFAUXVRAIFAUXFAUXVRAI",BDD!$Z$2:$Z$3) -> 0 | BP98: =SUMIF(BDD!$BH$2:$BH$3,"Ressort verticaleVRAIFAUXVRAIFAUXFAUX",BDD!$Z$2:$Z$3) -> 0 | BQ98: =SUMIF(BDD!$BH$2:$BH$3,"Ressort verticaleVRAIFAUXFAUXVRAIFAUX",BDD!$Z$2:$Z$3) -> 0 | BR98: =SUMIF(BDD!$BH$2:$BH$3,"Ressort verticaleVRAIFAUXFAUXFAUXVRAI",BDD!$Z$2:$Z$3) -> 0 | BS98: =SUMIF(BDD!$BH$2:$BH$3,"Ressort verticaleFAUXVRAIVRAIFAUXFAUX",BDD!$Z$2:$Z$3) -> 0 | BT98: =SUMIF(BDD!$BH$2:$BH$3,"Ressort verticaleFAUXVRAIFAUXVRAIFAUX",BDD!$Z$2:$Z$3) -> 0 | BU98: =SUMIF(BDD!$BH$2:$BH$3,"Ressort verticaleFAUXVRAIFAUXFAUXVRAI",BDD!$Z$2:$Z$3) -> 0

Sheet Indicateur Zone6
B2: Suivi des arrêts par banc
A3: Banc zone 6 | B3: Janvier | C3: Février | D3: Mars | E3: Avril | F3: Mai | G3: Juin | H3: Juillet | I3: Août | J3: Septembre | K3: Octobre | L3: Novembre | M3: Décembre
A4: M73001 (Banc new P9) | B4: =SUMIF(BDD!$H$2:$H$3,'Indicateur Zone6'!$A4,BDD!$Z$2:$Z$3) -> 0 | C4: =SUMIF(BDD!$H$2:$H$3,'Indicateur Zone6'!$A4,BDD!$Z$2:$Z$3) -> 0 | D4: =SUMIF(BDD!$H$2:$H$683,'Indicateur Zone6'!$A$4,BDD!$Z$2:$Z$683) -> 0 | E4: =SUMIF(BDD!$H$2:$H$3,'Indicateur Zone6'!$A4,BDD!$Z$2:$Z$3) -> 0 | F4: =SUMIF(BDD!$H$2:$H$3,'Indicateur Zone6'!$A4,BDD!$Z$2:$Z$3) -> 0 | G4: =SUMIF(BDD!$H$2:$H$3,'Indicateur Zone6'!$A4,BDD!$Z$2:$Z$3) -> 0 | H4: =SUMIF(BDD!$H$2:$H$3,'Indicateur Zone6'!$A4,BDD!$Z$2:$Z$3) -> 0 | I4: =SUMIF(BDD!$H$2:$H$3,'Indicateur Zone6'!$A4,BDD!$Z$2:$Z$3) -> 0 | J4: =SUMIF(BDD!$H$2:$H$3,'Indicateur Zone6'!$A4,BDD!$Z$2:$Z$3) -> 0 | K4: =SUMIF(BDD!$H$2:$H$3,'Indicateur Zone6'!$A4,BDD!$Z$2:$Z$3) -> 0 | L4: =SUMIF(BDD!$H$2:$H$3,'Indicateur Zone6'!$A4,BDD!$Z$2:$Z$3) -> 0 | M4: =SUMIF(BDD!$H$2:$H$3,'Indicateur Zone6'!$A4,BDD!$Z$2:$Z$3) -> 0
A5: Banc P1 | B5: =SUMIF(BDD!$H$2:$H$3,'Indicateur Zone6'!$A5,BDD!$Z$2:$Z$3) -> 0 | C5: =SUMIF(BDD!$H$2:$H$3,'Indicateur Zone6'!$A5,BDD!$Z$2:$Z$3) -> 0 | D5: =SUMIF(BDD!$H$2:$H$683,'Indicateur Zone6'!$A$5,BDD!$Z$2:$Z$683) -> 0.02 | E5: =SUMIF(BDD!$H$2:$H$3,'Indicateur Zone6'!$A5,BDD!$Z$2:$Z$3) -> 0 | F5: =SUMIF(BDD!$H$2:$H$3,'Indicateur Zone6'!$A5,BDD!$Z$2:$Z$3) -> 0 | G5: =SUMIF(BDD!$H$2:$H$3,'Indicateur Zone6'!$A5,BDD!$Z$2:$Z$3) -> 0 | H5: =SUMIF(BDD!$H$2:$H$3,'Indicateur Zone6'!$A5,BDD!$Z$2:$Z$3) -> 0 | I5: =SUMIF(BDD!$H$2:$H$3,'Indicateur Zone6'!$A5,BDD!$Z$2:$Z$3) -> 0 | J5: =SUMIF(BDD!$H$2:$H$3,'Indicateur Zone6'!$A5,BDD!$Z$2:$Z$3) -> 0 | K5: =SUMIF(BDD!$H$2:$H$3,'Indicateur Zone6'!$A5,BDD!$Z$2:$Z$3) -> 0 | L5: =SUMIF(BDD!$H$2:$H$3,'Indicateur Zone6'!$A5,BDD!$Z$2:$Z$3) -> 0 | M5: =SUMIF(BDD!$H$2:$H$3,'Indicateur Zone6'!$A5,BDD!$Z$2:$Z$3) -> 0
A6: Banc P2 | B6: =SUMIF(BDD!$H$2:$H$3,'Indicateur Zone6'!$A6,BDD!$Z$2:$Z$3) -> 0 | C6: =SUMIF(BDD!$H$2:$H$3,'Indicateur Zone6'!$A6,BDD!$Z$2:$Z$3) -> 0 | D6: =SUMIF(BDD!$H$2:$H$683,'Indicateur Zone6'!$A$6,BDD!$Z$2:$Z$683) -> 0 | E6: =SUMIF(BDD!$H$2:$H$3,'Indicateur Zone6'!$A6,BDD!$Z$2:$Z$3) -> 0 | F6: =SUMIF(BDD!$H$2:$H$3,'Indicateur Zone6'!$A6,BDD!$Z$2:$Z$3) -> 0 | G6: =SUMIF(BDD!$H$2:$H$3,'Indicateur Zone6'!$A6,BDD!$Z$2:$Z$3) -> 0 | H6: =SUMIF(BDD!$H$2:$H$3,'Indicateur Zone6'!$A6,BDD!$Z$2:$Z$3) -> 0 | I6: =SUMIF(BDD!$H$2:$H$3,'Indicateur Zone6'!$A6,BDD!$Z$2:$Z$3) -> 0 | J6: =SUMIF(BDD!$H$2:$H$3,'Indicateur Zone6'!$A6,BDD!$Z$2:$Z$3) -> 0 | K6: =SUMIF(BDD!$H$2:$H$3,'Indicateur Zone6'!$A6,BDD!$Z$2:$Z$3) -> 0 | L6: =SUMIF(BDD!$H$2:$H$3,'Indicateur Zone6'!$A6,BDD!$Z$2:$Z$3) -> 0 | M6: =SUMIF(BDD!$H$2:$H$3,'Indicateur Zone6'!$A6,BDD!$Z$2:$Z$3) -> 0
A7: Banc 156 | B7: =SUMIF(BDD!$H$2:$H$3,'Indicateur Zone6'!$A7,BDD!$Z$2:$Z$3) -> 0 | C7: =SUMIF(BDD!$H$2:$H$3,'Indicateur Zone6'!$A7,BDD!$Z$2:$Z$3) -> 0 | D7: =SUMIF(BDD!$H$2:$H$683,'Indicateur Zone6'!$A$7,BDD!$Z$2:$Z$683) -> 0 | E7: =SUMIF(BDD!$H$2:$H$3,'Indicateur Zone6'!$A7,BDD!$Z$2:$Z$3) -> 0 | F7: =SUMIF(BDD!$H$2:$H$3,'Indicateur Zone6'!$A7,BDD!$Z$2:$Z$3) -> 0 | G7: =SUMIF(BDD!$H$2:$H$3,'Indicateur Zone6'!$A7,BDD!$Z$2:$Z$3) -> 0 | H7: =SUMIF(BDD!$H$2:$H$3,'Indicateur Zone6'!$A7,BDD!$Z$2:$Z$3) -> 0 | I7: =SUMIF(BDD!$H$2:$H$3,'Indicateur Zone6'!$A7,BDD!$Z$2:$Z$3) -> 0 | J7: =SUMIF(BDD!$H$2:$H$3,'Indicateur Zone6'!$A7,BDD!$Z$2:$Z$3) -> 0 | K7: =SUMIF(BDD!$H$2:$H$3,'Indicateur Zone6'!$A7,BDD!$Z$2:$Z$3) -> 0 | L7: =SUMIF(BDD!$H$2:$H$3,'Indicateur Zone6'!$A7,BDD!$Z$2:$Z$3) -> 0 | M7: =SUMIF(BDD!$H$2:$H$3,'Indicateur Zone6'!$A7,BDD!$Z$2:$Z$3) -> 0
A8: Chambre Froide | B8: =SUMIF(BDD!$H$2:$H$3,'Indicateur Zone6'!$A8,BDD!$Z$2:$Z$3) -> 0 | C8: =SUMIF(BDD!$H$2:$H$3,'Indicateur Zone6'!$A8,BDD!$Z$2:$Z$3) -> 0 | D8: =SUMIF(BDD!$H$2:$H$683,'Indicateur Zone6'!$A$8,BDD!$Z$2:$Z$683) -> 0.3 | E8: =SUMIF(BDD!$H$2:$H$3,'Indicateur Zone6'!$A8,BDD!$Z$2:$Z$3) -> 0 | F8: =SUMIF(BDD!$H$2:$H$3,'Indicateur Zone6'!$A8,BDD!$Z$2:$Z$3) -> 0 | G8: =SUMIF(BDD!$H$2:$H$3,'Indicateur Zone6'!$A8,BDD!$Z$2:$Z$3) -> 0 | H8: =SUMIF(BDD!$H$2:$H$3,'Indicateur Zone6'!$A8,BDD!$Z$2:$Z$3) -> 0 | I8: =SUMIF(BDD!$H$2:$H$3,'Indicateur Zone6'!$A8,BDD!$Z$2:$Z$3) -> 0 | J8: =SUMIF(BDD!$H$2:$H$3,'Indicateur Zone6'!$A8,BDD!$Z$2:$Z$3) -> 0 | K8: =SUMIF(BDD!$H$2:$H$3,'Indicateur Zone6'!$A8,BDD!$Z$2:$Z$3) -> 0 | L8: =SUMIF(BDD!$H$2:$H$3,'Indicateur Zone6'!$A8,BDD!$Z$2:$Z$3) -> 0 | M8: =SUMIF(BDD!$H$2:$H$3,'Indicateur Zone6'!$A8,BDD!$Z$2:$Z$3) -> 0
A9: Chambre Sourde | B9: =SUMIF(BDD!$H$2:$H$3,'Indicateur Zone6'!$A9,BDD!$Z$2:$Z$3) -> 0 | C9: =SUMIF(BDD!$H$2:$H$3,'Indicateur Zone6'!$A9,BDD!$Z$2:$Z$3) -> 0 | D9: =SUMIF(BDD!$H$2:$H$683,'Indicateur Zone6'!$A$9,BDD!$Z$2:$Z$683) -> 0 | E9: =SUMIF(BDD!$H$2:$H$3,'Indicateur Zone6'!$A9,BDD!$Z$2:$Z$3) -> 0 | F9: =SUMIF(BDD!$H$2:$H$3,'Indicateur Zone6'!$A9,BDD!$Z$2:$Z$3) -> 0 | G9: =SUMIF(BDD!$H$2:$H$3,'Indicateur Zone6'!$A9,BDD!$Z$2:$Z$3) -> 0 | H9: =SUMIF(BDD!$H$2:$H$3,'Indicateur Zone6'!$A9,BDD!$Z$2:$Z$3) -> 0 | I9: =SUMIF(BDD!$H$2:$H$3,'Indicateur Zone6'!$A9,BDD!$Z$2:$Z$3) -> 0 | J9: =SUMIF(BDD!$H$2:$H$3,'Indicateur Zone6'!$A9,BDD!$Z$2:$Z$3) -> 0 | K9: =SUMIF(BDD!$H$2:$H$3,'Indicateur Zone6'!$A9,BDD!$Z$2:$Z$3) -> 0 | L9: =SUMIF(BDD!$H$2:$H$3,'Indicateur Zone6'!$A9,BDD!$Z$2:$Z$3) -> 0 | M9: =SUMIF(BDD!$H$2:$H$3,'Indicateur Zone6'!$A9,BDD!$Z$2:$Z$3) -> 0
B32: Suivi du correctif et du préventif
A33: Type de maintenance | B33: Janvier | C33: Février | D33: Mars | E33: Avril | F33: Mai | G33: Juin | H33: Juillet | I33: Août | J33: Septembre | K33: Octobre | L33: Novembre | M33: Décembre
A34: Préventive | B34: =SUM(C59:C64) -> 0 | C34: =SUM(E59:E64) -> 0 | D34: =SUM(G59:G64) -> 0.3 | E34: =SUM(I59:I64) -> 0 | F34: =SUM(K59:K64) -> 0 | G34: =SUM(M59:M64) -> 0 | H34: =SUM(O59:O64) -> 0 | I34: =SUM(Q59:Q64) -> 0 | J34: =SUM(S59:S64) -> 0 | K34: =SUM(U59:U64) -> 0 | L34: =SUM(W59:W64) -> 0 | M34: =SUM(Y59:Y64) -> 0
A35: Corrective | B35: =SUM(B59:B64) -> 0 | C35: =SUM(D59:D64) -> 0 | D35: =SUM(F59:F64) -> 0 | E35: =SUM(H59:H64) -> 0 | F35: =SUM(J59:J64) -> 0 | G35: =SUM(L59:L64) -> 0 | H35: =SUM(N59:N64) -> 0 | I35: =SUM(N59:N64) -> 0 | J35: =SUM(R59:R64) -> 0 | K35: =SUM(T59:T64) -> 0 | L35: =SUM(V59:V64) -> 0 | M35: =SUM(X59:X64) -> 0
B56: Suivi du correctif et du préventif par banc
B57: Janvier | D57: Février | F57: Mars | H57: Avril | J57: Mai | L57: Juin | N57: Juillet | P57: Août | R57: Septembre | T57: Octobre | V57: Novembre | X57: Décembre
A58: Banc zone 6 | B58: Corrective | C58: Préventive | D58: Corrective | E58: Préventive | F58: Corrective | G58: Préventive | H58: Corrective | I58: Préventive | J58: Corrective | K58: Préventive | L58: Corrective | M58: Préventive | N58: Corrective | O58: Préventive | P58: Corrective | Q58: Préventive | R58: Corrective | S58: Préventive | T58: Corrective | U58: Préventive | V58: Corrective | W58: Préventive | X58: Corrective | Y58: Préventive
A59: M73001 (Banc new P9) | B59: =SUMIF(BDD!$BG$2:$BG$3,"M73001 (Banc new P9)VRAIFAUX",BDD!$Z$2:$Z$3) -> 0 | C59: =SUMIF(BDD!$BG$2:$BG$3,"M73001 (Banc new P9)FAUXVRAI",BDD!$Z$2:$Z$3) -> 0 | D59: =SUMIF(BDD!$BG$2:$BG$3,"M73001 (Banc new P9)VRAIFAUX",BDD!$Z$2:$Z$3) -> 0 | E59: =SUMIF(BDD!$BG$2:$BG$3,"M73001 (Banc new P9)FAUXVRAI",BDD!$Z$2:$Z$3) -> 0 | F59: =SUMIF(BDD!$BG$2:$BG$683,"M73001 (Banc new P9)VRAIFAUX",BDD!$Z$2:$Z$683) -> 0 | G59: =SUMIF(BDD!$BG$2:$BG$683,"M73001 (Banc new P9)FAUXvrai",BDD!$Z$2:$Z$683) -> 0 | H59: =SUMIF(BDD!$BG$2:$BG$3,"M73001 (Banc new P9)VRAIFAUX",BDD!$Z$2:$Z$3) -> 0 | I59: =SUMIF(BDD!$BG$2:$BG$3,"M73001 (Banc new P9)FAUXVRAI",BDD!$Z$2:$Z$3) -> 0 | J59: =SUMIF(BDD!$BG$2:$BG$3,"M73001 (Banc new P9)VRAIFAUX",BDD!$Z$2:$Z$3) -> 0 | K59: =SUMIF(BDD!$BG$2:$BG$3,"M73001 (Banc new P9)FAUXVRAI",BDD!$Z$2:$Z$3) -> 0 | L59: =SUMIF(BDD!$BG$2:$BG$3,"M73001 (Banc new P9)VRAIFAUX",BDD!$Z$2:$Z$3) -> 0 | M59: =SUMIF(BDD!$BG$2:$BG$3,"M73001 (Banc new P9)FAUXVRAI",BDD!$Z$2:$Z$3) -> 0 | N59: =SUMIF(BDD!$BG$2:$BG$3,"M73001 (Banc new P9)VRAIFAUX",BDD!$Z$2:$Z$3) -> 0 | O59: =SUMIF(BDD!$BG$2:$BG$3,"M73001 (Banc new P9)FAUXVRAI",BDD!$Z$2:$Z$3) -> 0 | P59: =SUMIF(BDD!$BG$2:$BG$3,"M73001 (Banc new P9)VRAIFAUX",BDD!$Z$2:$Z$3) -> 0 | Q59: =SUMIF(BDD!$BG$2:$BG$3,"M73001 (Banc new P9)FAUXVRAI",BDD!$Z$2:$Z$3) -> 0 | R59: =SUMIF(BDD!$BG$2:$BG$3,"M73001 (Banc new P9)VRAIFAUX",BDD!$Z$2:$Z$3) -> 0 | S59: =SUMIF(BDD!$BG$2:$BG$3,"M73001 (Banc new P9)FAUXVRAI",BDD!$Z$2:$Z$3) -> 0 | T59: =SUMIF(BDD!$BG$2:$BG$3,"M73001 (Banc new P9)VRAIFAUX",BDD!$Z$2:$Z$3) -> 0 | U59: =SUMIF(BDD!$BG$2:$BG$3,"M73001 (Banc new P9)FAUXVRAI",BDD!$Z$2:$Z$3) -> 0 | V59: =SUMIF(BDD!$BG$2:$BG$3,"M73001 (Banc new P9)VRAIFAUX",BDD!$Z$2:$Z$3) -> 0 | W59: =SUMIF(BDD!$BG$2:$BG$3,"M73001 (Banc new P9)FAUXVRAI",BDD!$Z$2:$Z$3) -> 0 | X59: =SUMIF(BDD!$BG$2:$BG$3,"M73001 (Banc new P9)VRAIFAUX",BDD!$Z$2:$Z$3) -> 0 | Y59: =SUMIF(BDD!$BG$2:$BG$3,"M73001 (Banc new P9)FAUXVRAI",BDD!$Z$2:$Z$3) -> 0
A60: Banc P1 | B60: =SUMIF(BDD!$BG$2:$BG$3,"Banc P1VRAIFAUX",BDD!$Z$2:$Z$3) -> 0 | C60: =SUMIF(BDD!$BG$2:$BG$3,"Banc P1FAUXVRAI",BDD!$Z$2:$Z$3) -> 0 | D60: =SUMIF(BDD!$BG$2:$BG$3,"Banc P1VRAIFAUX",BDD!$Z$2:$Z$3) -> 0 | E60: =SUMIF(BDD!$BG$2:$BG$3,"Banc P1FAUXVRAI",BDD!$Z$2:$Z$3) -> 0 | F60: =SUMIF(BDD!$BG$2:$BG$683,"Banc P1VRAIFAUX",BDD!$Z$2:$Z$683) -> 0 | G60: =SUMIF(BDD!$BG$2:$BG$683,"Banc P1FAUXVRAI",BDD!$Z$2:$Z$683) -> 0 | H60: =SUMIF(BDD!$BG$2:$BG$3,"Banc P1VRAIFAUX",BDD!$Z$2:$Z$3) -> 0 | I60: =SUMIF(BDD!$BG$2:$BG$3,"Banc P1FAUXVRAI",BDD!$Z$2:$Z$3) -> 0 | J60: =SUMIF(BDD!$BG$2:$BG$3,"Banc P1VRAIFAUX",BDD!$Z$2:$Z$3) -> 0 | K60: =SUMIF(BDD!$BG$2:$BG$3,"Banc P1FAUXVRAI",BDD!$Z$2:$Z$3) -> 0 | L60: =SUMIF(BDD!$BG$2:$BG$3,"Banc P1VRAIFAUX",BDD!$Z$2:$Z$3) -> 0 | M60: =SUMIF(BDD!$BG$2:$BG$3,"Banc P1FAUXVRAI",BDD!$Z$2:$Z$3) -> 0 | N60: =SUMIF(BDD!$BG$2:$BG$3,"Banc P1VRAIFAUX",BDD!$Z$2:$Z$3) -> 0 | O60: =SUMIF(BDD!$BG$2:$BG$3,"Banc P1FAUXVRAI",BDD!$Z$2:$Z$3) -> 0 | P60: =SUMIF(BDD!$BG$2:$BG$3,"Banc P1VRAIFAUX",BDD!$Z$2:$Z$3) -> 0 | Q60: =SUMIF(BDD!$BG$2:$BG$3,"Banc P1FAUXVRAI",BDD!$Z$2:$Z$3) -> 0 | R60: =SUMIF(BDD!$BG$2:$BG$3,"Banc P1VRAIFAUX",BDD!$Z$2:$Z$3) -> 0 | S60: =SUMIF(BDD!$BG$2:$BG$3,"Banc P1FAUXVRAI",BDD!$Z$2:$Z$3) -> 0 | T60: =SUMIF(BDD!$BG$2:$BG$3,"Banc P1VRAIFAUX",BDD!$Z$2:$Z$3) -> 0 | U60: =SUMIF(BDD!$BG$2:$BG$3,"Banc P1FAUXVRAI",BDD!$Z$2:$Z$3) -> 0 | V60: =SUMIF(BDD!$BG$2:$BG$3,"Banc P1VRAIFAUX",BDD!$Z$2:$Z$3) -> 0 | W60: =SUMIF(BDD!$BG$2:$BG$3,"Banc P1FAUXVRAI",BDD!$Z$2:$Z$3) -> 0 | X60: =SUMIF(BDD!$BG$2:$BG$3,"Banc P1VRAIFAUX",BDD!$Z$2:$Z$3) -> 0 | Y60: =SUMIF(BDD!$BG$2:$BG$3,"Banc P1FAUXVRAI",BDD!$Z$2:$Z$3) -> 0
A61: Banc P2 | B61: =SUMIF(BDD!$BG$2:$BG$683,"Banc P2VRAIFAUX",BDD!$Z$2:$Z$683) -> 0 | C61: =SUMIF(BDD!$BG$2:$BG$3,"Banc P2FAUXVRAI",BDD!$Z$2:$Z$3) -> 0 | D61: =SUMIF(BDD!$BG$2:$BG$683,"Banc P2VRAIFAUX",BDD!$Z$2:$Z$683) -> 0 | E61: =SUMIF(BDD!$BG$2:$BG$3,"Banc P2FAUXVRAI",BDD!$Z$2:$Z$3) -> 0 | F61: =SUMIF(BDD!$BG$2:$BG$683,"Banc P2VRAIFAUX",BDD!$Z$2:$Z$683) -> 0 | G61: =SUMIF(BDD!$BG$2:$BG$683,"Banc P2FAUXVRAI",BDD!$Z$2:$Z$683) -> 0 | H61: =SUMIF(BDD!$BG$2:$BG$683,"Banc P2VRAIFAUX",BDD!$Z$2:$Z$683) -> 0 | I61: =SUMIF(BDD!$BG$2:$BG$3,"Banc P2FAUXVRAI",BDD!$Z$2:$Z$3) -> 0 | J61: =SUMIF(BDD!$BG$2:$BG$683,"Banc P2VRAIFAUX",BDD!$Z$2:$Z$683) -> 0 | K61: =SUMIF(BDD!$BG$2:$BG$3,"Banc P2FAUXVRAI",BDD!$Z$2:$Z$3) -> 0 | L61: =SUMIF(BDD!$BG$2:$BG$683,"Banc P2VRAIFAUX",BDD!$Z$2:$Z$683) -> 0 | M61: =SUMIF(BDD!$BG$2:$BG$3,"Banc P2FAUXVRAI",BDD!$Z$2:$Z$3) -> 0 | N61: =SUMIF(BDD!$BG$2:$BG$683,"Banc P2VRAIFAUX",BDD!$Z$2:$Z$683) -> 0 | O61: =SUMIF(BDD!$BG$2:$BG$3,"Banc P2FAUXVRAI",BDD!$Z$2:$Z$3) -> 0 | P61: =SUMIF(BDD!$BG$2:$BG$683,"Banc P2VRAIFAUX",BDD!$Z$2:$Z$683) -> 0 | Q61: =SUMIF(BDD!$BG$2:$BG$3,"Banc P2FAUXVRAI",BDD!$Z$2:$Z$3) -> 0 | R61: =SUMIF(BDD!$BG$2:$BG$683,"Banc P2VRAIFAUX",BDD!$Z$2:$Z$683) -> 0 | S61: =SUMIF(BDD!$BG$2:$BG$3,"Banc P2FAUXVRAI",BDD!$Z$2:$Z$3) -> 0 | T61: =SUMIF(BDD!$BG$2:$BG$683,"Banc P2VRAIFAUX",BDD!$Z$2:$Z$683) -> 0 | U61: =SUMIF(BDD!$BG$2:$BG$3,"Banc P2FAUXVRAI",BDD!$Z$2:$Z$3) -> 0 | V61: =SUMIF(BDD!$BG$2:$BG$683,"Banc P2VRAIFAUX",BDD!$Z$2:$Z$683) -> 0 | W61: =SUMIF(BDD!$BG$2:$BG$3,"Banc P2FAUXVRAI",BDD!$Z$2:$Z$3) -> 0 | X61: =SUMIF(BDD!$BG$2:$BG$683,"Banc P2VRAIFAUX",BDD!$Z$2:$Z$683) -> 0 | Y61: =SUMIF(BDD!$BG$2:$BG$3,"Banc P2FAUXVRAI",BDD!$Z$2:$Z$3) -> 0
A62: Banc 156 | B62: =SUMIF(BDD!$BG$2:$BG$3,"Banc 156VRAIFAUX",BDD!$Z$2:$Z$3) -> 0 | C62: =SUMIF(BDD!$BG$2:$BG$3,"Banc 156FAUXVRAI",BDD!$Z$2:$Z$3) -> 0 | D62: =SUMIF(BDD!$BG$2:$BG$3,"Banc 156VRAIFAUX",BDD!$Z$2:$Z$3) -> 0 | E62: =SUMIF(BDD!$BG$2:$BG$3,"Banc 156FAUXVRAI",BDD!$Z$2:$Z$3) -> 0 | F62: =SUMIF(BDD!$BG$2:$BG$683,"Banc 156VRAIFAUX",BDD!$Z$2:$Z$683) -> 0 | G62: =SUMIF(BDD!$BG$2:$BG$683,"Banc 156FAUXVRAI",BDD!$Z$2:$Z$683) -> 0 | H62: =SUMIF(BDD!$BG$2:$BG$3,"Banc 156VRAIFAUX",BDD!$Z$2:$Z$3) -> 0 | I62: =SUMIF(BDD!$BG$2:$BG$3,"Banc 156FAUXVRAI",BDD!$Z$2:$Z$3) -> 0 | J62: =SUMIF(BDD!$BG$2:$BG$3,"Banc 156VRAIFAUX",BDD!$Z$2:$Z$3) -> 0 | K62: =SUMIF(BDD!$BG$2:$BG$3,"Banc 156FAUXVRAI",BDD!$Z$2:$Z$3) -> 0 | L62: =SUMIF(BDD!$BG$2:$BG$3,"Banc 156VRAIFAUX",BDD!$Z$2:$Z$3) -> 0 | M62: =SUMIF(BDD!$BG$2:$BG$3,"Banc 156FAUXVRAI",BDD!$Z$2:$Z$3) -> 0 | N62: =SUMIF(BDD!$BG$2:$BG$3,"Banc 156VRAIFAUX",BDD!$Z$2:$Z$3) -> 0 | O62: =SUMIF(BDD!$BG$2:$BG$3,"Banc 156FAUXVRAI",BDD!$Z$2:$Z$3) -> 0 | P62: =SUMIF(BDD!$BG$2:$BG$3,"Banc 156VRAIFAUX",BDD!$Z$2:$Z$3) -> 0 | Q62: =SUMIF(BDD!$BG$2:$BG$3,"Banc 156FAUXVRAI",BDD!$Z$2:$Z$3) -> 0 | R62: =SUMIF(BDD!$BG$2:$BG$3,"Banc 156VRAIFAUX",BDD!$Z$2:$Z$3) -> 0 | S62: =SUMIF(BDD!$BG$2:$BG$3,"Banc 156FAUXVRAI",BDD!$Z$2:$Z$3) -> 0 | T62: =SUMIF(BDD!$BG$2:$BG$3,"Banc 156VRAIFAUX",BDD!$Z$2:$Z$3) -> 0 | U62: =SUMIF(BDD!$BG$2:$BG$3,"Banc 156FAUXVRAI",BDD!$Z$2:$Z$3) -> 0 | V62: =SUMIF(BDD!$BG$2:$BG$3,"Banc 156VRAIFAUX",BDD!$Z$2:$Z$3) -> 0 | W62: =SUMIF(BDD!$BG$2:$BG$3,"Banc 156FAUXVRAI",BDD!$Z$2:$Z$3) -> 0 | X62: =SUMIF(BDD!$BG$2:$BG$3,"Banc 156VRAIFAUX",BDD!$Z$2:$Z$3) -> 0 | Y62: =SUMIF(BDD!$BG$2:$BG$3,"Banc 156FAUXVRAI",BDD!$Z$2:$Z$3) -> 0
A63: Chambre Froide | B63: =SUMIF(BDD!$BG$2:$BG$3,"Chambre FroideVRAIFAUX",BDD!$Z$2:$Z$3) -> 0 | C63: =SUMIF(BDD!$BG$2:$BG$3,"Chambre FroideFAUXVRAI",BDD!$Z$2:$Z$3) -> 0 | D63: =SUMIF(BDD!$BG$2:$BG$3,"Chambre FroideVRAIFAUX",BDD!$Z$2:$Z$3) -> 0 | E63: =SUMIF(BDD!$BG$2:$BG$3,"Chambre FroideFAUXVRAI",BDD!$Z$2:$Z$3) -> 0 | F63: =SUMIF(BDD!$BG$2:$BG$683,"Chambre FroideVRAIFAUX",BDD!$Z$2:$Z$683) -> 0 | G63: =SUMIF(BDD!$BG$2:$BG$683,"Chambre FroideFAUXVRAI",BDD!$Z$2:$Z$683) -> 0.3 | H63: =SUMIF(BDD!$BG$2:$BG$3,"Chambre FroideVRAIFAUX",BDD!$Z$2:$Z$3) -> 0 | I63: =SUMIF(BDD!$BG$2:$BG$3,"Chambre FroideFAUXVRAI",BDD!$Z$2:$Z$3) -> 0 | J63: =SUMIF(BDD!$BG$2:$BG$3,"Chambre FroideVRAIFAUX",BDD!$Z$2:$Z$3) -> 0 | K63: =SUMIF(BDD!$BG$2:$BG$3,"Chambre FroideFAUXVRAI",BDD!$Z$2:$Z$3) -> 0 | L63: =SUMIF(BDD!$BG$2:$BG$3,"Chambre FroideVRAIFAUX",BDD!$Z$2:$Z$3) -> 0 | M63: =SUMIF(BDD!$BG$2:$BG$3,"Chambre FroideFAUXVRAI",BDD!$Z$2:$Z$3) -> 0 | N63: =SUMIF(BDD!$BG$2:$BG$3,"Chambre FroideVRAIFAUX",BDD!$Z$2:$Z$3) -> 0 | O63: =SUMIF(BDD!$BG$2:$BG$3,"Chambre FroideFAUXVRAI",BDD!$Z$2:$Z$3) -> 0 | P63: =SUMIF(BDD!$BG$2:$BG$3,"Chambre FroideVRAIFAUX",BDD!$Z$2:$Z$3) -> 0 | Q63: =SUMIF(BDD!$BG$2:$BG$3,"Chambre FroideFAUXVRAI",BDD!$Z$2:$Z$3) -> 0 | R63: =SUMIF(BDD!$BG$2:$BG$3,"Chambre FroideVRAIFAUX",BDD!$Z$2:$Z$3) -> 0 | S63: =SUMIF(BDD!$BG$2:$BG$3,"Chambre FroideFAUXVRAI",BDD!$Z$2:$Z$3) -> 0 | T63: =SUMIF(BDD!$BG$2:$BG$3,"Chambre FroideVRAIFAUX",BDD!$Z$2:$Z$3) -> 0 | U63: =SUMIF(BDD!$BG$2:$BG$3,"Chambre FroideFAUXVRAI",BDD!$Z$2:$Z$3) -> 0 | V63: =SUMIF(BDD!$BG$2:$BG$3,"Chambre FroideVRAIFAUX",BDD!$Z$2:$Z$3) -> 0 | W63: =SUMIF(BDD!$BG$2:$BG$3,"Chambre FroideFAUXVRAI",BDD!$Z$2:$Z$3) -> 0 | X63: =SUMIF(BDD!$BG$2:$BG$3,"Chambre FroideVRAIFAUX",BDD!$Z$2:$Z$3) -> 0 | Y63: =SUMIF(BDD!$BG$2:$BG$3,"Chambre FroideFAUXVRAI",BDD!$Z$2:$Z$3) -> 0
A64: Chambre Sourde | B64: =SUMIF(BDD!$BG$2:$BG$3,"Chambre SourdeVRAIFAUX",BDD!$Z$2:$Z$3) -> 0 | C64: =SUMIF(BDD!$BG$2:$BG$3,"Chambre SourdeFAUXVRAI",BDD!$Z$2:$Z$3) -> 0 | D64: =SUMIF(BDD!$BG$2:$BG$3,"Chambre SourdeVRAIFAUX",BDD!$Z$2:$Z$3) -> 0 | E64: =SUMIF(BDD!$BG$2:$BG$3,"Chambre SourdeFAUXVRAI",BDD!$Z$2:$Z$3) -> 0 | F64: =SUMIF(BDD!$BG$2:$BG$683,"Chambre SourdeVRAIFAUX",BDD!$Z$2:$Z$683) -> 0 | G64: =SUMIF(BDD!$BG$2:$BG$683,"Chambre SourdeFAUXVRAI",BDD!$Z$2:$Z$683) -> 0 | H64: =SUMIF(BDD!$BG$2:$BG$3,"Chambre SourdeVRAIFAUX",BDD!$Z$2:$Z$3) -> 0 | I64: =SUMIF(BDD!$BG$2:$BG$3,"Chambre SourdeFAUXVRAI",BDD!$Z$2:$Z$3) -> 0 | J64: =SUMIF(BDD!$BG$2:$BG$3,"Chambre SourdeVRAIFAUX",BDD!$Z$2:$Z$3) -> 0 | K64: =SUMIF(BDD!$BG$2:$BG$3,"Chambre SourdeFAUXVRAI",BDD!$Z$2:$Z$3) -> 0 | L64: =SUMIF(BDD!$BG$2:$BG$3,"Chambre SourdeVRAIFAUX",BDD!$Z$2:$Z$3) -> 0 | M64: =SUMIF(BDD!$BG$2:$BG$3,"Chambre SourdeFAUXVRAI",BDD!$Z$2:$Z$3) -> 0 | N64: =SUMIF(BDD!$BG$2:$BG$3,"Chambre SourdeVRAIFAUX",BDD!$Z$2:$Z$3) -> 0 | O64: =SUMIF(BDD!$BG$2:$BG$3,"Chambre SourdeFAUXVRAI",BDD!$Z$2:$Z$3) -> 0 | P64: =SUMIF(BDD!$BG$2:$BG$3,"Chambre SourdeVRAIFAUX",BDD!$Z$2:$Z$3) -> 0 | Q64: =SUMIF(BDD!$BG$2:$BG$3,"Chambre SourdeFAUXVRAI",BDD!$Z$2:$Z$3) -> 0 | R64: =SUMIF(BDD!$BG$2:$BG$3,"Chambre SourdeVRAIFAUX",BDD!$Z$2:$Z$3) -> 0 | S64: =SUMIF(BDD!$BG$2:$BG$3,"Chambre SourdeFAUXVRAI",BDD!$Z$2:$Z$3) -> 0 | T64: =SUMIF(BDD!$BG$2:$BG$3,"Chambre SourdeVRAIFAUX",BDD!$Z$2:$Z$3) -> 0 | U64: =SUMIF(BDD!$BG$2:$BG$3,"Chambre SourdeFAUXVRAI",BDD!$Z$2:$Z$3) -> 0 | V64: =SUMIF(BDD!$BG$2:$BG$3,"Chambre SourdeVRAIFAUX",BDD!$Z$2:$Z$3) -> 0 | W64: =SUMIF(BDD!$BG$2:$BG$3,"Chambre SourdeFAUXVRAI",BDD!$Z$2:$Z$3) -> 0 | X64: =SUMIF(BDD!$BG$2:$BG$3,"Chambre SourdeVRAIFAUX",BDD!$Z$2:$Z$3) -> 0 | Y64: =SUMIF(BDD!$BG$2:$BG$3,"Chambre SourdeFAUXVRAI",BDD!$Z$2:$Z$3) -> 0
B87: Suivi du correctif et du préventif par banc
B88: Janvier | H88: Février | N88: Mars | T88: Avril | Z88: Mai | AF88: Juin | AL88: Juillet | AR88: Août | AX88: Septembre | BD88: Octobre | BJ88: Novembre | BP88: Décembre
B89: Corrective | E89: Préventive | H89: Corrective | K89: Préventive | N89: Corrective | Q89: Préventive | T89: Corrective | W89: Préventive | Z89: Corrective | AC89: Préventive | AF89: Corrective | AI89: Préventive | AL89: Corrective | AO89: Préventive | AR89: Corrective | AU89: Préventive | AX89: Corrective | BA89: Préventive | BD89: Corrective | BG89: Préventive | BJ89: Corrective | BM89: Préventive | BP89: Corrective | BS89: Préventive
A90: Banc zone 6 | B90: Electrique | C90: Mécanique | D90: Hydraulique | E90: Electrique | F90: Mécanique | G90: Hydraulique | H90: Electrique | I90: Mécanique | J90: Hydraulique | K90: Electrique | L90: Mécanique | M90: Hydraulique | N90: Electrique | O90: Mécanique | P90: Hydraulique | Q90: Electrique | R90: Mécanique | S90: Hydraulique | T90: Electrique | U90: Mécanique | V90: Hydraulique | W90: Electrique | X90: Mécanique | Y90: Hydraulique | Z90: Electrique | AA90: Mécanique | AB90: Hydraulique | AC90: Electrique | AD90: Mécanique | AE90: Hydraulique | AF90: Electrique | AG90: Mécanique | AH90: Hydraulique | AI90: Electrique | AJ90: Mécanique | AK90: Hydraulique | AL90: Electrique | AM90: Mécanique | AN90: Hydraulique | AO90: Electrique | AP90: Mécanique | AQ90: Hydraulique | AR90: Electrique | AS90: Mécanique | AT90: Hydraulique | AU90: Electrique | AV90: Mécanique | AW90: Hydraulique | AX90: Electrique | AY90: Mécanique | AZ90: Hydraulique | BA90: Electrique | BB90: Mécanique | BC90: Hydraulique | BD90: Electrique | BE90: Mécanique | BF90: Hydraulique | BG90: Electrique | BH90: Mécanique | BI90: Hydraulique | BJ90: Electrique | BK90: Mécanique | BL90: Hydraulique | BM90: Electrique | BN90: Mécanique | BO90: Hydraulique | BP90: Electrique | BQ90: Mécanique | BR90: Hydraulique | BS90: Electrique | BT90: Mécanique | BU90: Hydraulique
A91: M73001 (Banc new P9) | B91: =SUMIF(BDD!$BH$2:$BH$3,"M73001 (Banc new P9)VRAIFAUXVRAIFAUXFAUX",BDD!$Z$2:$Z$3) -> 0 | C91: =SUMIF(BDD!$BH$2:$BH$3,"M73001 (Banc new P9)VRAIFAUXFAUXVRAIFAUX",BDD!$Z$2:$Z$3) -> 0 | D91: =SUMIF(BDD!$BH$2:$BH$3,"M73001 (Banc new P9)VRAIFAUXFAUXFAUXVRAI",BDD!$Z$2:$Z$3) -> 0 | E91: =SUMIF(BDD!$BH$2:$BH$3,"M73001 (Banc new P9)FAUXVRAIVRAIFAUXFAUX",BDD!$Z$2:$Z$3) -> 0 | F91: =SUMIF(BDD!$BH$2:$BH$3,"M73001 (Banc new P9)FAUXVRAIFAUXVRAIFAUX",BDD!$Z$2:$Z$3) -> 0 | G91: =SUMIF(BDD!$BH$2:$BH$3,"M73001 (Banc new P9)FAUXVRAIFAUXFAUXVRAI",BDD!$Z$2:$Z$3) -> 0 | H91: =SUMIF(BDD!$BH$2:$BH$3,"M73001 (Banc new P9)VRAIFAUXVRAIFAUXFAUX",BDD!$Z$2:$Z$3) -> 0 | I91: =SUMIF(BDD!$BH$2:$BH$3,"M73001 (Banc new P9)VRAIFAUXFAUXVRAIFAUX",BDD!$Z$2:$Z$3) -> 0 | J91: =SUMIF(BDD!$BH$2:$BH$3,"M73001 (Banc new P9)VRAIFAUXFAUXFAUXVRAI",BDD!$Z$2:$Z$3) -> 0 | K91: =SUMIF(BDD!$BH$2:$BH$3,"M73001 (Banc new P9)FAUXVRAIVRAIFAUXFAUX",BDD!$Z$2:$Z$3) -> 0 | L91: =SUMIF(BDD!$BH$2:$BH$3,"M73001 (Banc new P9)FAUXVRAIFAUXVRAIFAUX",BDD!$Z$2:$Z$3) -> 0 | M91: =SUMIF(BDD!$BH$2:$BH$3,"M73001 (Banc new P9)FAUXVRAIFAUXFAUXVRAI",BDD!$Z$2:$Z$3) -> 0 | N91: =SUMIF(BDD!$BH$2:$BH$683,"M73001 (Banc new P9)VRAIFAUXVRAIFAUXFAUX",BDD!$Z$2:$Z$683) -> 0 | O91: =SUMIF(BDD!$BH$2:$BH$683,"M73001 (Banc new P9)VRAIFAUXFAUXVRAIFAUX",BDD!$Z$2:$Z$683) -> 0 | P91: =SUMIF(BDD!$BH$2:$BH$683,"M73001 (Banc new P9)VRAIFAUXFAUXFAUXVRAI",BDD!$Z$2:$Z$683) -> 0 | Q91: =SUMIF(BDD!$BH$2:$BH$683,"M73001 (Banc new P9)FAUXVRAIVRAIFAUXFAUX",BDD!$Z$2:$Z$683) -> 0 | R91: =SUMIF(BDD!$BH$2:$BH$683,"M73001 (Banc new P9)FAUXVRAIFAUXVRAIFAUX",BDD!$Z$2:$Z$683) -> 0 | S91: =SUMIF(BDD!$BH$2:$BH$683,"M73001 (Banc new P9)FAUXVRAIFAUXFAUXVRAI",BDD!$Z$2:$Z$683) -> 0 | T91: =SUMIF(BDD!$BH$2:$BH$3,"M73001 (Banc new P9)VRAIFAUXVRAIFAUXFAUX",BDD!$Z$2:$Z$3) -> 0 | U91: =SUMIF(BDD!$BH$2:$BH$3,"M73001 (Banc new P9)VRAIFAUXFAUXVRAIFAUX",BDD!$Z$2:$Z$3) -> 0 | V91: =SUMIF(BDD!$BH$2:$BH$3,"M73001 (Banc new P9)VRAIFAUXFAUXFAUXVRAI",BDD!$Z$2:$Z$3) -> 0 | W91: =SUMIF(BDD!$BH$2:$BH$3,"M73001 (Banc new P9)FAUXVRAIVRAIFAUXFAUX",BDD!$Z$2:$Z$3) -> 0 | X91: =SUMIF(BDD!$BH$2:$BH$3,"M73001 (Banc new P9)FAUXVRAIFAUXVRAIFAUX",BDD!$Z$2:$Z$3) -> 0 | Y91: =SUMIF(BDD!$BH$2:$BH$3,"M73001 (Banc new P9)FAUXVRAIFAUXFAUXVRAI",BDD!$Z$2:$Z$3) -> 0 | Z91: =SUMIF(BDD!$BH$2:$BH$3,"M73001 (Banc new P9)VRAIFAUXVRAIFAUXFAUX",BDD!$Z$2:$Z$3) -> 0 | AA91: =SUMIF(BDD!$BH$2:$BH$3,"M73001 (Banc new P9)VRAIFAUXFAUXVRAIFAUX",BDD!$Z$2:$Z$3) -> 0 | AB91: =SUMIF(BDD!$BH$2:$BH$3,"M73001 (Banc new P9)VRAIFAUXFAUXFAUXVRAI",BDD!$Z$2:$Z$3) -> 0 | AC91: =SUMIF(BDD!$BH$2:$BH$3,"M73001 (Banc new P9)FAUXVRAIVRAIFAUXFAUX",BDD!$Z$2:$Z$3) -> 0 | AD91: =SUMIF(BDD!$BH$2:$BH$3,"M73001 (Banc new P9)FAUXVRAIFAUXVRAIFAUX",BDD!$Z$2:$Z$3) -> 0 | AE91: =SUMIF(BDD!$BH$2:$BH$3,"M73001 (Banc new P9)FAUXVRAIFAUXFAUXVRAI",BDD!$Z$2:$Z$3) -> 0 | AF91: =SUMIF(BDD!$BH$2:$BH$3,"M73001 (Banc new P9)VRAIFAUXVRAIFAUXFAUX",BDD!$Z$2:$Z$3) -> 0 | AG91: =SUMIF(BDD!$BH$2:$BH$3,"M73001 (Banc new P9)VRAIFAUXFAUXVRAIFAUX",BDD!$Z$2:$Z$3) -> 0 | AH91: =SUMIF(BDD!$BH$2:$BH$3,"M73001 (Banc new P9)VRAIFAUXFAUXFAUXVRAI",BDD!$Z$2:$Z$3) -> 0 | AI91: =SUMIF(BDD!$BH$2:$BH$3,"M73001 (Banc new P9)FAUXVRAIVRAIFAUXFAUX",BDD!$Z$2:$Z$3) -> 0 | AJ91: =SUMIF(BDD!$BH$2:$BH$3,"M73001 (Banc new P9)FAUXVRAIFAUXVRAIFAUX",BDD!$Z$2:$Z$3) -> 0 | AK91: =SUMIF(BDD!$BH$2:$BH$3,"M73001 (Banc new P9)FAUXVRAIFAUXFAUXVRAI",BDD!$Z$2:$Z$3) -> 0 | AL91: =SUMIF(BDD!$BH$2:$BH$3,"M73001 (Banc new P9)VRAIFAUXVRAIFAUXFAUX",BDD!$Z$2:$Z$3) -> 0 | AM91: =SUMIF(BDD!$BH$2:$BH$3,"M73001 (Banc new P9)VRAIFAUXFAUXVRAIFAUX",BDD!$Z$2:$Z$3) -> 0 | AN91: =SUMIF(BDD!$BH$2:$BH$3,"M73001 (Banc new P9)VRAIFAUXFAUXFAUXVRAI",BDD!$Z$2:$Z$3) -> 0 | AO91: =SUMIF(BDD!$BH$2:$BH$3,"M73001 (Banc new P9)FAUXVRAIVRAIFAUXFAUX",BDD!$Z$2:$Z$3) -> 0 | AP91: =SUMIF(BDD!$BH$2:$BH$3,"M73001 (Banc new P9)FAUXVRAIFAUXVRAIFAUX",BDD!$Z$2:$Z$3) -> 0 | AQ91: =SUMIF(BDD!$BH$2:$BH$3,"M73001 (Banc new P9)FAUXVRAIFAUXFAUXVRAI",BDD!$Z$2:$Z$3) -> 0 | AR91: =SUMIF(BDD!$BH$2:$BH$3,"M73001 (Banc new P9)VRAIFAUXVRAIFAUXFAUX",BDD!$Z$2:$Z$3) -> 0 | AS91: =SUMIF(BDD!$BH$2:$BH$3,"M73001 (Banc new P9)VRAIFAUXFAUXVRAIFAUX",BDD!$Z$2:$Z$3) -> 0 | AT91: =SUMIF(BDD!$BH$2:$BH$3,"M73001 (Banc new P9)VRAIFAUXFAUXFAUXVRAI",BDD!$Z$2:$Z$3) -> 0 | AU91: =SUMIF(BDD!$BH$2:$BH$3,"M73001 (Banc new P9)FAUXVRAIVRAIFAUXFAUX",BDD!$Z$2:$Z$3) -> 0 | AV91: =SUMIF(BDD!$BH$2:$BH$3,"M73001 (Banc new P9)FAUXVRAIFAUXVRAIFAUX",BDD!$Z$2:$Z$3) -> 0 | AW91: =SUMIF(BDD!$BH$2:$BH$3,"M73001 (Banc new P9)FAUXVRAIFAUXFAUXVRAI",BDD!$Z$2:$Z$3) -> 0 | AX91: =SUMIF(BDD!$BH$2:$BH$3,"M73001 (Banc new P9)VRAIFAUXVRAIFAUXFAUX",BDD!$Z$2:$Z$3) -> 0 | AY91: =SUMIF(BDD!$BH$2:$BH$3,"M73001 (Banc new P9)VRAIFAUXFAUXVRAIFAUX",BDD!$Z$2:$Z$3) -> 0 | AZ91: =SUMIF(BDD!$BH$2:$BH$3,"M73001 (Banc new P9)VRAIFAUXFAUXFAUXVRAI",BDD!$Z$2:$Z$3) -> 0 | BA91: =SUMIF(BDD!$BH$2:$BH$3,"M73001 (Banc new P9)FAUXVRAIVRAIFAUXFAUX",BDD!$Z$2:$Z$3) -> 0 | BB91: =SUMIF(BDD!$BH$2:$BH$3,"M73001 (Banc new P9)FAUXVRAIFAUXVRAIFAUX",BDD!$Z$2:$Z$3) -> 0 | BC91: =SUMIF(BDD!$BH$2:$BH$3,"M73001 (Banc new P9)FAUXVRAIFAUXFAUXVRAI",BDD!$Z$2:$Z$3) -> 0 | BD91: =SUMIF(BDD!$BH$2:$BH$3,"M73001 (Banc new P9)VRAIFAUXVRAIFAUXFAUX",BDD!$Z$2:$Z$3) -> 0 | BE91: =SUMIF(BDD!$BH$2:$BH$3,"M73001 (Banc new P9)VRAIFAUXFAUXVRAIFAUX",BDD!$Z$2:$Z$3) -> 0 | BF91: =SUMIF(BDD!$BH$2:$BH$3,"M73001 (Banc new P9)VRAIFAUXFAUXFAUXVRAI",BDD!$Z$2:$Z$3) -> 0 | BG91: =SUMIF(BDD!$BH$2:$BH$3,"M73001 (Banc new P9)FAUXVRAIVRAIFAUXFAUX",BDD!$Z$2:$Z$3) -> 0 | BH91: =SUMIF(BDD!$BH$2:$BH$3,"M73001 (Banc new P9)FAUXVRAIFAUXVRAIFAUX",BDD!$Z$2:$Z$3) -> 0 | BI91: =SUMIF(BDD!$BH$2:$BH$3,"M73001 (Banc new P9)FAUXVRAIFAUXFAUXVRAI",BDD!$Z$2:$Z$3) -> 0 | BJ91: =SUMIF(BDD!$BH$2:$BH$3,"M73001 (Banc new P9)VRAIFAUXVRAIFAUXFAUX",BDD!$Z$2:$Z$3) -> 0 | BK91: =SUMIF(BDD!$BH$2:$BH$3,"M73001 (Banc new P9)VRAIFAUXFAUXVRAIFAUX",BDD!$Z$2:$Z$3) -> 0 | BL91: =SUMIF(BDD!$BH$2:$BH$3,"M73001 (Banc new P9)VRAIFAUXFAUXFAUXVRAI",BDD!$Z$2:$Z$3) -> 0 | BM91: =SUMIF(BDD!$BH$2:$BH$3,"M73001 (Banc new P9)FAUXVRAIVRAIFAUXFAUX",BDD!$Z$2:$Z$3) -> 0 | BN91: =SUMIF(BDD!$BH$2:$BH$3,"M73001 (Banc new P9)FAUXVRAIFAUXVRAIFAUX",BDD!$Z$2:$Z$3) -> 0 | BO91: =SUMIF(BDD!$BH$2:$BH$3,"M73001 (Banc new P9)FAUXVRAIFAUXFAUXVRAI",BDD!$Z$2:$Z$3) -> 0 | BP91: =SUMIF(BDD!$BH$2:$BH$3,"M73001 (Banc new P9)VRAIFAUXVRAIFAUXFAUX",BDD!$Z$2:$Z$3) -> 0 | BQ91: =SUMIF(BDD!$BH$2:$BH$3,"M73001 (Banc new P9)VRAIFAUXFAUXVRAIFAUX",BDD!$Z$2:$Z$3) -> 0 | BR91: =SUMIF(BDD!$BH$2:$BH$3,"M73001 (Banc new P9)VRAIFAUXFAUXFAUXVRAI",BDD!$Z$2:$Z$3) -> 0 | BS91: =SUMIF(BDD!$BH$2:$BH$3,"M73001 (Banc new P9)FAUXVRAIVRAIFAUXFAUX",BDD!$Z$2:$Z$3) -> 0 | BT91: =SUMIF(BDD!$BH$2:$BH$3,"M73001 (Banc new P9)FAUXVRAIFAUXVRAIFAUX",BDD!$Z$2:$Z$3) -> 0 | BU91: =SUMIF(BDD!$BH$2:$BH$3,"M73001 (Banc new P9)FAUXVRAIFAUXFAUXVRAI",BDD!$Z$2:$Z$3) -> 0
A92: Banc P1 | B92: =SUMIF(BDD!$BH$2:$BH$3,"Banc P1VRAIFAUXVRAIFAUXFAUX",BDD!$Z$2:$Z$3) -> 0 | C92: =SUMIF(BDD!$BH$2:$BH$3,"Banc P1VRAIFAUXFAUXVRAIFAUX",BDD!$Z$2:$Z$3) -> 0 | D92: =SUMIF(BDD!$BH$2:$BH$3,"Banc P1VRAIFAUXFAUXFAUXVRAI",BDD!$Z$2:$Z$3) -> 0 | E92: =SUMIF(BDD!$BH$2:$BH$3,"Banc P1FAUXVRAIVRAIFAUXFAUX",BDD!$Z$2:$Z$3) -> 0 | F92: =SUMIF(BDD!$BH$2:$BH$3,"Banc P1FAUXVRAIFAUXVRAIFAUX",BDD!$Z$2:$Z$3) -> 0 | G92: =SUMIF(BDD!$BH$2:$BH$3,"Banc P1FAUXVRAIFAUXFAUXVRAI",BDD!$Z$2:$Z$3) -> 0 | H92: =SUMIF(BDD!$BH$2:$BH$3,"Banc P1VRAIFAUXVRAIFAUXFAUX",BDD!$Z$2:$Z$3) -> 0 | I92: =SUMIF(BDD!$BH$2:$BH$3,"Banc P1VRAIFAUXFAUXVRAIFAUX",BDD!$Z$2:$Z$3) -> 0 | J92: =SUMIF(BDD!$BH$2:$BH$3,"Banc P1VRAIFAUXFAUXFAUXVRAI",BDD!$Z$2:$Z$3) -> 0 | K92: =SUMIF(BDD!$BH$2:$BH$3,"Banc P1FAUXVRAIVRAIFAUXFAUX",BDD!$Z$2:$Z$3) -> 0 | L92: =SUMIF(BDD!$BH$2:$BH$3,"Banc P1FAUXVRAIFAUXVRAIFAUX",BDD!$Z$2:$Z$3) -> 0 | M92: =SUMIF(BDD!$BH$2:$BH$3,"Banc P1FAUXVRAIFAUXFAUXVRAI",BDD!$Z$2:$Z$3) -> 0 | N92: =SUMIF(BDD!$BH$2:$BH$683,"Banc P1VRAIFAUXVRAIFAUXFAUX",BDD!$Z$2:$Z$683) -> 0 | O92: =SUMIF(BDD!$BH$2:$BH$683,"Banc P1VRAIFAUXFAUXVRAIFAUX",BDD!$Z$2:$Z$683) -> 0 | P92: =SUMIF(BDD!$BH$2:$BH$683,"Banc P1VRAIFAUXFAUXFAUXVRAI",BDD!$Z$2:$Z$683) -> 0 | Q92: =SUMIF(BDD!$BH$2:$BH$683,"Banc P1FAUXVRAIVRAIFAUXFAUX",BDD!$Z$2:$Z$683) -> 0 | R92: =SUMIF(BDD!$BH$2:$BH$683,"Banc P1FAUXVRAIFAUXVRAIFAUX",BDD!$Z$2:$Z$683) -> 0 | S92: =SUMIF(BDD!$BH$2:$BH$683,"Banc P1FAUXVRAIFAUXFAUXVRAI",BDD!$Z$2:$Z$683) -> 0 | T92: =SUMIF(BDD!$BH$2:$BH$3,"Banc P1VRAIFAUXVRAIFAUXFAUX",BDD!$Z$2:$Z$3) -> 0 | U92: =SUMIF(BDD!$BH$2:$BH$3,"Banc P1VRAIFAUXFAUXVRAIFAUX",BDD!$Z$2:$Z$3) -> 0 | V92: =SUMIF(BDD!$BH$2:$BH$3,"Banc P1VRAIFAUXFAUXFAUXVRAI",BDD!$Z$2:$Z$3) -> 0 | W92: =SUMIF(BDD!$BH$2:$BH$3,"Banc P1FAUXVRAIVRAIFAUXFAUX",BDD!$Z$2:$Z$3) -> 0 | X92: =SUMIF(BDD!$BH$2:$BH$3,"Banc P1FAUXVRAIFAUXVRAIFAUX",BDD!$Z$2:$Z$3) -> 0 | Y92: =SUMIF(BDD!$BH$2:$BH$3,"Banc P1FAUXVRAIFAUXFAUXVRAI",BDD!$Z$2:$Z$3) -> 0 | Z92: =SUMIF(BDD!$BH$2:$BH$3,"Banc P1VRAIFAUXVRAIFAUXFAUX",BDD!$Z$2:$Z$3) -> 0 | AA92: =SUMIF(BDD!$BH$2:$BH$3,"Banc P1VRAIFAUXFAUXVRAIFAUX",BDD!$Z$2:$Z$3) -> 0 | AB92: =SUMIF(BDD!$BH$2:$BH$3,"Banc P1VRAIFAUXFAUXFAUXVRAI",BDD!$Z$2:$Z$3) -> 0 | AC92: =SUMIF(BDD!$BH$2:$BH$3,"Banc P1FAUXVRAIVRAIFAUXFAUX",BDD!$Z$2:$Z$3) -> 0 | AD92: =SUMIF(BDD!$BH$2:$BH$3,"Banc P1FAUXVRAIFAUXVRAIFAUX",BDD!$Z$2:$Z$3) -> 0 | AE92: =SUMIF(BDD!$BH$2:$BH$3,"Banc P1FAUXVRAIFAUXFAUXVRAI",BDD!$Z$2:$Z$3) -> 0 | AF92: =SUMIF(BDD!$BH$2:$BH$3,"Banc P1VRAIFAUXVRAIFAUXFAUX",BDD!$Z$2:$Z$3) -> 0 | AG92: =SUMIF(BDD!$BH$2:$BH$3,"Banc P1VRAIFAUXFAUXVRAIFAUX",BDD!$Z$2:$Z$3) -> 0 | AH92: =SUMIF(BDD!$BH$2:$BH$3,"Banc P1VRAIFAUXFAUXFAUXVRAI",BDD!$Z$2:$Z$3) -> 0 | AI92: =SUMIF(BDD!$BH$2:$BH$3,"Banc P1FAUXVRAIVRAIFAUXFAUX",BDD!$Z$2:$Z$3) -> 0 | AJ92: =SUMIF(BDD!$BH$2:$BH$3,"Banc P1FAUXVRAIFAUXVRAIFAUX",BDD!$Z$2:$Z$3) -> 0 | AK92: =SUMIF(BDD!$BH$2:$BH$3,"Banc P1FAUXVRAIFAUXFAUXVRAI",BDD!$Z$2:$Z$3) -> 0 | AL92: =SUMIF(BDD!$BH$2:$BH$3,"Banc P1VRAIFAUXVRAIFAUXFAUX",BDD!$Z$2:$Z$3) -> 0 | AM92: =SUMIF(BDD!$BH$2:$BH$3,"Banc P1VRAIFAUXFAUXVRAIFAUX",BDD!$Z$2:$Z$3) -> 0 | AN92: =SUMIF(BDD!$BH$2:$BH$3,"Banc P1VRAIFAUXFAUXFAUXVRAI",BDD!$Z$2:$Z$3) -> 0 | AO92: =SUMIF(BDD!$BH$2:$BH$3,"Banc P1FAUXVRAIVRAIFAUXFAUX",BDD!$Z$2:$Z$3) -> 0 | AP92: =SUMIF(BDD!$BH$2:$BH$3,"Banc P1FAUXVRAIFAUXVRAIFAUX",BDD!$Z$2:$Z$3) -> 0 | AQ92: =SUMIF(BDD!$BH$2:$BH$3,"Banc P1FAUXVRAIFAUXFAUXVRAI",BDD!$Z$2:$Z$3) -> 0 | AR92: =SUMIF(BDD!$BH$2:$BH$3,"Banc P1VRAIFAUXVRAIFAUXFAUX",BDD!$Z$2:$Z$3) -> 0 | AS92: =SUMIF(BDD!$BH$2:$BH$3,"Banc P1VRAIFAUXFAUXVRAIFAUX",BDD!$Z$2:$Z$3) -> 0 | AT92: =SUMIF(BDD!$BH$2:$BH$3,"Banc P1VRAIFAUXFAUXFAUXVRAI",BDD!$Z$2:$Z$3) -> 0 | AU92: =SUMIF(BDD!$BH$2:$BH$3,"Banc P1FAUXVRAIVRAIFAUXFAUX",BDD!$Z$2:$Z$3) -> 0 | AV92: =SUMIF(BDD!$BH$2:$BH$3,"Banc P1FAUXVRAIFAUXVRAIFAUX",BDD!$Z$2:$Z$3) -> 0 | AW92: =SUMIF(BDD!$BH$2:$BH$3,"Banc P1FAUXVRAIFAUXFAUXVRAI",BDD!$Z$2:$Z$3) -> 0 | AX92: =SUMIF(BDD!$BH$2:$BH$3,"Banc P1VRAIFAUXVRAIFAUXFAUX",BDD!$Z$2:$Z$3) -> 0 | AY92: =SUMIF(BDD!$BH$2:$BH$3,"Banc P1VRAIFAUXFAUXVRAIFAUX",BDD!$Z$2:$Z$3) -> 0 | AZ92: =SUMIF(BDD!$BH$2:$BH$3,"Banc P1VRAIFAUXFAUXFAUXVRAI",BDD!$Z$2:$Z$3) -> 0 | BA92: =SUMIF(BDD!$BH$2:$BH$3,"Banc P1FAUXVRAIVRAIFAUXFAUX",BDD!$Z$2:$Z$3) -> 0 | BB92: =SUMIF(BDD!$BH$2:$BH$3,"Banc P1FAUXVRAIFAUXVRAIFAUX",BDD!$Z$2:$Z$3) -> 0 | BC92: =SUMIF(BDD!$BH$2:$BH$3,"Banc P1FAUXVRAIFAUXFAUXVRAI",BDD!$Z$2:$Z$3) -> 0 | BD92: =SUMIF(BDD!$BH$2:$BH$3,"Banc P1VRAIFAUXVRAIFAUXFAUX",BDD!$Z$2:$Z$3) -> 0 | BE92: =SUMIF(BDD!$BH$2:$BH$3,"Banc P1VRAIFAUXFAUXVRAIFAUX",BDD!$Z$2:$Z$3) -> 0 | BF92: =SUMIF(BDD!$BH$2:$BH$3,"Banc P1VRAIFAUXFAUXFAUXVRAI",BDD!$Z$2:$Z$3) -> 0 | BG92: =SUMIF(BDD!$BH$2:$BH$3,"Banc P1FAUXVRAIVRAIFAUXFAUX",BDD!$Z$2:$Z$3) -> 0 | BH92: =SUMIF(BDD!$BH$2:$BH$3,"Banc P1FAUXVRAIFAUXVRAIFAUX",BDD!$Z$2:$Z$3) -> 0 | BI92: =SUMIF(BDD!$BH$2:$BH$3,"Banc P1FAUXVRAIFAUXFAUXVRAI",BDD!$Z$2:$Z$3) -> 0 | BJ92: =SUMIF(BDD!$BH$2:$BH$3,"Banc P1VRAIFAUXVRAIFAUXFAUX",BDD!$Z$2:$Z$3) -> 0 | BK92: =SUMIF(BDD!$BH$2:$BH$3,"Banc P1VRAIFAUXFAUXVRAIFAUX",BDD!$Z$2:$Z$3) -> 0 | BL92: =SUMIF(BDD!$BH$2:$BH$3,"Banc P1VRAIFAUXFAUXFAUXVRAI",BDD!$Z$2:$Z$3) -> 0 | BM92: =SUMIF(BDD!$BH$2:$BH$3,"Banc P1FAUXVRAIVRAIFAUXFAUX",BDD!$Z$2:$Z$3) -> 0 | BN92: =SUMIF(BDD!$BH$2:$BH$3,"Banc P1FAUXVRAIFAUXVRAIFAUX",BDD!$Z$2:$Z$3) -> 0 | BO92: =SUMIF(BDD!$BH$2:$BH$3,"Banc P1FAUXVRAIFAUXFAUXVRAI",BDD!$Z$2:$Z$3) -> 0 | BP92: =SUMIF(BDD!$BH$2:$BH$3,"Banc P1VRAIFAUXVRAIFAUXFAUX",BDD!$Z$2:$Z$3) -> 0 | BQ92: =SUMIF(BDD!$BH$2:$BH$3,"Banc P1VRAIFAUXFAUXVRAIFAUX",BDD!$Z$2:$Z$3) -> 0 | BR92: =SUMIF(BDD!$BH$2:$BH$3,"Banc P1VRAIFAUXFAUXFAUXVRAI",BDD!$Z$2:$Z$3) -> 0 | BS92: =SUMIF(BDD!$BH$2:$BH$3,"Banc P1FAUXVRAIVRAIFAUXFAUX",BDD!$Z$2:$Z$3) -> 0 | BT92: =SUMIF(BDD!$BH$2:$BH$3,"Banc P1FAUXVRAIFAUXVRAIFAUX",BDD!$Z$2:$Z$3) -> 0 | BU92: =SUMIF(BDD!$BH$2:$BH$3,"Banc P1FAUXVRAIFAUXFAUXVRAI",BDD!$Z$2:$Z$3) -> 0
A93: Banc P2 | B93: =SUMIF(BDD!$BH$2:$BH$3,"Banc P2VRAIFAUXVRAIFAUXFAUX",BDD!$Z$2:$Z$3) -> 0 | C93: =SUMIF(BDD!$BH$2:$BH$3,"Banc P2VRAIFAUXFAUXVRAIFAUX",BDD!$Z$2:$Z$3) -> 0 | D93: =SUMIF(BDD!$BH$2:$BH$3,"Banc P2VRAIFAUXFAUXFAUXVRAI",BDD!$Z$2:$Z$3) -> 0 | E93: =SUMIF(BDD!$BH$2:$BH$3,"Banc P2FAUXVRAIVRAIFAUXFAUX",BDD!$Z$2:$Z$3) -> 0 | F93: =SUMIF(BDD!$BH$2:$BH$3,"Banc P2FAUXVRAIFAUXVRAIFAUX",BDD!$Z$2:$Z$3) -> 0 | G93: =SUMIF(BDD!$BH$2:$BH$3,"Banc P2FAUXVRAIFAUXFAUXVRAI",BDD!$Z$2:$Z$3) -> 0 | H93: =SUMIF(BDD!$BH$2:$BH$3,"Banc P2VRAIFAUXVRAIFAUXFAUX",BDD!$Z$2:$Z$3) -> 0 | I93: =SUMIF(BDD!$BH$2:$BH$3,"Banc P2VRAIFAUXFAUXVRAIFAUX",BDD!$Z$2:$Z$3) -> 0 | J93: =SUMIF(BDD!$BH$2:$BH$3,"Banc P2VRAIFAUXFAUXFAUXVRAI",BDD!$Z$2:$Z$3) -> 0 | K93: =SUMIF(BDD!$BH$2:$BH$3,"Banc P2FAUXVRAIVRAIFAUXFAUX",BDD!$Z$2:$Z$3) -> 0 | L93: =SUMIF(BDD!$BH$2:$BH$3,"Banc P2FAUXVRAIFAUXVRAIFAUX",BDD!$Z$2:$Z$3) -> 0 | M93: =SUMIF(BDD!$BH$2:$BH$3,"Banc P2FAUXVRAIFAUXFAUXVRAI",BDD!$Z$2:$Z$3) -> 0 | N93: =SUMIF(BDD!$BH$2:$BH$683,"Banc P2VRAIFAUXVRAIFAUXFAUX",BDD!$Z$2:$Z$683) -> 0 | O93: =SUMIF(BDD!$BH$2:$BH$683,"Banc P2VRAIFAUXFAUXVRAIFAUX",BDD!$Z$2:$Z$683) -> 0 | P93: =SUMIF(BDD!$BH$2:$BH$683,"Banc P2VRAIFAUXFAUXFAUXVRAI",BDD!$Z$2:$Z$683) -> 0 | Q93: =SUMIF(BDD!$BH$2:$BH$683,"Banc P2FAUXVRAIVRAIFAUXFAUX",BDD!$Z$2:$Z$683) -> 0 | R93: =SUMIF(BDD!$BH$2:$BH$683,"Banc P2FAUXVRAIFAUXVRAIFAUX",BDD!$Z$2:$Z$683) -> 0 | S93: =SUMIF(BDD!$BH$2:$BH$683,"Banc P2FAUXVRAIFAUXFAUXVRAI",BDD!$Z$2:$Z$683) -> 0 | T93: =SUMIF(BDD!$BH$2:$BH$3,"Banc P2VRAIFAUXVRAIFAUXFAUX",BDD!$Z$2:$Z$3) -> 0 | U93: =SUMIF(BDD!$BH$2:$BH$3,"Banc P2VRAIFAUXFAUXVRAIFAUX",BDD!$Z$2:$Z$3) -> 0 | V93: =SUMIF(BDD!$BH$2:$BH$3,"Banc P2VRAIFAUXFAUXFAUXVRAI",BDD!$Z$2:$Z$3) -> 0 | W93: =SUMIF(BDD!$BH$2:$BH$3,"Banc P2FAUXVRAIVRAIFAUXFAUX",BDD!$Z$2:$Z$3) -> 0 | X93: =SUMIF(BDD!$BH$2:$BH$3,"Banc P2FAUXVRAIFAUXVRAIFAUX",BDD!$Z$2:$Z$3) -> 0 | Y93: =SUMIF(BDD!$BH$2:$BH$3,"Banc P2FAUXVRAIFAUXFAUXVRAI",BDD!$Z$2:$Z$3) -> 0 | Z93: =SUMIF(BDD!$BH$2:$BH$3,"Banc P2VRAIFAUXVRAIFAUXFAUX",BDD!$Z$2:$Z$3) -> 0 | AA93: =SUMIF(BDD!$BH$2:$BH$3,"Banc P2VRAIFAUXFAUXVRAIFAUX",BDD!$Z$2:$Z$3) -> 0 | AB93: =SUMIF(BDD!$BH$2:$BH$3,"Banc P2VRAIFAUXFAUXFAUXVRAI",BDD!$Z$2:$Z$3) -> 0 | AC93: =SUMIF(BDD!$BH$2:$BH$3,"Banc P2FAUXVRAIVRAIFAUXFAUX",BDD!$Z$2:$Z$3) -> 0 | AD93: =SUMIF(BDD!$BH$2:$BH$3,"Banc P2FAUXVRAIFAUXVRAIFAUX",BDD!$Z$2:$Z$3) -> 0 | AE93: =SUMIF(BDD!$BH$2:$BH$3,"Banc P2FAUXVRAIFAUXFAUXVRAI",BDD!$Z$2:$Z$3) -> 0 | AF93: =SUMIF(BDD!$BH$2:$BH$3,"Banc P2VRAIFAUXVRAIFAUXFAUX",BDD!$Z$2:$Z$3) -> 0 | AG93: =SUMIF(BDD!$BH$2:$BH$3,"Banc P2VRAIFAUXFAUXVRAIFAUX",BDD!$Z$2:$Z$3) -> 0 | AH93: =SUMIF(BDD!$BH$2:$BH$3,"Banc P2VRAIFAUXFAUXFAUXVRAI",BDD!$Z$2:$Z$3) -> 0 | AI93: =SUMIF(BDD!$BH$2:$BH$3,"Banc P2FAUXVRAIVRAIFAUXFAUX",BDD!$Z$2:$Z$3) -> 0 | AJ93: =SUMIF(BDD!$BH$2:$BH$3,"Banc P2FAUXVRAIFAUXVRAIFAUX",BDD!$Z$2:$Z$3) -> 0 | AK93: =SUMIF(BDD!$BH$2:$BH$3,"Banc P2FAUXVRAIFAUXFAUXVRAI",BDD!$Z$2:$Z$3) -> 0 | AL93: =SUMIF(BDD!$BH$2:$BH$3,"Banc P2VRAIFAUXVRAIFAUXFAUX",BDD!$Z$2:$Z$3) -> 0 | AM93: =SUMIF(BDD!$BH$2:$BH$3,"Banc P2VRAIFAUXFAUXVRAIFAUX",BDD!$Z$2:$Z$3) -> 0 | AN93: =SUMIF(BDD!$BH$2:$BH$3,"Banc P2VRAIFAUXFAUXFAUXVRAI",BDD!$Z$2:$Z$3) -> 0 | AO93: =SUMIF(BDD!$BH$2:$BH$3,"Banc P2FAUXVRAIVRAIFAUXFAUX",BDD!$Z$2:$Z$3) -> 0 | AP93: =SUMIF(BDD!$BH$2:$BH$3,"Banc P2FAUXVRAIFAUXVRAIFAUX",BDD!$Z$2:$Z$3) -> 0 | AQ93: =SUMIF(BDD!$BH$2:$BH$3,"Banc P2FAUXVRAIFAUXFAUXVRAI",BDD!$Z$2:$Z$3) -> 0 | AR93: =SUMIF(BDD!$BH$2:$BH$3,"Banc P2VRAIFAUXVRAIFAUXFAUX",BDD!$Z$2:$Z$3) -> 0 | AS93: =SUMIF(BDD!$BH$2:$BH$3,"Banc P2VRAIFAUXFAUXVRAIFAUX",BDD!$Z$2:$Z$3) -> 0 | AT93: =SUMIF(BDD!$BH$2:$BH$3,"Banc P2VRAIFAUXFAUXFAUXVRAI",BDD!$Z$2:$Z$3) -> 0 | AU93: =SUMIF(BDD!$BH$2:$BH$3,"Banc P2FAUXVRAIVRAIFAUXFAUX",BDD!$Z$2:$Z$3) -> 0 | AV93: =SUMIF(BDD!$BH$2:$BH$3,"Banc P2FAUXVRAIFAUXVRAIFAUX",BDD!$Z$2:$Z$3) -> 0 | AW93: =SUMIF(BDD!$BH$2:$BH$3,"Banc P2FAUXVRAIFAUXFAUXVRAI",BDD!$Z$2:$Z$3) -> 0 | AX93: =SUMIF(BDD!$BH$2:$BH$3,"Banc P2VRAIFAUXVRAIFAUXFAUX",BDD!$Z$2:$Z$3) -> 0 | AY93: =SUMIF(BDD!$BH$2:$BH$3,"Banc P2VRAIFAUXFAUXVRAIFAUX",BDD!$Z$2:$Z$3) -> 0 | AZ93: =SUMIF(BDD!$BH$2:$BH$3,"Banc P2VRAIFAUXFAUXFAUXVRAI",BDD!$Z$2:$Z$3) -> 0 | BA93: =SUMIF(BDD!$BH$2:$BH$3,"Banc P2FAUXVRAIVRAIFAUXFAUX",BDD!$Z$2:$Z$3) -> 0 | BB93: =SUMIF(BDD!$BH$2:$BH$3,"Banc P2FAUXVRAIFAUXVRAIFAUX",BDD!$Z$2:$Z$3) -> 0 | BC93: =SUMIF(BDD!$BH$2:$BH$3,"Banc P2FAUXVRAIFAUXFAUXVRAI",BDD!$Z$2:$Z$3) -> 0 | BD93: =SUMIF(BDD!$BH$2:$BH$3,"Banc P2VRAIFAUXVRAIFAUXFAUX",BDD!$Z$2:$Z$3) -> 0 | BE93: =SUMIF(BDD!$BH$2:$BH$3,"Banc P2VRAIFAUXFAUXVRAIFAUX",BDD!$Z$2:$Z$3) -> 0 | BF93: =SUMIF(BDD!$BH$2:$BH$3,"Banc P2VRAIFAUXFAUXFAUXVRAI",BDD!$Z$2:$Z$3) -> 0 | BG93: =SUMIF(BDD!$BH$2:$BH$3,"Banc P2FAUXVRAIVRAIFAUXFAUX",BDD!$Z$2:$Z$3) -> 0 | BH93: =SUMIF(BDD!$BH$2:$BH$3,"Banc P2FAUXVRAIFAUXVRAIFAUX",BDD!$Z$2:$Z$3) -> 0 | BI93: =SUMIF(BDD!$BH$2:$BH$3,"Banc P2FAUXVRAIFAUXFAUXVRAI",BDD!$Z$2:$Z$3) -> 0 | BJ93: =SUMIF(BDD!$BH$2:$BH$3,"Banc P2VRAIFAUXVRAIFAUXFAUX",BDD!$Z$2:$Z$3) -> 0 | BK93: =SUMIF(BDD!$BH$2:$BH$3,"Banc P2VRAIFAUXFAUXVRAIFAUX",BDD!$Z$2:$Z$3) -> 0 | BL93: =SUMIF(BDD!$BH$2:$BH$3,"Banc P2VRAIFAUXFAUXFAUXVRAI",BDD!$Z$2:$Z$3) -> 0 | BM93: =SUMIF(BDD!$BH$2:$BH$3,"Banc P2FAUXVRAIVRAIFAUXFAUX",BDD!$Z$2:$Z$3) -> 0 | BN93: =SUMIF(BDD!$BH$2:$BH$3,"Banc P2FAUXVRAIFAUXVRAIFAUX",BDD!$Z$2:$Z$3) -> 0 | BO93: =SUMIF(BDD!$BH$2:$BH$3,"Banc P2FAUXVRAIFAUXFAUXVRAI",BDD!$Z$2:$Z$3) -> 0 | BP93: =SUMIF(BDD!$BH$2:$BH$3,"Banc P2VRAIFAUXVRAIFAUXFAUX",BDD!$Z$2:$Z$3) -> 0 | BQ93: =SUMIF(BDD!$BH$2:$BH$3,"Banc P2VRAIFAUXFAUXVRAIFAUX",BDD!$Z$2:$Z$3) -> 0 | BR93: =SUMIF(BDD!$BH$2:$BH$3,"Banc P2VRAIFAUXFAUXFAUXVRAI",BDD!$Z$2:$Z$3) -> 0 | BS93: =SUMIF(BDD!$BH$2:$BH$3,"Banc P2FAUXVRAIVRAIFAUXFAUX",BDD!$Z$2:$Z$3) -> 0 | BT93: =SUMIF(BDD!$BH$2:$BH$3,"Banc P2FAUXVRAIFAUXVRAIFAUX",BDD!$Z$2:$Z$3) -> 0 | BU93: =SUMIF(BDD!$BH$2:$BH$3,"Banc P2FAUXVRAIFAUXFAUXVRAI",BDD!$Z$2:$Z$3) -> 0
A94: Banc 156 | B94: =SUMIF(BDD!$BH$2:$BH$3,"Banc 156VRAIFAUXVRAIFAUXFAUX",BDD!$Z$2:$Z$3) -> 0 | C94: =SUMIF(BDD!$BH$2:$BH$3,"Banc 156VRAIFAUXFAUXVRAIFAUX",BDD!$Z$2:$Z$3) -> 0 | D94: =SUMIF(BDD!$BH$2:$BH$3,"Banc 156VRAIFAUXFAUXFAUXVRAI",BDD!$Z$2:$Z$3) -> 0 | E94: =SUMIF(BDD!$BH$2:$BH$3,"Banc 156FAUXVRAIVRAIFAUXFAUX",BDD!$Z$2:$Z$3) -> 0 | F94: =SUMIF(BDD!$BH$2:$BH$3,"Banc 156FAUXVRAIFAUXVRAIFAUX",BDD!$Z$2:$Z$3) -> 0 | G94: =SUMIF(BDD!$BH$2:$BH$3,"Banc 156FAUXVRAIFAUXFAUXVRAI",BDD!$Z$2:$Z$3) -> 0 | H94: =SUMIF(BDD!$BH$2:$BH$3,"Banc 156VRAIFAUXVRAIFAUXFAUX",BDD!$Z$2:$Z$3) -> 0 | I94: =SUMIF(BDD!$BH$2:$BH$3,"Banc 156VRAIFAUXFAUXVRAIFAUX",BDD!$Z$2:$Z$3) -> 0 | J94: =SUMIF(BDD!$BH$2:$BH$3,"Banc 156VRAIFAUXFAUXFAUXVRAI",BDD!$Z$2:$Z$3) -> 0 | K94: =SUMIF(BDD!$BH$2:$BH$3,"Banc 156FAUXVRAIVRAIFAUXFAUX",BDD!$Z$2:$Z$3) -> 0 | L94: =SUMIF(BDD!$BH$2:$BH$3,"Banc 156FAUXVRAIFAUXVRAIFAUX",BDD!$Z$2:$Z$3) -> 0 | M94: =SUMIF(BDD!$BH$2:$BH$3,"Banc 156FAUXVRAIFAUXFAUXVRAI",BDD!$Z$2:$Z$3) -> 0 | N94: =SUMIF(BDD!$BH$2:$BH$683,"Banc 156VRAIFAUXVRAIFAUXFAUX",BDD!$Z$2:$Z$683) -> 0 | O94: =SUMIF(BDD!$BH$2:$BH$683,"Banc 156VRAIFAUXFAUXVRAIFAUX",BDD!$Z$2:$Z$683) -> 0 | P94: =SUMIF(BDD!$BH$2:$BH$683,"Banc 156VRAIFAUXFAUXFAUXVRAI",BDD!$Z$2:$Z$683) -> 0 | Q94: =SUMIF(BDD!$BH$2:$BH$683,"Banc 156FAUXVRAIVRAIFAUXFAUX",BDD!$Z$2:$Z$683) -> 0 | R94: =SUMIF(BDD!$BH$2:$BH$683,"Banc 156FAUXVRAIFAUXVRAIFAUX",BDD!$Z$2:$Z$683) -> 0 | S94: =SUMIF(BDD!$BH$2:$BH$683,"Banc 156FAUXVRAIFAUXFAUXVRAI",BDD!$Z$2:$Z$683) -> 0 | T94: =SUMIF(BDD!$BH$2:$BH$3,"Banc 156VRAIFAUXVRAIFAUXFAUX",BDD!$Z$2:$Z$3) -> 0 | U94: =SUMIF(BDD!$BH$2:$BH$3,"Banc 156VRAIFAUXFAUXVRAIFAUX",BDD!$Z$2:$Z$3) -> 0 | V94: =SUMIF(BDD!$BH$2:$BH$3,"Banc 156VRAIFAUXFAUXFAUXVRAI",BDD!$Z$2:$Z$3) -> 0 | W94: =SUMIF(BDD!$BH$2:$BH$3,"Banc 156FAUXVRAIVRAIFAUXFAUX",BDD!$Z$2:$Z$3) -> 0 | X94: =SUMIF(BDD!$BH$2:$BH$3,"Banc 156FAUXVRAIFAUXVRAIFAUX",BDD!$Z$2:$Z$3) -> 0 | Y94: =SUMIF(BDD!$BH$2:$BH$3,"Banc 156FAUXVRAIFAUXFAUXVRAI",BDD!$Z$2:$Z$3) -> 0 | Z94: =SUMIF(BDD!$BH$2:$BH$3,"Banc 156VRAIFAUXVRAIFAUXFAUX",BDD!$Z$2:$Z$3) -> 0 | AA94: =SUMIF(BDD!$BH$2:$BH$3,"Banc 156VRAIFAUXFAUXVRAIFAUX",BDD!$Z$2:$Z$3) -> 0 | AB94: =SUMIF(BDD!$BH$2:$BH$3,"Banc 156VRAIFAUXFAUXFAUXVRAI",BDD!$Z$2:$Z$3) -> 0 | AC94: =SUMIF(BDD!$BH$2:$BH$3,"Banc 156FAUXVRAIVRAIFAUXFAUX",BDD!$Z$2:$Z$3) -> 0 | AD94: =SUMIF(BDD!$BH$2:$BH$3,"Banc 156FAUXVRAIFAUXVRAIFAUX",BDD!$Z$2:$Z$3) -> 0 | AE94: =SUMIF(BDD!$BH$2:$BH$3,"Banc 156FAUXVRAIFAUXFAUXVRAI",BDD!$Z$2:$Z$3) -> 0 | AF94: =SUMIF(BDD!$BH$2:$BH$3,"Banc 156VRAIFAUXVRAIFAUXFAUX",BDD!$Z$2:$Z$3) -> 0 | AG94: =SUMIF(BDD!$BH$2:$BH$3,"Banc 156VRAIFAUXFAUXVRAIFAUX",BDD!$Z$2:$Z$3) -> 0 | AH94: =SUMIF(BDD!$BH$2:$BH$3,"Banc 156VRAIFAUXFAUXFAUXVRAI",BDD!$Z$2:$Z$3) -> 0 | AI94: =SUMIF(BDD!$BH$2:$BH$3,"Banc 156FAUXVRAIVRAIFAUXFAUX",BDD!$Z$2:$Z$3) -> 0 | AJ94: =SUMIF(BDD!$BH$2:$BH$3,"Banc 156FAUXVRAIFAUXVRAIFAUX",BDD!$Z$2:$Z$3) -> 0 | AK94: =SUMIF(BDD!$BH$2:$BH$3,"Banc 156FAUXVRAIFAUXFAUXVRAI",BDD!$Z$2:$Z$3) -> 0 | AL94: =SUMIF(BDD!$BH$2:$BH$3,"Banc 156VRAIFAUXVRAIFAUXFAUX",BDD!$Z$2:$Z$3) -> 0 | AM94: =SUMIF(BDD!$BH$2:$BH$3,"Banc 156VRAIFAUXFAUXVRAIFAUX",BDD!$Z$2:$Z$3) -> 0 | AN94: =SUMIF(BDD!$BH$2:$BH$3,"Banc 156VRAIFAUXFAUXFAUXVRAI",BDD!$Z$2:$Z$3) -> 0 | AO94: =SUMIF(BDD!$BH$2:$BH$3,"Banc 156FAUXVRAIVRAIFAUXFAUX",BDD!$Z$2:$Z$3) -> 0 | AP94: =SUMIF(BDD!$BH$2:$BH$3,"Banc 156FAUXVRAIFAUXVRAIFAUX",BDD!$Z$2:$Z$3) -> 0 | AQ94: =SUMIF(BDD!$BH$2:$BH$3,"Banc 156FAUXVRAIFAUXFAUXVRAI",BDD!$Z$2:$Z$3) -> 0 | AR94: =SUMIF(BDD!$BH$2:$BH$3,"Banc 156VRAIFAUXVRAIFAUXFAUX",BDD!$Z$2:$Z$3) -> 0 | AS94: =SUMIF(BDD!$BH$2:$BH$3,"Banc 156VRAIFAUXFAUXVRAIFAUX",BDD!$Z$2:$Z$3) -> 0 | AT94: =SUMIF(BDD!$BH$2:$BH$3,"Banc 156VRAIFAUXFAUXFAUXVRAI",BDD!$Z$2:$Z$3) -> 0 | AU94: =SUMIF(BDD!$BH$2:$BH$3,"Banc 156FAUXVRAIVRAIFAUXFAUX",BDD!$Z$2:$Z$3) -> 0 | AV94: =SUMIF(BDD!$BH$2:$BH$3,"Banc 156FAUXVRAIFAUXVRAIFAUX",BDD!$Z$2:$Z$3) -> 0 | AW94: =SUMIF(BDD!$BH$2:$BH$3,"Banc 156FAUXVRAIFAUXFAUXVRAI",BDD!$Z$2:$Z$3) -> 0 | AX94: =SUMIF(BDD!$BH$2:$BH$3,"Banc 156VRAIFAUXVRAIFAUXFAUX",BDD!$Z$2:$Z$3) -> 0 | AY94: =SUMIF(BDD!$BH$2:$BH$3,"Banc 156VRAIFAUXFAUXVRAIFAUX",BDD!$Z$2:$Z$3) -> 0 | AZ94: =SUMIF(BDD!$BH$2:$BH$3,"Banc 156VRAIFAUXFAUXFAUXVRAI",BDD!$Z$2:$Z$3) -> 0 | BA94: =SUMIF(BDD!$BH$2:$BH$3,"Banc 156FAUXVRAIVRAIFAUXFAUX",BDD!$Z$2:$Z$3) -> 0 | BB94: =SUMIF(BDD!$BH$2:$BH$3,"Banc 156FAUXVRAIFAUXVRAIFAUX",BDD!$Z$2:$Z$3) -> 0 | BC94: =SUMIF(BDD!$BH$2:$BH$3,"Banc 156FAUXVRAIFAUXFAUXVRAI",BDD!$Z$2:$Z$3) -> 0 | BD94: =SUMIF(BDD!$BH$2:$BH$3,"Banc 156VRAIFAUXVRAIFAUXFAUX",BDD!$Z$2:$Z$3) -> 0 | BE94: =SUMIF(BDD!$BH$2:$BH$3,"Banc 156VRAIFAUXFAUXVRAIFAUX",BDD!$Z$2:$Z$3) -> 0 | BF94: =SUMIF(BDD!$BH$2:$BH$3,"Banc 156VRAIFAUXFAUXFAUXVRAI",BDD!$Z$2:$Z$3) -> 0 | BG94: =SUMIF(BDD!$BH$2:$BH$3,"Banc 156FAUXVRAIVRAIFAUXFAUX",BDD!$Z$2:$Z$3) -> 0 | BH94: =SUMIF(BDD!$BH$2:$BH$3,"Banc 156FAUXVRAIFAUXVRAIFAUX",BDD!$Z$2:$Z$3) -> 0 | BI94: =SUMIF(BDD!$BH$2:$BH$3,"Banc 156FAUXVRAIFAUXFAUXVRAI",BDD!$Z$2:$Z$3) -> 0 | BJ94: =SUMIF(BDD!$BH$2:$BH$3,"Banc 156VRAIFAUXVRAIFAUXFAUX",BDD!$Z$2:$Z$3) -> 0 | BK94: =SUMIF(BDD!$BH$2:$BH$3,"Banc 156VRAIFAUXFAUXVRAIFAUX",BDD!$Z$2:$Z$3) -> 0 | BL94: =SUMIF(BDD!$BH$2:$BH$3,"Banc 156VRAIFAUXFAUXFAUXVRAI",BDD!$Z$2:$Z$3) -> 0 | BM94: =SUMIF(BDD!$BH$2:$BH$3,"Banc 156FAUXVRAIVRAIFAUXFAUX",BDD!$Z$2:$Z$3) -> 0 | BN94: =SUMIF(BDD!$BH$2:$BH$3,"Banc 156FAUXVRAIFAUXVRAIFAUX",BDD!$Z$2:$Z$3) -> 0 | BO94: =SUMIF(BDD!$BH$2:$BH$3,"Banc 156FAUXVRAIFAUXFAUXVRAI",BDD!$Z$2:$Z$3) -> 0 | BP94: =SUMIF(BDD!$BH$2:$BH$3,"Banc 156VRAIFAUXVRAIFAUXFAUX",BDD!$Z$2:$Z$3) -> 0 | BQ94: =SUMIF(BDD!$BH$2:$BH$3,"Banc 156VRAIFAUXFAUXVRAIFAUX",BDD!$Z$2:$Z$3) -> 0 | BR94: =SUMIF(BDD!$BH$2:$BH$3,"Banc 156VRAIFAUXFAUXFAUXVRAI",BDD!$Z$2:$Z$3) -> 0 | BS94: =SUMIF(BDD!$BH$2:$BH$3,"Banc 156FAUXVRAIVRAIFAUXFAUX",BDD!$Z$2:$Z$3) -> 0 | BT94: =SUMIF(BDD!$BH$2:$BH$3,"Banc 156FAUXVRAIFAUXVRAIFAUX",BDD!$Z$2:$Z$3) -> 0 | BU94: =SUMIF(BDD!$BH$2:$BH$3,"Banc 156FAUXVRAIFAUXFAUXVRAI",BDD!$Z$2:$Z$3) -> 0
A95: Chambre Froide | B95: =SUMIF(BDD!$BH$2:$BH$3,"Chambre FroideVRAIFAUXVRAIFAUXFAUX",BDD!$Z$2:$Z$3) -> 0 | C95: =SUMIF(BDD!$BH$2:$BH$3,"Chambre FroideVRAIFAUXFAUXVRAIFAUX",BDD!$Z$2:$Z$3) -> 0 | D95: =SUMIF(BDD!$BH$2:$BH$3,"Chambre FroideVRAIFAUXFAUXFAUXVRAI",BDD!$Z$2:$Z$3) -> 0 | E95: =SUMIF(BDD!$BH$2:$BH$3,"Chambre FroideFAUXVRAIVRAIFAUXFAUX",BDD!$Z$2:$Z$3) -> 0 | F95: =SUMIF(BDD!$BH$2:$BH$3,"Chambre FroideFAUXVRAIFAUXVRAIFAUX",BDD!$Z$2:$Z$3) -> 0 | G95: =SUMIF(BDD!$BH$2:$BH$3,"Chambre FroideFAUXVRAIFAUXFAUXVRAI",BDD!$Z$2:$Z$3) -> 0 | H95: =SUMIF(BDD!$BH$2:$BH$3,"Chambre FroideVRAIFAUXVRAIFAUXFAUX",BDD!$Z$2:$Z$3) -> 0 | I95: =SUMIF(BDD!$BH$2:$BH$3,"Chambre FroideVRAIFAUXFAUXVRAIFAUX",BDD!$Z$2:$Z$3) -> 0 | J95: =SUMIF(BDD!$BH$2:$BH$3,"Chambre FroideVRAIFAUXFAUXFAUXVRAI",BDD!$Z$2:$Z$3) -> 0 | K95: =SUMIF(BDD!$BH$2:$BH$3,"Chambre FroideFAUXVRAIVRAIFAUXFAUX",BDD!$Z$2:$Z$3) -> 0 | L95: =SUMIF(BDD!$BH$2:$BH$3,"Chambre FroideFAUXVRAIFAUXVRAIFAUX",BDD!$Z$2:$Z$3) -> 0 | M95: =SUMIF(BDD!$BH$2:$BH$3,"Chambre FroideFAUXVRAIFAUXFAUXVRAI",BDD!$Z$2:$Z$3) -> 0 | N95: =SUMIF(BDD!$BH$2:$BH$683,"Chambre FroideVRAIFAUXVRAIFAUXFAUX",BDD!$Z$2:$Z$683) -> 0 | O95: =SUMIF(BDD!$BH$2:$BH$683,"Chambre FroideVRAIFAUXFAUXVRAIFAUX",BDD!$Z$2:$Z$683) -> 0 | P95: =SUMIF(BDD!$BH$2:$BH$683,"Chambre FroideVRAIFAUXFAUXFAUXVRAI",BDD!$Z$2:$Z$683) -> 0 | Q95: =SUMIF(BDD!$BH$2:$BH$683,"Chambre FroideFAUXVRAIVRAIFAUXFAUX",BDD!$Z$2:$Z$683) -> 0.3 | R95: =SUMIF(BDD!$BH$2:$BH$683,"Chambre FroideFAUXVRAIFAUXVRAIFAUX",BDD!$Z$2:$Z$683) -> 0 | S95: =SUMIF(BDD!$BH$2:$BH$683,"Chambre FroideFAUXVRAIFAUXFAUXVRAI",BDD!$Z$2:$Z$683) -> 0 | T95: =SUMIF(BDD!$BH$2:$BH$3,"Chambre FroideVRAIFAUXVRAIFAUXFAUX",BDD!$Z$2:$Z$3) -> 0 | U95: =SUMIF(BDD!$BH$2:$BH$3,"Chambre FroideVRAIFAUXFAUXVRAIFAUX",BDD!$Z$2:$Z$3) -> 0 | V95: =SUMIF(BDD!$BH$2:$BH$3,"Chambre FroideVRAIFAUXFAUXFAUXVRAI",BDD!$Z$2:$Z$3) -> 0 | W95: =SUMIF(BDD!$BH$2:$BH$3,"Chambre FroideFAUXVRAIVRAIFAUXFAUX",BDD!$Z$2:$Z$3) -> 0 | X95: =SUMIF(BDD!$BH$2:$BH$3,"Chambre FroideFAUXVRAIFAUXVRAIFAUX",BDD!$Z$2:$Z$3) -> 0 | Y95: =SUMIF(BDD!$BH$2:$BH$3,"Chambre FroideFAUXVRAIFAUXFAUXVRAI",BDD!$Z$2:$Z$3) -> 0 | Z95: =SUMIF(BDD!$BH$2:$BH$3,"Chambre FroideVRAIFAUXVRAIFAUXFAUX",BDD!$Z$2:$Z$3) -> 0 | AA95: =SUMIF(BDD!$BH$2:$BH$3,"Chambre FroideVRAIFAUXFAUXVRAIFAUX",BDD!$Z$2:$Z$3) -> 0 | AB95: =SUMIF(BDD!$BH$2:$BH$3,"Chambre FroideVRAIFAUXFAUXFAUXVRAI",BDD!$Z$2:$Z$3) -> 0 | AC95: =SUMIF(BDD!$BH$2:$BH$3,"Chambre FroideFAUXVRAIVRAIFAUXFAUX",BDD!$Z$2:$Z$3) -> 0 | AD95: =SUMIF(BDD!$BH$2:$BH$3,"Chambre FroideFAUXVRAIFAUXVRAIFAUX",BDD!$Z$2:$Z$3) -> 0 | AE95: =SUMIF(BDD!$BH$2:$BH$3,"Chambre FroideFAUXVRAIFAUXFAUXVRAI",BDD!$Z$2:$Z$3) -> 0 | AF95: =SUMIF(BDD!$BH$2:$BH$3,"Chambre FroideVRAIFAUXVRAIFAUXFAUX",BDD!$Z$2:$Z$3) -> 0 | AG95: =SUMIF(BDD!$BH$2:$BH$3,"Chambre FroideVRAIFAUXFAUXVRAIFAUX",BDD!$Z$2:$Z$3) -> 0 | AH95: =SUMIF(BDD!$BH$2:$BH$3,"Chambre FroideVRAIFAUXFAUXFAUXVRAI",BDD!$Z$2:$Z$3) -> 0 | AI95: =SUMIF(BDD!$BH$2:$BH$3,"Chambre FroideFAUXVRAIVRAIFAUXFAUX",BDD!$Z$2:$Z$3) -> 0 | AJ95: =SUMIF(BDD!$BH$2:$BH$3,"Chambre FroideFAUXVRAIFAUXVRAIFAUX",BDD!$Z$2:$Z$3) -> 0 | AK95: =SUMIF(BDD!$BH$2:$BH$3,"Chambre FroideFAUXVRAIFAUXFAUXVRAI",BDD!$Z$2:$Z$3) -> 0 | AL95: =SUMIF(BDD!$BH$2:$BH$3,"Chambre FroideVRAIFAUXVRAIFAUXFAUX",BDD!$Z$2:$Z$3) -> 0 | AM95: =SUMIF(BDD!$BH$2:$BH$3,"Chambre FroideVRAIFAUXFAUXVRAIFAUX",BDD!$Z$2:$Z$3) -> 0 | AN95: =SUMIF(BDD!$BH$2:$BH$3,"Chambre FroideVRAIFAUXFAUXFAUXVRAI",BDD!$Z$2:$Z$3) -> 0 | AO95: =SUMIF(BDD!$BH$2:$BH$3,"Chambre FroideFAUXVRAIVRAIFAUXFAUX",BDD!$Z$2:$Z$3) -> 0 | AP95: =SUMIF(BDD!$BH$2:$BH$3,"Chambre FroideFAUXVRAIFAUXVRAIFAUX",BDD!$Z$2:$Z$3) -> 0 | AQ95: =SUMIF(BDD!$BH$2:$BH$3,"Chambre FroideFAUXVRAIFAUXFAUXVRAI",BDD!$Z$2:$Z$3) -> 0 | AR95: =SUMIF(BDD!$BH$2:$BH$3,"Chambre FroideVRAIFAUXVRAIFAUXFAUX",BDD!$Z$2:$Z$3) -> 0 | AS95: =SUMIF(BDD!$BH$2:$BH$3,"Chambre FroideVRAIFAUXFAUXVRAIFAUX",BDD!$Z$2:$Z$3) -> 0 | AT95: =SUMIF(BDD!$BH$2:$BH$3,"Chambre FroideVRAIFAUXFAUXFAUXVRAI",BDD!$Z$2:$Z$3) -> 0 | AU95: =SUMIF(BDD!$BH$2:$BH$3,"Chambre FroideFAUXVRAIVRAIFAUXFAUX",BDD!$Z$2:$Z$3) -> 0 | AV95: =SUMIF(BDD!$BH$2:$BH$3,"Chambre FroideFAUXVRAIFAUXVRAIFAUX",BDD!$Z$2:$Z$3) -> 0 | AW95: =SUMIF(BDD!$BH$2:$BH$3,"Chambre FroideFAUXVRAIFAUXFAUXVRAI",BDD!$Z$2:$Z$3) -> 0 | AX95: =SUMIF(BDD!$BH$2:$BH$3,"Chambre FroideVRAIFAUXVRAIFAUXFAUX",BDD!$Z$2:$Z$3) -> 0 | AY95: =SUMIF(BDD!$BH$2:$BH$3,"Chambre FroideVRAIFAUXFAUXVRAIFAUX",BDD!$Z$2:$Z$3) -> 0 | AZ95: =SUMIF(BDD!$BH$2:$BH$3,"Chambre FroideVRAIFAUXFAUXFAUXVRAI",BDD!$Z$2:$Z$3) -> 0 | BA95: =SUMIF(BDD!$BH$2:$BH$3,"Chambre FroideFAUXVRAIVRAIFAUXFAUX",BDD!$Z$2:$Z$3) -> 0 | BB95: =SUMIF(BDD!$BH$2:$BH$3,"Chambre FroideFAUXVRAIFAUXVRAIFAUX",BDD!$Z$2:$Z$3) -> 0 | BC95: =SUMIF(BDD!$BH$2:$BH$3,"Chambre FroideFAUXVRAIFAUXFAUXVRAI",BDD!$Z$2:$Z$3) -> 0 | BD95: =SUMIF(BDD!$BH$2:$BH$3,"Chambre FroideVRAIFAUXVRAIFAUXFAUX",BDD!$Z$2:$Z$3) -> 0 | BE95: =SUMIF(BDD!$BH$2:$BH$3,"Chambre FroideVRAIFAUXFAUXVRAIFAUX",BDD!$Z$2:$Z$3) -> 0 | BF95: =SUMIF(BDD!$BH$2:$BH$3,"Chambre FroideVRAIFAUXFAUXFAUXVRAI",BDD!$Z$2:$Z$3) -> 0 | BG95: =SUMIF(BDD!$BH$2:$BH$3,"Chambre FroideFAUXVRAIVRAIFAUXFAUX",BDD!$Z$2:$Z$3) -> 0 | BH95: =SUMIF(BDD!$BH$2:$BH$3,"Chambre FroideFAUXVRAIFAUXVRAIFAUX",BDD!$Z$2:$Z$3) -> 0 | BI95: =SUMIF(BDD!$BH$2:$BH$3,"Chambre FroideFAUXVRAIFAUXFAUXVRAI",BDD!$Z$2:$Z$3) -> 0 | BJ95: =SUMIF(BDD!$BH$2:$BH$3,"Chambre FroideVRAIFAUXVRAIFAUXFAUX",BDD!$Z$2:$Z$3) -> 0 | BK95: =SUMIF(BDD!$BH$2:$BH$3,"Chambre FroideVRAIFAUXFAUXVRAIFAUX",BDD!$Z$2:$Z$3) -> 0 | BL95: =SUMIF(BDD!$BH$2:$BH$3,"Chambre FroideVRAIFAUXFAUXFAUXVRAI",BDD!$Z$2:$Z$3) -> 0 | BM95: =SUMIF(BDD!$BH$2:$BH$3,"Chambre FroideFAUXVRAIVRAIFAUXFAUX",BDD!$Z$2:$Z$3) -> 0 | BN95: =SUMIF(BDD!$BH$2:$BH$3,"Chambre FroideFAUXVRAIFAUXVRAIFAUX",BDD!$Z$2:$Z$3) -> 0 | BO95: =SUMIF(BDD!$BH$2:$BH$3,"Chambre FroideFAUXVRAIFAUXFAUXVRAI",BDD!$Z$2:$Z$3) -> 0 | BP95: =SUMIF(BDD!$BH$2:$BH$3,"Chambre FroideVRAIFAUXVRAIFAUXFAUX",BDD!$Z$2:$Z$3) -> 0 | BQ95: =SUMIF(BDD!$BH$2:$BH$3,"Chambre FroideVRAIFAUXFAUXVRAIFAUX",BDD!$Z$2:$Z$3) -> 0 | BR95: =SUMIF(BDD!$BH$2:$BH$3,"Chambre FroideVRAIFAUXFAUXFAUXVRAI",BDD!$Z$2:$Z$3) -> 0 | BS95: =SUMIF(BDD!$BH$2:$BH$3,"Chambre FroideFAUXVRAIVRAIFAUXFAUX",BDD!$Z$2:$Z$3) -> 0 | BT95: =SUMIF(BDD!$BH$2:$BH$3,"Chambre FroideFAUXVRAIFAUXVRAIFAUX",BDD!$Z$2:$Z$3) -> 0 | BU95: =SUMIF(BDD!$BH$2:$BH$3,"Chambre FroideFAUXVRAIFAUXFAUXVRAI",BDD!$Z$2:$Z$3) -> 0
A96: Chambre Sourde | B96: =SUMIF(BDD!$BH$2:$BH$3,"Chambre SourdeVRAIFAUXVRAIFAUXFAUX",BDD!$Z$2:$Z$3) -> 0 | C96: =SUMIF(BDD!$BH$2:$BH$3,"Chambre SourdeVRAIFAUXFAUXVRAIFAUX",BDD!$Z$2:$Z$3) -> 0 | D96: =SUMIF(BDD!$BH$2:$BH$3,"Chambre SourdeVRAIFAUXFAUXFAUXVRAI",BDD!$Z$2:$Z$3) -> 0 | E96: =SUMIF(BDD!$BH$2:$BH$3,"Chambre SourdeFAUXVRAIVRAIFAUXFAUX",BDD!$Z$2:$Z$3) -> 0 | F96: =SUMIF(BDD!$BH$2:$BH$3,"Chambre SourdeFAUXVRAIFAUXVRAIFAUX",BDD!$Z$2:$Z$3) -> 0 | G96: =SUMIF(BDD!$BH$2:$BH$3,"Chambre SourdeFAUXVRAIFAUXFAUXVRAI",BDD!$Z$2:$Z$3) -> 0 | H96: =SUMIF(BDD!$BH$2:$BH$3,"Chambre SourdeVRAIFAUXVRAIFAUXFAUX",BDD!$Z$2:$Z$3) -> 0 | I96: =SUMIF(BDD!$BH$2:$BH$3,"Chambre SourdeVRAIFAUXFAUXVRAIFAUX",BDD!$Z$2:$Z$3) -> 0 | J96: =SUMIF(BDD!$BH$2:$BH$3,"Chambre SourdeVRAIFAUXFAUXFAUXVRAI",BDD!$Z$2:$Z$3) -> 0 | K96: =SUMIF(BDD!$BH$2:$BH$3,"Chambre SourdeFAUXVRAIVRAIFAUXFAUX",BDD!$Z$2:$Z$3) -> 0 | L96: =SUMIF(BDD!$BH$2:$BH$3,"Chambre SourdeFAUXVRAIFAUXVRAIFAUX",BDD!$Z$2:$Z$3) -> 0 | M96: =SUMIF(BDD!$BH$2:$BH$3,"Chambre SourdeFAUXVRAIFAUXFAUXVRAI",BDD!$Z$2:$Z$3) -> 0 | N96: =SUMIF(BDD!$BH$2:$BH$683,"Chambre SourdeVRAIFAUXVRAIFAUXFAUX",BDD!$Z$2:$Z$683) -> 0 | O96: =SUMIF(BDD!$BH$2:$BH$683,"Chambre SourdeVRAIFAUXFAUXVRAIFAUX",BDD!$Z$2:$Z$683) -> 0 | P96: =SUMIF(BDD!$BH$2:$BH$683,"Chambre SourdeVRAIFAUXFAUXFAUXVRAI",BDD!$Z$2:$Z$683) -> 0 | Q96: =SUMIF(BDD!$BH$2:$BH$683,"Chambre SourdeFAUXVRAIVRAIFAUXFAUX",BDD!$Z$2:$Z$683) -> 0 | R96: =SUMIF(BDD!$BH$2:$BH$683,"Chambre SourdeFAUXVRAIFAUXVRAIFAUX",BDD!$Z$2:$Z$683) -> 0 | S96: =SUMIF(BDD!$BH$2:$BH$683,"Chambre SourdeFAUXVRAIFAUXFAUXVRAI",BDD!$Z$2:$Z$683) -> 0 | T96: =SUMIF(BDD!$BH$2:$BH$3,"Chambre SourdeVRAIFAUXVRAIFAUXFAUX",BDD!$Z$2:$Z$3) -> 0 | U96: =SUMIF(BDD!$BH$2:$BH$3,"Chambre SourdeVRAIFAUXFAUXVRAIFAUX",BDD!$Z$2:$Z$3) -> 0 | V96: =SUMIF(BDD!$BH$2:$BH$3,"Chambre SourdeVRAIFAUXFAUXFAUXVRAI",BDD!$Z$2:$Z$3) -> 0 | W96: =SUMIF(BDD!$BH$2:$BH$3,"Chambre SourdeFAUXVRAIVRAIFAUXFAUX",BDD!$Z$2:$Z$3) -> 0 | X96: =SUMIF(BDD!$BH$2:$BH$3,"Chambre SourdeFAUXVRAIFAUXVRAIFAUX",BDD!$Z$2:$Z$3) -> 0 | Y96: =SUMIF(BDD!$BH$2:$BH$3,"Chambre SourdeFAUXVRAIFAUXFAUXVRAI",BDD!$Z$2:$Z$3) -> 0 | Z96: =SUMIF(BDD!$BH$2:$BH$3,"Chambre SourdeVRAIFAUXVRAIFAUXFAUX",BDD!$Z$2:$Z$3) -> 0 | AA96: =SUMIF(BDD!$BH$2:$BH$3,"Chambre SourdeVRAIFAUXFAUXVRAIFAUX",BDD!$Z$2:$Z$3) -> 0 | AB96: =SUMIF(BDD!$BH$2:$BH$3,"Chambre SourdeVRAIFAUXFAUXFAUXVRAI",BDD!$Z$2:$Z$3) -> 0 | AC96: =SUMIF(BDD!$BH$2:$BH$3,"Chambre SourdeFAUXVRAIVRAIFAUXFAUX",BDD!$Z$2:$Z$3) -> 0 | AD96: =SUMIF(BDD!$BH$2:$BH$3,"Chambre SourdeFAUXVRAIFAUXVRAIFAUX",BDD!$Z$2:$Z$3) -> 0 | AE96: =SUMIF(BDD!$BH$2:$BH$3,"Chambre SourdeFAUXVRAIFAUXFAUXVRAI",BDD!$Z$2:$Z$3) -> 0 | AF96: =SUMIF(BDD!$BH$2:$BH$3,"Chambre SourdeVRAIFAUXVRAIFAUXFAUX",BDD!$Z$2:$Z$3) -> 0 | AG96: =SUMIF(BDD!$BH$2:$BH$3,"Chambre SourdeVRAIFAUXFAUXVRAIFAUX",BDD!$Z$2:$Z$3) -> 0 | AH96: =SUMIF(BDD!$BH$2:$BH$3,"Chambre SourdeVRAIFAUXFAUXFAUXVRAI",BDD!$Z$2:$Z$3) -> 0 | AI96: =SUMIF(BDD!$BH$2:$BH$3,"Chambre SourdeFAUXVRAIVRAIFAUXFAUX",BDD!$Z$2:$Z$3) -> 0 | AJ96: =SUMIF(BDD!$BH$2:$BH$3,"Chambre SourdeFAUXVRAIFAUXVRAIFAUX",BDD!$Z$2:$Z$3) -> 0 | AK96: =SUMIF(BDD!$BH$2:$BH$3,"Chambre SourdeFAUXVRAIFAUXFAUXVRAI",BDD!$Z$2:$Z$3) -> 0 | AL96: =SUMIF(BDD!$BH$2:$BH$3,"Chambre SourdeVRAIFAUXVRAIFAUXFAUX",BDD!$Z$2:$Z$3) -> 0 | AM96: =SUMIF(BDD!$BH$2:$BH$3,"Chambre SourdeVRAIFAUXFAUXVRAIFAUX",BDD!$Z$2:$Z$3) -> 0 | AN96: =SUMIF(BDD!$BH$2:$BH$3,"Chambre SourdeVRAIFAUXFAUXFAUXVRAI",BDD!$Z$2:$Z$3) -> 0 | AO96: =SUMIF(BDD!$BH$2:$BH$3,"Chambre SourdeFAUXVRAIVRAIFAUXFAUX",BDD!$Z$2:$Z$3) -> 0 | AP96: =SUMIF(BDD!$BH$2:$BH$3,"Chambre SourdeFAUXVRAIFAUXVRAIFAUX",BDD!$Z$2:$Z$3) -> 0 | AQ96: =SUMIF(BDD!$BH$2:$BH$3,"Chambre SourdeFAUXVRAIFAUXFAUXVRAI",BDD!$Z$2:$Z$3) -> 0 | AR96: =SUMIF(BDD!$BH$2:$BH$3,"Chambre SourdeVRAIFAUXVRAIFAUXFAUX",BDD!$Z$2:$Z$3) -> 0 | AS96: =SUMIF(BDD!$BH$2:$BH$3,"Chambre SourdeVRAIFAUXFAUXVRAIFAUX",BDD!$Z$2:$Z$3) -> 0 | AT96: =SUMIF(BDD!$BH$2:$BH$3,"Chambre SourdeVRAIFAUXFAUXFAUXVRAI",BDD!$Z$2:$Z$3) -> 0 | AU96: =SUMIF(BDD!$BH$2:$BH$3,"Chambre SourdeFAUXVRAIVRAIFAUXFAUX",BDD!$Z$2:$Z$3) -> 0 | AV96: =SUMIF(BDD!$BH$2:$BH$3,"Chambre SourdeFAUXVRAIFAUXVRAIFAUX",BDD!$Z$2:$Z$3) -> 0 | AW96: =SUMIF(BDD!$BH$2:$BH$3,"Chambre SourdeFAUXVRAIFAUXFAUXVRAI",BDD!$Z$2:$Z$3) -> 0 | AX96: =SUMIF(BDD!$BH$2:$BH$3,"Chambre SourdeVRAIFAUXVRAIFAUXFAUX",BDD!$Z$2:$Z$3) -> 0 | AY96: =SUMIF(BDD!$BH$2:$BH$3,"Chambre SourdeVRAIFAUXFAUXVRAIFAUX",BDD!$Z$2:$Z$3) -> 0 | AZ96: =SUMIF(BDD!$BH$2:$BH$3,"Chambre SourdeVRAIFAUXFAUXFAUXVRAI",BDD!$Z$2:$Z$3) -> 0 | BA96: =SUMIF(BDD!$BH$2:$BH$3,"Chambre SourdeFAUXVRAIVRAIFAUXFAUX",BDD!$Z$2:$Z$3) -> 0 | BB96: =SUMIF(BDD!$BH$2:$BH$3,"Chambre SourdeFAUXVRAIFAUXVRAIFAUX",BDD!$Z$2:$Z$3) -> 0 | BC96: =SUMIF(BDD!$BH$2:$BH$3,"Chambre SourdeFAUXVRAIFAUXFAUXVRAI",BDD!$Z$2:$Z$3) -> 0 | BD96: =SUMIF(BDD!$BH$2:$BH$3,"Chambre SourdeVRAIFAUXVRAIFAUXFAUX",BDD!$Z$2:$Z$3) -> 0 | BE96: =SUMIF(BDD!$BH$2:$BH$3,"Chambre SourdeVRAIFAUXFAUXVRAIFAUX",BDD!$Z$2:$Z$3) -> 0 | BF96: =SUMIF(BDD!$BH$2:$BH$3,"Chambre SourdeVRAIFAUXFAUXFAUXVRAI",BDD!$Z$2:$Z$3) -> 0 | BG96: =SUMIF(BDD!$BH$2:$BH$3,"Chambre SourdeFAUXVRAIVRAIFAUXFAUX",BDD!$Z$2:$Z$3) -> 0 | BH96: =SUMIF(BDD!$BH$2:$BH$3,"Chambre SourdeFAUXVRAIFAUXVRAIFAUX",BDD!$Z$2:$Z$3) -> 0 | BI96: =SUMIF(BDD!$BH$2:$BH$3,"Chambre SourdeFAUXVRAIFAUXFAUXVRAI",BDD!$Z$2:$Z$3) -> 0 | BJ96: =SUMIF(BDD!$BH$2:$BH$3,"Chambre SourdeVRAIFAUXVRAIFAUXFAUX",BDD!$Z$2:$Z$3) -> 0 | BK96: =SUMIF(BDD!$BH$2:$BH$3,"Chambre SourdeVRAIFAUXFAUXVRAIFAUX",BDD!$Z$2:$Z$3) -> 0 | BL96: =SUMIF(BDD!$BH$2:$BH$3,"Chambre SourdeVRAIFAUXFAUXFAUXVRAI",BDD!$Z$2:$Z$3) -> 0 | BM96: =SUMIF(BDD!$BH$2:$BH$3,"Chambre SourdeFAUXVRAIVRAIFAUXFAUX",BDD!$Z$2:$Z$3) -> 0 | BN96: =SUMIF(BDD!$BH$2:$BH$3,"Chambre SourdeFAUXVRAIFAUXVRAIFAUX",BDD!$Z$2:$Z$3) -> 0 | BO96: =SUMIF(BDD!$BH$2:$BH$3,"Chambre SourdeFAUXVRAIFAUXFAUXVRAI",BDD!$Z$2:$Z$3) -> 0 | BP96: =SUMIF(BDD!$BH$2:$BH$3,"Chambre SourdeVRAIFAUXVRAIFAUXFAUX",BDD!$Z$2:$Z$3) -> 0 | BQ96: =SUMIF(BDD!$BH$2:$BH$3,"Chambre SourdeVRAIFAUXFAUXVRAIFAUX",BDD!$Z$2:$Z$3) -> 0 | BR96: =SUMIF(BDD!$BH$2:$BH$3,"Chambre SourdeVRAIFAUXFAUXFAUXVRAI",BDD!$Z$2:$Z$3) -> 0 | BS96: =SUMIF(BDD!$BH$2:$BH$3,"Chambre SourdeFAUXVRAIVRAIFAUXFAUX",BDD!$Z$2:$Z$3) -> 0 | BT96: =SUMIF(BDD!$BH$2:$BH$3,"Chambre SourdeFAUXVRAIFAUXVRAIFAUX",BDD!$Z$2:$Z$3) -> 0 | BU96: =SUMIF(BDD!$BH$2:$BH$3,"Chambre SourdeFAUXVRAIFAUXFAUXVRAI",BDD!$Z$2:$Z$3) -> 0

Sheet Indicateur Zone8
B2: Suivi des arrêts par banc
A3: Banc zone 8 | B3: Janvier | C3: Février | D3: Mars | E3: Avril | F3: Mai | G3: Juin | H3: Juillet | I3: Août | J3: Septembre | K3: Octobre | L3: Novembre | M3: Décembre
A4: Banc P5 | B4: =SUMIF(BDD!$H$2:$H$3,'Indicateur Zone8'!$A4,BDD!$Z$2:$Z$3) -> 0 | C4: =SUMIF(BDD!$H$2:$H$3,'Indicateur Zone8'!$A4,BDD!$Z$2:$Z$3) -> 0 | D4: =SUMIF(BDD!$H$2:$H$683,'Indicateur Zone8'!$A$4,BDD!$Z$2:$Z$683) -> 0 | E4: =SUMIF(BDD!$H$2:$H$3,'Indicateur Zone8'!$A4,BDD!$Z$2:$Z$3) -> 0 | F4: =SUMIF(BDD!$H$2:$H$3,'Indicateur Zone8'!$A4,BDD!$Z$2:$Z$3) -> 0 | G4: =SUMIF(BDD!$H$2:$H$3,'Indicateur Zone8'!$A4,BDD!$Z$2:$Z$3) -> 0 | H4: =SUMIF(BDD!$H$2:$H$3,'Indicateur Zone8'!$A4,BDD!$Z$2:$Z$3) -> 0 | I4: =SUMIF(BDD!$H$2:$H$3,'Indicateur Zone8'!$A4,BDD!$Z$2:$Z$3) -> 0 | J4: =SUMIF(BDD!$H$2:$H$3,'Indicateur Zone8'!$A4,BDD!$Z$2:$Z$3) -> 0 | K4: =SUMIF(BDD!$H$2:$H$3,'Indicateur Zone8'!$A4,BDD!$Z$2:$Z$3) -> 0 | L4: =SUMIF(BDD!$H$2:$H$3,'Indicateur Zone8'!$A4,BDD!$Z$2:$Z$3) -> 0 | M4: =SUMIF(BDD!$H$2:$H$3,'Indicateur Zone8'!$A4,BDD!$Z$2:$Z$3) -> 0
A5: Banc P7 | B5: =SUMIF(BDD!$H$2:$H$3,'Indicateur Zone8'!$A5,BDD!$Z$2:$Z$3) -> 0 | C5: =SUMIF(BDD!$H$2:$H$3,'Indicateur Zone8'!$A5,BDD!$Z$2:$Z$3) -> 0 | D5: =SUMIF(BDD!$H$2:$H$683,'Indicateur Zone8'!$A$5,BDD!$Z$2:$Z$683) -> 0.15 | E5: =SUMIF(BDD!$H$2:$H$3,'Indicateur Zone8'!$A5,BDD!$Z$2:$Z$3) -> 0 | F5: =SUMIF(BDD!$H$2:$H$3,'Indicateur Zone8'!$A5,BDD!$Z$2:$Z$3) -> 0 | G5: =SUMIF(BDD!$H$2:$H$3,'Indicateur Zone8'!$A5,BDD!$Z$2:$Z$3) -> 0 | H5: =SUMIF(BDD!$H$2:$H$3,'Indicateur Zone8'!$A5,BDD!$Z$2:$Z$3) -> 0 | I5: =SUMIF(BDD!$H$2:$H$3,'Indicateur Zone8'!$A5,BDD!$Z$2:$Z$3) -> 0 | J5: =SUMIF(BDD!$H$2:$H$3,'Indicateur Zone8'!$A5,BDD!$Z$2:$Z$3) -> 0 | K5: =SUMIF(BDD!$H$2:$H$3,'Indicateur Zone8'!$A5,BDD!$Z$2:$Z$3) -> 0 | L5: =SUMIF(BDD!$H$2:$H$3,'Indicateur Zone8'!$A5,BDD!$Z$2:$Z$3) -> 0 | M5: =SUMIF(BDD!$H$2:$H$3,'Indicateur Zone8'!$A5,BDD!$Z$2:$Z$3) -> 0
A6: Banc 101 | B6: =SUMIF(BDD!$H$2:$H$3,'Indicateur Zone8'!$A6,BDD!$Z$2:$Z$3) -> 0 | C6: =SUMIF(BDD!$H$2:$H$3,'Indicateur Zone8'!$A6,BDD!$Z$2:$Z$3) -> 0 | D6: =SUMIF(BDD!$H$2:$H$683,'Indicateur Zone8'!$A$6,BDD!$Z$2:$Z$683) -> 0.1 | E6: =SUMIF(BDD!$H$2:$H$3,'Indicateur Zone8'!$A6,BDD!$Z$2:$Z$3) -> 0 | F6: =SUMIF(BDD!$H$2:$H$3,'Indicateur Zone8'!$A6,BDD!$Z$2:$Z$3) -> 0 | G6: =SUMIF(BDD!$H$2:$H$3,'Indicateur Zone8'!$A6,BDD!$Z$2:$Z$3) -> 0 | H6: =SUMIF(BDD!$H$2:$H$3,'Indicateur Zone8'!$A6,BDD!$Z$2:$Z$3) -> 0 | I6: =SUMIF(BDD!$H$2:$H$3,'Indicateur Zone8'!$A6,BDD!$Z$2:$Z$3) -> 0 | J6: =SUMIF(BDD!$H$2:$H$3,'Indicateur Zone8'!$A6,BDD!$Z$2:$Z$3) -> 0 | K6: =SUMIF(BDD!$H$2:$H$3,'Indicateur Zone8'!$A6,BDD!$Z$2:$Z$3) -> 0 | L6: =SUMIF(BDD!$H$2:$H$3,'Indicateur Zone8'!$A6,BDD!$Z$2:$Z$3) -> 0 | M6: =SUMIF(BDD!$H$2:$H$3,'Indicateur Zone8'!$A6,BDD!$Z$2:$Z$3) -> 0
A7: Banc 104 | B7: =SUMIF(BDD!$H$2:$H$3,'Indicateur Zone8'!$A7,BDD!$Z$2:$Z$3) -> 0 | C7: =SUMIF(BDD!$H$2:$H$3,'Indicateur Zone8'!$A7,BDD!$Z$2:$Z$3) -> 0 | D7: =SUMIF(BDD!$H$2:$H$683,'Indicateur Zone8'!$A$7,BDD!$Z$2:$Z$683) -> 3.1 | E7: =SUMIF(BDD!$H$2:$H$3,'Indicateur Zone8'!$A7,BDD!$Z$2:$Z$3) -> 0 | F7: =SUMIF(BDD!$H$2:$H$3,'Indicateur Zone8'!$A7,BDD!$Z$2:$Z$3) -> 0 | G7: =SUMIF(BDD!$H$2:$H$3,'Indicateur Zone8'!$A7,BDD!$Z$2:$Z$3) -> 0 | H7: =SUMIF(BDD!$H$2:$H$3,'Indicateur Zone8'!$A7,BDD!$Z$2:$Z$3) -> 0 | I7: =SUMIF(BDD!$H$2:$H$3,'Indicateur Zone8'!$A7,BDD!$Z$2:$Z$3) -> 0 | J7: =SUMIF(BDD!$H$2:$H$3,'Indicateur Zone8'!$A7,BDD!$Z$2:$Z$3) -> 0 | K7: =SUMIF(BDD!$H$2:$H$3,'Indicateur Zone8'!$A7,BDD!$Z$2:$Z$3) -> 0 | L7: =SUMIF(BDD!$H$2:$H$3,'Indicateur Zone8'!$A7,BDD!$Z$2:$Z$3) -> 0 | M7: =SUMIF(BDD!$H$2:$H$3,'Indicateur Zone8'!$A7,BDD!$Z$2:$Z$3) -> 0
A8: Banc 121 | B8: =SUMIF(BDD!$H$2:$H$3,'Indicateur Zone8'!$A8,BDD!$Z$2:$Z$3) -> 0 | C8: =SUMIF(BDD!$H$2:$H$3,'Indicateur Zone8'!$A8,BDD!$Z$2:$Z$3) -> 0 | D8: =SUMIF(BDD!$H$2:$H$683,'Indicateur Zone8'!$A$8,BDD!$Z$2:$Z$683) -> 0 | E8: =SUMIF(BDD!$H$2:$H$3,'Indicateur Zone8'!$A8,BDD!$Z$2:$Z$3) -> 0 | F8: =SUMIF(BDD!$H$2:$H$3,'Indicateur Zone8'!$A8,BDD!$Z$2:$Z$3) -> 0 | G8: =SUMIF(BDD!$H$2:$H$3,'Indicateur Zone8'!$A8,BDD!$Z$2:$Z$3) -> 0 | H8: =SUMIF(BDD!$H$2:$H$3,'Indicateur Zone8'!$A8,BDD!$Z$2:$Z$3) -> 0 | I8: =SUMIF(BDD!$H$2:$H$3,'Indicateur Zone8'!$A8,BDD!$Z$2:$Z$3) -> 0 | J8: =SUMIF(BDD!$H$2:$H$3,'Indicateur Zone8'!$A8,BDD!$Z$2:$Z$3) -> 0 | K8: =SUMIF(BDD!$H$2:$H$3,'Indicateur Zone8'!$A8,BDD!$Z$2:$Z$3) -> 0 | L8: =SUMIF(BDD!$H$2:$H$3,'Indicateur Zone8'!$A8,BDD!$Z$2:$Z$3) -> 0 | M8: =SUMIF(BDD!$H$2:$H$3,'Indicateur Zone8'!$A8,BDD!$Z$2:$Z$3) -> 0
A9: Pompe à eau | B9: =SUMIF(BDD!$H$2:$H$3,'Indicateur Zone8'!$A9,BDD!$Z$2:$Z$3) -> 0 | C9: =SUMIF(BDD!$H$2:$H$3,'Indicateur Zone8'!$A9,BDD!$Z$2:$Z$3) -> 0 | D9: =SUMIF(BDD!$H$2:$H$683,'Indicateur Zone8'!$A$9,BDD!$Z$2:$Z$683) -> 2.3 | E9: =SUMIF(BDD!$H$2:$H$3,'Indicateur Zone8'!$A9,BDD!$Z$2:$Z$3) -> 0 | F9: =SUMIF(BDD!$H$2:$H$3,'Indicateur Zone8'!$A9,BDD!$Z$2:$Z$3) -> 0 | G9: =SUMIF(BDD!$H$2:$H$3,'Indicateur Zone8'!$A9,BDD!$Z$2:$Z$3) -> 0 | H9: =SUMIF(BDD!$H$2:$H$3,'Indicateur Zone8'!$A9,BDD!$Z$2:$Z$3) -> 0 | I9: =SUMIF(BDD!$H$2:$H$3,'Indicateur Zone8'!$A9,BDD!$Z$2:$Z$3) -> 0 | J9: =SUMIF(BDD!$H$2:$H$3,'Indicateur Zone8'!$A9,BDD!$Z$2:$Z$3) -> 0 | K9: =SUMIF(BDD!$H$2:$H$3,'Indicateur Zone8'!$A9,BDD!$Z$2:$Z$3) -> 0 | L9: =SUMIF(BDD!$H$2:$H$3,'Indicateur Zone8'!$A9,BDD!$Z$2:$Z$3) -> 0 | M9: =SUMIF(BDD!$H$2:$H$3,'Indicateur Zone8'!$A9,BDD!$Z$2:$Z$3) -> 0
A10: Banc PowerTrain | B10: =SUMIF(BDD!$H$2:$H$3,'Indicateur Zone8'!$A10,BDD!$Z$2:$Z$3) -> 0 | C10: =SUMIF(BDD!$H$2:$H$3,'Indicateur Zone8'!$A10,BDD!$Z$2:$Z$3) -> 0 | D10: =SUMIF(BDD!$H$2:$H$683,'Indicateur Zone8'!$A$10,BDD!$Z$2:$Z$683) -> 0 | E10: =SUMIF(BDD!$H$2:$H$3,'Indicateur Zone8'!$A10,BDD!$Z$2:$Z$3) -> 0 | F10: =SUMIF(BDD!$H$2:$H$3,'Indicateur Zone8'!$A10,BDD!$Z$2:$Z$3) -> 0 | G10: =SUMIF(BDD!$H$2:$H$3,'Indicateur Zone8'!$A10,BDD!$Z$2:$Z$3) -> 0 | H10: =SUMIF(BDD!$H$2:$H$3,'Indicateur Zone8'!$A10,BDD!$Z$2:$Z$3) -> 0 | I10: =SUMIF(BDD!$H$2:$H$3,'Indicateur Zone8'!$A10,BDD!$Z$2:$Z$3) -> 0 | J10: =SUMIF(BDD!$H$2:$H$3,'Indicateur Zone8'!$A10,BDD!$Z$2:$Z$3) -> 0 | K10: =SUMIF(BDD!$H$2:$H$3,'Indicateur Zone8'!$A10,BDD!$Z$2:$Z$3) -> 0 | L10: =SUMIF(BDD!$H$2:$H$3,'Indicateur Zone8'!$A10,BDD!$Z$2:$Z$3) -> 0 | M10: =SUMIF(BDD!$H$2:$H$3,'Indicateur Zone8'!$A10,BDD!$Z$2:$Z$3) -> 0
B31: Suivi du correctif et du préventif
A32: Type de maintenance | B32: Janvier | C32: Février | D32: Mars | E32: Avril | F32: Mai | G32: Juin | H32: Juillet | I32: Août | J32: Septembre | K32: Octobre | L32: Novembre | M32: Décembre
A33: Préventive | B33: =SUM(C58:C64) -> 0 | C33: =SUM(E58:E64) -> 0 | D33: =SUM(G58:G64) -> 1.1 | E33: =SUM(I58:I64) -> 0 | F33: =SUM(K58:K64) -> 0 | G33: =SUM(M58:M64) -> 0 | H33: =SUM(O58:O64) -> 0 | I33: =SUM(Q58:Q64) -> 0 | J33: =SUM(S58:S64) -> 0 | K33: =SUM(U58:U64) -> 0 | L33: =SUM(W58:W64) -> 0 | M33: =SUM(Y58:Y64) -> 0
A34: Corrective | B34: =SUM(B58:B64) -> 0 | C34: =SUM(D58:D64) -> 0 | D34: =SUM(F58:F64) -> 3.25 | E34: =SUM(H58:H64) -> 0 | F34: =SUM(J58:J64) -> 0 | G34: =SUM(L58:L64) -> 0 | H34: =SUM(N58:N64) -> 0 | I34: =SUM(N58:N64) -> 0 | J34: =SUM(R58:R64) -> 0 | K34: =SUM(T58:T64) -> 0 | L34: =SUM(V58:V64) -> 0 | M34: =SUM(X58:X64) -> 0
B55: Suivi du correctif et du préventif par banc
B56: Janvier | D56: Février | F56: Mars | H56: Avril | J56: Mai | L56: Juin | N56: Juillet | P56: Août | R56: Septembre | T56: Octobre | V56: Novembre | X56: Décembre
A57: Banc zone 8 | B57: Corrective | C57: Préventive | D57: Corrective | E57: Préventive | F57: Corrective | G57: Préventive | H57: Corrective | I57: Préventive | J57: Corrective | K57: Préventive | L57: Corrective | M57: Préventive | N57: Corrective | O57: Préventive | P57: Corrective | Q57: Préventive | R57: Corrective | S57: Préventive | T57: Corrective | U57: Préventive | V57: Corrective | W57: Préventive | X57: Corrective | Y57: Préventive
A58: Banc P5 | B58: =SUMIF(BDD!$BG$2:$BG$3,"Banc P5VRAIFAUX",BDD!$Z$2:$Z$3) -> 0 | C58: =SUMIF(BDD!$BG$2:$BG$3,"Banc P5FAUXVRAI",BDD!$Z$2:$Z$3) -> 0 | D58: =SUMIF(BDD!$BG$2:$BG$3,"Banc P5VRAIFAUX",BDD!$Z$2:$Z$3) -> 0 | E58: =SUMIF(BDD!$BG$2:$BG$3,"Banc P5FAUXVRAI",BDD!$Z$2:$Z$3) -> 0 | F58: =SUMIF(BDD!$BG$2:$BG$683,"Banc P5VRAIFAUX",BDD!$Z$2:$Z$683) -> 0 | G58: =SUMIF(BDD!$BG$2:$BG$683,"Banc P5FAUXvrai",BDD!$Z$2:$Z$683) -> 0 | H58: =SUMIF(BDD!$BG$2:$BG$3,"Banc P5VRAIFAUX",BDD!$Z$2:$Z$3) -> 0 | I58: =SUMIF(BDD!$BG$2:$BG$3,"Banc P5FAUXVRAI",BDD!$Z$2:$Z$3) -> 0 | J58: =SUMIF(BDD!$BG$2:$BG$3,"Banc P5VRAIFAUX",BDD!$Z$2:$Z$3) -> 0 | K58: =SUMIF(BDD!$BG$2:$BG$3,"Banc P5FAUXVRAI",BDD!$Z$2:$Z$3) -> 0 | L58: =SUMIF(BDD!$BG$2:$BG$3,"Banc P5VRAIFAUX",BDD!$Z$2:$Z$3) -> 0 | M58: =SUMIF(BDD!$BG$2:$BG$3,"Banc P5FAUXVRAI",BDD!$Z$2:$Z$3) -> 0 | N58: =SUMIF(BDD!$BG$2:$BG$3,"Banc P5VRAIFAUX",BDD!$Z$2:$Z$3) -> 0 | O58: =SUMIF(BDD!$BG$2:$BG$3,"Banc P5FAUXVRAI",BDD!$Z$2:$Z$3) -> 0 | P58: =SUMIF(BDD!$BG$2:$BG$3,"Banc P5VRAIFAUX",BDD!$Z$2:$Z$3) -> 0 | Q58: =SUMIF(BDD!$BG$2:$BG$3,"Banc P5FAUXVRAI",BDD!$Z$2:$Z$3) -> 0 | R58: =SUMIF(BDD!$BG$2:$BG$3,"Banc P5VRAIFAUX",BDD!$Z$2:$Z$3) -> 0 | S58: =SUMIF(BDD!$BG$2:$BG$3,"Banc P5FAUXVRAI",BDD!$Z$2:$Z$3) -> 0 | T58: =SUMIF(BDD!$BG$2:$BG$3,"Banc P5VRAIFAUX",BDD!$Z$2:$Z$3) -> 0 | U58: =SUMIF(BDD!$BG$2:$BG$3,"Banc P5FAUXVRAI",BDD!$Z$2:$Z$3) -> 0 | V58: =SUMIF(BDD!$BG$2:$BG$3,"Banc P5VRAIFAUX",BDD!$Z$2:$Z$3) -> 0 | W58: =SUMIF(BDD!$BG$2:$BG$3,"Banc P5FAUXVRAI",BDD!$Z$2:$Z$3) -> 0 | X58: =SUMIF(BDD!$BG$2:$BG$3,"Banc P5VRAIFAUX",BDD!$Z$2:$Z$3) -> 0 | Y58: =SUMIF(BDD!$BG$2:$BG$3,"Banc P5FAUXVRAI",BDD!$Z$2:$Z$3) -> 0
A59: Banc P7 | B59: =SUMIF(BDD!$BG$2:$BG$3,"Banc P7VRAIFAUX",BDD!$Z$2:$Z$3) -> 0 | C59: =SUMIF(BDD!$BG$2:$BG$3,"Banc P7FAUXVRAI",BDD!$Z$2:$Z$3) -> 0 | D59: =SUMIF(BDD!$BG$2:$BG$3,"Banc P7VRAIFAUX",BDD!$Z$2:$Z$3) -> 0 | E59: =SUMIF(BDD!$BG$2:$BG$3,"Banc P7FAUXVRAI",BDD!$Z$2:$Z$3) -> 0 | F59: =SUMIF(BDD!$BG$2:$BG$683,"Banc P7VRAIFAUX",BDD!$Z$2:$Z$683) -> 0.15 | G59: =SUMIF(BDD!$BG$2:$BG$683,"Banc P7FAUXVRAI",BDD!$Z$2:$Z$683) -> 0 | H59: =SUMIF(BDD!$BG$2:$BG$3,"Banc P7VRAIFAUX",BDD!$Z$2:$Z$3) -> 0 | I59: =SUMIF(BDD!$BG$2:$BG$3,"Banc P7FAUXVRAI",BDD!$Z$2:$Z$3) -> 0 | J59: =SUMIF(BDD!$BG$2:$BG$3,"Banc P7VRAIFAUX",BDD!$Z$2:$Z$3) -> 0 | K59: =SUMIF(BDD!$BG$2:$BG$3,"Banc P7FAUXVRAI",BDD!$Z$2:$Z$3) -> 0 | L59: =SUMIF(BDD!$BG$2:$BG$3,"Banc P7VRAIFAUX",BDD!$Z$2:$Z$3) -> 0 | M59: =SUMIF(BDD!$BG$2:$BG$3,"Banc P7FAUXVRAI",BDD!$Z$2:$Z$3) -> 0 | N59: =SUMIF(BDD!$BG$2:$BG$3,"Banc P7VRAIFAUX",BDD!$Z$2:$Z$3) -> 0 | O59: =SUMIF(BDD!$BG$2:$BG$3,"Banc P7FAUXVRAI",BDD!$Z$2:$Z$3) -> 0 | P59: =SUMIF(BDD!$BG$2:$BG$3,"Banc P7VRAIFAUX",BDD!$Z$2:$Z$3) -> 0 | Q59: =SUMIF(BDD!$BG$2:$BG$3,"Banc P7FAUXVRAI",BDD!$Z$2:$Z$3) -> 0 | R59: =SUMIF(BDD!$BG$2:$BG$3,"Banc P7VRAIFAUX",BDD!$Z$2:$Z$3) -> 0 | S59: =SUMIF(BDD!$BG$2:$BG$3,"Banc P7FAUXVRAI",BDD!$Z$2:$Z$3) -> 0 | T59: =SUMIF(BDD!$BG$2:$BG$3,"Banc P7VRAIFAUX",BDD!$Z$2:$Z$3) -> 0 | U59: =SUMIF(BDD!$BG$2:$BG$3,"Banc P7FAUXVRAI",BDD!$Z$2:$Z$3) -> 0 | V59: =SUMIF(BDD!$BG$2:$BG$3,"Banc P7VRAIFAUX",BDD!$Z$2:$Z$3) -> 0 | W59: =SUMIF(BDD!$BG$2:$BG$3,"Banc P7FAUXVRAI",BDD!$Z$2:$Z$3) -> 0 | X59: =SUMIF(BDD!$BG$2:$BG$3,"Banc P7VRAIFAUX",BDD!$Z$2:$Z$3) -> 0 | Y59: =SUMIF(BDD!$BG$2:$BG$3,"Banc P7FAUXVRAI",BDD!$Z$2:$Z$3) -> 0
A60: Banc 101 | B60: =SUMIF(BDD!$BG$2:$BG$683,"Banc 101VRAIFAUX",BDD!$Z$2:$Z$683) -> 0 | C60: =SUMIF(BDD!$BG$2:$BG$3,"Banc 101FAUXVRAI",BDD!$Z$2:$Z$3) -> 0 | D60: =SUMIF(BDD!$BG$2:$BG$683,"Banc 101VRAIFAUX",BDD!$Z$2:$Z$683) -> 0 | E60: =SUMIF(BDD!$BG$2:$BG$3,"Banc 101FAUXVRAI",BDD!$Z$2:$Z$3) -> 0 | F60: =SUMIF(BDD!$BG$2:$BG$683,"Banc 101VRAIFAUX",BDD!$Z$2:$Z$683) -> 0 | G60: =SUMIF(BDD!$BG$2:$BG$683,"Banc 101FAUXVRAI",BDD!$Z$2:$Z$683) -> 0.1 | H60: =SUMIF(BDD!$BG$2:$BG$683,"Banc 101VRAIFAUX",BDD!$Z$2:$Z$683) -> 0 | I60: =SUMIF(BDD!$BG$2:$BG$3,"Banc 101FAUXVRAI",BDD!$Z$2:$Z$3) -> 0 | J60: =SUMIF(BDD!$BG$2:$BG$683,"Banc 101VRAIFAUX",BDD!$Z$2:$Z$683) -> 0 | K60: =SUMIF(BDD!$BG$2:$BG$3,"Banc 101FAUXVRAI",BDD!$Z$2:$Z$3) -> 0 | L60: =SUMIF(BDD!$BG$2:$BG$683,"Banc 101VRAIFAUX",BDD!$Z$2:$Z$683) -> 0 | M60: =SUMIF(BDD!$BG$2:$BG$3,"Banc 101FAUXVRAI",BDD!$Z$2:$Z$3) -> 0 | N60: =SUMIF(BDD!$BG$2:$BG$683,"Banc 101VRAIFAUX",BDD!$Z$2:$Z$683) -> 0 | O60: =SUMIF(BDD!$BG$2:$BG$3,"Banc 101FAUXVRAI",BDD!$Z$2:$Z$3) -> 0 | P60: =SUMIF(BDD!$BG$2:$BG$683,"Banc 101VRAIFAUX",BDD!$Z$2:$Z$683) -> 0 | Q60: =SUMIF(BDD!$BG$2:$BG$3,"Banc 101FAUXVRAI",BDD!$Z$2:$Z$3) -> 0 | R60: =SUMIF(BDD!$BG$2:$BG$683,"Banc 101VRAIFAUX",BDD!$Z$2:$Z$683) -> 0 | S60: =SUMIF(BDD!$BG$2:$BG$3,"Banc 101FAUXVRAI",BDD!$Z$2:$Z$3) -> 0 | T60: =SUMIF(BDD!$BG$2:$BG$683,"Banc 101VRAIFAUX",BDD!$Z$2:$Z$683) -> 0 | U60: =SUMIF(BDD!$BG$2:$BG$3,"Banc 101FAUXVRAI",BDD!$Z$2:$Z$3) -> 0 | V60: =SUMIF(BDD!$BG$2:$BG$683,"Banc 101VRAIFAUX",BDD!$Z$2:$Z$683) -> 0 | W60: =SUMIF(BDD!$BG$2:$BG$3,"Banc 101FAUXVRAI",BDD!$Z$2:$Z$3) -> 0 | X60: =SUMIF(BDD!$BG$2:$BG$683,"Banc 101VRAIFAUX",BDD!$Z$2:$Z$683) -> 0 | Y60: =SUMIF(BDD!$BG$2:$BG$3,"Banc 101FAUXVRAI",BDD!$Z$2:$Z$3) -> 0
A61: Banc 104 | B61: =SUMIF(BDD!$BG$2:$BG$3,"Banc 104VRAIFAUX",BDD!$Z$2:$Z$3) -> 0 | C61: =SUMIF(BDD!$BG$2:$BG$3,"Banc 104FAUXVRAI",BDD!$Z$2:$Z$3) -> 0 | D61: =SUMIF(BDD!$BG$2:$BG$3,"Banc 104VRAIFAUX",BDD!$Z$2:$Z$3) -> 0 | E61: =SUMIF(BDD!$BG$2:$BG$3,"Banc 104FAUXVRAI",BDD!$Z$2:$Z$3) -> 0 | F61: =SUMIF(BDD!$BG$2:$BG$683,"Banc 104VRAIFAUX",BDD!$Z$2:$Z$683) -> 2.1 | G61: =SUMIF(BDD!$BG$2:$BG$683,"Banc 104FAUXVRAI",BDD!$Z$2:$Z$683) -> 1 | H61: =SUMIF(BDD!$BG$2:$BG$3,"Banc 104VRAIFAUX",BDD!$Z$2:$Z$3) -> 0 | I61: =SUMIF(BDD!$BG$2:$BG$3,"Banc 104FAUXVRAI",BDD!$Z$2:$Z$3) -> 0 | J61: =SUMIF(BDD!$BG$2:$BG$3,"Banc 104VRAIFAUX",BDD!$Z$2:$Z$3) -> 0 | K61: =SUMIF(BDD!$BG$2:$BG$3,"Banc 104FAUXVRAI",BDD!$Z$2:$Z$3) -> 0 | L61: =SUMIF(BDD!$BG$2:$BG$3,"Banc 104VRAIFAUX",BDD!$Z$2:$Z$3) -> 0 | M61: =SUMIF(BDD!$BG$2:$BG$3,"Banc 104FAUXVRAI",BDD!$Z$2:$Z$3) -> 0 | N61: =SUMIF(BDD!$BG$2:$BG$3,"Banc 104VRAIFAUX",BDD!$Z$2:$Z$3) -> 0 | O61: =SUMIF(BDD!$BG$2:$BG$3,"Banc 104FAUXVRAI",BDD!$Z$2:$Z$3) -> 0 | P61: =SUMIF(BDD!$BG$2:$BG$3,"Banc 104VRAIFAUX",BDD!$Z$2:$Z$3) -> 0 | Q61: =SUMIF(BDD!$BG$2:$BG$3,"Banc 104FAUXVRAI",BDD!$Z$2:$Z$3) -> 0 | R61: =SUMIF(BDD!$BG$2:$BG$3,"Banc 104VRAIFAUX",BDD!$Z$2:$Z$3) -> 0 | S61: =SUMIF(BDD!$BG$2:$BG$3,"Banc 104FAUXVRAI",BDD!$Z$2:$Z$3) -> 0 | T61: =SUMIF(BDD!$BG$2:$BG$3,"Banc 104VRAIFAUX",BDD!$Z$2:$Z$3) -> 0 | U61: =SUMIF(BDD!$BG$2:$BG$3,"Banc 104FAUXVRAI",BDD!$Z$2:$Z$3) -> 0 | V61: =SUMIF(BDD!$BG$2:$BG$3,"Banc 104VRAIFAUX",BDD!$Z$2:$Z$3) -> 0 | W61: =SUMIF(BDD!$BG$2:$BG$3,"Banc 104FAUXVRAI",BDD!$Z$2:$Z$3) -> 0 | X61: =SUMIF(BDD!$BG$2:$BG$3,"Banc 104VRAIFAUX",BDD!$Z$2:$Z$3) -> 0 | Y61: =SUMIF(BDD!$BG$2:$BG$3,"Banc 104FAUXVRAI",BDD!$Z$2:$Z$3) -> 0
A62: Banc 121 | B62: =SUMIF(BDD!$BG$2:$BG$3,"Banc 121VRAIFAUX",BDD!$Z$2:$Z$3) -> 0 | C62: =SUMIF(BDD!$BG$2:$BG$3,"Banc 121FAUXVRAI",BDD!$Z$2:$Z$3) -> 0 | D62: =SUMIF(BDD!$BG$2:$BG$3,"Banc 121VRAIFAUX",BDD!$Z$2:$Z$3) -> 0 | E62: =SUMIF(BDD!$BG$2:$BG$3,"Banc 121FAUXVRAI",BDD!$Z$2:$Z$3) -> 0 | F62: =SUMIF(BDD!$BG$2:$BG$683,"Banc 121VRAIFAUX",BDD!$Z$2:$Z$683) -> 0 | G62: =SUMIF(BDD!$BG$2:$BG$683,"Banc 121FAUXVRAI",BDD!$Z$2:$Z$683) -> 0 | H62: =SUMIF(BDD!$BG$2:$BG$3,"Banc 121VRAIFAUX",BDD!$Z$2:$Z$3) -> 0 | I62: =SUMIF(BDD!$BG$2:$BG$3,"Banc 121FAUXVRAI",BDD!$Z$2:$Z$3) -> 0 | J62: =SUMIF(BDD!$BG$2:$BG$3,"Banc 121VRAIFAUX",BDD!$Z$2:$Z$3) -> 0 | K62: =SUMIF(BDD!$BG$2:$BG$3,"Banc 121FAUXVRAI",BDD!$Z$2:$Z$3) -> 0 | L62: =SUMIF(BDD!$BG$2:$BG$3,"Banc 121VRAIFAUX",BDD!$Z$2:$Z$3) -> 0 | M62: =SUMIF(BDD!$BG$2:$BG$3,"Banc 121FAUXVRAI",BDD!$Z$2:$Z$3) -> 0 | N62: =SUMIF(BDD!$BG$2:$BG$3,"Banc 121VRAIFAUX",BDD!$Z$2:$Z$3) -> 0 | O62: =SUMIF(BDD!$BG$2:$BG$3,"Banc 121FAUXVRAI",BDD!$Z$2:$Z$3) -> 0 | P62: =SUMIF(BDD!$BG$2:$BG$3,"Banc 121VRAIFAUX",BDD!$Z$2:$Z$3) -> 0 | Q62: =SUMIF(BDD!$BG$2:$BG$3,"Banc 121FAUXVRAI",BDD!$Z$2:$Z$3) -> 0 | R62: =SUMIF(BDD!$BG$2:$BG$3,"Banc 121VRAIFAUX",BDD!$Z$2:$Z$3) -> 0 | S62: =SUMIF(BDD!$BG$2:$BG$3,"Banc 121FAUXVRAI",BDD!$Z$2:$Z$3) -> 0 | T62: =SUMIF(BDD!$BG$2:$BG$3,"Banc 121VRAIFAUX",BDD!$Z$2:$Z$3) -> 0 | U62: =SUMIF(BDD!$BG$2:$BG$3,"Banc 121FAUXVRAI",BDD!$Z$2:$Z$3) -> 0 | V62: =SUMIF(BDD!$BG$2:$BG$3,"Banc 121VRAIFAUX",BDD!$Z$2:$Z$3) -> 0 | W62: =SUMIF(BDD!$BG$2:$BG$3,"Banc 121FAUXVRAI",BDD!$Z$2:$Z$3) -> 0 | X62: =SUMIF(BDD!$BG$2:$BG$3,"Banc 121VRAIFAUX",BDD!$Z$2:$Z$3) -> 0 | Y62: =SUMIF(BDD!$BG$2:$BG$3,"Banc 121FAUXVRAI",BDD!$Z$2:$Z$3) -> 0
A63: Pompe à eau | B63: =SUMIF(BDD!$BG$2:$BG$3,"Pompe à eauVRAIFAUX",BDD!$Z$2:$Z$3) -> 0 | C63: =SUMIF(BDD!$BG$2:$BG$3,"Pompe à eauFAUXVRAI",BDD!$Z$2:$Z$3) -> 0 | D63: =SUMIF(BDD!$BG$2:$BG$3,"Pompe à eauVRAIFAUX",BDD!$Z$2:$Z$3) -> 0 | E63: =SUMIF(BDD!$BG$2:$BG$3,"Pompe à eauFAUXVRAI",BDD!$Z$2:$Z$3) -> 0 | F63: =SUMIF(BDD!$BG$2:$BG$683,"Pompe à eauVRAIFAUX",BDD!$Z$2:$Z$683) -> 1 | G63: =SUMIF(BDD!$BG$2:$BG$683,"Pompe à eauFAUXVRAI",BDD!$Z$2:$Z$683) -> 0 | H63: =SUMIF(BDD!$BG$2:$BG$3,"Pompe à eauVRAIFAUX",BDD!$Z$2:$Z$3) -> 0 | I63: =SUMIF(BDD!$BG$2:$BG$3,"Pompe à eauFAUXVRAI",BDD!$Z$2:$Z$3) -> 0 | J63: =SUMIF(BDD!$BG$2:$BG$3,"Pompe à eauVRAIFAUX",BDD!$Z$2:$Z$3) -> 0 | K63: =SUMIF(BDD!$BG$2:$BG$3,"Pompe à eauFAUXVRAI",BDD!$Z$2:$Z$3) -> 0 | L63: =SUMIF(BDD!$BG$2:$BG$3,"Pompe à eauVRAIFAUX",BDD!$Z$2:$Z$3) -> 0 | M63: =SUMIF(BDD!$BG$2:$BG$3,"Pompe à eauFAUXVRAI",BDD!$Z$2:$Z$3) -> 0 | N63: =SUMIF(BDD!$BG$2:$BG$3,"Pompe à eauVRAIFAUX",BDD!$Z$2:$Z$3) -> 0 | O63: =SUMIF(BDD!$BG$2:$BG$3,"Pompe à eauFAUXVRAI",BDD!$Z$2:$Z$3) -> 0 | P63: =SUMIF(BDD!$BG$2:$BG$3,"Pompe à eauVRAIFAUX",BDD!$Z$2:$Z$3) -> 0 | Q63: =SUMIF(BDD!$BG$2:$BG$3,"Pompe à eauFAUXVRAI",BDD!$Z$2:$Z$3) -> 0 | R63: =SUMIF(BDD!$BG$2:$BG$3,"Pompe à eauVRAIFAUX",BDD!$Z$2:$Z$3) -> 0 | S63: =SUMIF(BDD!$BG$2:$BG$3,"Pompe à eauFAUXVRAI",BDD!$Z$2:$Z$3) -> 0 | T63: =SUMIF(BDD!$BG$2:$BG$3,"Pompe à eauVRAIFAUX",BDD!$Z$2:$Z$3) -> 0 | U63: =SUMIF(BDD!$BG$2:$BG$3,"Pompe à eauFAUXVRAI",BDD!$Z$2:$Z$3) -> 0 | V63: =SUMIF(BDD!$BG$2:$BG$3,"Pompe à eauVRAIFAUX",BDD!$Z$2:$Z$3) -> 0 | W63: =SUMIF(BDD!$BG$2:$BG$3,"Pompe à eauFAUXVRAI",BDD!$Z$2:$Z$3) -> 0 | X63: =SUMIF(BDD!$BG$2:$BG$3,"Pompe à eauVRAIFAUX",BDD!$Z$2:$Z$3) -> 0 | Y63: =SUMIF(BDD!$BG$2:$BG$3,"Pompe à eauFAUXVRAI",BDD!$Z$2:$Z$3) -> 0
A64: Banc PowerTrain | B64: =SUMIF(BDD!$BG$2:$BG$3,"Banc PowerTrainVRAIFAUX",BDD!$Z$2:$Z$3) -> 0 | C64: =SUMIF(BDD!$BG$2:$BG$3,"Banc PowerTrainFAUXVRAI",BDD!$Z$2:$Z$3) -> 0 | D64: =SUMIF(BDD!$BG$2:$BG$3,"Banc PowerTrainVRAIFAUX",BDD!$Z$2:$Z$3) -> 0 | E64: =SUMIF(BDD!$BG$2:$BG$3,"Banc PowerTrainFAUXVRAI",BDD!$Z$2:$Z$3) -> 0 | F64: =SUMIF(BDD!$BG$2:$BG$683,"Banc PowerTrainVRAIFAUX",BDD!$Z$2:$Z$683) -> 0 | G64: =SUMIF(BDD!$BG$2:$BG$683,"Banc PowerTrainFAUXVRAI",BDD!$Z$2:$Z$683) -> 0 | H64: =SUMIF(BDD!$BG$2:$BG$3,"Banc PowerTrainVRAIFAUX",BDD!$Z$2:$Z$3) -> 0 | I64: =SUMIF(BDD!$BG$2:$BG$3,"Banc PowerTrainFAUXVRAI",BDD!$Z$2:$Z$3) -> 0 | J64: =SUMIF(BDD!$BG$2:$BG$3,"Banc PowerTrainVRAIFAUX",BDD!$Z$2:$Z$3) -> 0 | K64: =SUMIF(BDD!$BG$2:$BG$3,"Banc PowerTrainFAUXVRAI",BDD!$Z$2:$Z$3) -> 0 | L64: =SUMIF(BDD!$BG$2:$BG$3,"Banc PowerTrainVRAIFAUX",BDD!$Z$2:$Z$3) -> 0 | M64: =SUMIF(BDD!$BG$2:$BG$3,"Banc PowerTrainFAUXVRAI",BDD!$Z$2:$Z$3) -> 0 | N64: =SUMIF(BDD!$BG$2:$BG$3,"Banc PowerTrainVRAIFAUX",BDD!$Z$2:$Z$3) -> 0 | O64: =SUMIF(BDD!$BG$2:$BG$3,"Banc PowerTrainFAUXVRAI",BDD!$Z$2:$Z$3) -> 0 | P64: =SUMIF(BDD!$BG$2:$BG$3,"Banc PowerTrainVRAIFAUX",BDD!$Z$2:$Z$3) -> 0 | Q64: =SUMIF(BDD!$BG$2:$BG$3,"Banc PowerTrainFAUXVRAI",BDD!$Z$2:$Z$3) -> 0 | R64: =SUMIF(BDD!$BG$2:$BG$3,"Banc PowerTrainVRAIFAUX",BDD!$Z$2:$Z$3) -> 0 | S64: =SUMIF(BDD!$BG$2:$BG$3,"Banc PowerTrainFAUXVRAI",BDD!$Z$2:$Z$3) -> 0 | T64: =SUMIF(BDD!$BG$2:$BG$3,"Banc PowerTrainVRAIFAUX",BDD!$Z$2:$Z$3) -> 0 | U64: =SUMIF(BDD!$BG$2:$BG$3,"Banc PowerTrainFAUXVRAI",BDD!$Z$2:$Z$3) -> 0 | V64: =SUMIF(BDD!$BG$2:$BG$3,"Banc PowerTrainVRAIFAUX",BDD!$Z$2:$Z$3) -> 0 | W64: =SUMIF(BDD!$BG$2:$BG$3,"Banc PowerTrainFAUXVRAI",BDD!$Z$2:$Z$3) -> 0 | X64: =SUMIF(BDD!$BG$2:$BG$3,"Banc PowerTrainVRAIFAUX",BDD!$Z$2:$Z$3) -> 0 | Y64: =SUMIF(BDD!$BG$2:$BG$3,"Banc PowerTrainFAUXVRAI",BDD!$Z$2:$Z$3) -> 0
B87: Suivi du correctif et du préventif par banc
B88: Janvier | H88: Février | N88: Mars | T88: Avril | Z88: Mai | AF88: Juin | AL88: Juillet | AR88: Août | AX88: Septembre | BD88: Octobre | BJ88: Novembre | BP88: Décembre
B89: Corrective | E89: Préventive | H89: Corrective | K89: Préventive | N89: Corrective | Q89: Préventive | T89: Corrective | W89: Préventive | Z89: Corrective | AC89: Préventive | AF89: Corrective | AI89: Préventive | AL89: Corrective | AO89: Préventive | AR89: Corrective | AU89: Préventive | AX89: Corrective | BA89: Préventive | BD89: Corrective | BG89: Préventive | BJ89: Corrective | BM89: Préventive | BP89: Corrective | BS89: Préventive
A90: Banc zone 8 | B90: Electrique | C90: Mécanique | D90: Hydraulique | E90: Electrique | F90: Mécanique | G90: Hydraulique | H90: Electrique | I90: Mécanique | J90: Hydraulique | K90: Electrique | L90: Mécanique | M90: Hydraulique | N90: Electrique | O90: Mécanique | P90: Hydraulique | Q90: Electrique | R90: Mécanique | S90: Hydraulique | T90: Electrique | U90: Mécanique | V90: Hydraulique | W90: Electrique | X90: Mécanique | Y90: Hydraulique | Z90: Electrique | AA90: Mécanique | AB90: Hydraulique | AC90: Electrique | AD90: Mécanique | AE90: Hydraulique | AF90: Electrique | AG90: Mécanique | AH90: Hydraulique | AI90: Electrique | AJ90: Mécanique | AK90: Hydraulique | AL90: Electrique | AM90: Mécanique | AN90: Hydraulique | AO90: Electrique | AP90: Mécanique | AQ90: Hydraulique | AR90: Electrique | AS90: Mécanique | AT90: Hydraulique | AU90: Electrique | AV90: Mécanique | AW90: Hydraulique | AX90: Electrique | AY90: Mécanique | AZ90: Hydraulique | BA90: Electrique | BB90: Mécanique | BC90: Hydraulique | BD90: Electrique | BE90: Mécanique | BF90: Hydraulique | BG90: Electrique | BH90: Mécanique | BI90: Hydraulique | BJ90: Electrique | BK90: Mécanique | BL90: Hydraulique | BM90: Electrique | BN90: Mécanique | BO90: Hydraulique | BP90: Electrique | BQ90: Mécanique | BR90: Hydraulique | BS90: Electrique | BT90: Mécanique | BU90: Hydraulique
A91: Banc P5 | B91: =SUMIF(BDD!$BH$2:$BH$3,"Banc P5VRAIFAUXVRAIFAUXFAUX",BDD!$Z$2:$Z$3) -> 0 | C91: =SUMIF(BDD!$BH$2:$BH$3,"Banc P5VRAIFAUXFAUXVRAIFAUX",BDD!$Z$2:$Z$3) -> 0 | D91: =SUMIF(BDD!$BH$2:$BH$3,"Banc P5VRAIFAUXFAUXFAUXVRAI",BDD!$Z$2:$Z$3) -> 0 | E91: =SUMIF(BDD!$BH$2:$BH$3,"Banc P5FAUXVRAIVRAIFAUXFAUX",BDD!$Z$2:$Z$3) -> 0 | F91: =SUMIF(BDD!$BH$2:$BH$3,"Banc P5FAUXVRAIFAUXVRAIFAUX",BDD!$Z$2:$Z$3) -> 0 | G91: =SUMIF(BDD!$BH$2:$BH$3,"Banc P5FAUXVRAIFAUXFAUXVRAI",BDD!$Z$2:$Z$3) -> 0 | H91: =SUMIF(BDD!$BH$2:$BH$3,"Banc P5VRAIFAUXVRAIFAUXFAUX",BDD!$Z$2:$Z$3) -> 0 | I91: =SUMIF(BDD!$BH$2:$BH$3,"Banc P5VRAIFAUXFAUXVRAIFAUX",BDD!$Z$2:$Z$3) -> 0 | J91: =SUMIF(BDD!$BH$2:$BH$3,"Banc P5VRAIFAUXFAUXFAUXVRAI",BDD!$Z$2:$Z$3) -> 0 | K91: =SUMIF(BDD!$BH$2:$BH$3,"Banc P5FAUXVRAIVRAIFAUXFAUX",BDD!$Z$2:$Z$3) -> 0 | L91: =SUMIF(BDD!$BH$2:$BH$3,"Banc P5FAUXVRAIFAUXVRAIFAUX",BDD!$Z$2:$Z$3) -> 0 | M91: =SUMIF(BDD!$BH$2:$BH$3,"Banc P5FAUXVRAIFAUXFAUXVRAI",BDD!$Z$2:$Z$3) -> 0 | N91: =SUMIF(BDD!$BH$2:$BH$683,"Banc P5VRAIFAUXVRAIFAUXFAUX",BDD!$Z$2:$Z$683) -> 0 | O91: =SUMIF(BDD!$BH$2:$BH$683,"Banc P5VRAIFAUXFAUXVRAIFAUX",BDD!$Z$2:$Z$683) -> 0 | P91: =SUMIF(BDD!$BH$2:$BH$683,"Banc P5VRAIFAUXFAUXFAUXVRAI",BDD!$Z$2:$Z$683) -> 0 | Q91: =SUMIF(BDD!$BH$2:$BH$683,"Banc P5FAUXVRAIVRAIFAUXFAUX",BDD!$Z$2:$Z$683) -> 0 | R91: =SUMIF(BDD!$BH$2:$BH$683,"Banc P5FAUXVRAIFAUXVRAIFAUX",BDD!$Z$2:$Z$683) -> 0 | S91: =SUMIF(BDD!$BH$2:$BH$683,"Banc P5FAUXVRAIFAUXFAUXVRAI",BDD!$Z$2:$Z$683) -> 0 | T91: =SUMIF(BDD!$BH$2:$BH$3,"Banc P5VRAIFAUXVRAIFAUXFAUX",BDD!$Z$2:$Z$3) -> 0 | U91: =SUMIF(BDD!$BH$2:$BH$3,"Banc P5VRAIFAUXFAUXVRAIFAUX",BDD!$Z$2:$Z$3) -> 0 | V91: =SUMIF(BDD!$BH$2:$BH$3,"Banc P5VRAIFAUXFAUXFAUXVRAI",BDD!$Z$2:$Z$3) -> 0 | W91: =SUMIF(BDD!$BH$2:$BH$3,"Banc P5FAUXVRAIVRAIFAUXFAUX",BDD!$Z$2:$Z$3) -> 0 | X91: =SUMIF(BDD!$BH$2:$BH$3,"Banc P5FAUXVRAIFAUXVRAIFAUX",BDD!$Z$2:$Z$3) -> 0 | Y91: =SUMIF(BDD!$BH$2:$BH$3,"Banc P5FAUXVRAIFAUXFAUXVRAI",BDD!$Z$2:$Z$3) -> 0 | Z91: =SUMIF(BDD!$BH$2:$BH$3,"Banc P5VRAIFAUXVRAIFAUXFAUX",BDD!$Z$2:$Z$3) -> 0 | AA91: =SUMIF(BDD!$BH$2:$BH$3,"Banc P5VRAIFAUXFAUXVRAIFAUX",BDD!$Z$2:$Z$3) -> 0 | AB91: =SUMIF(BDD!$BH$2:$BH$3,"Banc P5VRAIFAUXFAUXFAUXVRAI",BDD!$Z$2:$Z$3) -> 0 | AC91: =SUMIF(BDD!$BH$2:$BH$3,"Banc P5FAUXVRAIVRAIFAUXFAUX",BDD!$Z$2:$Z$3) -> 0 | AD91: =SUMIF(BDD!$BH$2:$BH$3,"Banc P5FAUXVRAIFAUXVRAIFAUX",BDD!$Z$2:$Z$3) -> 0 | AE91: =SUMIF(BDD!$BH$2:$BH$3,"Banc P5FAUXVRAIFAUXFAUXVRAI",BDD!$Z$2:$Z$3) -> 0 | AF91: =SUMIF(BDD!$BH$2:$BH$3,"Banc P5VRAIFAUXVRAIFAUXFAUX",BDD!$Z$2:$Z$3) -> 0 | AG91: =SUMIF(BDD!$BH$2:$BH$3,"Banc P5VRAIFAUXFAUXVRAIFAUX",BDD!$Z$2:$Z$3) -> 0 | AH91: =SUMIF(BDD!$BH$2:$BH$3,"Banc P5VRAIFAUXFAUXFAUXVRAI",BDD!$Z$2:$Z$3) -> 0 | AI91: =SUMIF(BDD!$BH$2:$BH$3,"Banc P5FAUXVRAIVRAIFAUXFAUX",BDD!$Z$2:$Z$3) -> 0 | AJ91: =SUMIF(BDD!$BH$2:$BH$3,"Banc P5FAUXVRAIFAUXVRAIFAUX",BDD!$Z$2:$Z$3) -> 0 | AK91: =SUMIF(BDD!$BH$2:$BH$3,"Banc P5FAUXVRAIFAUXFAUXVRAI",BDD!$Z$2:$Z$3) -> 0 | AL91: =SUMIF(BDD!$BH$2:$BH$3,"Banc P5VRAIFAUXVRAIFAUXFAUX",BDD!$Z$2:$Z$3) -> 0 | AM91: =SUMIF(BDD!$BH$2:$BH$3,"Banc P5VRAIFAUXFAUXVRAIFAUX",BDD!$Z$2:$Z$3) -> 0 | AN91: =SUMIF(BDD!$BH$2:$BH$3,"Banc P5VRAIFAUXFAUXFAUXVRAI",BDD!$Z$2:$Z$3) -> 0 | AO91: =SUMIF(BDD!$BH$2:$BH$3,"Banc P5FAUXVRAIVRAIFAUXFAUX",BDD!$Z$2:$Z$3) -> 0 | AP91: =SUMIF(BDD!$BH$2:$BH$3,"Banc P5FAUXVRAIFAUXVRAIFAUX",BDD!$Z$2:$Z$3) -> 0 | AQ91: =SUMIF(BDD!$BH$2:$BH$3,"Banc P5FAUXVRAIFAUXFAUXVRAI",BDD!$Z$2:$Z$3) -> 0 | AR91: =SUMIF(BDD!$BH$2:$BH$3,"Banc P5VRAIFAUXVRAIFAUXFAUX",BDD!$Z$2:$Z$3) -> 0 | AS91: =SUMIF(BDD!$BH$2:$BH$3,"Banc P5VRAIFAUXFAUXVRAIFAUX",BDD!$Z$2:$Z$3) -> 0 | AT91: =SUMIF(BDD!$BH$2:$BH$3,"Banc P5VRAIFAUXFAUXFAUXVRAI",BDD!$Z$2:$Z$3) -> 0 | AU91: =SUMIF(BDD!$BH$2:$BH$3,"Banc P5FAUXVRAIVRAIFAUXFAUX",BDD!$Z$2:$Z$3) -> 0 | AV91: =SUMIF(BDD!$BH$2:$BH$3,"Banc P5FAUXVRAIFAUXVRAIFAUX",BDD!$Z$2:$Z$3) -> 0 | AW91: =SUMIF(BDD!$BH$2:$BH$3,"Banc P5FAUXVRAIFAUXFAUXVRAI",BDD!$Z$2:$Z$3) -> 0 | AX91: =SUMIF(BDD!$BH$2:$BH$3,"Banc P5VRAIFAUXVRAIFAUXFAUX",BDD!$Z$2:$Z$3) -> 0 | AY91: =SUMIF(BDD!$BH$2:$BH$3,"Banc P5VRAIFAUXFAUXVRAIFAUX",BDD!$Z$2:$Z$3) -> 0 | AZ91: =SUMIF(BDD!$BH$2:$BH$3,"Banc P5VRAIFAUXFAUXFAUXVRAI",BDD!$Z$2:$Z$3) -> 0 | BA91: =SUMIF(BDD!$BH$2:$BH$3,"Banc P5FAUXVRAIVRAIFAUXFAUX",BDD!$Z$2:$Z$3) -> 0 | BB91: =SUMIF(BDD!$BH$2:$BH$3,"Banc P5FAUXVRAIFAUXVRAIFAUX",BDD!$Z$2:$Z$3) -> 0 | BC91: =SUMIF(BDD!$BH$2:$BH$3,"Banc P5FAUXVRAIFAUXFAUXVRAI",BDD!$Z$2:$Z$3) -> 0 | BD91: =SUMIF(BDD!$BH$2:$BH$3,"Banc P5VRAIFAUXVRAIFAUXFAUX",BDD!$Z$2:$Z$3) -> 0 | BE91: =SUMIF(BDD!$BH$2:$BH$3,"Banc P5VRAIFAUXFAUXVRAIFAUX",BDD!$Z$2:$Z$3) -> 0 | BF91: =SUMIF(BDD!$BH$2:$BH$3,"Banc P5VRAIFAUXFAUXFAUXVRAI",BDD!$Z$2:$Z$3) -> 0 | BG91: =SUMIF(BDD!$BH$2:$BH$3,"Banc P5FAUXVRAIVRAIFAUXFAUX",BDD!$Z$2:$Z$3) -> 0 | BH91: =SUMIF(BDD!$BH$2:$BH$3,"Banc P5FAUXVRAIFAUXVRAIFAUX",BDD!$Z$2:$Z$3) -> 0 | BI91: =SUMIF(BDD!$BH$2:$BH$3,"Banc P5FAUXVRAIFAUXFAUXVRAI",BDD!$Z$2:$Z$3) -> 0 | BJ91: =SUMIF(BDD!$BH$2:$BH$3,"Banc P5VRAIFAUXVRAIFAUXFAUX",BDD!$Z$2:$Z$3) -> 0 | BK91: =SUMIF(BDD!$BH$2:$BH$3,"Banc P5VRAIFAUXFAUXVRAIFAUX",BDD!$Z$2:$Z$3) -> 0 | BL91: =SUMIF(BDD!$BH$2:$BH$3,"Banc P5VRAIFAUXFAUXFAUXVRAI",BDD!$Z$2:$Z$3) -> 0 | BM91: =SUMIF(BDD!$BH$2:$BH$3,"Banc P5FAUXVRAIVRAIFAUXFAUX",BDD!$Z$2:$Z$3) -> 0 | BN91: =SUMIF(BDD!$BH$2:$BH$3,"Banc P5FAUXVRAIFAUXVRAIFAUX",BDD!$Z$2:$Z$3) -> 0 | BO91: =SUMIF(BDD!$BH$2:$BH$3,"Banc P5FAUXVRAIFAUXFAUXVRAI",BDD!$Z$2:$Z$3) -> 0 | BP91: =SUMIF(BDD!$BH$2:$BH$3,"Banc P5VRAIFAUXVRAIFAUXFAUX",BDD!$Z$2:$Z$3) -> 0 | BQ91: =SUMIF(BDD!$BH$2:$BH$3,"Banc P5VRAIFAUXFAUXVRAIFAUX",BDD!$Z$2:$Z$3) -> 0 | BR91: =SUMIF(BDD!$BH$2:$BH$3,"Banc P5VRAIFAUXFAUXFAUXVRAI",BDD!$Z$2:$Z$3) -> 0 | BS91: =SUMIF(BDD!$BH$2:$BH$3,"Banc P5FAUXVRAIVRAIFAUXFAUX",BDD!$Z$2:$Z$3) -> 0 | BT91: =SUMIF(BDD!$BH$2:$BH$3,"Banc P5FAUXVRAIFAUXVRAIFAUX",BDD!$Z$2:$Z$3) -> 0 | BU91: =SUMIF(BDD!$BH$2:$BH$3,"Banc P5FAUXVRAIFAUXFAUXVRAI",BDD!$Z$2:$Z$3) -> 0
A92: Banc P7 | B92: =SUMIF(BDD!$BH$2:$BH$3,"Banc P7VRAIFAUXVRAIFAUXFAUX",BDD!$Z$2:$Z$3) -> 0 | C92: =SUMIF(BDD!$BH$2:$BH$3,"Banc P7VRAIFAUXFAUXVRAIFAUX",BDD!$Z$2:$Z$3) -> 0 | D92: =SUMIF(BDD!$BH$2:$BH$3,"Banc P7VRAIFAUXFAUXFAUXVRAI",BDD!$Z$2:$Z$3) -> 0 | E92: =SUMIF(BDD!$BH$2:$BH$3,"Banc P7FAUXVRAIVRAIFAUXFAUX",BDD!$Z$2:$Z$3) -> 0 | F92: =SUMIF(BDD!$BH$2:$BH$3,"Banc P7FAUXVRAIFAUXVRAIFAUX",BDD!$Z$2:$Z$3) -> 0 | G92: =SUMIF(BDD!$BH$2:$BH$3,"Banc P7FAUXVRAIFAUXFAUXVRAI",BDD!$Z$2:$Z$3) -> 0 | H92: =SUMIF(BDD!$BH$2:$BH$3,"Banc P7VRAIFAUXVRAIFAUXFAUX",BDD!$Z$2:$Z$3) -> 0 | I92: =SUMIF(BDD!$BH$2:$BH$3,"Banc P7VRAIFAUXFAUXVRAIFAUX",BDD!$Z$2:$Z$3) -> 0 | J92: =SUMIF(BDD!$BH$2:$BH$3,"Banc P7VRAIFAUXFAUXFAUXVRAI",BDD!$Z$2:$Z$3) -> 0 | K92: =SUMIF(BDD!$BH$2:$BH$3,"Banc P7FAUXVRAIVRAIFAUXFAUX",BDD!$Z$2:$Z$3) -> 0 | L92: =SUMIF(BDD!$BH$2:$BH$3,"Banc P7FAUXVRAIFAUXVRAIFAUX",BDD!$Z$2:$Z$3) -> 0 | M92: =SUMIF(BDD!$BH$2:$BH$3,"Banc P7FAUXVRAIFAUXFAUXVRAI",BDD!$Z$2:$Z$3) -> 0 | N92: =SUMIF(BDD!$BH$2:$BH$683,"Banc P7VRAIFAUXVRAIFAUXFAUX",BDD!$Z$2:$Z$683) -> 0.15 | O92: =SUMIF(BDD!$BH$2:$BH$683,"Banc P7VRAIFAUXFAUXVRAIFAUX",BDD!$Z$2:$Z$683) -> 0 | P92: =SUMIF(BDD!$BH$2:$BH$683,"Banc P7VRAIFAUXFAUXFAUXVRAI",BDD!$Z$2:$Z$683) -> 0 | Q92: =SUMIF(BDD!$BH$2:$BH$683,"Banc P7FAUXVRAIVRAIFAUXFAUX",BDD!$Z$2:$Z$683) -> 0 | R92: =SUMIF(BDD!$BH$2:$BH$683,"Banc P7FAUXVRAIFAUXVRAIFAUX",BDD!$Z$2:$Z$683) -> 0 | S92: =SUMIF(BDD!$BH$2:$BH$683,"Banc P7FAUXVRAIFAUXFAUXVRAI",BDD!$Z$2:$Z$683) -> 0 | T92: =SUMIF(BDD!$BH$2:$BH$3,"Banc P7VRAIFAUXVRAIFAUXFAUX",BDD!$Z$2:$Z$3) -> 0 | U92: =SUMIF(BDD!$BH$2:$BH$3,"Banc P7VRAIFAUXFAUXVRAIFAUX",BDD!$Z$2:$Z$3) -> 0 | V92: =SUMIF(BDD!$BH$2:$BH$3,"Banc P7VRAIFAUXFAUXFAUXVRAI",BDD!$Z$2:$Z$3) -> 0 | W92: =SUMIF(BDD!$BH$2:$BH$3,"Banc P7FAUXVRAIVRAIFAUXFAUX",BDD!$Z$2:$Z$3) -> 0 | X92: =SUMIF(BDD!$BH$2:$BH$3,"Banc P7FAUXVRAIFAUXVRAIFAUX",BDD!$Z$2:$Z$3) -> 0 | Y92: =SUMIF(BDD!$BH$2:$BH$3,"Banc P7FAUXVRAIFAUXFAUXVRAI",BDD!$Z$2:$Z$3) -> 0 | Z92: =SUMIF(BDD!$BH$2:$BH$3,"Banc P7VRAIFAUXVRAIFAUXFAUX",BDD!$Z$2:$Z$3) -> 0 | AA92: =SUMIF(BDD!$BH$2:$BH$3,"Banc P7VRAIFAUXFAUXVRAIFAUX",BDD!$Z$2:$Z$3) -> 0 | AB92: =SUMIF(BDD!$BH$2:$BH$3,"Banc P7VRAIFAUXFAUXFAUXVRAI",BDD!$Z$2:$Z$3) -> 0 | AC92: =SUMIF(BDD!$BH$2:$BH$3,"Banc P7FAUXVRAIVRAIFAUXFAUX",BDD!$Z$2:$Z$3) -> 0 | AD92: =SUMIF(BDD!$BH$2:$BH$3,"Banc P7FAUXVRAIFAUXVRAIFAUX",BDD!$Z$2:$Z$3) -> 0 | AE92: =SUMIF(BDD!$BH$2:$BH$3,"Banc P7FAUXVRAIFAUXFAUXVRAI",BDD!$Z$2:$Z$3) -> 0 | AF92: =SUMIF(BDD!$BH$2:$BH$3,"Banc P7VRAIFAUXVRAIFAUXFAUX",BDD!$Z$2:$Z$3) -> 0 | AG92: =SUMIF(BDD!$BH$2:$BH$3,"Banc P7VRAIFAUXFAUXVRAIFAUX",BDD!$Z$2:$Z$3) -> 0 | AH92: =SUMIF(BDD!$BH$2:$BH$3,"Banc P7VRAIFAUXFAUXFAUXVRAI",BDD!$Z$2:$Z$3) -> 0 | AI92: =SUMIF(BDD!$BH$2:$BH$3,"Banc P7FAUXVRAIVRAIFAUXFAUX",BDD!$Z$2:$Z$3) -> 0 | AJ92: =SUMIF(BDD!$BH$2:$BH$3,"Banc P7FAUXVRAIFAUXVRAIFAUX",BDD!$Z$2:$Z$3) -> 0 | AK92: =SUMIF(BDD!$BH$2:$BH$3,"Banc P7FAUXVRAIFAUXFAUXVRAI",BDD!$Z$2:$Z$3) -> 0 | AL92: =SUMIF(BDD!$BH$2:$BH$3,"Banc P7VRAIFAUXVRAIFAUXFAUX",BDD!$Z$2:$Z$3) -> 0 | AM92: =SUMIF(BDD!$BH$2:$BH$3,"Banc P7VRAIFAUXFAUXVRAIFAUX",BDD!$Z$2:$Z$3) -> 0 | AN92: =SUMIF(BDD!$BH$2:$BH$3,"Banc P7VRAIFAUXFAUXFAUXVRAI",BDD!$Z$2:$Z$3) -> 0 | AO92: =SUMIF(BDD!$BH$2:$BH$3,"Banc P7FAUXVRAIVRAIFAUXFAUX",BDD!$Z$2:$Z$3) -> 0 | AP92: =SUMIF(BDD!$BH$2:$BH$3,"Banc P7FAUXVRAIFAUXVRAIFAUX",BDD!$Z$2:$Z$3) -> 0 | AQ92: =SUMIF(BDD!$BH$2:$BH$3,"Banc P7FAUXVRAIFAUXFAUXVRAI",BDD!$Z$2:$Z$3) -> 0 | AR92: =SUMIF(BDD!$BH$2:$BH$3,"Banc P7VRAIFAUXVRAIFAUXFAUX",BDD!$Z$2:$Z$3) -> 0 | AS92: =SUMIF(BDD!$BH$2:$BH$3,"Banc P7VRAIFAUXFAUXVRAIFAUX",BDD!$Z$2:$Z$3) -> 0 | AT92: =SUMIF(BDD!$BH$2:$BH$3,"Banc P7VRAIFAUXFAUXFAUXVRAI",BDD!$Z$2:$Z$3) -> 0 | AU92: =SUMIF(BDD!$BH$2:$BH$3,"Banc P7FAUXVRAIVRAIFAUXFAUX",BDD!$Z$2:$Z$3) -> 0 | AV92: =SUMIF(BDD!$BH$2:$BH$3,"Banc P7FAUXVRAIFAUXVRAIFAUX",BDD!$Z$2:$Z$3) -> 0 | AW92: =SUMIF(BDD!$BH$2:$BH$3,"Banc P7FAUXVRAIFAUXFAUXVRAI",BDD!$Z$2:$Z$3) -> 0 | AX92: =SUMIF(BDD!$BH$2:$BH$3,"Banc P7VRAIFAUXVRAIFAUXFAUX",BDD!$Z$2:$Z$3) -> 0 | AY92: =SUMIF(BDD!$BH$2:$BH$3,"Banc P7VRAIFAUXFAUXVRAIFAUX",BDD!$Z$2:$Z$3) -> 0 | AZ92: =SUMIF(BDD!$BH$2:$BH$3,"Banc P7VRAIFAUXFAUXFAUXVRAI",BDD!$Z$2:$Z$3) -> 0 | BA92: =SUMIF(BDD!$BH$2:$BH$3,"Banc P7FAUXVRAIVRAIFAUXFAUX",BDD!$Z$2:$Z$3) -> 0 | BB92: =SUMIF(BDD!$BH$2:$BH$3,"Banc P7FAUXVRAIFAUXVRAIFAUX",BDD!$Z$2:$Z$3) -> 0 | BC92: =SUMIF(BDD!$BH$2:$BH$3,"Banc P7FAUXVRAIFAUXFAUXVRAI",BDD!$Z$2:$Z$3) -> 0 | BD92: =SUMIF(BDD!$BH$2:$BH$3,"Banc P7VRAIFAUXVRAIFAUXFAUX",BDD!$Z$2:$Z$3) -> 0 | BE92: =SUMIF(BDD!$BH$2:$BH$3,"Banc P7VRAIFAUXFAUXVRAIFAUX",BDD!$Z$2:$Z$3) -> 0 | BF92: =SUMIF(BDD!$BH$2:$BH$3,"Banc P7VRAIFAUXFAUXFAUXVRAI",BDD!$Z$2:$Z$3) -> 0 | BG92: =SUMIF(BDD!$BH$2:$BH$3,"Banc P7FAUXVRAIVRAIFAUXFAUX",BDD!$Z$2:$Z$3) -> 0 | BH92: =SUMIF(BDD!$BH$2:$BH$3,"Banc P7FAUXVRAIFAUXVRAIFAUX",BDD!$Z$2:$Z$3) -> 0 | BI92: =SUMIF(BDD!$BH$2:$BH$3,"Banc P7FAUXVRAIFAUXFAUXVRAI",BDD!$Z$2:$Z$3) -> 0 | BJ92: =SUMIF(BDD!$BH$2:$BH$3,"Banc P7VRAIFAUXVRAIFAUXFAUX",BDD!$Z$2:$Z$3) -> 0 | BK92: =SUMIF(BDD!$BH$2:$BH$3,"Banc P7VRAIFAUXFAUXVRAIFAUX",BDD!$Z$2:$Z$3) -> 0 | BL92: =SUMIF(BDD!$BH$2:$BH$3,"Banc P7VRAIFAUXFAUXFAUXVRAI",BDD!$Z$2:$Z$3) -> 0 | BM92: =SUMIF(BDD!$BH$2:$BH$3,"Banc P7FAUXVRAIVRAIFAUXFAUX",BDD!$Z$2:$Z$3) -> 0 | BN92: =SUMIF(BDD!$BH$2:$BH$3,"Banc P7FAUXVRAIFAUXVRAIFAUX",BDD!$Z$2:$Z$3) -> 0 | BO92: =SUMIF(BDD!$BH$2:$BH$3,"Banc P7FAUXVRAIFAUXFAUXVRAI",BDD!$Z$2:$Z$3) -> 0 | BP92: =SUMIF(BDD!$BH$2:$BH$3,"Banc P7VRAIFAUXVRAIFAUXFAUX",BDD!$Z$2:$Z$3) -> 0 | BQ92: =SUMIF(BDD!$BH$2:$BH$3,"Banc P7VRAIFAUXFAUXVRAIFAUX",BDD!$Z$2:$Z$3) -> 0 | BR92: =SUMIF(BDD!$BH$2:$BH$3,"Banc P7VRAIFAUXFAUXFAUXVRAI",BDD!$Z$2:$Z$3) -> 0 | BS92: =SUMIF(BDD!$BH$2:$BH$3,"Banc P7FAUXVRAIVRAIFAUXFAUX",BDD!$Z$2:$Z$3) -> 0 | BT92: =SUMIF(BDD!$BH$2:$BH$3,"Banc P7FAUXVRAIFAUXVRAIFAUX",BDD!$Z$2:$Z$3) -> 0 | BU92: =SUMIF(BDD!$BH$2:$BH$3,"Banc P7FAUXVRAIFAUXFAUXVRAI",BDD!$Z$2:$Z$3) -> 0
A93: Banc 101 | B93: =SUMIF(BDD!$BH$2:$BH$3,"Banc 101VRAIFAUXVRAIFAUXFAUX",BDD!$Z$2:$Z$3) -> 0 | C93: =SUMIF(BDD!$BH$2:$BH$3,"Banc 101VRAIFAUXFAUXVRAIFAUX",BDD!$Z$2:$Z$3) -> 0 | D93: =SUMIF(BDD!$BH$2:$BH$3,"Banc 101VRAIFAUXFAUXFAUXVRAI",BDD!$Z$2:$Z$3) -> 0 | E93: =SUMIF(BDD!$BH$2:$BH$3,"Banc 101FAUXVRAIVRAIFAUXFAUX",BDD!$Z$2:$Z$3) -> 0 | F93: =SUMIF(BDD!$BH$2:$BH$3,"Banc 101FAUXVRAIFAUXVRAIFAUX",BDD!$Z$2:$Z$3) -> 0 | G93: =SUMIF(BDD!$BH$2:$BH$3,"Banc 101FAUXVRAIFAUXFAUXVRAI",BDD!$Z$2:$Z$3) -> 0 | H93: =SUMIF(BDD!$BH$2:$BH$3,"Banc 101VRAIFAUXVRAIFAUXFAUX",BDD!$Z$2:$Z$3) -> 0 | I93: =SUMIF(BDD!$BH$2:$BH$3,"Banc 101VRAIFAUXFAUXVRAIFAUX",BDD!$Z$2:$Z$3) -> 0 | J93: =SUMIF(BDD!$BH$2:$BH$3,"Banc 101VRAIFAUXFAUXFAUXVRAI",BDD!$Z$2:$Z$3) -> 0 | K93: =SUMIF(BDD!$BH$2:$BH$3,"Banc 101FAUXVRAIVRAIFAUXFAUX",BDD!$Z$2:$Z$3) -> 0 | L93: =SUMIF(BDD!$BH$2:$BH$3,"Banc 101FAUXVRAIFAUXVRAIFAUX",BDD!$Z$2:$Z$3) -> 0 | M93: =SUMIF(BDD!$BH$2:$BH$3,"Banc 101FAUXVRAIFAUXFAUXVRAI",BDD!$Z$2:$Z$3) -> 0 | N93: =SUMIF(BDD!$BH$2:$BH$683,"Banc 101VRAIFAUXVRAIFAUXFAUX",BDD!$Z$2:$Z$683) -> 0 | O93: =SUMIF(BDD!$BH$2:$BH$683,"Banc 101VRAIFAUXFAUXVRAIFAUX",BDD!$Z$2:$Z$683) -> 0 | P93: =SUMIF(BDD!$BH$2:$BH$683,"Banc 101VRAIFAUXFAUXFAUXVRAI",BDD!$Z$2:$Z$683) -> 0 | Q93: =SUMIF(BDD!$BH$2:$BH$683,"Banc 101FAUXVRAIVRAIFAUXFAUX",BDD!$Z$2:$Z$683) -> 0.1 | R93: =SUMIF(BDD!$BH$2:$BH$683,"Banc 101FAUXVRAIFAUXVRAIFAUX",BDD!$Z$2:$Z$683) -> 0 | S93: =SUMIF(BDD!$BH$2:$BH$683,"Banc 101FAUXVRAIFAUXFAUXVRAI",BDD!$Z$2:$Z$683) -> 0 | T93: =SUMIF(BDD!$BH$2:$BH$3,"Banc 101VRAIFAUXVRAIFAUXFAUX",BDD!$Z$2:$Z$3) -> 0 | U93: =SUMIF(BDD!$BH$2:$BH$3,"Banc 101VRAIFAUXFAUXVRAIFAUX",BDD!$Z$2:$Z$3) -> 0 | V93: =SUMIF(BDD!$BH$2:$BH$3,"Banc 101VRAIFAUXFAUXFAUXVRAI",BDD!$Z$2:$Z$3) -> 0 | W93: =SUMIF(BDD!$BH$2:$BH$3,"Banc 101FAUXVRAIVRAIFAUXFAUX",BDD!$Z$2:$Z$3) -> 0 | X93: =SUMIF(BDD!$BH$2:$BH$3,"Banc 101FAUXVRAIFAUXVRAIFAUX",BDD!$Z$2:$Z$3) -> 0 | Y93: =SUMIF(BDD!$BH$2:$BH$3,"Banc 101FAUXVRAIFAUXFAUXVRAI",BDD!$Z$2:$Z$3) -> 0 | Z93: =SUMIF(BDD!$BH$2:$BH$3,"Banc 101VRAIFAUXVRAIFAUXFAUX",BDD!$Z$2:$Z$3) -> 0 | AA93: =SUMIF(BDD!$BH$2:$BH$3,"Banc 101VRAIFAUXFAUXVRAIFAUX",BDD!$Z$2:$Z$3) -> 0 | AB93: =SUMIF(BDD!$BH$2:$BH$3,"Banc 101VRAIFAUXFAUXFAUXVRAI",BDD!$Z$2:$Z$3) -> 0 | AC93: =SUMIF(BDD!$BH$2:$BH$3,"Banc 101FAUXVRAIVRAIFAUXFAUX",BDD!$Z$2:$Z$3) -> 0 | AD93: =SUMIF(BDD!$BH$2:$BH$3,"Banc 101FAUXVRAIFAUXVRAIFAUX",BDD!$Z$2:$Z$3) -> 0 | AE93: =SUMIF(BDD!$BH$2:$BH$3,"Banc 101FAUXVRAIFAUXFAUXVRAI",BDD!$Z$2:$Z$3) -> 0 | AF93: =SUMIF(BDD!$BH$2:$BH$3,"Banc 101VRAIFAUXVRAIFAUXFAUX",BDD!$Z$2:$Z$3) -> 0 | AG93: =SUMIF(BDD!$BH$2:$BH$3,"Banc 101VRAIFAUXFAUXVRAIFAUX",BDD!$Z$2:$Z$3) -> 0 | AH93: =SUMIF(BDD!$BH$2:$BH$3,"Banc 101VRAIFAUXFAUXFAUXVRAI",BDD!$Z$2:$Z$3) -> 0 | AI93: =SUMIF(BDD!$BH$2:$BH$3,"Banc 101FAUXVRAIVRAIFAUXFAUX",BDD!$Z$2:$Z$3) -> 0 | AJ93: =SUMIF(BDD!$BH$2:$BH$3,"Banc 101FAUXVRAIFAUXVRAIFAUX",BDD!$Z$2:$Z$3) -> 0 | AK93: =SUMIF(BDD!$BH$2:$BH$3,"Banc 101FAUXVRAIFAUXFAUXVRAI",BDD!$Z$2:$Z$3) -> 0 | AL93: =SUMIF(BDD!$BH$2:$BH$3,"Banc 101VRAIFAUXVRAIFAUXFAUX",BDD!$Z$2:$Z$3) -> 0 | AM93: =SUMIF(BDD!$BH$2:$BH$3,"Banc 101VRAIFAUXFAUXVRAIFAUX",BDD!$Z$2:$Z$3) -> 0 | AN93: =SUMIF(BDD!$BH$2:$BH$3,"Banc 101VRAIFAUXFAUXFAUXVRAI",BDD!$Z$2:$Z$3) -> 0 | AO93: =SUMIF(BDD!$BH$2:$BH$3,"Banc 101FAUXVRAIVRAIFAUXFAUX",BDD!$Z$2:$Z$3) -> 0 | AP93: =SUMIF(BDD!$BH$2:$BH$3,"Banc 101FAUXVRAIFAUXVRAIFAUX",BDD!$Z$2:$Z$3) -> 0 | AQ93: =SUMIF(BDD!$BH$2:$BH$3,"Banc 101FAUXVRAIFAUXFAUXVRAI",BDD!$Z$2:$Z$3) -> 0 | AR93: =SUMIF(BDD!$BH$2:$BH$3,"Banc 101VRAIFAUXVRAIFAUXFAUX",BDD!$Z$2:$Z$3) -> 0 | AS93: =SUMIF(BDD!$BH$2:$BH$3,"Banc 101VRAIFAUXFAUXVRAIFAUX",BDD!$Z$2:$Z$3) -> 0 | AT93: =SUMIF(BDD!$BH$2:$BH$3,"Banc 101VRAIFAUXFAUXFAUXVRAI",BDD!$Z$2:$Z$3) -> 0 | AU93: =SUMIF(BDD!$BH$2:$BH$3,"Banc 101FAUXVRAIVRAIFAUXFAUX",BDD!$Z$2:$Z$3) -> 0 | AV93: =SUMIF(BDD!$BH$2:$BH$3,"Banc 101FAUXVRAIFAUXVRAIFAUX",BDD!$Z$2:$Z$3) -> 0 | AW93: =SUMIF(BDD!$BH$2:$BH$3,"Banc 101FAUXVRAIFAUXFAUXVRAI",BDD!$Z$2:$Z$3) -> 0 | AX93: =SUMIF(BDD!$BH$2:$BH$3,"Banc 101VRAIFAUXVRAIFAUXFAUX",BDD!$Z$2:$Z$3) -> 0 | AY93: =SUMIF(BDD!$BH$2:$BH$3,"Banc 101VRAIFAUXFAUXVRAIFAUX",BDD!$Z$2:$Z$3) -> 0 | AZ93: =SUMIF(BDD!$BH$2:$BH$3,"Banc 101VRAIFAUXFAUXFAUXVRAI",BDD!$Z$2:$Z$3) -> 0 | BA93: =SUMIF(BDD!$BH$2:$BH$3,"Banc 101FAUXVRAIVRAIFAUXFAUX",BDD!$Z$2:$Z$3) -> 0 | BB93: =SUMIF(BDD!$BH$2:$BH$3,"Banc 101FAUXVRAIFAUXVRAIFAUX",BDD!$Z$2:$Z$3) -> 0 | BC93: =SUMIF(BDD!$BH$2:$BH$3,"Banc 101FAUXVRAIFAUXFAUXVRAI",BDD!$Z$2:$Z$3) -> 0 | BD93: =SUMIF(BDD!$BH$2:$BH$3,"Banc 101VRAIFAUXVRAIFAUXFAUX",BDD!$Z$2:$Z$3) -> 0 | BE93: =SUMIF(BDD!$BH$2:$BH$3,"Banc 101VRAIFAUXFAUXVRAIFAUX",BDD!$Z$2:$Z$3) -> 0 | BF93: =SUMIF(BDD!$BH$2:$BH$3,"Banc 101VRAIFAUXFAUXFAUXVRAI",BDD!$Z$2:$Z$3) -> 0 | BG93: =SUMIF(BDD!$BH$2:$BH$3,"Banc 101FAUXVRAIVRAIFAUXFAUX",BDD!$Z$2:$Z$3) -> 0 | BH93: =SUMIF(BDD!$BH$2:$BH$3,"Banc 101FAUXVRAIFAUXVRAIFAUX",BDD!$Z$2:$Z$3) -> 0 | BI93: =SUMIF(BDD!$BH$2:$BH$3,"Banc 101FAUXVRAIFAUXFAUXVRAI",BDD!$Z$2:$Z$3) -> 0 | BJ93: =SUMIF(BDD!$BH$2:$BH$3,"Banc 101VRAIFAUXVRAIFAUXFAUX",BDD!$Z$2:$Z$3) -> 0 | BK93: =SUMIF(BDD!$BH$2:$BH$3,"Banc 101VRAIFAUXFAUXVRAIFAUX",BDD!$Z$2:$Z$3) -> 0 | BL93: =SUMIF(BDD!$BH$2:$BH$3,"Banc 101VRAIFAUXFAUXFAUXVRAI",BDD!$Z$2:$Z$3) -> 0 | BM93: =SUMIF(BDD!$BH$2:$BH$3,"Banc 101FAUXVRAIVRAIFAUXFAUX",BDD!$Z$2:$Z$3) -> 0 | BN93: =SUMIF(BDD!$BH$2:$BH$3,"Banc 101FAUXVRAIFAUXVRAIFAUX",BDD!$Z$2:$Z$3) -> 0 | BO93: =SUMIF(BDD!$BH$2:$BH$3,"Banc 101FAUXVRAIFAUXFAUXVRAI",BDD!$Z$2:$Z$3) -> 0 | BP93: =SUMIF(BDD!$BH$2:$BH$3,"Banc 101VRAIFAUXVRAIFAUXFAUX",BDD!$Z$2:$Z$3) -> 0 | BQ93: =SUMIF(BDD!$BH$2:$BH$3,"Banc 101VRAIFAUXFAUXVRAIFAUX",BDD!$Z$2:$Z$3) -> 0 | BR93: =SUMIF(BDD!$BH$2:$BH$3,"Banc 101VRAIFAUXFAUXFAUXVRAI",BDD!$Z$2:$Z$3) -> 0 | BS93: =SUMIF(BDD!$BH$2:$BH$3,"Banc 101FAUXVRAIVRAIFAUXFAUX",BDD!$Z$2:$Z$3) -> 0 | BT93: =SUMIF(BDD!$BH$2:$BH$3,"Banc 101FAUXVRAIFAUXVRAIFAUX",BDD!$Z$2:$Z$3) -> 0 | BU93: =SUMIF(BDD!$BH$2:$BH$3,"Banc 101FAUXVRAIFAUXFAUXVRAI",BDD!$Z$2:$Z$3) -> 0
A94: Banc 104 | B94: =SUMIF(BDD!$BH$2:$BH$3,"Banc 104VRAIFAUXVRAIFAUXFAUX",BDD!$Z$2:$Z$3) -> 0 | C94: =SUMIF(BDD!$BH$2:$BH$3,"Banc 104VRAIFAUXFAUXVRAIFAUX",BDD!$Z$2:$Z$3) -> 0 | D94: =SUMIF(BDD!$BH$2:$BH$3,"Banc 104VRAIFAUXFAUXFAUXVRAI",BDD!$Z$2:$Z$3) -> 0 | E94: =SUMIF(BDD!$BH$2:$BH$3,"Banc 104FAUXVRAIVRAIFAUXFAUX",BDD!$Z$2:$Z$3) -> 0 | F94: =SUMIF(BDD!$BH$2:$BH$3,"Banc 104FAUXVRAIFAUXVRAIFAUX",BDD!$Z$2:$Z$3) -> 0 | G94: =SUMIF(BDD!$BH$2:$BH$3,"Banc 104FAUXVRAIFAUXFAUXVRAI",BDD!$Z$2:$Z$3) -> 0 | H94: =SUMIF(BDD!$BH$2:$BH$3,"Banc 104VRAIFAUXVRAIFAUXFAUX",BDD!$Z$2:$Z$3) -> 0 | I94: =SUMIF(BDD!$BH$2:$BH$3,"Banc 104VRAIFAUXFAUXVRAIFAUX",BDD!$Z$2:$Z$3) -> 0 | J94: =SUMIF(BDD!$BH$2:$BH$3,"Banc 104VRAIFAUXFAUXFAUXVRAI",BDD!$Z$2:$Z$3) -> 0 | K94: =SUMIF(BDD!$BH$2:$BH$3,"Banc 104FAUXVRAIVRAIFAUXFAUX",BDD!$Z$2:$Z$3) -> 0 | L94: =SUMIF(BDD!$BH$2:$BH$3,"Banc 104FAUXVRAIFAUXVRAIFAUX",BDD!$Z$2:$Z$3) -> 0 | M94: =SUMIF(BDD!$BH$2:$BH$3,"Banc 104FAUXVRAIFAUXFAUXVRAI",BDD!$Z$2:$Z$3) -> 0 | N94: =SUMIF(BDD!$BH$2:$BH$683,"Banc 104VRAIFAUXVRAIFAUXFAUX",BDD!$Z$2:$Z$683) -> 0.1 | O94: =SUMIF(BDD!$BH$2:$BH$683,"Banc 104VRAIFAUXFAUXVRAIFAUX",BDD!$Z$2:$Z$683) -> 0 | P94: =SUMIF(BDD!$BH$2:$BH$683,"Banc 104VRAIFAUXFAUXFAUXVRAI",BDD!$Z$2:$Z$683) -> 2 | Q94: =SUMIF(BDD!$BH$2:$BH$683,"Banc 104FAUXVRAIVRAIFAUXFAUX",BDD!$Z$2:$Z$683) -> 0 | R94: =SUMIF(BDD!$BH$2:$BH$683,"Banc 104FAUXVRAIFAUXVRAIFAUX",BDD!$Z$2:$Z$683) -> 0 | S94: =SUMIF(BDD!$BH$2:$BH$683,"Banc 104FAUXVRAIFAUXFAUXVRAI",BDD!$Z$2:$Z$683) -> 1 | T94: =SUMIF(BDD!$BH$2:$BH$3,"Banc 104VRAIFAUXVRAIFAUXFAUX",BDD!$Z$2:$Z$3) -> 0 | U94: =SUMIF(BDD!$BH$2:$BH$3,"Banc 104VRAIFAUXFAUXVRAIFAUX",BDD!$Z$2:$Z$3) -> 0 | V94: =SUMIF(BDD!$BH$2:$BH$3,"Banc 104VRAIFAUXFAUXFAUXVRAI",BDD!$Z$2:$Z$3) -> 0 | W94: =SUMIF(BDD!$BH$2:$BH$3,"Banc 104FAUXVRAIVRAIFAUXFAUX",BDD!$Z$2:$Z$3) -> 0 | X94: =SUMIF(BDD!$BH$2:$BH$3,"Banc 104FAUXVRAIFAUXVRAIFAUX",BDD!$Z$2:$Z$3) -> 0 | Y94: =SUMIF(BDD!$BH$2:$BH$3,"Banc 104FAUXVRAIFAUXFAUXVRAI",BDD!$Z$2:$Z$3) -> 0 | Z94: =SUMIF(BDD!$BH$2:$BH$3,"Banc 104VRAIFAUXVRAIFAUXFAUX",BDD!$Z$2:$Z$3) -> 0 | AA94: =SUMIF(BDD!$BH$2:$BH$3,"Banc 104VRAIFAUXFAUXVRAIFAUX",BDD!$Z$2:$Z$3) -> 0 | AB94: =SUMIF(BDD!$BH$2:$BH$3,"Banc 104VRAIFAUXFAUXFAUXVRAI",BDD!$Z$2:$Z$3) -> 0 | AC94: =SUMIF(BDD!$BH$2:$BH$3,"Banc 104FAUXVRAIVRAIFAUXFAUX",BDD!$Z$2:$Z$3) -> 0 | AD94: =SUMIF(BDD!$BH$2:$BH$3,"Banc 104FAUXVRAIFAUXVRAIFAUX",BDD!$Z$2:$Z$3) -> 0 | AE94: =SUMIF(BDD!$BH$2:$BH$3,"Banc 104FAUXVRAIFAUXFAUXVRAI",BDD!$Z$2:$Z$3) -> 0 | AF94: =SUMIF(BDD!$BH$2:$BH$3,"Banc 104VRAIFAUXVRAIFAUXFAUX",BDD!$Z$2:$Z$3) -> 0 | AG94: =SUMIF(BDD!$BH$2:$BH$3,"Banc 104VRAIFAUXFAUXVRAIFAUX",BDD!$Z$2:$Z$3) -> 0 | AH94: =SUMIF(BDD!$BH$2:$BH$3,"Banc 104VRAIFAUXFAUXFAUXVRAI",BDD!$Z$2:$Z$3) -> 0 | AI94: =SUMIF(BDD!$BH$2:$BH$3,"Banc 104FAUXVRAIVRAIFAUXFAUX",BDD!$Z$2:$Z$3) -> 0 | AJ94: =SUMIF(BDD!$BH$2:$BH$3,"Banc 104FAUXVRAIFAUXVRAIFAUX",BDD!$Z$2:$Z$3) -> 0 | AK94: =SUMIF(BDD!$BH$2:$BH$3,"Banc 104FAUXVRAIFAUXFAUXVRAI",BDD!$Z$2:$Z$3) -> 0 | AL94: =SUMIF(BDD!$BH$2:$BH$3,"Banc 104VRAIFAUXVRAIFAUXFAUX",BDD!$Z$2:$Z$3) -> 0 | AM94: =SUMIF(BDD!$BH$2:$BH$3,"Banc 104VRAIFAUXFAUXVRAIFAUX",BDD!$Z$2:$Z$3) -> 0 | AN94: =SUMIF(BDD!$BH$2:$BH$3,"Banc 104VRAIFAUXFAUXFAUXVRAI",BDD!$Z$2:$Z$3) -> 0 | AO94: =SUMIF(BDD!$BH$2:$BH$3,"Banc 104FAUXVRAIVRAIFAUXFAUX",BDD!$Z$2:$Z$3) -> 0 | AP94: =SUMIF(BDD!$BH$2:$BH$3,"Banc 104FAUXVRAIFAUXVRAIFAUX",BDD!$Z$2:$Z$3) -> 0 | AQ94: =SUMIF(BDD!$BH$2:$BH$3,"Banc 104FAUXVRAIFAUXFAUXVRAI",BDD!$Z$2:$Z$3) -> 0 | AR94: =SUMIF(BDD!$BH$2:$BH$3,"Banc 104VRAIFAUXVRAIFAUXFAUX",BDD!$Z$2:$Z$3) -> 0 | AS94: =SUMIF(BDD!$BH$2:$BH$3,"Banc 104VRAIFAUXFAUXVRAIFAUX",BDD!$Z$2:$Z$3) -> 0 | AT94: =SUMIF(BDD!$BH$2:$BH$3,"Banc 104VRAIFAUXFAUXFAUXVRAI",BDD!$Z$2:$Z$3) -> 0 | AU94: =SUMIF(BDD!$BH$2:$BH$3,"Banc 104FAUXVRAIVRAIFAUXFAUX",BDD!$Z$2:$Z$3) -> 0 | AV94: =SUMIF(BDD!$BH$2:$BH$3,"Banc 104FAUXVRAIFAUXVRAIFAUX",BDD!$Z$2:$Z$3) -> 0 | AW94: =SUMIF(BDD!$BH$2:$BH$3,"Banc 104FAUXVRAIFAUXFAUXVRAI",BDD!$Z$2:$Z$3) -> 0 | AX94: =SUMIF(BDD!$BH$2:$BH$3,"Banc 104VRAIFAUXVRAIFAUXFAUX",BDD!$Z$2:$Z$3) -> 0 | AY94: =SUMIF(BDD!$BH$2:$BH$3,"Banc 104VRAIFAUXFAUXVRAIFAUX",BDD!$Z$2:$Z$3) -> 0 | AZ94: =SUMIF(BDD!$BH$2:$BH$3,"Banc 104VRAIFAUXFAUXFAUXVRAI",BDD!$Z$2:$Z$3) -> 0 | BA94: =SUMIF(BDD!$BH$2:$BH$3,"Banc 104FAUXVRAIVRAIFAUXFAUX",BDD!$Z$2:$Z$3) -> 0 | BB94: =SUMIF(BDD!$BH$2:$BH$3,"Banc 104FAUXVRAIFAUXVRAIFAUX",BDD!$Z$2:$Z$3) -> 0 | BC94: =SUMIF(BDD!$BH$2:$BH$3,"Banc 104FAUXVRAIFAUXFAUXVRAI",BDD!$Z$2:$Z$3) -> 0 | BD94: =SUMIF(BDD!$BH$2:$BH$3,"Banc 104VRAIFAUXVRAIFAUXFAUX",BDD!$Z$2:$Z$3) -> 0 | BE94: =SUMIF(BDD!$BH$2:$BH$3,"Banc 104VRAIFAUXFAUXVRAIFAUX",BDD!$Z$2:$Z$3) -> 0 | BF94: =SUMIF(BDD!$BH$2:$BH$3,"Banc 104VRAIFAUXFAUXFAUXVRAI",BDD!$Z$2:$Z$3) -> 0 | BG94: =SUMIF(BDD!$BH$2:$BH$3,"Banc 104FAUXVRAIVRAIFAUXFAUX",BDD!$Z$2:$Z$3) -> 0 | BH94: =SUMIF(BDD!$BH$2:$BH$3,"Banc 104FAUXVRAIFAUXVRAIFAUX",BDD!$Z$2:$Z$3) -> 0 | BI94: =SUMIF(BDD!$BH$2:$BH$3,"Banc 104FAUXVRAIFAUXFAUXVRAI",BDD!$Z$2:$Z$3) -> 0 | BJ94: =SUMIF(BDD!$BH$2:$BH$3,"Banc 104VRAIFAUXVRAIFAUXFAUX",BDD!$Z$2:$Z$3) -> 0 | BK94: =SUMIF(BDD!$BH$2:$BH$3,"Banc 104VRAIFAUXFAUXVRAIFAUX",BDD!$Z$2:$Z$3) -> 0 | BL94: =SUMIF(BDD!$BH$2:$BH$3,"Banc 104VRAIFAUXFAUXFAUXVRAI",BDD!$Z$2:$Z$3) -> 0 | BM94: =SUMIF(BDD!$BH$2:$BH$3,"Banc 104FAUXVRAIVRAIFAUXFAUX",BDD!$Z$2:$Z$3) -> 0 | BN94: =SUMIF(BDD!$BH$2:$BH$3,"Banc 104FAUXVRAIFAUXVRAIFAUX",BDD!$Z$2:$Z$3) -> 0 | BO94: =SUMIF(BDD!$BH$2:$BH$3,"Banc 104FAUXVRAIFAUXFAUXVRAI",BDD!$Z$2:$Z$3) -> 0 | BP94: =SUMIF(BDD!$BH$2:$BH$3,"Banc 104VRAIFAUXVRAIFAUXFAUX",BDD!$Z$2:$Z$3) -> 0 | BQ94: =SUMIF(BDD!$BH$2:$BH$3,"Banc 104VRAIFAUXFAUXVRAIFAUX",BDD!$Z$2:$Z$3) -> 0 | BR94: =SUMIF(BDD!$BH$2:$BH$3,"Banc 104VRAIFAUXFAUXFAUXVRAI",BDD!$Z$2:$Z$3) -> 0 | BS94: =SUMIF(BDD!$BH$2:$BH$3,"Banc 104FAUXVRAIVRAIFAUXFAUX",BDD!$Z$2:$Z$3) -> 0 | BT94: =SUMIF(BDD!$BH$2:$BH$3,"Banc 104FAUXVRAIFAUXVRAIFAUX",BDD!$Z$2:$Z$3) -> 0 | BU94: =SUMIF(BDD!$BH$2:$BH$3,"Banc 104FAUXVRAIFAUXFAUXVRAI",BDD!$Z$2:$Z$3) -> 0
A95: Banc 121 | B95: =SUMIF(BDD!$BH$2:$BH$3,"Banc 121VRAIFAUXVRAIFAUXFAUX",BDD!$Z$2:$Z$3) -> 0 | C95: =SUMIF(BDD!$BH$2:$BH$3,"Banc 121VRAIFAUXFAUXVRAIFAUX",BDD!$Z$2:$Z$3) -> 0 | D95: =SUMIF(BDD!$BH$2:$BH$3,"Banc 121VRAIFAUXFAUXFAUXVRAI",BDD!$Z$2:$Z$3) -> 0 | E95: =SUMIF(BDD!$BH$2:$BH$3,"Banc 121FAUXVRAIVRAIFAUXFAUX",BDD!$Z$2:$Z$3) -> 0 | F95: =SUMIF(BDD!$BH$2:$BH$3,"Banc 121FAUXVRAIFAUXVRAIFAUX",BDD!$Z$2:$Z$3) -> 0 | G95: =SUMIF(BDD!$BH$2:$BH$3,"Banc 121FAUXVRAIFAUXFAUXVRAI",BDD!$Z$2:$Z$3) -> 0 | H95: =SUMIF(BDD!$BH$2:$BH$3,"Banc 121VRAIFAUXVRAIFAUXFAUX",BDD!$Z$2:$Z$3) -> 0 | I95: =SUMIF(BDD!$BH$2:$BH$3,"Banc 121VRAIFAUXFAUXVRAIFAUX",BDD!$Z$2:$Z$3) -> 0 | J95: =SUMIF(BDD!$BH$2:$BH$3,"Banc 121VRAIFAUXFAUXFAUXVRAI",BDD!$Z$2:$Z$3) -> 0 | K95: =SUMIF(BDD!$BH$2:$BH$3,"Banc 121FAUXVRAIVRAIFAUXFAUX",BDD!$Z$2:$Z$3) -> 0 | L95: =SUMIF(BDD!$BH$2:$BH$3,"Banc 121FAUXVRAIFAUXVRAIFAUX",BDD!$Z$2:$Z$3) -> 0 | M95: =SUMIF(BDD!$BH$2:$BH$3,"Banc 121FAUXVRAIFAUXFAUXVRAI",BDD!$Z$2:$Z$3) -> 0 | N95: =SUMIF(BDD!$BH$2:$BH$683,"Banc 121VRAIFAUXVRAIFAUXFAUX",BDD!$Z$2:$Z$683) -> 0 | O95: =SUMIF(BDD!$BH$2:$BH$683,"Banc 121VRAIFAUXFAUXVRAIFAUX",BDD!$Z$2:$Z$683) -> 0 | P95: =SUMIF(BDD!$BH$2:$BH$683,"Banc 121VRAIFAUXFAUXFAUXVRAI",BDD!$Z$2:$Z$683) -> 0 | Q95: =SUMIF(BDD!$BH$2:$BH$683,"Banc 121FAUXVRAIVRAIFAUXFAUX",BDD!$Z$2:$Z$683) -> 0 | R95: =SUMIF(BDD!$BH$2:$BH$683,"Banc 121FAUXVRAIFAUXVRAIFAUX",BDD!$Z$2:$Z$683) -> 0 | S95: =SUMIF(BDD!$BH$2:$BH$683,"Banc 121FAUXVRAIFAUXFAUXVRAI",BDD!$Z$2:$Z$683) -> 0 | T95: =SUMIF(BDD!$BH$2:$BH$3,"Banc 121VRAIFAUXVRAIFAUXFAUX",BDD!$Z$2:$Z$3) -> 0 | U95: =SUMIF(BDD!$BH$2:$BH$3,"Banc 121VRAIFAUXFAUXVRAIFAUX",BDD!$Z$2:$Z$3) -> 0 | V95: =SUMIF(BDD!$BH$2:$BH$3,"Banc 121VRAIFAUXFAUXFAUXVRAI",BDD!$Z$2:$Z$3) -> 0 | W95: =SUMIF(BDD!$BH$2:$BH$3,"Banc 121FAUXVRAIVRAIFAUXFAUX",BDD!$Z$2:$Z$3) -> 0 | X95: =SUMIF(BDD!$BH$2:$BH$3,"Banc 121FAUXVRAIFAUXVRAIFAUX",BDD!$Z$2:$Z$3) -> 0 | Y95: =SUMIF(BDD!$BH$2:$BH$3,"Banc 121FAUXVRAIFAUXFAUXVRAI",BDD!$Z$2:$Z$3) -> 0 | Z95: =SUMIF(BDD!$BH$2:$BH$3,"Banc 121VRAIFAUXVRAIFAUXFAUX",BDD!$Z$2:$Z$3) -> 0 | AA95: =SUMIF(BDD!$BH$2:$BH$3,"Banc 121VRAIFAUXFAUXVRAIFAUX",BDD!$Z$2:$Z$3) -> 0 | AB95: =SUMIF(BDD!$BH$2:$BH$3,"Banc 121VRAIFAUXFAUXFAUXVRAI",BDD!$Z$2:$Z$3) -> 0 | AC95: =SUMIF(BDD!$BH$2:$BH$3,"Banc 121FAUXVRAIVRAIFAUXFAUX",BDD!$Z$2:$Z$3) -> 0 | AD95: =SUMIF(BDD!$BH$2:$BH$3,"Banc 121FAUXVRAIFAUXVRAIFAUX",BDD!$Z$2:$Z$3) -> 0 | AE95: =SUMIF(BDD!$BH$2:$BH$3,"Banc 121FAUXVRAIFAUXFAUXVRAI",BDD!$Z$2:$Z$3) -> 0 | AF95: =SUMIF(BDD!$BH$2:$BH$3,"Banc 121VRAIFAUXVRAIFAUXFAUX",BDD!$Z$2:$Z$3) -> 0 | AG95: =SUMIF(BDD!$BH$2:$BH$3,"Banc 121VRAIFAUXFAUXVRAIFAUX",BDD!$Z$2:$Z$3) -> 0 | AH95: =SUMIF(BDD!$BH$2:$BH$3,"Banc 121VRAIFAUXFAUXFAUXVRAI",BDD!$Z$2:$Z$3) -> 0 | AI95: =SUMIF(BDD!$BH$2:$BH$3,"Banc 121FAUXVRAIVRAIFAUXFAUX",BDD!$Z$2:$Z$3) -> 0 | AJ95: =SUMIF(BDD!$BH$2:$BH$3,"Banc 121FAUXVRAIFAUXVRAIFAUX",BDD!$Z$2:$Z$3) -> 0 | AK95: =SUMIF(BDD!$BH$2:$BH$3,"Banc 121FAUXVRAIFAUXFAUXVRAI",BDD!$Z$2:$Z$3) -> 0 | AL95: =SUMIF(BDD!$BH$2:$BH$3,"Banc 121VRAIFAUXVRAIFAUXFAUX",BDD!$Z$2:$Z$3) -> 0 | AM95: =SUMIF(BDD!$BH$2:$BH$3,"Banc 121VRAIFAUXFAUXVRAIFAUX",BDD!$Z$2:$Z$3) -> 0 | AN95: =SUMIF(BDD!$BH$2:$BH$3,"Banc 121VRAIFAUXFAUXFAUXVRAI",BDD!$Z$2:$Z$3) -> 0 | AO95: =SUMIF(BDD!$BH$2:$BH$3,"Banc 121FAUXVRAIVRAIFAUXFAUX",BDD!$Z$2:$Z$3) -> 0 | AP95: =SUMIF(BDD!$BH$2:$BH$3,"Banc 121FAUXVRAIFAUXVRAIFAUX",BDD!$Z$2:$Z$3) -> 0 | AQ95: =SUMIF(BDD!$BH$2:$BH$3,"Banc 121FAUXVRAIFAUXFAUXVRAI",BDD!$Z$2:$Z$3) -> 0 | AR95: =SUMIF(BDD!$BH$2:$BH$3,"Banc 121VRAIFAUXVRAIFAUXFAUX",BDD!$Z$2:$Z$3) -> 0 | AS95: =SUMIF(BDD!$BH$2:$BH$3,"Banc 121VRAIFAUXFAUXVRAIFAUX",BDD!$Z$2:$Z$3) -> 0 | AT95: =SUMIF(BDD!$BH$2:$BH$3,"Banc 121VRAIFAUXFAUXFAUXVRAI",BDD!$Z$2:$Z$3) -> 0 | AU95: =SUMIF(BDD!$BH$2:$BH$3,"Banc 121FAUXVRAIVRAIFAUXFAUX",BDD!$Z$2:$Z$3) -> 0 | AV95: =SUMIF(BDD!$BH$2:$BH$3,"Banc 121FAUXVRAIFAUXVRAIFAUX",BDD!$Z$2:$Z$3) -> 0 | AW95: =SUMIF(BDD!$BH$2:$BH$3,"Banc 121FAUXVRAIFAUXFAUXVRAI",BDD!$Z$2:$Z$3) -> 0 | AX95: =SUMIF(BDD!$BH$2:$BH$3,"Banc 121VRAIFAUXVRAIFAUXFAUX",BDD!$Z$2:$Z$3) -> 0 | AY95: =SUMIF(BDD!$BH$2:$BH$3,"Banc 121VRAIFAUXFAUXVRAIFAUX",BDD!$Z$2:$Z$3) -> 0 | AZ95: =SUMIF(BDD!$BH$2:$BH$3,"Banc 121VRAIFAUXFAUXFAUXVRAI",BDD!$Z$2:$Z$3) -> 0 | BA95: =SUMIF(BDD!$BH$2:$BH$3,"Banc 121FAUXVRAIVRAIFAUXFAUX",BDD!$Z$2:$Z$3) -> 0 | BB95: =SUMIF(BDD!$BH$2:$BH$3,"Banc 121FAUXVRAIFAUXVRAIFAUX",BDD!$Z$2:$Z$3) -> 0 | BC95: =SUMIF(BDD!$BH$2:$BH$3,"Banc 121FAUXVRAIFAUXFAUXVRAI",BDD!$Z$2:$Z$3) -> 0 | BD95: =SUMIF(BDD!$BH$2:$BH$3,"Banc 121VRAIFAUXVRAIFAUXFAUX",BDD!$Z$2:$Z$3) -> 0 | BE95: =SUMIF(BDD!$BH$2:$BH$3,"Banc 121VRAIFAUXFAUXVRAIFAUX",BDD!$Z$2:$Z$3) -> 0 | BF95: =SUMIF(BDD!$BH$2:$BH$3,"Banc 121VRAIFAUXFAUXFAUXVRAI",BDD!$Z$2:$Z$3) -> 0 | BG95: =SUMIF(BDD!$BH$2:$BH$3,"Banc 121FAUXVRAIVRAIFAUXFAUX",BDD!$Z$2:$Z$3) -> 0 | BH95: =SUMIF(BDD!$BH$2:$BH$3,"Banc 121FAUXVRAIFAUXVRAIFAUX",BDD!$Z$2:$Z$3) -> 0 | BI95: =SUMIF(BDD!$BH$2:$BH$3,"Banc 121FAUXVRAIFAUXFAUXVRAI",BDD!$Z$2:$Z$3) -> 0 | BJ95: =SUMIF(BDD!$BH$2:$BH$3,"Banc 121VRAIFAUXVRAIFAUXFAUX",BDD!$Z$2:$Z$3) -> 0 | BK95: =SUMIF(BDD!$BH$2:$BH$3,"Banc 121VRAIFAUXFAUXVRAIFAUX",BDD!$Z$2:$Z$3) -> 0 | BL95: =SUMIF(BDD!$BH$2:$BH$3,"Banc 121VRAIFAUXFAUXFAUXVRAI",BDD!$Z$2:$Z$3) -> 0 | BM95: =SUMIF(BDD!$BH$2:$BH$3,"Banc 121FAUXVRAIVRAIFAUXFAUX",BDD!$Z$2:$Z$3) -> 0 | BN95: =SUMIF(BDD!$BH$2:$BH$3,"Banc 121FAUXVRAIFAUXVRAIFAUX",BDD!$Z$2:$Z$3) -> 0 | BO95: =SUMIF(BDD!$BH$2:$BH$3,"Banc 121FAUXVRAIFAUXFAUXVRAI",BDD!$Z$2:$Z$3) -> 0 | BP95: =SUMIF(BDD!$BH$2:$BH$3,"Banc 121VRAIFAUXVRAIFAUXFAUX",BDD!$Z$2:$Z$3) -> 0 | BQ95: =SUMIF(BDD!$BH$2:$BH$3,"Banc 121VRAIFAUXFAUXVRAIFAUX",BDD!$Z$2:$Z$3) -> 0 | BR95: =SUMIF(BDD!$BH$2:$BH$3,"Banc 121VRAIFAUXFAUXFAUXVRAI",BDD!$Z$2:$Z$3) -> 0 | BS95: =SUMIF(BDD!$BH$2:$BH$3,"Banc 121FAUXVRAIVRAIFAUXFAUX",BDD!$Z$2:$Z$3) -> 0 | BT95: =SUMIF(BDD!$BH$2:$BH$3,"Banc 121FAUXVRAIFAUXVRAIFAUX",BDD!$Z$2:$Z$3) -> 0 | BU95: =SUMIF(BDD!$BH$2:$BH$3,"Banc 121FAUXVRAIFAUXFAUXVRAI",BDD!$Z$2:$Z$3) -> 0
A96: Pompe à eau | B96: =SUMIF(BDD!$BH$2:$BH$3,"Pompe à eauVRAIFAUXVRAIFAUXFAUX",BDD!$Z$2:$Z$3) -> 0 | C96: =SUMIF(BDD!$BH$2:$BH$3,"Pompe à eauVRAIFAUXFAUXVRAIFAUX",BDD!$Z$2:$Z$3) -> 0 | D96: =SUMIF(BDD!$BH$2:$BH$3,"Pompe à eauVRAIFAUXFAUXFAUXVRAI",BDD!$Z$2:$Z$3) -> 0 | E96: =SUMIF(BDD!$BH$2:$BH$3,"Pompe à eauFAUXVRAIVRAIFAUXFAUX",BDD!$Z$2:$Z$3) -> 0 | F96: =SUMIF(BDD!$BH$2:$BH$3,"Pompe à eauFAUXVRAIFAUXVRAIFAUX",BDD!$Z$2:$Z$3) -> 0 | G96: =SUMIF(BDD!$BH$2:$BH$3,"Pompe à eauFAUXVRAIFAUXFAUXVRAI",BDD!$Z$2:$Z$3) -> 0 | H96: =SUMIF(BDD!$BH$2:$BH$3,"Pompe à eauVRAIFAUXVRAIFAUXFAUX",BDD!$Z$2:$Z$3) -> 0 | I96: =SUMIF(BDD!$BH$2:$BH$3,"Pompe à eauVRAIFAUXFAUXVRAIFAUX",BDD!$Z$2:$Z$3) -> 0 | J96: =SUMIF(BDD!$BH$2:$BH$3,"Pompe à eauVRAIFAUXFAUXFAUXVRAI",BDD!$Z$2:$Z$3) -> 0 | K96: =SUMIF(BDD!$BH$2:$BH$3,"Pompe à eauFAUXVRAIVRAIFAUXFAUX",BDD!$Z$2:$Z$3) -> 0 | L96: =SUMIF(BDD!$BH$2:$BH$3,"Pompe à eauFAUXVRAIFAUXVRAIFAUX",BDD!$Z$2:$Z$3) -> 0 | M96: =SUMIF(BDD!$BH$2:$BH$3,"Pompe à eauFAUXVRAIFAUXFAUXVRAI",BDD!$Z$2:$Z$3) -> 0 | N96: =SUMIF(BDD!$BH$2:$BH$683,"Pompe à eauVRAIFAUXVRAIFAUXFAUX",BDD!$Z$2:$Z$683) -> 0 | O96: =SUMIF(BDD!$BH$2:$BH$683,"Pompe à eauVRAIFAUXFAUXVRAIFAUX",BDD!$Z$2:$Z$683) -> 0 | P96: =SUMIF(BDD!$BH$2:$BH$683,"Pompe à eauVRAIFAUXFAUXFAUXVRAI",BDD!$Z$2:$Z$683) -> 1 | Q96: =SUMIF(BDD!$BH$2:$BH$683,"Pompe à eauFAUXVRAIVRAIFAUXFAUX",BDD!$Z$2:$Z$683) -> 0 | R96: =SUMIF(BDD!$BH$2:$BH$683,"Pompe à eauFAUXVRAIFAUXVRAIFAUX",BDD!$Z$2:$Z$683) -> 0 | S96: =SUMIF(BDD!$BH$2:$BH$683,"Pompe à eauFAUXVRAIFAUXFAUXVRAI",BDD!$Z$2:$Z$683) -> 0 | T96: =SUMIF(BDD!$BH$2:$BH$3,"Pompe à eauVRAIFAUXVRAIFAUXFAUX",BDD!$Z$2:$Z$3) -> 0 | U96: =SUMIF(BDD!$BH$2:$BH$3,"Pompe à eauVRAIFAUXFAUXVRAIFAUX",BDD!$Z$2:$Z$3) -> 0 | V96: =SUMIF(BDD!$BH$2:$BH$3,"Pompe à eauVRAIFAUXFAUXFAUXVRAI",BDD!$Z$2:$Z$3) -> 0 | W96: =SUMIF(BDD!$BH$2:$BH$3,"Pompe à eauFAUXVRAIVRAIFAUXFAUX",BDD!$Z$2:$Z$3) -> 0 | X96: =SUMIF(BDD!$BH$2:$BH$3,"Pompe à eauFAUXVRAIFAUXVRAIFAUX",BDD!$Z$2:$Z$3) -> 0 | Y96: =SUMIF(BDD!$BH$2:$BH$3,"Pompe à eauFAUXVRAIFAUXFAUXVRAI",BDD!$Z$2:$Z$3) -> 0 | Z96: =SUMIF(BDD!$BH$2:$BH$3,"Pompe à eauVRAIFAUXVRAIFAUXFAUX",BDD!$Z$2:$Z$3) -> 0 | AA96: =SUMIF(BDD!$BH$2:$BH$3,"Pompe à eauVRAIFAUXFAUXVRAIFAUX",BDD!$Z$2:$Z$3) -> 0 | AB96: =SUMIF(BDD!$BH$2:$BH$3,"Pompe à eauVRAIFAUXFAUXFAUXVRAI",BDD!$Z$2:$Z$3) -> 0 | AC96: =SUMIF(BDD!$BH$2:$BH$3,"Pompe à eauFAUXVRAIVRAIFAUXFAUX",BDD!$Z$2:$Z$3) -> 0 | AD96: =SUMIF(BDD!$BH$2:$BH$3,"Pompe à eauFAUXVRAIFAUXVRAIFAUX",BDD!$Z$2:$Z$3) -> 0 | AE96: =SUMIF(BDD!$BH$2:$BH$3,"Pompe à eauFAUXVRAIFAUXFAUXVRAI",BDD!$Z$2:$Z$3) -> 0 | AF96: =SUMIF(BDD!$BH$2:$BH$3,"Pompe à eauVRAIFAUXVRAIFAUXFAUX",BDD!$Z$2:$Z$3) -> 0 | AG96: =SUMIF(BDD!$BH$2:$BH$3,"Pompe à eauVRAIFAUXFAUXVRAIFAUX",BDD!$Z$2:$Z$3) -> 0 | AH96: =SUMIF(BDD!$BH$2:$BH$3,"Pompe à eauVRAIFAUXFAUXFAUXVRAI",BDD!$Z$2:$Z$3) -> 0 | AI96: =SUMIF(BDD!$BH$2:$BH$3,"Pompe à eauFAUXVRAIVRAIFAUXFAUX",BDD!$Z$2:$Z$3) -> 0 | AJ96: =SUMIF(BDD!$BH$2:$BH$3,"Pompe à eauFAUXVRAIFAUXVRAIFAUX",BDD!$Z$2:$Z$3) -> 0 | AK96: =SUMIF(BDD!$BH$2:$BH$3,"Pompe à eauFAUXVRAIFAUXFAUXVRAI",BDD!$Z$2:$Z$3) -> 0 | AL96: =SUMIF(BDD!$BH$2:$BH$3,"Pompe à eauVRAIFAUXVRAIFAUXFAUX",BDD!$Z$2:$Z$3) -> 0 | AM96: =SUMIF(BDD!$BH$2:$BH$3,"Pompe à eauVRAIFAUXFAUXVRAIFAUX",BDD!$Z$2:$Z$3) -> 0 | AN96: =SUMIF(BDD!$BH$2:$BH$3,"Pompe à eauVRAIFAUXFAUXFAUXVRAI",BDD!$Z$2:$Z$3) -> 0 | AO96: =SUMIF(BDD!$BH$2:$BH$3,"Pompe à eauFAUXVRAIVRAIFAUXFAUX",BDD!$Z$2:$Z$3) -> 0 | AP96: =SUMIF(BDD!$BH$2:$BH$3,"Pompe à eauFAUXVRAIFAUXVRAIFAUX",BDD!$Z$2:$Z$3) -> 0 | AQ96: =SUMIF(BDD!$BH$2:$BH$3,"Pompe à eauFAUXVRAIFAUXFAUXVRAI",BDD!$Z$2:$Z$3) -> 0 | AR96: =SUMIF(BDD!$BH$2:$BH$3,"Pompe à eauVRAIFAUXVRAIFAUXFAUX",BDD!$Z$2:$Z$3) -> 0 | AS96: =SUMIF(BDD!$BH$2:$BH$3,"Pompe à eauVRAIFAUXFAUXVRAIFAUX",BDD!$Z$2:$Z$3) -> 0 | AT96: =SUMIF(BDD!$BH$2:$BH$3,"Pompe à eauVRAIFAUXFAUXFAUXVRAI",BDD!$Z$2:$Z$3) -> 0 | AU96: =SUMIF(BDD!$BH$2:$BH$3,"Pompe à eauFAUXVRAIVRAIFAUXFAUX",BDD!$Z$2:$Z$3) -> 0 | AV96: =SUMIF(BDD!$BH$2:$BH$3,"Pompe à eauFAUXVRAIFAUXVRAIFAUX",BDD!$Z$2:$Z$3) -> 0 | AW96: =SUMIF(BDD!$BH$2:$BH$3,"Pompe à eauFAUXVRAIFAUXFAUXVRAI",BDD!$Z$2:$Z$3) -> 0 | AX96: =SUMIF(BDD!$BH$2:$BH$3,"Pompe à eauVRAIFAUXVRAIFAUXFAUX",BDD!$Z$2:$Z$3) -> 0 | AY96: =SUMIF(BDD!$BH$2:$BH$3,"Pompe à eauVRAIFAUXFAUXVRAIFAUX",BDD!$Z$2:$Z$3) -> 0 | AZ96: =SUMIF(BDD!$BH$2:$BH$3,"Pompe à eauVRAIFAUXFAUXFAUXVRAI",BDD!$Z$2:$Z$3) -> 0 | BA96: =SUMIF(BDD!$BH$2:$BH$3,"Pompe à eauFAUXVRAIVRAIFAUXFAUX",BDD!$Z$2:$Z$3) -> 0 | BB96: =SUMIF(BDD!$BH$2:$BH$3,"Pompe à eauFAUXVRAIFAUXVRAIFAUX",BDD!$Z$2:$Z$3) -> 0 | BC96: =SUMIF(BDD!$BH$2:$BH$3,"Pompe à eauFAUXVRAIFAUXFAUXVRAI",BDD!$Z$2:$Z$3) -> 0 | BD96: =SUMIF(BDD!$BH$2:$BH$3,"Pompe à eauVRAIFAUXVRAIFAUXFAUX",BDD!$Z$2:$Z$3) -> 0 | BE96: =SUMIF(BDD!$BH$2:$BH$3,"Pompe à eauVRAIFAUXFAUXVRAIFAUX",BDD!$Z$2:$Z$3) -> 0 | BF96: =SUMIF(BDD!$BH$2:$BH$3,"Pompe à eauVRAIFAUXFAUXFAUXVRAI",BDD!$Z$2:$Z$3) -> 0 | BG96: =SUMIF(BDD!$BH$2:$BH$3,"Pompe à eauFAUXVRAIVRAIFAUXFAUX",BDD!$Z$2:$Z$3) -> 0 | BH96: =SUMIF(BDD!$BH$2:$BH$3,"Pompe à eauFAUXVRAIFAUXVRAIFAUX",BDD!$Z$2:$Z$3) -> 0 | BI96: =SUMIF(BDD!$BH$2:$BH$3,"Pompe à eauFAUXVRAIFAUXFAUXVRAI",BDD!$Z$2:$Z$3) -> 0 | BJ96: =SUMIF(BDD!$BH$2:$BH$3,"Pompe à eauVRAIFAUXVRAIFAUXFAUX",BDD!$Z$2:$Z$3) -> 0 | BK96: =SUMIF(BDD!$BH$2:$BH$3,"Pompe à eauVRAIFAUXFAUXVRAIFAUX",BDD!$Z$2:$Z$3) -> 0 | BL96: =SUMIF(BDD!$BH$2:$BH$3,"Pompe à eauVRAIFAUXFAUXFAUXVRAI",BDD!$Z$2:$Z$3) -> 0 | BM96: =SUMIF(BDD!$BH$2:$BH$3,"Pompe à eauFAUXVRAIVRAIFAUXFAUX",BDD!$Z$2:$Z$3) -> 0 | BN96: =SUMIF(BDD!$BH$2:$BH$3,"Pompe à eauFAUXVRAIFAUXVRAIFAUX",BDD!$Z$2:$Z$3) -> 0 | BO96: =SUMIF(BDD!$BH$2:$BH$3,"Pompe à eauFAUXVRAIFAUXFAUXVRAI",BDD!$Z$2:$Z$3) -> 0 | BP96: =SUMIF(BDD!$BH$2:$BH$3,"Pompe à eauVRAIFAUXVRAIFAUXFAUX",BDD!$Z$2:$Z$3) -> 0 | BQ96: =SUMIF(BDD!$BH$2:$BH$3,"Pompe à eauVRAIFAUXFAUXVRAIFAUX",BDD!$Z$2:$Z$3) -> 0 | BR96: =SUMIF(BDD!$BH$2:$BH$3,"Pompe à eauVRAIFAUXFAUXFAUXVRAI",BDD!$Z$2:$Z$3) -> 0 | BS96: =SUMIF(BDD!$BH$2:$BH$3,"Pompe à eauFAUXVRAIVRAIFAUXFAUX",BDD!$Z$2:$Z$3) -> 0 | BT96: =SUMIF(BDD!$BH$2:$BH$3,"Pompe à eauFAUXVRAIFAUXVRAIFAUX",BDD!$Z$2:$Z$3) -> 0 | BU96: =SUMIF(BDD!$BH$2:$BH$3,"Pompe à eauFAUXVRAIFAUXFAUXVRAI",BDD!$Z$2:$Z$3) -> 0
A97: Banc PowerTrain | B97: =SUMIF(BDD!$BH$2:$BH$3,"Banc PowerTrainVRAIFAUXVRAIFAUXFAUX",BDD!$Z$2:$Z$3) -> 0 | C97: =SUMIF(BDD!$BH$2:$BH$3,"Banc PowerTrainVRAIFAUXFAUXVRAIFAUX",BDD!$Z$2:$Z$3) -> 0 | D97: =SUMIF(BDD!$BH$2:$BH$3,"Banc PowerTrainVRAIFAUXFAUXFAUXVRAI",BDD!$Z$2:$Z$3) -> 0 | E97: =SUMIF(BDD!$BH$2:$BH$3,"Banc PowerTrainFAUXVRAIVRAIFAUXFAUX",BDD!$Z$2:$Z$3) -> 0 | F97: =SUMIF(BDD!$BH$2:$BH$3,"Banc PowerTrainFAUXVRAIFAUXVRAIFAUX",BDD!$Z$2:$Z$3) -> 0 | G97: =SUMIF(BDD!$BH$2:$BH$3,"Banc PowerTrainFAUXVRAIFAUXFAUXVRAI",BDD!$Z$2:$Z$3) -> 0 | H97: =SUMIF(BDD!$BH$2:$BH$3,"Banc PowerTrainVRAIFAUXVRAIFAUXFAUX",BDD!$Z$2:$Z$3) -> 0 | I97: =SUMIF(BDD!$BH$2:$BH$3,"Banc PowerTrainVRAIFAUXFAUXVRAIFAUX",BDD!$Z$2:$Z$3) -> 0 | J97: =SUMIF(BDD!$BH$2:$BH$3,"Banc PowerTrainVRAIFAUXFAUXFAUXVRAI",BDD!$Z$2:$Z$3) -> 0 | K97: =SUMIF(BDD!$BH$2:$BH$3,"Banc PowerTrainFAUXVRAIVRAIFAUXFAUX",BDD!$Z$2:$Z$3) -> 0 | L97: =SUMIF(BDD!$BH$2:$BH$3,"Banc PowerTrainFAUXVRAIFAUXVRAIFAUX",BDD!$Z$2:$Z$3) -> 0 | M97: =SUMIF(BDD!$BH$2:$BH$3,"Banc PowerTrainFAUXVRAIFAUXFAUXVRAI",BDD!$Z$2:$Z$3) -> 0 | N97: =SUMIF(BDD!$BH$2:$BH$683,"Banc PowerTrainVRAIFAUXVRAIFAUXFAUX",BDD!$Z$2:$Z$683) -> 0 | O97: =SUMIF(BDD!$BH$2:$BH$683,"Banc PowerTrainVRAIFAUXFAUXVRAIFAUX",BDD!$Z$2:$Z$683) -> 0 | P97: =SUMIF(BDD!$BH$2:$BH$683,"Banc PowerTrainVRAIFAUXFAUXFAUXVRAI",BDD!$Z$2:$Z$683) -> 0 | Q97: =SUMIF(BDD!$BH$2:$BH$683,"Banc PowerTrainFAUXVRAIVRAIFAUXFAUX",BDD!$Z$2:$Z$683) -> 0 | R97: =SUMIF(BDD!$BH$2:$BH$683,"Banc PowerTrainFAUXVRAIFAUXVRAIFAUX",BDD!$Z$2:$Z$683) -> 0 | S97: =SUMIF(BDD!$BH$2:$BH$683,"Banc PowerTrainFAUXVRAIFAUXFAUXVRAI",BDD!$Z$2:$Z$683) -> 0 | T97: =SUMIF(BDD!$BH$2:$BH$3,"Banc PowerTrainVRAIFAUXVRAIFAUXFAUX",BDD!$Z$2:$Z$3) -> 0 | U97: =SUMIF(BDD!$BH$2:$BH$3,"Banc PowerTrainVRAIFAUXFAUXVRAIFAUX",BDD!$Z$2:$Z$3) -> 0 | V97: =SUMIF(BDD!$BH$2:$BH$3,"Banc PowerTrainVRAIFAUXFAUXFAUXVRAI",BDD!$Z$2:$Z$3) -> 0 | W97: =SUMIF(BDD!$BH$2:$BH$3,"Banc PowerTrainFAUXVRAIVRAIFAUXFAUX",BDD!$Z$2:$Z$3) -> 0 | X97: =SUMIF(BDD!$BH$2:$BH$3,"Banc PowerTrainFAUXVRAIFAUXVRAIFAUX",BDD!$Z$2:$Z$3) -> 0 | Y97: =SUMIF(BDD!$BH$2:$BH$3,"Banc PowerTrainFAUXVRAIFAUXFAUXVRAI",BDD!$Z$2:$Z$3) -> 0 | Z97: =SUMIF(BDD!$BH$2:$BH$3,"Banc PowerTrainVRAIFAUXVRAIFAUXFAUX",BDD!$Z$2:$Z$3) -> 0 | AA97: =SUMIF(BDD!$BH$2:$BH$3,"Banc PowerTrainVRAIFAUXFAUXVRAIFAUX",BDD!$Z$2:$Z$3) -> 0 | AB97: =SUMIF(BDD!$BH$2:$BH$3,"Banc PowerTrainVRAIFAUXFAUXFAUXVRAI",BDD!$Z$2:$Z$3) -> 0 | AC97: =SUMIF(BDD!$BH$2:$BH$3,"Banc PowerTrainFAUXVRAIVRAIFAUXFAUX",BDD!$Z$2:$Z$3) -> 0 | AD97: =SUMIF(BDD!$BH$2:$BH$3,"Banc PowerTrainFAUXVRAIFAUXVRAIFAUX",BDD!$Z$2:$Z$3) -> 0 | AE97: =SUMIF(BDD!$BH$2:$BH$3,"Banc PowerTrainFAUXVRAIFAUXFAUXVRAI",BDD!$Z$2:$Z$3) -> 0 | AF97: =SUMIF(BDD!$BH$2:$BH$3,"Banc PowerTrainVRAIFAUXVRAIFAUXFAUX",BDD!$Z$2:$Z$3) -> 0 | AG97: =SUMIF(BDD!$BH$2:$BH$3,"Banc PowerTrainVRAIFAUXFAUXVRAIFAUX",BDD!$Z$2:$Z$3) -> 0 | AH97: =SUMIF(BDD!$BH$2:$BH$3,"Banc PowerTrainVRAIFAUXFAUXFAUXVRAI",BDD!$Z$2:$Z$3) -> 0 | AI97: =SUMIF(BDD!$BH$2:$BH$3,"Banc PowerTrainFAUXVRAIVRAIFAUXFAUX",BDD!$Z$2:$Z$3) -> 0 | AJ97: =SUMIF(BDD!$BH$2:$BH$3,"Banc PowerTrainFAUXVRAIFAUXVRAIFAUX",BDD!$Z$2:$Z$3) -> 0 | AK97: =SUMIF(BDD!$BH$2:$BH$3,"Banc PowerTrainFAUXVRAIFAUXFAUXVRAI",BDD!$Z$2:$Z$3) -> 0 | AL97: =SUMIF(BDD!$BH$2:$BH$3,"Banc PowerTrainVRAIFAUXVRAIFAUXFAUX",BDD!$Z$2:$Z$3) -> 0 | AM97: =SUMIF(BDD!$BH$2:$BH$3,"Banc PowerTrainVRAIFAUXFAUXVRAIFAUX",BDD!$Z$2:$Z$3) -> 0 | AN97: =SUMIF(BDD!$BH$2:$BH$3,"Banc PowerTrainVRAIFAUXFAUXFAUXVRAI",BDD!$Z$2:$Z$3) -> 0 | AO97: =SUMIF(BDD!$BH$2:$BH$3,"Banc PowerTrainFAUXVRAIVRAIFAUXFAUX",BDD!$Z$2:$Z$3) -> 0 | AP97: =SUMIF(BDD!$BH$2:$BH$3,"Banc PowerTrainFAUXVRAIFAUXVRAIFAUX",BDD!$Z$2:$Z$3) -> 0 | AQ97: =SUMIF(BDD!$BH$2:$BH$3,"Banc PowerTrainFAUXVRAIFAUXFAUXVRAI",BDD!$Z$2:$Z$3) -> 0 | AR97: =SUMIF(BDD!$BH$2:$BH$3,"Banc PowerTrainVRAIFAUXVRAIFAUXFAUX",BDD!$Z$2:$Z$3) -> 0 | AS97: =SUMIF(BDD!$BH$2:$BH$3,"Banc PowerTrainVRAIFAUXFAUXVRAIFAUX",BDD!$Z$2:$Z$3) -> 0 | AT97: =SUMIF(BDD!$BH$2:$BH$3,"Banc PowerTrainVRAIFAUXFAUXFAUXVRAI",BDD!$Z$2:$Z$3) -> 0 | AU97: =SUMIF(BDD!$BH$2:$BH$3,"Banc PowerTrainFAUXVRAIVRAIFAUXFAUX",BDD!$Z$2:$Z$3) -> 0 | AV97: =SUMIF(BDD!$BH$2:$BH$3,"Banc PowerTrainFAUXVRAIFAUXVRAIFAUX",BDD!$Z$2:$Z$3) -> 0 | AW97: =SUMIF(BDD!$BH$2:$BH$3,"Banc PowerTrainFAUXVRAIFAUXFAUXVRAI",BDD!$Z$2:$Z$3) -> 0 | AX97: =SUMIF(BDD!$BH$2:$BH$3,"Banc PowerTrainVRAIFAUXVRAIFAUXFAUX",BDD!$Z$2:$Z$3) -> 0 | AY97: =SUMIF(BDD!$BH$2:$BH$3,"Banc PowerTrainVRAIFAUXFAUXVRAIFAUX",BDD!$Z$2:$Z$3) -> 0 | AZ97: =SUMIF(BDD!$BH$2:$BH$3,"Banc PowerTrainVRAIFAUXFAUXFAUXVRAI",BDD!$Z$2:$Z$3) -> 0 | BA97: =SUMIF(BDD!$BH$2:$BH$3,"Banc PowerTrainFAUXVRAIVRAIFAUXFAUX",BDD!$Z$2:$Z$3) -> 0 | BB97: =SUMIF(BDD!$BH$2:$BH$3,"Banc PowerTrainFAUXVRAIFAUXVRAIFAUX",BDD!$Z$2:$Z$3) -> 0 | BC97: =SUMIF(BDD!$BH$2:$BH$3,"Banc PowerTrainFAUXVRAIFAUXFAUXVRAI",BDD!$Z$2:$Z$3) -> 0 | BD97: =SUMIF(BDD!$BH$2:$BH$3,"Banc PowerTrainVRAIFAUXVRAIFAUXFAUX",BDD!$Z$2:$Z$3) -> 0 | BE97: =SUMIF(BDD!$BH$2:$BH$3,"Banc PowerTrainVRAIFAUXFAUXVRAIFAUX",BDD!$Z$2:$Z$3) -> 0 | BF97: =SUMIF(BDD!$BH$2:$BH$3,"Banc PowerTrainVRAIFAUXFAUXFAUXVRAI",BDD!$Z$2:$Z$3) -> 0 | BG97: =SUMIF(BDD!$BH$2:$BH$3,"Banc PowerTrainFAUXVRAIVRAIFAUXFAUX",BDD!$Z$2:$Z$3) -> 0 | BH97: =SUMIF(BDD!$BH$2:$BH$3,"Banc PowerTrainFAUXVRAIFAUXVRAIFAUX",BDD!$Z$2:$Z$3) -> 0 | BI97: =SUMIF(BDD!$BH$2:$BH$3,"Banc PowerTrainFAUXVRAIFAUXFAUXVRAI",BDD!$Z$2:$Z$3) -> 0 | BJ97: =SUMIF(BDD!$BH$2:$BH$3,"Banc PowerTrainVRAIFAUXVRAIFAUXFAUX",BDD!$Z$2:$Z$3) -> 0 | BK97: =SUMIF(BDD!$BH$2:$BH$3,"Banc PowerTrainVRAIFAUXFAUXVRAIFAUX",BDD!$Z$2:$Z$3) -> 0 | BL97: =SUMIF(BDD!$BH$2:$BH$3,"Banc PowerTrainVRAIFAUXFAUXFAUXVRAI",BDD!$Z$2:$Z$3) -> 0 | BM97: =SUMIF(BDD!$BH$2:$BH$3,"Banc PowerTrainFAUXVRAIVRAIFAUXFAUX",BDD!$Z$2:$Z$3) -> 0 | BN97: =SUMIF(BDD!$BH$2:$BH$3,"Banc PowerTrainFAUXVRAIFAUXVRAIFAUX",BDD!$Z$2:$Z$3) -> 0 | BO97: =SUMIF(BDD!$BH$2:$BH$3,"Banc PowerTrainFAUXVRAIFAUXFAUXVRAI",BDD!$Z$2:$Z$3) -> 0 | BP97: =SUMIF(BDD!$BH$2:$BH$3,"Banc PowerTrainVRAIFAUXVRAIFAUXFAUX",BDD!$Z$2:$Z$3) -> 0 | BQ97: =SUMIF(BDD!$BH$2:$BH$3,"Banc PowerTrainVRAIFAUXFAUXVRAIFAUX",BDD!$Z$2:$Z$3) -> 0 | BR97: =SUMIF(BDD!$BH$2:$BH$3,"Banc PowerTrainVRAIFAUXFAUXFAUXVRAI",BDD!$Z$2:$Z$3) -> 0 | BS97: =SUMIF(BDD!$BH$2:$BH$3,"Banc PowerTrainFAUXVRAIVRAIFAUXFAUX",BDD!$Z$2:$Z$3) -> 0 | BT97: =SUMIF(BDD!$BH$2:$BH$3,"Banc PowerTrainFAUXVRAIFAUXVRAIFAUX",BDD!$Z$2:$Z$3) -> 0 | BU97: =SUMIF(BDD!$BH$2:$BH$3,"Banc PowerTrainFAUXVRAIFAUXFAUXVRAI",BDD!$Z$2:$Z$3) -> 0

Sheet Indicateur Zone9
B2: Suivi des arrêts par banc
A3: Banc zone 9 | B3: Janvier | C3: Février | D3: Mars | E3: Avril | F3: Mai | G3: Juin | H3: Juillet | I3: Août | J3: Septembre | K3: Octobre | L3: Novembre | M3: Décembre
A4: Banc P5 | B4: =SUMIF(BDD!$H$2:$H$3,'Indicateur Zone9'!$A4,BDD!$Z$2:$Z$3) -> 0 | C4: =SUMIF(BDD!$H$2:$H$3,'Indicateur Zone9'!$A4,BDD!$Z$2:$Z$3) -> 0 | D4: =SUMIF(BDD!$H$2:$H$683,'Indicateur Zone9'!$A$4,BDD!$Z$2:$Z$683) -> 0 | E4: =SUMIF(BDD!$H$2:$H$3,'Indicateur Zone9'!$A4,BDD!$Z$2:$Z$3) -> 0 | F4: =SUMIF(BDD!$H$2:$H$3,'Indicateur Zone9'!$A4,BDD!$Z$2:$Z$3) -> 0 | G4: =SUMIF(BDD!$H$2:$H$3,'Indicateur Zone9'!$A4,BDD!$Z$2:$Z$3) -> 0 | H4: =SUMIF(BDD!$H$2:$H$3,'Indicateur Zone9'!$A4,BDD!$Z$2:$Z$3) -> 0 | I4: =SUMIF(BDD!$H$2:$H$3,'Indicateur Zone9'!$A4,BDD!$Z$2:$Z$3) -> 0 | J4: =SUMIF(BDD!$H$2:$H$3,'Indicateur Zone9'!$A4,BDD!$Z$2:$Z$3) -> 0 | K4: =SUMIF(BDD!$H$2:$H$3,'Indicateur Zone9'!$A4,BDD!$Z$2:$Z$3) -> 0 | L4: =SUMIF(BDD!$H$2:$H$3,'Indicateur Zone9'!$A4,BDD!$Z$2:$Z$3) -> 0 | M4: =SUMIF(BDD!$H$2:$H$3,'Indicateur Zone9'!$A4,BDD!$Z$2:$Z$3) -> 0
A5: Banc 111 | B5: =SUMIF(BDD!$H$2:$H$3,'Indicateur Zone9'!$A5,BDD!$Z$2:$Z$3) -> 0 | C5: =SUMIF(BDD!$H$2:$H$3,'Indicateur Zone9'!$A5,BDD!$Z$2:$Z$3) -> 0 | D5: =SUMIF(BDD!$H$2:$H$683,'Indicateur Zone9'!$A$5,BDD!$Z$2:$Z$683) -> 0 | E5: =SUMIF(BDD!$H$2:$H$3,'Indicateur Zone9'!$A5,BDD!$Z$2:$Z$3) -> 0 | F5: =SUMIF(BDD!$H$2:$H$3,'Indicateur Zone9'!$A5,BDD!$Z$2:$Z$3) -> 0 | G5: =SUMIF(BDD!$H$2:$H$3,'Indicateur Zone9'!$A5,BDD!$Z$2:$Z$3) -> 0 | H5: =SUMIF(BDD!$H$2:$H$3,'Indicateur Zone9'!$A5,BDD!$Z$2:$Z$3) -> 0 | I5: =SUMIF(BDD!$H$2:$H$3,'Indicateur Zone9'!$A5,BDD!$Z$2:$Z$3) -> 0 | J5: =SUMIF(BDD!$H$2:$H$3,'Indicateur Zone9'!$A5,BDD!$Z$2:$Z$3) -> 0 | K5: =SUMIF(BDD!$H$2:$H$3,'Indicateur Zone9'!$A5,BDD!$Z$2:$Z$3) -> 0 | L5: =SUMIF(BDD!$H$2:$H$3,'Indicateur Zone9'!$A5,BDD!$Z$2:$Z$3) -> 0 | M5: =SUMIF(BDD!$H$2:$H$3,'Indicateur Zone9'!$A5,BDD!$Z$2:$Z$3) -> 0
A6: Banc 117 | B6: =SUMIF(BDD!$H$2:$H$3,'Indicateur Zone9'!$A6,BDD!$Z$2:$Z$3) -> 0 | C6: =SUMIF(BDD!$H$2:$H$3,'Indicateur Zone9'!$A6,BDD!$Z$2:$Z$3) -> 0 | D6: =SUMIF(BDD!$H$2:$H$683,'Indicateur Zone9'!$A$6,BDD!$Z$2:$Z$683) -> 0 | E6: =SUMIF(BDD!$H$2:$H$3,'Indicateur Zone9'!$A6,BDD!$Z$2:$Z$3) -> 0 | F6: =SUMIF(BDD!$H$2:$H$3,'Indicateur Zone9'!$A6,BDD!$Z$2:$Z$3) -> 0 | G6: =SUMIF(BDD!$H$2:$H$3,'Indicateur Zone9'!$A6,BDD!$Z$2:$Z$3) -> 0 | H6: =SUMIF(BDD!$H$2:$H$3,'Indicateur Zone9'!$A6,BDD!$Z$2:$Z$3) -> 0 | I6: =SUMIF(BDD!$H$2:$H$3,'Indicateur Zone9'!$A6,BDD!$Z$2:$Z$3) -> 0 | J6: =SUMIF(BDD!$H$2:$H$3,'Indicateur Zone9'!$A6,BDD!$Z$2:$Z$3) -> 0 | K6: =SUMIF(BDD!$H$2:$H$3,'Indicateur Zone9'!$A6,BDD!$Z$2:$Z$3) -> 0 | L6: =SUMIF(BDD!$H$2:$H$3,'Indicateur Zone9'!$A6,BDD!$Z$2:$Z$3) -> 0 | M6: =SUMIF(BDD!$H$2:$H$3,'Indicateur Zone9'!$A6,BDD!$Z$2:$Z$3) -> 0
A7: Banc 117 bis | B7: =SUMIF(BDD!$H$2:$H$3,'Indicateur Zone9'!$A7,BDD!$Z$2:$Z$3) -> 0 | C7: =SUMIF(BDD!$H$2:$H$3,'Indicateur Zone9'!$A7,BDD!$Z$2:$Z$3) -> 0 | D7: =SUMIF(BDD!$H$2:$H$683,'Indicateur Zone9'!$A$7,BDD!$Z$2:$Z$683) -> 0 | E7: =SUMIF(BDD!$H$2:$H$3,'Indicateur Zone9'!$A7,BDD!$Z$2:$Z$3) -> 0 | F7: =SUMIF(BDD!$H$2:$H$3,'Indicateur Zone9'!$A7,BDD!$Z$2:$Z$3) -> 0 | G7: =SUMIF(BDD!$H$2:$H$3,'Indicateur Zone9'!$A7,BDD!$Z$2:$Z$3) -> 0 | H7: =SUMIF(BDD!$H$2:$H$3,'Indicateur Zone9'!$A7,BDD!$Z$2:$Z$3) -> 0 | I7: =SUMIF(BDD!$H$2:$H$3,'Indicateur Zone9'!$A7,BDD!$Z$2:$Z$3) -> 0 | J7: =SUMIF(BDD!$H$2:$H$3,'Indicateur Zone9'!$A7,BDD!$Z$2:$Z$3) -> 0 | K7: =SUMIF(BDD!$H$2:$H$3,'Indicateur Zone9'!$A7,BDD!$Z$2:$Z$3) -> 0 | L7: =SUMIF(BDD!$H$2:$H$3,'Indicateur Zone9'!$A7,BDD!$Z$2:$Z$3) -> 0 | M7: =SUMIF(BDD!$H$2:$H$3,'Indicateur Zone9'!$A7,BDD!$Z$2:$Z$3) -> 0
A8: Banc 119 | B8: =SUMIF(BDD!$H$2:$H$3,'Indicateur Zone9'!$A8,BDD!$Z$2:$Z$3) -> 0 | C8: =SUMIF(BDD!$H$2:$H$3,'Indicateur Zone9'!$A8,BDD!$Z$2:$Z$3) -> 0 | D8: =SUMIF(BDD!$H$2:$H$683,'Indicateur Zone9'!$A$8,BDD!$Z$2:$Z$683) -> 0 | E8: =SUMIF(BDD!$H$2:$H$3,'Indicateur Zone9'!$A8,BDD!$Z$2:$Z$3) -> 0 | F8: =SUMIF(BDD!$H$2:$H$3,'Indicateur Zone9'!$A8,BDD!$Z$2:$Z$3) -> 0 | G8: =SUMIF(BDD!$H$2:$H$3,'Indicateur Zone9'!$A8,BDD!$Z$2:$Z$3) -> 0 | H8: =SUMIF(BDD!$H$2:$H$3,'Indicateur Zone9'!$A8,BDD!$Z$2:$Z$3) -> 0 | I8: =SUMIF(BDD!$H$2:$H$3,'Indicateur Zone9'!$A8,BDD!$Z$2:$Z$3) -> 0 | J8: =SUMIF(BDD!$H$2:$H$3,'Indicateur Zone9'!$A8,BDD!$Z$2:$Z$3) -> 0 | K8: =SUMIF(BDD!$H$2:$H$3,'Indicateur Zone9'!$A8,BDD!$Z$2:$Z$3) -> 0 | L8: =SUMIF(BDD!$H$2:$H$3,'Indicateur Zone9'!$A8,BDD!$Z$2:$Z$3) -> 0 | M8: =SUMIF(BDD!$H$2:$H$3,'Indicateur Zone9'!$A8,BDD!$Z$2:$Z$3) -> 0
A9: Banc 123 | B9: =SUMIF(BDD!$H$2:$H$3,'Indicateur Zone9'!$A9,BDD!$Z$2:$Z$3) -> 0 | C9: =SUMIF(BDD!$H$2:$H$3,'Indicateur Zone9'!$A9,BDD!$Z$2:$Z$3) -> 0 | D9: =SUMIF(BDD!$H$2:$H$683,'Indicateur Zone9'!$A$9,BDD!$Z$2:$Z$683) -> 32.5 | E9: =SUMIF(BDD!$H$2:$H$3,'Indicateur Zone9'!$A9,BDD!$Z$2:$Z$3) -> 0 | F9: =SUMIF(BDD!$H$2:$H$3,'Indicateur Zone9'!$A9,BDD!$Z$2:$Z$3) -> 0 | G9: =SUMIF(BDD!$H$2:$H$3,'Indicateur Zone9'!$A9,BDD!$Z$2:$Z$3) -> 0 | H9: =SUMIF(BDD!$H$2:$H$3,'Indicateur Zone9'!$A9,BDD!$Z$2:$Z$3) -> 0 | I9: =SUMIF(BDD!$H$2:$H$3,'Indicateur Zone9'!$A9,BDD!$Z$2:$Z$3) -> 0 | J9: =SUMIF(BDD!$H$2:$H$3,'Indicateur Zone9'!$A9,BDD!$Z$2:$Z$3) -> 0 | K9: =SUMIF(BDD!$H$2:$H$3,'Indicateur Zone9'!$A9,BDD!$Z$2:$Z$3) -> 0 | L9: =SUMIF(BDD!$H$2:$H$3,'Indicateur Zone9'!$A9,BDD!$Z$2:$Z$3) -> 0 | M9: =SUMIF(BDD!$H$2:$H$3,'Indicateur Zone9'!$A9,BDD!$Z$2:$Z$3) -> 0
A10: Banc 126 | B10: =SUMIF(BDD!$H$2:$H$3,'Indicateur Zone9'!$A10,BDD!$Z$2:$Z$3) -> 0 | C10: =SUMIF(BDD!$H$2:$H$3,'Indicateur Zone9'!$A10,BDD!$Z$2:$Z$3) -> 0 | D10: =SUMIF(BDD!$H$2:$H$683,'Indicateur Zone9'!$A$10,BDD!$Z$2:$Z$683) -> 0.3 | E10: =SUMIF(BDD!$H$2:$H$3,'Indicateur Zone9'!$A10,BDD!$Z$2:$Z$3) -> 0 | F10: =SUMIF(BDD!$H$2:$H$3,'Indicateur Zone9'!$A10,BDD!$Z$2:$Z$3) -> 0 | G10: =SUMIF(BDD!$H$2:$H$3,'Indicateur Zone9'!$A10,BDD!$Z$2:$Z$3) -> 0 | H10: =SUMIF(BDD!$H$2:$H$3,'Indicateur Zone9'!$A10,BDD!$Z$2:$Z$3) -> 0 | I10: =SUMIF(BDD!$H$2:$H$3,'Indicateur Zone9'!$A10,BDD!$Z$2:$Z$3) -> 0 | J10: =SUMIF(BDD!$H$2:$H$3,'Indicateur Zone9'!$A10,BDD!$Z$2:$Z$3) -> 0 | K10: =SUMIF(BDD!$H$2:$H$3,'Indicateur Zone9'!$A10,BDD!$Z$2:$Z$3) -> 0 | L10: =SUMIF(BDD!$H$2:$H$3,'Indicateur Zone9'!$A10,BDD!$Z$2:$Z$3) -> 0 | M10: =SUMIF(BDD!$H$2:$H$3,'Indicateur Zone9'!$A10,BDD!$Z$2:$Z$3) -> 0
A11: Banc 156 | B11: =SUMIF(BDD!$H$2:$H$3,'Indicateur Zone9'!$A11,BDD!$Z$2:$Z$3) -> 0 | C11: =SUMIF(BDD!$H$2:$H$3,'Indicateur Zone9'!$A11,BDD!$Z$2:$Z$3) -> 0 | D11: =SUMIF(BDD!$H$2:$H$683,'Indicateur Zone9'!$A$11,BDD!$Z$2:$Z$683) -> 0 | E11: =SUMIF(BDD!$H$2:$H$3,'Indicateur Zone9'!$A11,BDD!$Z$2:$Z$3) -> 0 | F11: =SUMIF(BDD!$H$2:$H$3,'Indicateur Zone9'!$A11,BDD!$Z$2:$Z$3) -> 0 | G11: =SUMIF(BDD!$H$2:$H$3,'Indicateur Zone9'!$A11,BDD!$Z$2:$Z$3) -> 0 | H11: =SUMIF(BDD!$H$2:$H$3,'Indicateur Zone9'!$A11,BDD!$Z$2:$Z$3) -> 0 | I11: =SUMIF(BDD!$H$2:$H$3,'Indicateur Zone9'!$A11,BDD!$Z$2:$Z$3) -> 0 | J11: =SUMIF(BDD!$H$2:$H$3,'Indicateur Zone9'!$A11,BDD!$Z$2:$Z$3) -> 0 | K11: =SUMIF(BDD!$H$2:$H$3,'Indicateur Zone9'!$A11,BDD!$Z$2:$Z$3) -> 0 | L11: =SUMIF(BDD!$H$2:$H$3,'Indicateur Zone9'!$A11,BDD!$Z$2:$Z$3) -> 0 | M11: =SUMIF(BDD!$H$2:$H$3,'Indicateur Zone9'!$A11,BDD!$Z$2:$Z$3) -> 0
B32: Suivi du correctif et du préventif
A33: Type de maintenance | B33: Janvier | C33: Février | D33: Mars | E33: Avril | F33: Mai | G33: Juin | H33: Juillet | I33: Août | J33: Septembre | K33: Octobre | L33: Novembre | M33: Décembre
A34: Préventive | B34: =SUM(C59:C66) -> 0 | C34: =SUM(E59:E66) -> 0 | D34: =SUM(G59:G66) -> 32.3 | E34: =SUM(I59:I66) -> 0 | F34: =SUM(K59:K66) -> 0 | G34: =SUM(M59:M66) -> 0 | H34: =SUM(O59:O66) -> 0 | I34: =SUM(Q59:Q66) -> 0 | J34: =SUM(S59:S66) -> 0 | K34: =SUM(U59:U66) -> 0 | L34: =SUM(W59:W66) -> 0 | M34: =SUM(Y59:Y66) -> 0
A35: Corrective | B35: =SUM(B59:B66) -> 0 | C35: =SUM(D59:D66) -> 0 | D35: =SUM(F59:F66) -> 0 | E35: =SUM(H59:H66) -> 0 | F35: =SUM(J59:J66) -> 0 | G35: =SUM(L59:L66) -> 0 | H35: =SUM(N59:N66) -> 0 | I35: =SUM(N59:N66) -> 0 | J35: =SUM(R59:R66) -> 0 | K35: =SUM(T59:T66) -> 0 | L35: =SUM(V59:V66) -> 0 | M35: =SUM(X59:X66) -> 0
B56: Suivi du correctif et du préventif par banc
B57: Janvier | D57: Février | F57: Mars | H57: Avril | J57: Mai | L57: Juin | N57: Juillet | P57: Août | R57: Septembre | T57: Octobre | V57: Novembre | X57: Décembre
A58: Banc zone 9 | B58: Corrective | C58: Préventive | D58: Corrective | E58: Préventive | F58: Corrective | G58: Préventive | H58: Corrective | I58: Préventive | J58: Corrective | K58: Préventive | L58: Corrective | M58: Préventive | N58: Corrective | O58: Préventive | P58: Corrective | Q58: Préventive | R58: Corrective | S58: Préventive | T58: Corrective | U58: Préventive | V58: Corrective | W58: Préventive | X58: Corrective | Y58: Préventive
A59: Banc P5 | B59: =SUMIF(BDD!$BG$2:$BG$3,"Banc P5VRAIFAUX",BDD!$Z$2:$Z$3) -> 0 | C59: =SUMIF(BDD!$BG$2:$BG$3,"Banc P5FAUXVRAI",BDD!$Z$2:$Z$3) -> 0 | D59: =SUMIF(BDD!$BG$2:$BG$3,"Banc P5VRAIFAUX",BDD!$Z$2:$Z$3) -> 0 | E59: =SUMIF(BDD!$BG$2:$BG$3,"Banc P5FAUXVRAI",BDD!$Z$2:$Z$3) -> 0 | F59: =SUMIF(BDD!$BG$2:$BG$683,"Banc P5VRAIFAUX",BDD!$Z$2:$Z$683) -> 0 | G59: =SUMIF(BDD!$BG$2:$BG$683,"Banc P5FAUXvrai",BDD!$Z$2:$Z$683) -> 0 | H59: =SUMIF(BDD!$BG$2:$BG$3,"Banc P5VRAIFAUX",BDD!$Z$2:$Z$3) -> 0 | I59: =SUMIF(BDD!$BG$2:$BG$3,"Banc P5FAUXVRAI",BDD!$Z$2:$Z$3) -> 0 | J59: =SUMIF(BDD!$BG$2:$BG$3,"Banc P5VRAIFAUX",BDD!$Z$2:$Z$3) -> 0 | K59: =SUMIF(BDD!$BG$2:$BG$3,"Banc P5FAUXVRAI",BDD!$Z$2:$Z$3) -> 0 | L59: =SUMIF(BDD!$BG$2:$BG$3,"Banc P5VRAIFAUX",BDD!$Z$2:$Z$3) -> 0 | M59: =SUMIF(BDD!$BG$2:$BG$3,"Banc P5FAUXVRAI",BDD!$Z$2:$Z$3) -> 0 | N59: =SUMIF(BDD!$BG$2:$BG$3,"Banc P5VRAIFAUX",BDD!$Z$2:$Z$3) -> 0 | O59: =SUMIF(BDD!$BG$2:$BG$3,"Banc P5FAUXVRAI",BDD!$Z$2:$Z$3) -> 0 | P59: =SUMIF(BDD!$BG$2:$BG$3,"Banc P5VRAIFAUX",BDD!$Z$2:$Z$3) -> 0 | Q59: =SUMIF(BDD!$BG$2:$BG$3,"Banc P5FAUXVRAI",BDD!$Z$2:$Z$3) -> 0 | R59: =SUMIF(BDD!$BG$2:$BG$3,"Banc P5VRAIFAUX",BDD!$Z$2:$Z$3) -> 0 | S59: =SUMIF(BDD!$BG$2:$BG$3,"Banc P5FAUXVRAI",BDD!$Z$2:$Z$3) -> 0 | T59: =SUMIF(BDD!$BG$2:$BG$3,"Banc P5VRAIFAUX",BDD!$Z$2:$Z$3) -> 0 | U59: =SUMIF(BDD!$BG$2:$BG$3,"Banc P5FAUXVRAI",BDD!$Z$2:$Z$3) -> 0 | V59: =SUMIF(BDD!$BG$2:$BG$3,"Banc P5VRAIFAUX",BDD!$Z$2:$Z$3) -> 0 | W59: =SUMIF(BDD!$BG$2:$BG$3,"Banc P5FAUXVRAI",BDD!$Z$2:$Z$3) -> 0 | X59: =SUMIF(BDD!$BG$2:$BG$3,"Banc P5VRAIFAUX",BDD!$Z$2:$Z$3) -> 0 | Y59: =SUMIF(BDD!$BG$2:$BG$3,"Banc P5FAUXVRAI",BDD!$Z$2:$Z$3) -> 0
A60: Banc 111 | B60: =SUMIF(BDD!$BG$2:$BG$3,"Banc 111VRAIFAUX",BDD!$Z$2:$Z$3) -> 0 | C60: =SUMIF(BDD!$BG$2:$BG$3,"Banc 111FAUXVRAI",BDD!$Z$2:$Z$3) -> 0 | D60: =SUMIF(BDD!$BG$2:$BG$3,"Banc 111VRAIFAUX",BDD!$Z$2:$Z$3) -> 0 | E60: =SUMIF(BDD!$BG$2:$BG$3,"Banc 111FAUXVRAI",BDD!$Z$2:$Z$3) -> 0 | F60: =SUMIF(BDD!$BG$2:$BG$683,"Banc 111VRAIFAUX",BDD!$Z$2:$Z$683) -> 0 | G60: =SUMIF(BDD!$BG$2:$BG$683,"Banc 111FAUXVRAI",BDD!$Z$2:$Z$683) -> 0 | H60: =SUMIF(BDD!$BG$2:$BG$3,"Banc 111VRAIFAUX",BDD!$Z$2:$Z$3) -> 0 | I60: =SUMIF(BDD!$BG$2:$BG$3,"Banc 111FAUXVRAI",BDD!$Z$2:$Z$3) -> 0 | J60: =SUMIF(BDD!$BG$2:$BG$3,"Banc 111VRAIFAUX",BDD!$Z$2:$Z$3) -> 0 | K60: =SUMIF(BDD!$BG$2:$BG$3,"Banc 111FAUXVRAI",BDD!$Z$2:$Z$3) -> 0 | L60: =SUMIF(BDD!$BG$2:$BG$3,"Banc 111VRAIFAUX",BDD!$Z$2:$Z$3) -> 0 | M60: =SUMIF(BDD!$BG$2:$BG$3,"Banc 111FAUXVRAI",BDD!$Z$2:$Z$3) -> 0 | N60: =SUMIF(BDD!$BG$2:$BG$3,"Banc 111VRAIFAUX",BDD!$Z$2:$Z$3) -> 0 | O60: =SUMIF(BDD!$BG$2:$BG$3,"Banc 111FAUXVRAI",BDD!$Z$2:$Z$3) -> 0 | P60: =SUMIF(BDD!$BG$2:$BG$3,"Banc 111VRAIFAUX",BDD!$Z$2:$Z$3) -> 0 | Q60: =SUMIF(BDD!$BG$2:$BG$3,"Banc 111FAUXVRAI",BDD!$Z$2:$Z$3) -> 0 | R60: =SUMIF(BDD!$BG$2:$BG$3,"Banc 111VRAIFAUX",BDD!$Z$2:$Z$3) -> 0 | S60: =SUMIF(BDD!$BG$2:$BG$3,"Banc 111FAUXVRAI",BDD!$Z$2:$Z$3) -> 0 | T60: =SUMIF(BDD!$BG$2:$BG$3,"Banc 111VRAIFAUX",BDD!$Z$2:$Z$3) -> 0 | U60: =SUMIF(BDD!$BG$2:$BG$3,"Banc 111FAUXVRAI",BDD!$Z$2:$Z$3) -> 0 | V60: =SUMIF(BDD!$BG$2:$BG$3,"Banc 111VRAIFAUX",BDD!$Z$2:$Z$3) -> 0 | W60: =SUMIF(BDD!$BG$2:$BG$3,"Banc 111FAUXVRAI",BDD!$Z$2:$Z$3) -> 0 | X60: =SUMIF(BDD!$BG$2:$BG$3,"Banc 111VRAIFAUX",BDD!$Z$2:$Z$3) -> 0 | Y60: =SUMIF(BDD!$BG$2:$BG$3,"Banc 111FAUXVRAI",BDD!$Z$2:$Z$3) -> 0
A61: Banc 117 | B61: =SUMIF(BDD!$BG$2:$BG$683,"Banc 117VRAIFAUX",BDD!$Z$2:$Z$683) -> 0 | C61: =SUMIF(BDD!$BG$2:$BG$3,"Banc 117FAUXVRAI",BDD!$Z$2:$Z$3) -> 0 | D61: =SUMIF(BDD!$BG$2:$BG$683,"Banc 117VRAIFAUX",BDD!$Z$2:$Z$683) -> 0 | E61: =SUMIF(BDD!$BG$2:$BG$3,"Banc 117FAUXVRAI",BDD!$Z$2:$Z$3) -> 0 | F61: =SUMIF(BDD!$BG$2:$BG$683,"Banc 117VRAIFAUX",BDD!$Z$2:$Z$683) -> 0 | G61: =SUMIF(BDD!$BG$2:$BG$683,"Banc 117FAUXVRAI",BDD!$Z$2:$Z$683) -> 0 | H61: =SUMIF(BDD!$BG$2:$BG$683,"Banc 117VRAIFAUX",BDD!$Z$2:$Z$683) -> 0 | I61: =SUMIF(BDD!$BG$2:$BG$3,"Banc 117FAUXVRAI",BDD!$Z$2:$Z$3) -> 0 | J61: =SUMIF(BDD!$BG$2:$BG$683,"Banc 117VRAIFAUX",BDD!$Z$2:$Z$683) -> 0 | K61: =SUMIF(BDD!$BG$2:$BG$3,"Banc 117FAUXVRAI",BDD!$Z$2:$Z$3) -> 0 | L61: =SUMIF(BDD!$BG$2:$BG$683,"Banc 117VRAIFAUX",BDD!$Z$2:$Z$683) -> 0 | M61: =SUMIF(BDD!$BG$2:$BG$3,"Banc 117FAUXVRAI",BDD!$Z$2:$Z$3) -> 0 | N61: =SUMIF(BDD!$BG$2:$BG$683,"Banc 117VRAIFAUX",BDD!$Z$2:$Z$683) -> 0 | O61: =SUMIF(BDD!$BG$2:$BG$3,"Banc 117FAUXVRAI",BDD!$Z$2:$Z$3) -> 0 | P61: =SUMIF(BDD!$BG$2:$BG$683,"Banc 117VRAIFAUX",BDD!$Z$2:$Z$683) -> 0 | Q61: =SUMIF(BDD!$BG$2:$BG$3,"Banc 117FAUXVRAI",BDD!$Z$2:$Z$3) -> 0 | R61: =SUMIF(BDD!$BG$2:$BG$683,"Banc 117VRAIFAUX",BDD!$Z$2:$Z$683) -> 0 | S61: =SUMIF(BDD!$BG$2:$BG$3,"Banc 117FAUXVRAI",BDD!$Z$2:$Z$3) -> 0 | T61: =SUMIF(BDD!$BG$2:$BG$683,"Banc 117VRAIFAUX",BDD!$Z$2:$Z$683) -> 0 | U61: =SUMIF(BDD!$BG$2:$BG$3,"Banc 117FAUXVRAI",BDD!$Z$2:$Z$3) -> 0 | V61: =SUMIF(BDD!$BG$2:$BG$683,"Banc 117VRAIFAUX",BDD!$Z$2:$Z$683) -> 0 | W61: =SUMIF(BDD!$BG$2:$BG$3,"Banc 117FAUXVRAI",BDD!$Z$2:$Z$3) -> 0 | X61: =SUMIF(BDD!$BG$2:$BG$683,"Banc 117VRAIFAUX",BDD!$Z$2:$Z$683) -> 0 | Y61: =SUMIF(BDD!$BG$2:$BG$3,"Banc 117FAUXVRAI",BDD!$Z$2:$Z$3) -> 0
A62: Banc 117 bis | B62: =SUMIF(BDD!$BG$2:$BG$3,"Banc 117 bisVRAIFAUX",BDD!$Z$2:$Z$3) -> 0 | C62: =SUMIF(BDD!$BG$2:$BG$3,"Banc 117 bisFAUXVRAI",BDD!$Z$2:$Z$3) -> 0 | D62: =SUMIF(BDD!$BG$2:$BG$3,"Banc 117 bisVRAIFAUX",BDD!$Z$2:$Z$3) -> 0 | E62: =SUMIF(BDD!$BG$2:$BG$3,"Banc 117 bisFAUXVRAI",BDD!$Z$2:$Z$3) -> 0 | F62: =SUMIF(BDD!$BG$2:$BG$683,"Banc 117 bisVRAIFAUX",BDD!$Z$2:$Z$683) -> 0 | G62: =SUMIF(BDD!$BG$2:$BG$683,"Banc 117 bisFAUXVRAI",BDD!$Z$2:$Z$683) -> 0 | H62: =SUMIF(BDD!$BG$2:$BG$3,"Banc 117 bisVRAIFAUX",BDD!$Z$2:$Z$3) -> 0 | I62: =SUMIF(BDD!$BG$2:$BG$3,"Banc 117 bisFAUXVRAI",BDD!$Z$2:$Z$3) -> 0 | J62: =SUMIF(BDD!$BG$2:$BG$3,"Banc 117 bisVRAIFAUX",BDD!$Z$2:$Z$3) -> 0 | K62: =SUMIF(BDD!$BG$2:$BG$3,"Banc 117 bisFAUXVRAI",BDD!$Z$2:$Z$3) -> 0 | L62: =SUMIF(BDD!$BG$2:$BG$3,"Banc 117 bisVRAIFAUX",BDD!$Z$2:$Z$3) -> 0 | M62: =SUMIF(BDD!$BG$2:$BG$3,"Banc 117 bisFAUXVRAI",BDD!$Z$2:$Z$3) -> 0 | N62: =SUMIF(BDD!$BG$2:$BG$3,"Banc 117 bisVRAIFAUX",BDD!$Z$2:$Z$3) -> 0 | O62: =SUMIF(BDD!$BG$2:$BG$3,"Banc 117 bisFAUXVRAI",BDD!$Z$2:$Z$3) -> 0 | P62: =SUMIF(BDD!$BG$2:$BG$3,"Banc 117 bisVRAIFAUX",BDD!$Z$2:$Z$3) -> 0 | Q62: =SUMIF(BDD!$BG$2:$BG$3,"Banc 117 bisFAUXVRAI",BDD!$Z$2:$Z$3) -> 0 | R62: =SUMIF(BDD!$BG$2:$BG$3,"Banc 117 bisVRAIFAUX",BDD!$Z$2:$Z$3) -> 0 | S62: =SUMIF(BDD!$BG$2:$BG$3,"Banc 117 bisFAUXVRAI",BDD!$Z$2:$Z$3) -> 0 | T62: =SUMIF(BDD!$BG$2:$BG$3,"Banc 117 bisVRAIFAUX",BDD!$Z$2:$Z$3) -> 0 | U62: =SUMIF(BDD!$BG$2:$BG$3,"Banc 117 bisFAUXVRAI",BDD!$Z$2:$Z$3) -> 0 | V62: =SUMIF(BDD!$BG$2:$BG$3,"Banc 117 bisVRAIFAUX",BDD!$Z$2:$Z$3) -> 0 | W62: =SUMIF(BDD!$BG$2:$BG$3,"Banc 117 bisFAUXVRAI",BDD!$Z$2:$Z$3) -> 0 | X62: =SUMIF(BDD!$BG$2:$BG$3,"Banc 117 bisVRAIFAUX",BDD!$Z$2:$Z$3) -> 0 | Y62: =SUMIF(BDD!$BG$2:$BG$3,"Banc 117 bisFAUXVRAI",BDD!$Z$2:$Z$3) -> 0
A63: Banc 119 | B63: =SUMIF(BDD!$BG$2:$BG$3,"Banc 119VRAIFAUX",BDD!$Z$2:$Z$3) -> 0 | C63: =SUMIF(BDD!$BG$2:$BG$3,"Banc 119FAUXVRAI",BDD!$Z$2:$Z$3) -> 0 | D63: =SUMIF(BDD!$BG$2:$BG$3,"Banc 119VRAIFAUX",BDD!$Z$2:$Z$3) -> 0 | E63: =SUMIF(BDD!$BG$2:$BG$3,"Banc 119FAUXVRAI",BDD!$Z$2:$Z$3) -> 0 | F63: =SUMIF(BDD!$BG$2:$BG$683,"Banc 119VRAIFAUX",BDD!$Z$2:$Z$683) -> 0 | G63: =SUMIF(BDD!$BG$2:$BG$683,"Banc 119FAUXVRAI",BDD!$Z$2:$Z$683) -> 0 | H63: =SUMIF(BDD!$BG$2:$BG$3,"Banc 119VRAIFAUX",BDD!$Z$2:$Z$3) -> 0 | I63: =SUMIF(BDD!$BG$2:$BG$3,"Banc 119FAUXVRAI",BDD!$Z$2:$Z$3) -> 0 | J63: =SUMIF(BDD!$BG$2:$BG$3,"Banc 119VRAIFAUX",BDD!$Z$2:$Z$3) -> 0 | K63: =SUMIF(BDD!$BG$2:$BG$3,"Banc 119FAUXVRAI",BDD!$Z$2:$Z$3) -> 0 | L63: =SUMIF(BDD!$BG$2:$BG$3,"Banc 119VRAIFAUX",BDD!$Z$2:$Z$3) -> 0 | M63: =SUMIF(BDD!$BG$2:$BG$3,"Banc 119FAUXVRAI",BDD!$Z$2:$Z$3) -> 0 | N63: =SUMIF(BDD!$BG$2:$BG$3,"Banc 119VRAIFAUX",BDD!$Z$2:$Z$3) -> 0 | O63: =SUMIF(BDD!$BG$2:$BG$3,"Banc 119FAUXVRAI",BDD!$Z$2:$Z$3) -> 0 | P63: =SUMIF(BDD!$BG$2:$BG$3,"Banc 119VRAIFAUX",BDD!$Z$2:$Z$3) -> 0 | Q63: =SUMIF(BDD!$BG$2:$BG$3,"Banc 119FAUXVRAI",BDD!$Z$2:$Z$3) -> 0 | R63: =SUMIF(BDD!$BG$2:$BG$3,"Banc 119VRAIFAUX",BDD!$Z$2:$Z$3) -> 0 | S63: =SUMIF(BDD!$BG$2:$BG$3,"Banc 119FAUXVRAI",BDD!$Z$2:$Z$3) -> 0 | T63: =SUMIF(BDD!$BG$2:$BG$3,"Banc 119VRAIFAUX",BDD!$Z$2:$Z$3) -> 0 | U63: =SUMIF(BDD!$BG$2:$BG$3,"Banc 119FAUXVRAI",BDD!$Z$2:$Z$3) -> 0 | V63: =SUMIF(BDD!$BG$2:$BG$3,"Banc 119VRAIFAUX",BDD!$Z$2:$Z$3) -> 0 | W63: =SUMIF(BDD!$BG$2:$BG$3,"Banc 119FAUXVRAI",BDD!$Z$2:$Z$3) -> 0 | X63: =SUMIF(BDD!$BG$2:$BG$3,"Banc 119VRAIFAUX",BDD!$Z$2:$Z$3) -> 0 | Y63: =SUMIF(BDD!$BG$2:$BG$3,"Banc 119FAUXVRAI",BDD!$Z$2:$Z$3) -> 0
A64: Banc 123 | B64: =SUMIF(BDD!$BG$2:$BG$3,"Banc 123VRAIFAUX",BDD!$Z$2:$Z$3) -> 0 | C64: =SUMIF(BDD!$BG$2:$BG$3,"Banc 123FAUXVRAI",BDD!$Z$2:$Z$3) -> 0 | D64: =SUMIF(BDD!$BG$2:$BG$3,"Banc 123VRAIFAUX",BDD!$Z$2:$Z$3) -> 0 | E64: =SUMIF(BDD!$BG$2:$BG$3,"Banc 123FAUXVRAI",BDD!$Z$2:$Z$3) -> 0 | F64: =SUMIF(BDD!$BG$2:$BG$683,"Banc 123VRAIFAUX",BDD!$Z$2:$Z$683) -> 0 | G64: =SUMIF(BDD!$BG$2:$BG$683,"Banc 123FAUXVRAI",BDD!$Z$2:$Z$683) -> 32 | H64: =SUMIF(BDD!$BG$2:$BG$3,"Banc 123VRAIFAUX",BDD!$Z$2:$Z$3) -> 0 | I64: =SUMIF(BDD!$BG$2:$BG$3,"Banc 123FAUXVRAI",BDD!$Z$2:$Z$3) -> 0 | J64: =SUMIF(BDD!$BG$2:$BG$3,"Banc 123VRAIFAUX",BDD!$Z$2:$Z$3) -> 0 | K64: =SUMIF(BDD!$BG$2:$BG$3,"Banc 123FAUXVRAI",BDD!$Z$2:$Z$3) -> 0 | L64: =SUMIF(BDD!$BG$2:$BG$3,"Banc 123VRAIFAUX",BDD!$Z$2:$Z$3) -> 0 | M64: =SUMIF(BDD!$BG$2:$BG$3,"Banc 123FAUXVRAI",BDD!$Z$2:$Z$3) -> 0 | N64: =SUMIF(BDD!$BG$2:$BG$3,"Banc 123VRAIFAUX",BDD!$Z$2:$Z$3) -> 0 | O64: =SUMIF(BDD!$BG$2:$BG$3,"Banc 123FAUXVRAI",BDD!$Z$2:$Z$3) -> 0 | P64: =SUMIF(BDD!$BG$2:$BG$3,"Banc 123VRAIFAUX",BDD!$Z$2:$Z$3) -> 0 | Q64: =SUMIF(BDD!$BG$2:$BG$3,"Banc 123FAUXVRAI",BDD!$Z$2:$Z$3) -> 0 | R64: =SUMIF(BDD!$BG$2:$BG$3,"Banc 123VRAIFAUX",BDD!$Z$2:$Z$3) -> 0 | S64: =SUMIF(BDD!$BG$2:$BG$3,"Banc 123FAUXVRAI",BDD!$Z$2:$Z$3) -> 0 | T64: =SUMIF(BDD!$BG$2:$BG$3,"Banc 123VRAIFAUX",BDD!$Z$2:$Z$3) -> 0 | U64: =SUMIF(BDD!$BG$2:$BG$3,"Banc 123FAUXVRAI",BDD!$Z$2:$Z$3) -> 0 | V64: =SUMIF(BDD!$BG$2:$BG$3,"Banc 123VRAIFAUX",BDD!$Z$2:$Z$3) -> 0 | W64: =SUMIF(BDD!$BG$2:$BG$3,"Banc 123FAUXVRAI",BDD!$Z$2:$Z$3) -> 0 | X64: =SUMIF(BDD!$BG$2:$BG$3,"Banc 123VRAIFAUX",BDD!$Z$2:$Z$3) -> 0 | Y64: =SUMIF(BDD!$BG$2:$BG$3,"Banc 123FAUXVRAI",BDD!$Z$2:$Z$3) -> 0
A65: Banc 126 | B65: =SUMIF(BDD!$BG$2:$BG$3,"Banc 126VRAIFAUX",BDD!$Z$2:$Z$3) -> 0 | C65: =SUMIF(BDD!$BG$2:$BG$3,"Banc 126FAUXVRAI",BDD!$Z$2:$Z$3) -> 0 | D65: =SUMIF(BDD!$BG$2:$BG$3,"Banc 126VRAIFAUX",BDD!$Z$2:$Z$3) -> 0 | E65: =SUMIF(BDD!$BG$2:$BG$3,"Banc 126FAUXVRAI",BDD!$Z$2:$Z$3) -> 0 | F65: =SUMIF(BDD!$BG$2:$BG$683,"Banc 126VRAIFAUX",BDD!$Z$2:$Z$683) -> 0 | G65: =SUMIF(BDD!$BG$2:$BG$683,"Banc 126FAUXVRAI",BDD!$Z$2:$Z$683) -> 0.3 | H65: =SUMIF(BDD!$BG$2:$BG$3,"Banc 126VRAIFAUX",BDD!$Z$2:$Z$3) -> 0 | I65: =SUMIF(BDD!$BG$2:$BG$3,"Banc 126FAUXVRAI",BDD!$Z$2:$Z$3) -> 0 | J65: =SUMIF(BDD!$BG$2:$BG$3,"Banc 126VRAIFAUX",BDD!$Z$2:$Z$3) -> 0 | K65: =SUMIF(BDD!$BG$2:$BG$3,"Banc 126FAUXVRAI",BDD!$Z$2:$Z$3) -> 0 | L65: =SUMIF(BDD!$BG$2:$BG$3,"Banc 126VRAIFAUX",BDD!$Z$2:$Z$3) -> 0 | M65: =SUMIF(BDD!$BG$2:$BG$3,"Banc 126FAUXVRAI",BDD!$Z$2:$Z$3) -> 0 | N65: =SUMIF(BDD!$BG$2:$BG$3,"Banc 126VRAIFAUX",BDD!$Z$2:$Z$3) -> 0 | O65: =SUMIF(BDD!$BG$2:$BG$3,"Banc 126FAUXVRAI",BDD!$Z$2:$Z$3) -> 0 | P65: =SUMIF(BDD!$BG$2:$BG$3,"Banc 126VRAIFAUX",BDD!$Z$2:$Z$3) -> 0 | Q65: =SUMIF(BDD!$BG$2:$BG$3,"Banc 126FAUXVRAI",BDD!$Z$2:$Z$3) -> 0 | R65: =SUMIF(BDD!$BG$2:$BG$3,"Banc 126VRAIFAUX",BDD!$Z$2:$Z$3) -> 0 | S65: =SUMIF(BDD!$BG$2:$BG$3,"Banc 126FAUXVRAI",BDD!$Z$2:$Z$3) -> 0 | T65: =SUMIF(BDD!$BG$2:$BG$3,"Banc 126VRAIFAUX",BDD!$Z$2:$Z$3) -> 0 | U65: =SUMIF(BDD!$BG$2:$BG$3,"Banc 126FAUXVRAI",BDD!$Z$2:$Z$3) -> 0 | V65: =SUMIF(BDD!$BG$2:$BG$3,"Banc 126VRAIFAUX",BDD!$Z$2:$Z$3) -> 0 | W65: =SUMIF(BDD!$BG$2:$BG$3,"Banc 126FAUXVRAI",BDD!$Z$2:$Z$3) -> 0 | X65: =SUMIF(BDD!$BG$2:$BG$3,"Banc 126VRAIFAUX",BDD!$Z$2:$Z$3) -> 0 | Y65: =SUMIF(BDD!$BG$2:$BG$3,"Banc 126FAUXVRAI",BDD!$Z$2:$Z$3) -> 0
A66: Banc 156 | B66: =SUMIF(BDD!$BG$2:$BG$3,"Banc 156VRAIFAUX",BDD!$Z$2:$Z$3) -> 0 | C66: =SUMIF(BDD!$BG$2:$BG$3,"Banc 156FAUXVRAI",BDD!$Z$2:$Z$3) -> 0 | D66: =SUMIF(BDD!$BG$2:$BG$3,"Banc 156VRAIFAUX",BDD!$Z$2:$Z$3) -> 0 | E66: =SUMIF(BDD!$BG$2:$BG$3,"Banc 156FAUXVRAI",BDD!$Z$2:$Z$3) -> 0 | F66: =SUMIF(BDD!$BG$2:$BG$683,"Banc 156VRAIFAUX",BDD!$Z$2:$Z$683) -> 0 | G66: =SUMIF(BDD!$BG$2:$BG$683,"Banc 156FAUXVRAI",BDD!$Z$2:$Z$683) -> 0 | H66: =SUMIF(BDD!$BG$2:$BG$3,"Banc 156VRAIFAUX",BDD!$Z$2:$Z$3) -> 0 | I66: =SUMIF(BDD!$BG$2:$BG$3,"Banc 156FAUXVRAI",BDD!$Z$2:$Z$3) -> 0 | J66: =SUMIF(BDD!$BG$2:$BG$3,"Banc 156VRAIFAUX",BDD!$Z$2:$Z$3) -> 0 | K66: =SUMIF(BDD!$BG$2:$BG$3,"Banc 156FAUXVRAI",BDD!$Z$2:$Z$3) -> 0 | L66: =SUMIF(BDD!$BG$2:$BG$3,"Banc 156VRAIFAUX",BDD!$Z$2:$Z$3) -> 0 | M66: =SUMIF(BDD!$BG$2:$BG$3,"Banc 156FAUXVRAI",BDD!$Z$2:$Z$3) -> 0 | N66: =SUMIF(BDD!$BG$2:$BG$3,"Banc 156VRAIFAUX",BDD!$Z$2:$Z$3) -> 0 | O66: =SUMIF(BDD!$BG$2:$BG$3,"Banc 156FAUXVRAI",BDD!$Z$2:$Z$3) -> 0 | P66: =SUMIF(BDD!$BG$2:$BG$3,"Banc 156VRAIFAUX",BDD!$Z$2:$Z$3) -> 0 | Q66: =SUMIF(BDD!$BG$2:$BG$3,"Banc 156FAUXVRAI",BDD!$Z$2:$Z$3) -> 0 | R66: =SUMIF(BDD!$BG$2:$BG$3,"Banc 156VRAIFAUX",BDD!$Z$2:$Z$3) -> 0 | S66: =SUMIF(BDD!$BG$2:$BG$3,"Banc 156FAUXVRAI",BDD!$Z$2:$Z$3) -> 0 | T66: =SUMIF(BDD!$BG$2:$BG$3,"Banc 156VRAIFAUX",BDD!$Z$2:$Z$3) -> 0 | U66: =SUMIF(BDD!$BG$2:$BG$3,"Banc 156FAUXVRAI",BDD!$Z$2:$Z$3) -> 0 | V66: =SUMIF(BDD!$BG$2:$BG$3,"Banc 156VRAIFAUX",BDD!$Z$2:$Z$3) -> 0 | W66: =SUMIF(BDD!$BG$2:$BG$3,"Banc 156FAUXVRAI",BDD!$Z$2:$Z$3) -> 0 | X66: =SUMIF(BDD!$BG$2:$BG$3,"Banc 156VRAIFAUX",BDD!$Z$2:$Z$3) -> 0 | Y66: =SUMIF(BDD!$BG$2:$BG$3,"Banc 156FAUXVRAI",BDD!$Z$2:$Z$3) -> 0
B89: Suivi du correctif et du préventif par banc
B90: Janvier | H90: Février | N90: Mars | T90: Avril | Z90: Mai | AF90: Juin | AL90: Juillet | AR90: Août | AX90: Septembre | BD90: Octobre | BJ90: Novembre | BP90: Décembre
B91: Corrective | E91: Préventive | H91: Corrective | K91: Préventive | N91: Corrective | Q91: Préventive | T91: Corrective | W91: Préventive | Z91: Corrective | AC91: Préventive | AF91: Corrective | AI91: Préventive | AL91: Corrective | AO91: Préventive | AR91: Corrective | AU91: Préventive | AX91: Corrective | BA91: Préventive | BD91: Corrective | BG91: Préventive | BJ91: Corrective | BM91: Préventive | BP91: Corrective | BS91: Préventive
A92: Banc zone 9 | B92: Electrique | C92: Mécanique | D92: Hydraulique | E92: Electrique | F92: Mécanique | G92: Hydraulique | H92: Electrique | I92: Mécanique | J92: Hydraulique | K92: Electrique | L92: Mécanique | M92: Hydraulique | N92: Electrique | O92: Mécanique | P92: Hydraulique | Q92: Electrique | R92: Mécanique | S92: Hydraulique | T92: Electrique | U92: Mécanique | V92: Hydraulique | W92: Electrique | X92: Mécanique | Y92: Hydraulique | Z92: Electrique | AA92: Mécanique | AB92: Hydraulique | AC92: Electrique | AD92: Mécanique | AE92: Hydraulique | AF92: Electrique | AG92: Mécanique | AH92: Hydraulique | AI92: Electrique | AJ92: Mécanique | AK92: Hydraulique | AL92: Electrique | AM92: Mécanique | AN92: Hydraulique | AO92: Electrique | AP92: Mécanique | AQ92: Hydraulique | AR92: Electrique | AS92: Mécanique | AT92: Hydraulique | AU92: Electrique | AV92: Mécanique | AW92: Hydraulique | AX92: Electrique | AY92: Mécanique | AZ92: Hydraulique | BA92: Electrique | BB92: Mécanique | BC92: Hydraulique | BD92: Electrique | BE92: Mécanique | BF92: Hydraulique | BG92: Electrique | BH92: Mécanique | BI92: Hydraulique | BJ92: Electrique | BK92: Mécanique | BL92: Hydraulique | BM92: Electrique | BN92: Mécanique | BO92: Hydraulique | BP92: Electrique | BQ92: Mécanique | BR92: Hydraulique | BS92: Electrique | BT92: Mécanique | BU92: Hydraulique
A93: Banc P5 | B93: =SUMIF(BDD!$BH$2:$BH$3,"Banc P5VRAIFAUXVRAIFAUXFAUX",BDD!$Z$2:$Z$3) -> 0 | C93: =SUMIF(BDD!$BH$2:$BH$3,"Banc P5VRAIFAUXFAUXVRAIFAUX",BDD!$Z$2:$Z$3) -> 0 | D93: =SUMIF(BDD!$BH$2:$BH$3,"Banc P5VRAIFAUXFAUXFAUXVRAI",BDD!$Z$2:$Z$3) -> 0 | E93: =SUMIF(BDD!$BH$2:$BH$3,"Banc P5FAUXVRAIVRAIFAUXFAUX",BDD!$Z$2:$Z$3) -> 0 | F93: =SUMIF(BDD!$BH$2:$BH$3,"Banc P5FAUXVRAIFAUXVRAIFAUX",BDD!$Z$2:$Z$3) -> 0 | G93: =SUMIF(BDD!$BH$2:$BH$3,"Banc P5FAUXVRAIFAUXFAUXVRAI",BDD!$Z$2:$Z$3) -> 0 | H93: =SUMIF(BDD!$BH$2:$BH$3,"Banc P5VRAIFAUXVRAIFAUXFAUX",BDD!$Z$2:$Z$3) -> 0 | I93: =SUMIF(BDD!$BH$2:$BH$3,"Banc P5VRAIFAUXFAUXVRAIFAUX",BDD!$Z$2:$Z$3) -> 0 | J93: =SUMIF(BDD!$BH$2:$BH$3,"Banc P5VRAIFAUXFAUXFAUXVRAI",BDD!$Z$2:$Z$3) -> 0 | K93: =SUMIF(BDD!$BH$2:$BH$3,"Banc P5FAUXVRAIVRAIFAUXFAUX",BDD!$Z$2:$Z$3) -> 0 | L93: =SUMIF(BDD!$BH$2:$BH$3,"Banc P5FAUXVRAIFAUXVRAIFAUX",BDD!$Z$2:$Z$3) -> 0 | M93: =SUMIF(BDD!$BH$2:$BH$3,"Banc P5FAUXVRAIFAUXFAUXVRAI",BDD!$Z$2:$Z$3) -> 0 | N93: =SUMIF(BDD!$BH$2:$BH$683,"Banc P5VRAIFAUXVRAIFAUXFAUX",BDD!$Z$2:$Z$683) -> 0 | O93: =SUMIF(BDD!$BH$2:$BH$683,"Banc P5VRAIFAUXFAUXVRAIFAUX",BDD!$Z$2:$Z$683) -> 0 | P93: =SUMIF(BDD!$BH$2:$BH$683,"Banc P5VRAIFAUXFAUXFAUXVRAI",BDD!$Z$2:$Z$683) -> 0 | Q93: =SUMIF(BDD!$BH$2:$BH$683,"Banc P5FAUXVRAIVRAIFAUXFAUX",BDD!$Z$2:$Z$683) -> 0 | R93: =SUMIF(BDD!$BH$2:$BH$683,"Banc P5FAUXVRAIFAUXVRAIFAUX",BDD!$Z$2:$Z$683) -> 0 | S93: =SUMIF(BDD!$BH$2:$BH$683,"Banc P5FAUXVRAIFAUXFAUXVRAI",BDD!$Z$2:$Z$683) -> 0 | T93: =SUMIF(BDD!$BH$2:$BH$3,"Banc P5VRAIFAUXVRAIFAUXFAUX",BDD!$Z$2:$Z$3) -> 0 | U93: =SUMIF(BDD!$BH$2:$BH$3,"Banc P5VRAIFAUXFAUXVRAIFAUX",BDD!$Z$2:$Z$3) -> 0 | V93: =SUMIF(BDD!$BH$2:$BH$3,"Banc P5VRAIFAUXFAUXFAUXVRAI",BDD!$Z$2:$Z$3) -> 0 | W93: =SUMIF(BDD!$BH$2:$BH$3,"Banc P5FAUXVRAIVRAIFAUXFAUX",BDD!$Z$2:$Z$3) -> 0 | X93: =SUMIF(BDD!$BH$2:$BH$3,"Banc P5FAUXVRAIFAUXVRAIFAUX",BDD!$Z$2:$Z$3) -> 0 | Y93: =SUMIF(BDD!$BH$2:$BH$3,"Banc P5FAUXVRAIFAUXFAUXVRAI",BDD!$Z$2:$Z$3) -> 0 | Z93: =SUMIF(BDD!$BH$2:$BH$3,"Banc P5VRAIFAUXVRAIFAUXFAUX",BDD!$Z$2:$Z$3) -> 0 | AA93: =SUMIF(BDD!$BH$2:$BH$3,"Banc P5VRAIFAUXFAUXVRAIFAUX",BDD!$Z$2:$Z$3) -> 0 | AB93: =SUMIF(BDD!$BH$2:$BH$3,"Banc P5VRAIFAUXFAUXFAUXVRAI",BDD!$Z$2:$Z$3) -> 0 | AC93: =SUMIF(BDD!$BH$2:$BH$3,"Banc P5FAUXVRAIVRAIFAUXFAUX",BDD!$Z$2:$Z$3) -> 0 | AD93: =SUMIF(BDD!$BH$2:$BH$3,"Banc P5FAUXVRAIFAUXVRAIFAUX",BDD!$Z$2:$Z$3) -> 0 | AE93: =SUMIF(BDD!$BH$2:$BH$3,"Banc P5FAUXVRAIFAUXFAUXVRAI",BDD!$Z$2:$Z$3) -> 0 | AF93: =SUMIF(BDD!$BH$2:$BH$3,"Banc P5VRAIFAUXVRAIFAUXFAUX",BDD!$Z$2:$Z$3) -> 0 | AG93: =SUMIF(BDD!$BH$2:$BH$3,"Banc P5VRAIFAUXFAUXVRAIFAUX",BDD!$Z$2:$Z$3) -> 0 | AH93: =SUMIF(BDD!$BH$2:$BH$3,"Banc P5VRAIFAUXFAUXFAUXVRAI",BDD!$Z$2:$Z$3) -> 0 | AI93: =SUMIF(BDD!$BH$2:$BH$3,"Banc P5FAUXVRAIVRAIFAUXFAUX",BDD!$Z$2:$Z$3) -> 0 | AJ93: =SUMIF(BDD!$BH$2:$BH$3,"Banc P5FAUXVRAIFAUXVRAIFAUX",BDD!$Z$2:$Z$3) -> 0 | AK93: =SUMIF(BDD!$BH$2:$BH$3,"Banc P5FAUXVRAIFAUXFAUXVRAI",BDD!$Z$2:$Z$3) -> 0 | AL93: =SUMIF(BDD!$BH$2:$BH$3,"Banc P5VRAIFAUXVRAIFAUXFAUX",BDD!$Z$2:$Z$3) -> 0 | AM93: =SUMIF(BDD!$BH$2:$BH$3,"Banc P5VRAIFAUXFAUXVRAIFAUX",BDD!$Z$2:$Z$3) -> 0 | AN93: =SUMIF(BDD!$BH$2:$BH$3,"Banc P5VRAIFAUXFAUXFAUXVRAI",BDD!$Z$2:$Z$3) -> 0 | AO93: =SUMIF(BDD!$BH$2:$BH$3,"Banc P5FAUXVRAIVRAIFAUXFAUX",BDD!$Z$2:$Z$3) -> 0 | AP93: =SUMIF(BDD!$BH$2:$BH$3,"Banc P5FAUXVRAIFAUXVRAIFAUX",BDD!$Z$2:$Z$3) -> 0 | AQ93: =SUMIF(BDD!$BH$2:$BH$3,"Banc P5FAUXVRAIFAUXFAUXVRAI",BDD!$Z$2:$Z$3) -> 0 | AR93: =SUMIF(BDD!$BH$2:$BH$3,"Banc P5VRAIFAUXVRAIFAUXFAUX",BDD!$Z$2:$Z$3) -> 0 | AS93: =SUMIF(BDD!$BH$2:$BH$3,"Banc P5VRAIFAUXFAUXVRAIFAUX",BDD!$Z$2:$Z$3) -> 0 | AT93: =SUMIF(BDD!$BH$2:$BH$3,"Banc P5VRAIFAUXFAUXFAUXVRAI",BDD!$Z$2:$Z$3) -> 0 | AU93: =SUMIF(BDD!$BH$2:$BH$3,"Banc P5FAUXVRAIVRAIFAUXFAUX",BDD!$Z$2:$Z$3) -> 0 | AV93: =SUMIF(BDD!$BH$2:$BH$3,"Banc P5FAUXVRAIFAUXVRAIFAUX",BDD!$Z$2:$Z$3) -> 0 | AW93: =SUMIF(BDD!$BH$2:$BH$3,"Banc P5FAUXVRAIFAUXFAUXVRAI",BDD!$Z$2:$Z$3) -> 0 | AX93: =SUMIF(BDD!$BH$2:$BH$3,"Banc P5VRAIFAUXVRAIFAUXFAUX",BDD!$Z$2:$Z$3) -> 0 | AY93: =SUMIF(BDD!$BH$2:$BH$3,"Banc P5VRAIFAUXFAUXVRAIFAUX",BDD!$Z$2:$Z$3) -> 0 | AZ93: =SUMIF(BDD!$BH$2:$BH$3,"Banc P5VRAIFAUXFAUXFAUXVRAI",BDD!$Z$2:$Z$3) -> 0 | BA93: =SUMIF(BDD!$BH$2:$BH$3,"Banc P5FAUXVRAIVRAIFAUXFAUX",BDD!$Z$2:$Z$3) -> 0 | BB93: =SUMIF(BDD!$BH$2:$BH$3,"Banc P5FAUXVRAIFAUXVRAIFAUX",BDD!$Z$2:$Z$3) -> 0 | BC93: =SUMIF(BDD!$BH$2:$BH$3,"Banc P5FAUXVRAIFAUXFAUXVRAI",BDD!$Z$2:$Z$3) -> 0 | BD93: =SUMIF(BDD!$BH$2:$BH$3,"Banc P5VRAIFAUXVRAIFAUXFAUX",BDD!$Z$2:$Z$3) -> 0 | BE93: =SUMIF(BDD!$BH$2:$BH$3,"Banc P5VRAIFAUXFAUXVRAIFAUX",BDD!$Z$2:$Z$3) -> 0 | BF93: =SUMIF(BDD!$BH$2:$BH$3,"Banc P5VRAIFAUXFAUXFAUXVRAI",BDD!$Z$2:$Z$3) -> 0 | BG93: =SUMIF(BDD!$BH$2:$BH$3,"Banc P5FAUXVRAIVRAIFAUXFAUX",BDD!$Z$2:$Z$3) -> 0 | BH93: =SUMIF(BDD!$BH$2:$BH$3,"Banc P5FAUXVRAIFAUXVRAIFAUX",BDD!$Z$2:$Z$3) -> 0 | BI93: =SUMIF(BDD!$BH$2:$BH$3,"Banc P5FAUXVRAIFAUXFAUXVRAI",BDD!$Z$2:$Z$3) -> 0 | BJ93: =SUMIF(BDD!$BH$2:$BH$3,"Banc P5VRAIFAUXVRAIFAUXFAUX",BDD!$Z$2:$Z$3) -> 0 | BK93: =SUMIF(BDD!$BH$2:$BH$3,"Banc P5VRAIFAUXFAUXVRAIFAUX",BDD!$Z$2:$Z$3) -> 0 | BL93: =SUMIF(BDD!$BH$2:$BH$3,"Banc P5VRAIFAUXFAUXFAUXVRAI",BDD!$Z$2:$Z$3) -> 0 | BM93: =SUMIF(BDD!$BH$2:$BH$3,"Banc P5FAUXVRAIVRAIFAUXFAUX",BDD!$Z$2:$Z$3) -> 0 | BN93: =SUMIF(BDD!$BH$2:$BH$3,"Banc P5FAUXVRAIFAUXVRAIFAUX",BDD!$Z$2:$Z$3) -> 0 | BO93: =SUMIF(BDD!$BH$2:$BH$3,"Banc P5FAUXVRAIFAUXFAUXVRAI",BDD!$Z$2:$Z$3) -> 0 | BP93: =SUMIF(BDD!$BH$2:$BH$3,"Banc P5VRAIFAUXVRAIFAUXFAUX",BDD!$Z$2:$Z$3) -> 0 | BQ93: =SUMIF(BDD!$BH$2:$BH$3,"Banc P5VRAIFAUXFAUXVRAIFAUX",BDD!$Z$2:$Z$3) -> 0 | BR93: =SUMIF(BDD!$BH$2:$BH$3,"Banc P5VRAIFAUXFAUXFAUXVRAI",BDD!$Z$2:$Z$3) -> 0 | BS93: =SUMIF(BDD!$BH$2:$BH$3,"Banc P5FAUXVRAIVRAIFAUXFAUX",BDD!$Z$2:$Z$3) -> 0 | BT93: =SUMIF(BDD!$BH$2:$BH$3,"Banc P5FAUXVRAIFAUXVRAIFAUX",BDD!$Z$2:$Z$3) -> 0 | BU93: =SUMIF(BDD!$BH$2:$BH$3,"Banc P5FAUXVRAIFAUXFAUXVRAI",BDD!$Z$2:$Z$3) -> 0
A94: Banc 111 | B94: =SUMIF(BDD!$BH$2:$BH$3,"Banc 111VRAIFAUXVRAIFAUXFAUX",BDD!$Z$2:$Z$3) -> 0 | C94: =SUMIF(BDD!$BH$2:$BH$3,"Banc 111VRAIFAUXFAUXVRAIFAUX",BDD!$Z$2:$Z$3) -> 0 | D94: =SUMIF(BDD!$BH$2:$BH$3,"Banc 111VRAIFAUXFAUXFAUXVRAI",BDD!$Z$2:$Z$3) -> 0 | E94: =SUMIF(BDD!$BH$2:$BH$3,"Banc 111FAUXVRAIVRAIFAUXFAUX",BDD!$Z$2:$Z$3) -> 0 | F94: =SUMIF(BDD!$BH$2:$BH$3,"Banc 111FAUXVRAIFAUXVRAIFAUX",BDD!$Z$2:$Z$3) -> 0 | G94: =SUMIF(BDD!$BH$2:$BH$3,"Banc 111FAUXVRAIFAUXFAUXVRAI",BDD!$Z$2:$Z$3) -> 0 | H94: =SUMIF(BDD!$BH$2:$BH$3,"Banc 111VRAIFAUXVRAIFAUXFAUX",BDD!$Z$2:$Z$3) -> 0 | I94: =SUMIF(BDD!$BH$2:$BH$3,"Banc 111VRAIFAUXFAUXVRAIFAUX",BDD!$Z$2:$Z$3) -> 0 | J94: =SUMIF(BDD!$BH$2:$BH$3,"Banc 111VRAIFAUXFAUXFAUXVRAI",BDD!$Z$2:$Z$3) -> 0 | K94: =SUMIF(BDD!$BH$2:$BH$3,"Banc 111FAUXVRAIVRAIFAUXFAUX",BDD!$Z$2:$Z$3) -> 0 | L94: =SUMIF(BDD!$BH$2:$BH$3,"Banc 111FAUXVRAIFAUXVRAIFAUX",BDD!$Z$2:$Z$3) -> 0 | M94: =SUMIF(BDD!$BH$2:$BH$3,"Banc 111FAUXVRAIFAUXFAUXVRAI",BDD!$Z$2:$Z$3) -> 0 | N94: =SUMIF(BDD!$BH$2:$BH$683,"Banc 111VRAIFAUXVRAIFAUXFAUX",BDD!$Z$2:$Z$683) -> 0 | O94: =SUMIF(BDD!$BH$2:$BH$683,"Banc 111VRAIFAUXFAUXVRAIFAUX",BDD!$Z$2:$Z$683) -> 0 | P94: =SUMIF(BDD!$BH$2:$BH$683,"Banc 111VRAIFAUXFAUXFAUXVRAI",BDD!$Z$2:$Z$683) -> 0 | Q94: =SUMIF(BDD!$BH$2:$BH$683,"Banc 111FAUXVRAIVRAIFAUXFAUX",BDD!$Z$2:$Z$683) -> 0 | R94: =SUMIF(BDD!$BH$2:$BH$683,"Banc 111FAUXVRAIFAUXVRAIFAUX",BDD!$Z$2:$Z$683) -> 0 | S94: =SUMIF(BDD!$BH$2:$BH$683,"Banc 111FAUXVRAIFAUXFAUXVRAI",BDD!$Z$2:$Z$683) -> 0 | T94: =SUMIF(BDD!$BH$2:$BH$3,"Banc 111VRAIFAUXVRAIFAUXFAUX",BDD!$Z$2:$Z$3) -> 0 | U94: =SUMIF(BDD!$BH$2:$BH$3,"Banc 111VRAIFAUXFAUXVRAIFAUX",BDD!$Z$2:$Z$3) -> 0 | V94: =SUMIF(BDD!$BH$2:$BH$3,"Banc 111VRAIFAUXFAUXFAUXVRAI",BDD!$Z$2:$Z$3) -> 0 | W94: =SUMIF(BDD!$BH$2:$BH$3,"Banc 111FAUXVRAIVRAIFAUXFAUX",BDD!$Z$2:$Z$3) -> 0 | X94: =SUMIF(BDD!$BH$2:$BH$3,"Banc 111FAUXVRAIFAUXVRAIFAUX",BDD!$Z$2:$Z$3) -> 0 | Y94: =SUMIF(BDD!$BH$2:$BH$3,"Banc 111FAUXVRAIFAUXFAUXVRAI",BDD!$Z$2:$Z$3) -> 0 | Z94: =SUMIF(BDD!$BH$2:$BH$3,"Banc 111VRAIFAUXVRAIFAUXFAUX",BDD!$Z$2:$Z$3) -> 0 | AA94: =SUMIF(BDD!$BH$2:$BH$3,"Banc 111VRAIFAUXFAUXVRAIFAUX",BDD!$Z$2:$Z$3) -> 0 | AB94: =SUMIF(BDD!$BH$2:$BH$3,"Banc 111VRAIFAUXFAUXFAUXVRAI",BDD!$Z$2:$Z$3) -> 0 | AC94: =SUMIF(BDD!$BH$2:$BH$3,"Banc 111FAUXVRAIVRAIFAUXFAUX",BDD!$Z$2:$Z$3) -> 0 | AD94: =SUMIF(BDD!$BH$2:$BH$3,"Banc 111FAUXVRAIFAUXVRAIFAUX",BDD!$Z$2:$Z$3) -> 0 | AE94: =SUMIF(BDD!$BH$2:$BH$3,"Banc 111FAUXVRAIFAUXFAUXVRAI",BDD!$Z$2:$Z$3) -> 0 | AF94: =SUMIF(BDD!$BH$2:$BH$3,"Banc 111VRAIFAUXVRAIFAUXFAUX",BDD!$Z$2:$Z$3) -> 0 | AG94: =SUMIF(BDD!$BH$2:$BH$3,"Banc 111VRAIFAUXFAUXVRAIFAUX",BDD!$Z$2:$Z$3) -> 0 | AH94: =SUMIF(BDD!$BH$2:$BH$3,"Banc 111VRAIFAUXFAUXFAUXVRAI",BDD!$Z$2:$Z$3) -> 0 | AI94: =SUMIF(BDD!$BH$2:$BH$3,"Banc 111FAUXVRAIVRAIFAUXFAUX",BDD!$Z$2:$Z$3) -> 0 | AJ94: =SUMIF(BDD!$BH$2:$BH$3,"Banc 111FAUXVRAIFAUXVRAIFAUX",BDD!$Z$2:$Z$3) -> 0 | AK94: =SUMIF(BDD!$BH$2:$BH$3,"Banc 111FAUXVRAIFAUXFAUXVRAI",BDD!$Z$2:$Z$3) -> 0 | AL94: =SUMIF(BDD!$BH$2:$BH$3,"Banc 111VRAIFAUXVRAIFAUXFAUX",BDD!$Z$2:$Z$3) -> 0 | AM94: =SUMIF(BDD!$BH$2:$BH$3,"Banc 111VRAIFAUXFAUXVRAIFAUX",BDD!$Z$2:$Z$3) -> 0 | AN94: =SUMIF(BDD!$BH$2:$BH$3,"Banc 111VRAIFAUXFAUXFAUXVRAI",BDD!$Z$2:$Z$3) -> 0 | AO94: =SUMIF(BDD!$BH$2:$BH$3,"Banc 111FAUXVRAIVRAIFAUXFAUX",BDD!$Z$2:$Z$3) -> 0 | AP94: =SUMIF(BDD!$BH$2:$BH$3,"Banc 111FAUXVRAIFAUXVRAIFAUX",BDD!$Z$2:$Z$3) -> 0 | AQ94: =SUMIF(BDD!$BH$2:$BH$3,"Banc 111FAUXVRAIFAUXFAUXVRAI",BDD!$Z$2:$Z$3) -> 0 | AR94: =SUMIF(BDD!$BH$2:$BH$3,"Banc 111VRAIFAUXVRAIFAUXFAUX",BDD!$Z$2:$Z$3) -> 0 | AS94: =SUMIF(BDD!$BH$2:$BH$3,"Banc 111VRAIFAUXFAUXVRAIFAUX",BDD!$Z$2:$Z$3) -> 0 | AT94: =SUMIF(BDD!$BH$2:$BH$3,"Banc 111VRAIFAUXFAUXFAUXVRAI",BDD!$Z$2:$Z$3) -> 0 | AU94: =SUMIF(BDD!$BH$2:$BH$3,"Banc 111FAUXVRAIVRAIFAUXFAUX",BDD!$Z$2:$Z$3) -> 0 | AV94: =SUMIF(BDD!$BH$2:$BH$3,"Banc 111FAUXVRAIFAUXVRAIFAUX",BDD!$Z$2:$Z$3) -> 0 | AW94: =SUMIF(BDD!$BH$2:$BH$3,"Banc 111FAUXVRAIFAUXFAUXVRAI",BDD!$Z$2:$Z$3) -> 0 | AX94: =SUMIF(BDD!$BH$2:$BH$3,"Banc 111VRAIFAUXVRAIFAUXFAUX",BDD!$Z$2:$Z$3) -> 0 | AY94: =SUMIF(BDD!$BH$2:$BH$3,"Banc 111VRAIFAUXFAUXVRAIFAUX",BDD!$Z$2:$Z$3) -> 0 | AZ94: =SUMIF(BDD!$BH$2:$BH$3,"Banc 111VRAIFAUXFAUXFAUXVRAI",BDD!$Z$2:$Z$3) -> 0 | BA94: =SUMIF(BDD!$BH$2:$BH$3,"Banc 111FAUXVRAIVRAIFAUXFAUX",BDD!$Z$2:$Z$3) -> 0 | BB94: =SUMIF(BDD!$BH$2:$BH$3,"Banc 111FAUXVRAIFAUXVRAIFAUX",BDD!$Z$2:$Z$3) -> 0 | BC94: =SUMIF(BDD!$BH$2:$BH$3,"Banc 111FAUXVRAIFAUXFAUXVRAI",BDD!$Z$2:$Z$3) -> 0 | BD94: =SUMIF(BDD!$BH$2:$BH$3,"Banc 111VRAIFAUXVRAIFAUXFAUX",BDD!$Z$2:$Z$3) -> 0 | BE94: =SUMIF(BDD!$BH$2:$BH$3,"Banc 111VRAIFAUXFAUXVRAIFAUX",BDD!$Z$2:$Z$3) -> 0 | BF94: =SUMIF(BDD!$BH$2:$BH$3,"Banc 111VRAIFAUXFAUXFAUXVRAI",BDD!$Z$2:$Z$3) -> 0 | BG94: =SUMIF(BDD!$BH$2:$BH$3,"Banc 111FAUXVRAIVRAIFAUXFAUX",BDD!$Z$2:$Z$3) -> 0 | BH94: =SUMIF(BDD!$BH$2:$BH$3,"Banc 111FAUXVRAIFAUXVRAIFAUX",BDD!$Z$2:$Z$3) -> 0 | BI94: =SUMIF(BDD!$BH$2:$BH$3,"Banc 111FAUXVRAIFAUXFAUXVRAI",BDD!$Z$2:$Z$3) -> 0 | BJ94: =SUMIF(BDD!$BH$2:$BH$3,"Banc 111VRAIFAUXVRAIFAUXFAUX",BDD!$Z$2:$Z$3) -> 0 | BK94: =SUMIF(BDD!$BH$2:$BH$3,"Banc 111VRAIFAUXFAUXVRAIFAUX",BDD!$Z$2:$Z$3) -> 0 | BL94: =SUMIF(BDD!$BH$2:$BH$3,"Banc 111VRAIFAUXFAUXFAUXVRAI",BDD!$Z$2:$Z$3) -> 0 | BM94: =SUMIF(BDD!$BH$2:$BH$3,"Banc 111FAUXVRAIVRAIFAUXFAUX",BDD!$Z$2:$Z$3) -> 0 | BN94: =SUMIF(BDD!$BH$2:$BH$3,"Banc 111FAUXVRAIFAUXVRAIFAUX",BDD!$Z$2:$Z$3) -> 0 | BO94: =SUMIF(BDD!$BH$2:$BH$3,"Banc 111FAUXVRAIFAUXFAUXVRAI",BDD!$Z$2:$Z$3) -> 0 | BP94: =SUMIF(BDD!$BH$2:$BH$3,"Banc 111VRAIFAUXVRAIFAUXFAUX",BDD!$Z$2:$Z$3) -> 0 | BQ94: =SUMIF(BDD!$BH$2:$BH$3,"Banc 111VRAIFAUXFAUXVRAIFAUX",BDD!$Z$2:$Z$3) -> 0 | BR94: =SUMIF(BDD!$BH$2:$BH$3,"Banc 111VRAIFAUXFAUXFAUXVRAI",BDD!$Z$2:$Z$3) -> 0 | BS94: =SUMIF(BDD!$BH$2:$BH$3,"Banc 111FAUXVRAIVRAIFAUXFAUX",BDD!$Z$2:$Z$3) -> 0 | BT94: =SUMIF(BDD!$BH$2:$BH$3,"Banc 111FAUXVRAIFAUXVRAIFAUX",BDD!$Z$2:$Z$3) -> 0 | BU94: =SUMIF(BDD!$BH$2:$BH$3,"Banc 111FAUXVRAIFAUXFAUXVRAI",BDD!$Z$2:$Z$3) -> 0
A95: Banc 117 | B95: =SUMIF(BDD!$BH$2:$BH$3,"Banc 117VRAIFAUXVRAIFAUXFAUX",BDD!$Z$2:$Z$3) -> 0 | C95: =SUMIF(BDD!$BH$2:$BH$3,"Banc 117VRAIFAUXFAUXVRAIFAUX",BDD!$Z$2:$Z$3) -> 0 | D95: =SUMIF(BDD!$BH$2:$BH$3,"Banc 117VRAIFAUXFAUXFAUXVRAI",BDD!$Z$2:$Z$3) -> 0 | E95: =SUMIF(BDD!$BH$2:$BH$3,"Banc 117FAUXVRAIVRAIFAUXFAUX",BDD!$Z$2:$Z$3) -> 0 | F95: =SUMIF(BDD!$BH$2:$BH$3,"Banc 117FAUXVRAIFAUXVRAIFAUX",BDD!$Z$2:$Z$3) -> 0 | G95: =SUMIF(BDD!$BH$2:$BH$3,"Banc 117FAUXVRAIFAUXFAUXVRAI",BDD!$Z$2:$Z$3) -> 0 | H95: =SUMIF(BDD!$BH$2:$BH$3,"Banc 117VRAIFAUXVRAIFAUXFAUX",BDD!$Z$2:$Z$3) -> 0 | I95: =SUMIF(BDD!$BH$2:$BH$3,"Banc 117VRAIFAUXFAUXVRAIFAUX",BDD!$Z$2:$Z$3) -> 0 | J95: =SUMIF(BDD!$BH$2:$BH$3,"Banc 117VRAIFAUXFAUXFAUXVRAI",BDD!$Z$2:$Z$3) -> 0 | K95: =SUMIF(BDD!$BH$2:$BH$3,"Banc 117FAUXVRAIVRAIFAUXFAUX",BDD!$Z$2:$Z$3) -> 0 | L95: =SUMIF(BDD!$BH$2:$BH$3,"Banc 117FAUXVRAIFAUXVRAIFAUX",BDD!$Z$2:$Z$3) -> 0 | M95: =SUMIF(BDD!$BH$2:$BH$3,"Banc 117FAUXVRAIFAUXFAUXVRAI",BDD!$Z$2:$Z$3) -> 0 | N95: =SUMIF(BDD!$BH$2:$BH$683,"Banc 117VRAIFAUXVRAIFAUXFAUX",BDD!$Z$2:$Z$683) -> 0 | O95: =SUMIF(BDD!$BH$2:$BH$683,"Banc 117VRAIFAUXFAUXVRAIFAUX",BDD!$Z$2:$Z$683) -> 0 | P95: =SUMIF(BDD!$BH$2:$BH$683,"Banc 117VRAIFAUXFAUXFAUXVRAI",BDD!$Z$2:$Z$683) -> 0 | Q95: =SUMIF(BDD!$BH$2:$BH$683,"Banc 117FAUXVRAIVRAIFAUXFAUX",BDD!$Z$2:$Z$683) -> 0 | R95: =SUMIF(BDD!$BH$2:$BH$683,"Banc 117FAUXVRAIFAUXVRAIFAUX",BDD!$Z$2:$Z$683) -> 0 | S95: =SUMIF(BDD!$BH$2:$BH$683,"Banc 117FAUXVRAIFAUXFAUXVRAI",BDD!$Z$2:$Z$683) -> 0 | T95: =SUMIF(BDD!$BH$2:$BH$3,"Banc 117VRAIFAUXVRAIFAUXFAUX",BDD!$Z$2:$Z$3) -> 0 | U95: =SUMIF(BDD!$BH$2:$BH$3,"Banc 117VRAIFAUXFAUXVRAIFAUX",BDD!$Z$2:$Z$3) -> 0 | V95: =SUMIF(BDD!$BH$2:$BH$3,"Banc 117VRAIFAUXFAUXFAUXVRAI",BDD!$Z$2:$Z$3) -> 0 | W95: =SUMIF(BDD!$BH$2:$BH$3,"Banc 117FAUXVRAIVRAIFAUXFAUX",BDD!$Z$2:$Z$3) -> 0 | X95: =SUMIF(BDD!$BH$2:$BH$3,"Banc 117FAUXVRAIFAUXVRAIFAUX",BDD!$Z$2:$Z$3) -> 0 | Y95: =SUMIF(BDD!$BH$2:$BH$3,"Banc 117FAUXVRAIFAUXFAUXVRAI",BDD!$Z$2:$Z$3) -> 0 | Z95: =SUMIF(BDD!$BH$2:$BH$3,"Banc 117VRAIFAUXVRAIFAUXFAUX",BDD!$Z$2:$Z$3) -> 0 | AA95: =SUMIF(BDD!$BH$2:$BH$3,"Banc 117VRAIFAUXFAUXVRAIFAUX",BDD!$Z$2:$Z$3) -> 0 | AB95: =SUMIF(BDD!$BH$2:$BH$3,"Banc 117VRAIFAUXFAUXFAUXVRAI",BDD!$Z$2:$Z$3) -> 0 | AC95: =SUMIF(BDD!$BH$2:$BH$3,"Banc 117FAUXVRAIVRAIFAUXFAUX",BDD!$Z$2:$Z$3) -> 0 | AD95: =SUMIF(BDD!$BH$2:$BH$3,"Banc 117FAUXVRAIFAUXVRAIFAUX",BDD!$Z$2:$Z$3) -> 0 | AE95: =SUMIF(BDD!$BH$2:$BH$3,"Banc 117FAUXVRAIFAUXFAUXVRAI",BDD!$Z$2:$Z$3) -> 0 | AF95: =SUMIF(BDD!$BH$2:$BH$3,"Banc 117VRAIFAUXVRAIFAUXFAUX",BDD!$Z$2:$Z$3) -> 0 | AG95: =SUMIF(BDD!$BH$2:$BH$3,"Banc 117VRAIFAUXFAUXVRAIFAUX",BDD!$Z$2:$Z$3) -> 0 | AH95: =SUMIF(BDD!$BH$2:$BH$3,"Banc 117VRAIFAUXFAUXFAUXVRAI",BDD!$Z$2:$Z$3) -> 0 | AI95: =SUMIF(BDD!$BH$2:$BH$3,"Banc 117FAUXVRAIVRAIFAUXFAUX",BDD!$Z$2:$Z$3) -> 0 | AJ95: =SUMIF(BDD!$BH$2:$BH$3,"Banc 117FAUXVRAIFAUXVRAIFAUX",BDD!$Z$2:$Z$3) -> 0 | AK95: =SUMIF(BDD!$BH$2:$BH$3,"Banc 117FAUXVRAIFAUXFAUXVRAI",BDD!$Z$2:$Z$3) -> 0 | AL95: =SUMIF(BDD!$BH$2:$BH$3,"Banc 117VRAIFAUXVRAIFAUXFAUX",BDD!$Z$2:$Z$3) -> 0 | AM95: =SUMIF(BDD!$BH$2:$BH$3,"Banc 117VRAIFAUXFAUXVRAIFAUX",BDD!$Z$2:$Z$3) -> 0 | AN95: =SUMIF(BDD!$BH$2:$BH$3,"Banc 117VRAIFAUXFAUXFAUXVRAI",BDD!$Z$2:$Z$3) -> 0 | AO95: =SUMIF(BDD!$BH$2:$BH$3,"Banc 117FAUXVRAIVRAIFAUXFAUX",BDD!$Z$2:$Z$3) -> 0 | AP95: =SUMIF(BDD!$BH$2:$BH$3,"Banc 117FAUXVRAIFAUXVRAIFAUX",BDD!$Z$2:$Z$3) -> 0 | AQ95: =SUMIF(BDD!$BH$2:$BH$3,"Banc 117FAUXVRAIFAUXFAUXVRAI",BDD!$Z$2:$Z$3) -> 0 | AR95: =SUMIF(BDD!$BH$2:$BH$3,"Banc 117VRAIFAUXVRAIFAUXFAUX",BDD!$Z$2:$Z$3) -> 0 | AS95: =SUMIF(BDD!$BH$2:$BH$3,"Banc 117VRAIFAUXFAUXVRAIFAUX",BDD!$Z$2:$Z$3) -> 0 | AT95: =SUMIF(BDD!$BH$2:$BH$3,"Banc 117VRAIFAUXFAUXFAUXVRAI",BDD!$Z$2:$Z$3) -> 0 | AU95: =SUMIF(BDD!$BH$2:$BH$3,"Banc 117FAUXVRAIVRAIFAUXFAUX",BDD!$Z$2:$Z$3) -> 0 | AV95: =SUMIF(BDD!$BH$2:$BH$3,"Banc 117FAUXVRAIFAUXVRAIFAUX",BDD!$Z$2:$Z$3) -> 0 | AW95: =SUMIF(BDD!$BH$2:$BH$3,"Banc 117FAUXVRAIFAUXFAUXVRAI",BDD!$Z$2:$Z$3) -> 0 | AX95: =SUMIF(BDD!$BH$2:$BH$3,"Banc 117VRAIFAUXVRAIFAUXFAUX",BDD!$Z$2:$Z$3) -> 0 | AY95: =SUMIF(BDD!$BH$2:$BH$3,"Banc 117VRAIFAUXFAUXVRAIFAUX",BDD!$Z$2:$Z$3) -> 0 | AZ95: =SUMIF(BDD!$BH$2:$BH$3,"Banc 117VRAIFAUXFAUXFAUXVRAI",BDD!$Z$2:$Z$3) -> 0 | BA95: =SUMIF(BDD!$BH$2:$BH$3,"Banc 117FAUXVRAIVRAIFAUXFAUX",BDD!$Z$2:$Z$3) -> 0 | BB95: =SUMIF(BDD!$BH$2:$BH$3,"Banc 117FAUXVRAIFAUXVRAIFAUX",BDD!$Z$2:$Z$3) -> 0 | BC95: =SUMIF(BDD!$BH$2:$BH$3,"Banc 117FAUXVRAIFAUXFAUXVRAI",BDD!$Z$2:$Z$3) -> 0 | BD95: =SUMIF(BDD!$BH$2:$BH$3,"Banc 117VRAIFAUXVRAIFAUXFAUX",BDD!$Z$2:$Z$3) -> 0 | BE95: =SUMIF(BDD!$BH$2:$BH$3,"Banc 117VRAIFAUXFAUXVRAIFAUX",BDD!$Z$2:$Z$3) -> 0 | BF95: =SUMIF(BDD!$BH$2:$BH$3,"Banc 117VRAIFAUXFAUXFAUXVRAI",BDD!$Z$2:$Z$3) -> 0 | BG95: =SUMIF(BDD!$BH$2:$BH$3,"Banc 117FAUXVRAIVRAIFAUXFAUX",BDD!$Z$2:$Z$3) -> 0 | BH95: =SUMIF(BDD!$BH$2:$BH$3,"Banc 117FAUXVRAIFAUXVRAIFAUX",BDD!$Z$2:$Z$3) -> 0 | BI95: =SUMIF(BDD!$BH$2:$BH$3,"Banc 117FAUXVRAIFAUXFAUXVRAI",BDD!$Z$2:$Z$3) -> 0 | BJ95: =SUMIF(BDD!$BH$2:$BH$3,"Banc 117VRAIFAUXVRAIFAUXFAUX",BDD!$Z$2:$Z$3) -> 0 | BK95: =SUMIF(BDD!$BH$2:$BH$3,"Banc 117VRAIFAUXFAUXVRAIFAUX",BDD!$Z$2:$Z$3) -> 0 | BL95: =SUMIF(BDD!$BH$2:$BH$3,"Banc 117VRAIFAUXFAUXFAUXVRAI",BDD!$Z$2:$Z$3) -> 0 | BM95: =SUMIF(BDD!$BH$2:$BH$3,"Banc 117FAUXVRAIVRAIFAUXFAUX",BDD!$Z$2:$Z$3) -> 0 | BN95: =SUMIF(BDD!$BH$2:$BH$3,"Banc 117FAUXVRAIFAUXVRAIFAUX",BDD!$Z$2:$Z$3) -> 0 | BO95: =SUMIF(BDD!$BH$2:$BH$3,"Banc 117FAUXVRAIFAUXFAUXVRAI",BDD!$Z$2:$Z$3) -> 0 | BP95: =SUMIF(BDD!$BH$2:$BH$3,"Banc 117VRAIFAUXVRAIFAUXFAUX",BDD!$Z$2:$Z$3) -> 0 | BQ95: =SUMIF(BDD!$BH$2:$BH$3,"Banc 117VRAIFAUXFAUXVRAIFAUX",BDD!$Z$2:$Z$3) -> 0 | BR95: =SUMIF(BDD!$BH$2:$BH$3,"Banc 117VRAIFAUXFAUXFAUXVRAI",BDD!$Z$2:$Z$3) -> 0 | BS95: =SUMIF(BDD!$BH$2:$BH$3,"Banc 117FAUXVRAIVRAIFAUXFAUX",BDD!$Z$2:$Z$3) -> 0 | BT95: =SUMIF(BDD!$BH$2:$BH$3,"Banc 117FAUXVRAIFAUXVRAIFAUX",BDD!$Z$2:$Z$3) -> 0 | BU95: =SUMIF(BDD!$BH$2:$BH$3,"Banc 117FAUXVRAIFAUXFAUXVRAI",BDD!$Z$2:$Z$3) -> 0
A96: Banc 117 bis | B96: =SUMIF(BDD!$BH$2:$BH$3,"Banc 117 bisVRAIFAUXVRAIFAUXFAUX",BDD!$Z$2:$Z$3) -> 0 | C96: =SUMIF(BDD!$BH$2:$BH$3,"Banc 117 bisVRAIFAUXFAUXVRAIFAUX",BDD!$Z$2:$Z$3) -> 0 | D96: =SUMIF(BDD!$BH$2:$BH$3,"Banc 117 bisVRAIFAUXFAUXFAUXVRAI",BDD!$Z$2:$Z$3) -> 0 | E96: =SUMIF(BDD!$BH$2:$BH$3,"Banc 117 bisFAUXVRAIVRAIFAUXFAUX",BDD!$Z$2:$Z$3) -> 0 | F96: =SUMIF(BDD!$BH$2:$BH$3,"Banc 117 bisFAUXVRAIFAUXVRAIFAUX",BDD!$Z$2:$Z$3) -> 0 | G96: =SUMIF(BDD!$BH$2:$BH$3,"Banc 117 bisFAUXVRAIFAUXFAUXVRAI",BDD!$Z$2:$Z$3) -> 0 | H96: =SUMIF(BDD!$BH$2:$BH$3,"Banc 117 bisVRAIFAUXVRAIFAUXFAUX",BDD!$Z$2:$Z$3) -> 0 | I96: =SUMIF(BDD!$BH$2:$BH$3,"Banc 117 bisVRAIFAUXFAUXVRAIFAUX",BDD!$Z$2:$Z$3) -> 0 | J96: =SUMIF(BDD!$BH$2:$BH$3,"Banc 117 bisVRAIFAUXFAUXFAUXVRAI",BDD!$Z$2:$Z$3) -> 0 | K96: =SUMIF(BDD!$BH$2:$BH$3,"Banc 117 bisFAUXVRAIVRAIFAUXFAUX",BDD!$Z$2:$Z$3) -> 0 | L96: =SUMIF(BDD!$BH$2:$BH$3,"Banc 117 bisFAUXVRAIFAUXVRAIFAUX",BDD!$Z$2:$Z$3) -> 0 | M96: =SUMIF(BDD!$BH$2:$BH$3,"Banc 117 bisFAUXVRAIFAUXFAUXVRAI",BDD!$Z$2:$Z$3) -> 0 | N96: =SUMIF(BDD!$BH$2:$BH$683,"Banc 117 bisVRAIFAUXVRAIFAUXFAUX",BDD!$Z$2:$Z$683) -> 0 | O96: =SUMIF(BDD!$BH$2:$BH$683,"Banc 117 bisVRAIFAUXFAUXVRAIFAUX",BDD!$Z$2:$Z$683) -> 0 | P96: =SUMIF(BDD!$BH$2:$BH$683,"Banc 117 bisVRAIFAUXFAUXFAUXVRAI",BDD!$Z$2:$Z$683) -> 0 | Q96: =SUMIF(BDD!$BH$2:$BH$683,"Banc 117 bisFAUXVRAIVRAIFAUXFAUX",BDD!$Z$2:$Z$683) -> 0 | R96: =SUMIF(BDD!$BH$2:$BH$683,"Banc 117 bisFAUXVRAIFAUXVRAIFAUX",BDD!$Z$2:$Z$683) -> 0 | S96: =SUMIF(BDD!$BH$2:$BH$683,"Banc 117 bisFAUXVRAIFAUXFAUXVRAI",BDD!$Z$2:$Z$683) -> 0 | T96: =SUMIF(BDD!$BH$2:$BH$3,"Banc 117 bisVRAIFAUXVRAIFAUXFAUX",BDD!$Z$2:$Z$3) -> 0 | U96: =SUMIF(BDD!$BH$2:$BH$3,"Banc 117 bisVRAIFAUXFAUXVRAIFAUX",BDD!$Z$2:$Z$3) -> 0 | V96: =SUMIF(BDD!$BH$2:$BH$3,"Banc 117 bisVRAIFAUXFAUXFAUXVRAI",BDD!$Z$2:$Z$3) -> 0 | W96: =SUMIF(BDD!$BH$2:$BH$3,"Banc 117 bisFAUXVRAIVRAIFAUXFAUX",BDD!$Z$2:$Z$3) -> 0 | X96: =SUMIF(BDD!$BH$2:$BH$3,"Banc 117 bisFAUXVRAIFAUXVRAIFAUX",BDD!$Z$2:$Z$3) -> 0 | Y96: =SUMIF(BDD!$BH$2:$BH$3,"Banc 117 bisFAUXVRAIFAUXFAUXVRAI",BDD!$Z$2:$Z$3) -> 0 | Z96: =SUMIF(BDD!$BH$2:$BH$3,"Banc 117 bisVRAIFAUXVRAIFAUXFAUX",BDD!$Z$2:$Z$3) -> 0 | AA96: =SUMIF(BDD!$BH$2:$BH$3,"Banc 117 bisVRAIFAUXFAUXVRAIFAUX",BDD!$Z$2:$Z$3) -> 0 | AB96: =SUMIF(BDD!$BH$2:$BH$3,"Banc 117 bisVRAIFAUXFAUXFAUXVRAI",BDD!$Z$2:$Z$3) -> 0 | AC96: =SUMIF(BDD!$BH$2:$BH$3,"Banc 117 bisFAUXVRAIVRAIFAUXFAUX",BDD!$Z$2:$Z$3) -> 0 | AD96: =SUMIF(BDD!$BH$2:$BH$3,"Banc 117 bisFAUXVRAIFAUXVRAIFAUX",BDD!$Z$2:$Z$3) -> 0 | AE96: =SUMIF(BDD!$BH$2:$BH$3,"Banc 117 bisFAUXVRAIFAUXFAUXVRAI",BDD!$Z$2:$Z$3) -> 0 | AF96: =SUMIF(BDD!$BH$2:$BH$3,"Banc 117 bisVRAIFAUXVRAIFAUXFAUX",BDD!$Z$2:$Z$3) -> 0 | AG96: =SUMIF(BDD!$BH$2:$BH$3,"Banc 117 bisVRAIFAUXFAUXVRAIFAUX",BDD!$Z$2:$Z$3) -> 0 | AH96: =SUMIF(BDD!$BH$2:$BH$3,"Banc 117 bisVRAIFAUXFAUXFAUXVRAI",BDD!$Z$2:$Z$3) -> 0 | AI96: =SUMIF(BDD!$BH$2:$BH$3,"Banc 117 bisFAUXVRAIVRAIFAUXFAUX",BDD!$Z$2:$Z$3) -> 0 | AJ96: =SUMIF(BDD!$BH$2:$BH$3,"Banc 117 bisFAUXVRAIFAUXVRAIFAUX",BDD!$Z$2:$Z$3) -> 0 | AK96: =SUMIF(BDD!$BH$2:$BH$3,"Banc 117 bisFAUXVRAIFAUXFAUXVRAI",BDD!$Z$2:$Z$3) -> 0 | AL96: =SUMIF(BDD!$BH$2:$BH$3,"Banc 117 bisVRAIFAUXVRAIFAUXFAUX",BDD!$Z$2:$Z$3) -> 0 | AM96: =SUMIF(BDD!$BH$2:$BH$3,"Banc 117 bisVRAIFAUXFAUXVRAIFAUX",BDD!$Z$2:$Z$3) -> 0 | AN96: =SUMIF(BDD!$BH$2:$BH$3,"Banc 117 bisVRAIFAUXFAUXFAUXVRAI",BDD!$Z$2:$Z$3) -> 0 | AO96: =SUMIF(BDD!$BH$2:$BH$3,"Banc 117 bisFAUXVRAIVRAIFAUXFAUX",BDD!$Z$2:$Z$3) -> 0 | AP96: =SUMIF(BDD!$BH$2:$BH$3,"Banc 117 bisFAUXVRAIFAUXVRAIFAUX",BDD!$Z$2:$Z$3) -> 0 | AQ96: =SUMIF(BDD!$BH$2:$BH$3,"Banc 117 bisFAUXVRAIFAUXFAUXVRAI",BDD!$Z$2:$Z$3) -> 0 | AR96: =SUMIF(BDD!$BH$2:$BH$3,"Banc 117 bisVRAIFAUXVRAIFAUXFAUX",BDD!$Z$2:$Z$3) -> 0 | AS96: =SUMIF(BDD!$BH$2:$BH$3,"Banc 117 bisVRAIFAUXFAUXVRAIFAUX",BDD!$Z$2:$Z$3) -> 0 | AT96: =SUMIF(BDD!$BH$2:$BH$3,"Banc 117 bisVRAIFAUXFAUXFAUXVRAI",BDD!$Z$2:$Z$3) -> 0 | AU96: =SUMIF(BDD!$BH$2:$BH$3,"Banc 117 bisFAUXVRAIVRAIFAUXFAUX",BDD!$Z$2:$Z$3) -> 0 | AV96: =SUMIF(BDD!$BH$2:$BH$3,"Banc 117 bisFAUXVRAIFAUXVRAIFAUX",BDD!$Z$2:$Z$3) -> 0 | AW96: =SUMIF(BDD!$BH$2:$BH$3,"Banc 117 bisFAUXVRAIFAUXFAUXVRAI",BDD!$Z$2:$Z$3) -> 0 | AX96: =SUMIF(BDD!$BH$2:$BH$3,"Banc 117 bisVRAIFAUXVRAIFAUXFAUX",BDD!$Z$2:$Z$3) -> 0 | AY96: =SUMIF(BDD!$BH$2:$BH$3,"Banc 117 bisVRAIFAUXFAUXVRAIFAUX",BDD!$Z$2:$Z$3) -> 0 | AZ96: =SUMIF(BDD!$BH$2:$BH$3,"Banc 117 bisVRAIFAUXFAUXFAUXVRAI",BDD!$Z$2:$Z$3) -> 0 | BA96: =SUMIF(BDD!$BH$2:$BH$3,"Banc 117 bisFAUXVRAIVRAIFAUXFAUX",BDD!$Z$2:$Z$3) -> 0 | BB96: =SUMIF(BDD!$BH$2:$BH$3,"Banc 117 bisFAUXVRAIFAUXVRAIFAUX",BDD!$Z$2:$Z$3) -> 0 | BC96: =SUMIF(BDD!$BH$2:$BH$3,"Banc 117 bisFAUXVRAIFAUXFAUXVRAI",BDD!$Z$2:$Z$3) -> 0 | BD96: =SUMIF(BDD!$BH$2:$BH$3,"Banc 117 bisVRAIFAUXVRAIFAUXFAUX",BDD!$Z$2:$Z$3) -> 0 | BE96: =SUMIF(BDD!$BH$2:$BH$3,"Banc 117 bisVRAIFAUXFAUXVRAIFAUX",BDD!$Z$2:$Z$3) -> 0 | BF96: =SUMIF(BDD!$BH$2:$BH$3,"Banc 117 bisVRAIFAUXFAUXFAUXVRAI",BDD!$Z$2:$Z$3) -> 0 | BG96: =SUMIF(BDD!$BH$2:$BH$3,"Banc 117 bisFAUXVRAIVRAIFAUXFAUX",BDD!$Z$2:$Z$3) -> 0 | BH96: =SUMIF(BDD!$BH$2:$BH$3,"Banc 117 bisFAUXVRAIFAUXVRAIFAUX",BDD!$Z$2:$Z$3) -> 0 | BI96: =SUMIF(BDD!$BH$2:$BH$3,"Banc 117 bisFAUXVRAIFAUXFAUXVRAI",BDD!$Z$2:$Z$3) -> 0 | BJ96: =SUMIF(BDD!$BH$2:$BH$3,"Banc 117 bisVRAIFAUXVRAIFAUXFAUX",BDD!$Z$2:$Z$3) -> 0 | BK96: =SUMIF(BDD!$BH$2:$BH$3,"Banc 117 bisVRAIFAUXFAUXVRAIFAUX",BDD!$Z$2:$Z$3) -> 0 | BL96: =SUMIF(BDD!$BH$2:$BH$3,"Banc 117 bisVRAIFAUXFAUXFAUXVRAI",BDD!$Z$2:$Z$3) -> 0 | BM96: =SUMIF(BDD!$BH$2:$BH$3,"Banc 117 bisFAUXVRAIVRAIFAUXFAUX",BDD!$Z$2:$Z$3) -> 0 | BN96: =SUMIF(BDD!$BH$2:$BH$3,"Banc 117 bisFAUXVRAIFAUXVRAIFAUX",BDD!$Z$2:$Z$3) -> 0 | BO96: =SUMIF(BDD!$BH$2:$BH$3,"Banc 117 bisFAUXVRAIFAUXFAUXVRAI",BDD!$Z$2:$Z$3) -> 0 | BP96: =SUMIF(BDD!$BH$2:$BH$3,"Banc 117 bisVRAIFAUXVRAIFAUXFAUX",BDD!$Z$2:$Z$3) -> 0 | BQ96: =SUMIF(BDD!$BH$2:$BH$3,"Banc 117 bisVRAIFAUXFAUXVRAIFAUX",BDD!$Z$2:$Z$3) -> 0 | BR96: =SUMIF(BDD!$BH$2:$BH$3,"Banc 117 bisVRAIFAUXFAUXFAUXVRAI",BDD!$Z$2:$Z$3) -> 0 | BS96: =SUMIF(BDD!$BH$2:$BH$3,"Banc 117 bisFAUXVRAIVRAIFAUXFAUX",BDD!$Z$2:$Z$3) -> 0 | BT96: =SUMIF(BDD!$BH$2:$BH$3,"Banc 117 bisFAUXVRAIFAUXVRAIFAUX",BDD!$Z$2:$Z$3) -> 0 | BU96: =SUMIF(BDD!$BH$2:$BH$3,"Banc 117 bisFAUXVRAIFAUXFAUXVRAI",BDD!$Z$2:$Z$3) -> 0
A97: Banc 119 | B97: =SUMIF(BDD!$BH$2:$BH$3,"Banc 119VRAIFAUXVRAIFAUXFAUX",BDD!$Z$2:$Z$3) -> 0 | C97: =SUMIF(BDD!$BH$2:$BH$3,"Banc 119VRAIFAUXFAUXVRAIFAUX",BDD!$Z$2:$Z$3) -> 0 | D97: =SUMIF(BDD!$BH$2:$BH$3,"Banc 119VRAIFAUXFAUXFAUXVRAI",BDD!$Z$2:$Z$3) -> 0 | E97: =SUMIF(BDD!$BH$2:$BH$3,"Banc 119FAUXVRAIVRAIFAUXFAUX",BDD!$Z$2:$Z$3) -> 0 | F97: =SUMIF(BDD!$BH$2:$BH$3,"Banc 119FAUXVRAIFAUXVRAIFAUX",BDD!$Z$2:$Z$3) -> 0 | G97: =SUMIF(BDD!$BH$2:$BH$3,"Banc 119FAUXVRAIFAUXFAUXVRAI",BDD!$Z$2:$Z$3) -> 0 | H97: =SUMIF(BDD!$BH$2:$BH$3,"Banc 119VRAIFAUXVRAIFAUXFAUX",BDD!$Z$2:$Z$3) -> 0 | I97: =SUMIF(BDD!$BH$2:$BH$3,"Banc 119VRAIFAUXFAUXVRAIFAUX",BDD!$Z$2:$Z$3) -> 0 | J97: =SUMIF(BDD!$BH$2:$BH$3,"Banc 119VRAIFAUXFAUXFAUXVRAI",BDD!$Z$2:$Z$3) -> 0 | K97: =SUMIF(BDD!$BH$2:$BH$3,"Banc 119FAUXVRAIVRAIFAUXFAUX",BDD!$Z$2:$Z$3) -> 0 | L97: =SUMIF(BDD!$BH$2:$BH$3,"Banc 119FAUXVRAIFAUXVRAIFAUX",BDD!$Z$2:$Z$3) -> 0 | M97: =SUMIF(BDD!$BH$2:$BH$3,"Banc 119FAUXVRAIFAUXFAUXVRAI",BDD!$Z$2:$Z$3) -> 0 | N97: =SUMIF(BDD!$BH$2:$BH$683,"Banc 119VRAIFAUXVRAIFAUXFAUX",BDD!$Z$2:$Z$683) -> 0 | O97: =SUMIF(BDD!$BH$2:$BH$683,"Banc 119VRAIFAUXFAUXVRAIFAUX",BDD!$Z$2:$Z$683) -> 0 | P97: =SUMIF(BDD!$BH$2:$BH$683,"Banc 119VRAIFAUXFAUXFAUXVRAI",BDD!$Z$2:$Z$683) -> 0 | Q97: =SUMIF(BDD!$BH$2:$BH$683,"Banc 119FAUXVRAIVRAIFAUXFAUX",BDD!$Z$2:$Z$683) -> 0 | R97: =SUMIF(BDD!$BH$2:$BH$683,"Banc 119FAUXVRAIFAUXVRAIFAUX",BDD!$Z$2:$Z$683) -> 0 | S97: =SUMIF(BDD!$BH$2:$BH$683,"Banc 119FAUXVRAIFAUXFAUXVRAI",BDD!$Z$2:$Z$683) -> 0 | T97: =SUMIF(BDD!$BH$2:$BH$3,"Banc 119VRAIFAUXVRAIFAUXFAUX",BDD!$Z$2:$Z$3) -> 0 | U97: =SUMIF(BDD!$BH$2:$BH$3,"Banc 119VRAIFAUXFAUXVRAIFAUX",BDD!$Z$2:$Z$3) -> 0 | V97: =SUMIF(BDD!$BH$2:$BH$3,"Banc 119VRAIFAUXFAUXFAUXVRAI",BDD!$Z$2:$Z$3) -> 0 | W97: =SUMIF(BDD!$BH$2:$BH$3,"Banc 119FAUXVRAIVRAIFAUXFAUX",BDD!$Z$2:$Z$3) -> 0 | X97: =SUMIF(BDD!$BH$2:$BH$3,"Banc 119FAUXVRAIFAUXVRAIFAUX",BDD!$Z$2:$Z$3) -> 0 | Y97: =SUMIF(BDD!$BH$2:$BH$3,"Banc 119FAUXVRAIFAUXFAUXVRAI",BDD!$Z$2:$Z$3) -> 0 | Z97: =SUMIF(BDD!$BH$2:$BH$3,"Banc 119VRAIFAUXVRAIFAUXFAUX",BDD!$Z$2:$Z$3) -> 0 | AA97: =SUMIF(BDD!$BH$2:$BH$3,"Banc 119VRAIFAUXFAUXVRAIFAUX",BDD!$Z$2:$Z$3) -> 0 | AB97: =SUMIF(BDD!$BH$2:$BH$3,"Banc 119VRAIFAUXFAUXFAUXVRAI",BDD!$Z$2:$Z$3) -> 0 | AC97: =SUMIF(BDD!$BH$2:$BH$3,"Banc 119FAUXVRAIVRAIFAUXFAUX",BDD!$Z$2:$Z$3) -> 0 | AD97: =SUMIF(BDD!$BH$2:$BH$3,"Banc 119FAUXVRAIFAUXVRAIFAUX",BDD!$Z$2:$Z$3) -> 0 | AE97: =SUMIF(BDD!$BH$2:$BH$3,"Banc 119FAUXVRAIFAUXFAUXVRAI",BDD!$Z$2:$Z$3) -> 0 | AF97: =SUMIF(BDD!$BH$2:$BH$3,"Banc 119VRAIFAUXVRAIFAUXFAUX",BDD!$Z$2:$Z$3) -> 0 | AG97: =SUMIF(BDD!$BH$2:$BH$3,"Banc 119VRAIFAUXFAUXVRAIFAUX",BDD!$Z$2:$Z$3) -> 0 | AH97: =SUMIF(BDD!$BH$2:$BH$3,"Banc 119VRAIFAUXFAUXFAUXVRAI",BDD!$Z$2:$Z$3) -> 0 | AI97: =SUMIF(BDD!$BH$2:$BH$3,"Banc 119FAUXVRAIVRAIFAUXFAUX",BDD!$Z$2:$Z$3) -> 0 | AJ97: =SUMIF(BDD!$BH$2:$BH$3,"Banc 119FAUXVRAIFAUXVRAIFAUX",BDD!$Z$2:$Z$3) -> 0 | AK97: =SUMIF(BDD!$BH$2:$BH$3,"Banc 119FAUXVRAIFAUXFAUXVRAI",BDD!$Z$2:$Z$3) -> 0 | AL97: =SUMIF(BDD!$BH$2:$BH$3,"Banc 119VRAIFAUXVRAIFAUXFAUX",BDD!$Z$2:$Z$3) -> 0 | AM97: =SUMIF(BDD!$BH$2:$BH$3,"Banc 119VRAIFAUXFAUXVRAIFAUX",BDD!$Z$2:$Z$3) -> 0 | AN97: =SUMIF(BDD!$BH$2:$BH$3,"Banc 119VRAIFAUXFAUXFAUXVRAI",BDD!$Z$2:$Z$3) -> 0 | AO97: =SUMIF(BDD!$BH$2:$BH$3,"Banc 119FAUXVRAIVRAIFAUXFAUX",BDD!$Z$2:$Z$3) -> 0 | AP97: =SUMIF(BDD!$BH$2:$BH$3,"Banc 119FAUXVRAIFAUXVRAIFAUX",BDD!$Z$2:$Z$3) -> 0 | AQ97: =SUMIF(BDD!$BH$2:$BH$3,"Banc 119FAUXVRAIFAUXFAUXVRAI",BDD!$Z$2:$Z$3) -> 0 | AR97: =SUMIF(BDD!$BH$2:$BH$3,"Banc 119VRAIFAUXVRAIFAUXFAUX",BDD!$Z$2:$Z$3) -> 0 | AS97: =SUMIF(BDD!$BH$2:$BH$3,"Banc 119VRAIFAUXFAUXVRAIFAUX",BDD!$Z$2:$Z$3) -> 0 | AT97: =SUMIF(BDD!$BH$2:$BH$3,"Banc 119VRAIFAUXFAUXFAUXVRAI",BDD!$Z$2:$Z$3) -> 0 | AU97: =SUMIF(BDD!$BH$2:$BH$3,"Banc 119FAUXVRAIVRAIFAUXFAUX",BDD!$Z$2:$Z$3) -> 0 | AV97: =SUMIF(BDD!$BH$2:$BH$3,"Banc 119FAUXVRAIFAUXVRAIFAUX",BDD!$Z$2:$Z$3) -> 0 | AW97: =SUMIF(BDD!$BH$2:$BH$3,"Banc 119FAUXVRAIFAUXFAUXVRAI",BDD!$Z$2:$Z$3) -> 0 | AX97: =SUMIF(BDD!$BH$2:$BH$3,"Banc 119VRAIFAUXVRAIFAUXFAUX",BDD!$Z$2:$Z$3) -> 0 | AY97: =SUMIF(BDD!$BH$2:$BH$3,"Banc 119VRAIFAUXFAUXVRAIFAUX",BDD!$Z$2:$Z$3) -> 0 | AZ97: =SUMIF(BDD!$BH$2:$BH$3,"Banc 119VRAIFAUXFAUXFAUXVRAI",BDD!$Z$2:$Z$3) -> 0 | BA97: =SUMIF(BDD!$BH$2:$BH$3,"Banc 119FAUXVRAIVRAIFAUXFAUX",BDD!$Z$2:$Z$3) -> 0 | BB97: =SUMIF(BDD!$BH$2:$BH$3,"Banc 119FAUXVRAIFAUXVRAIFAUX",BDD!$Z$2:$Z$3) -> 0 | BC97: =SUMIF(BDD!$BH$2:$BH$3,"Banc 119FAUXVRAIFAUXFAUXVRAI",BDD!$Z$2:$Z$3) -> 0 | BD97: =SUMIF(BDD!$BH$2:$BH$3,"Banc 119VRAIFAUXVRAIFAUXFAUX",BDD!$Z$2:$Z$3) -> 0 | BE97: =SUMIF(BDD!$BH$2:$BH$3,"Banc 119VRAIFAUXFAUXVRAIFAUX",BDD!$Z$2:$Z$3) -> 0 | BF97: =SUMIF(BDD!$BH$2:$BH$3,"Banc 119VRAIFAUXFAUXFAUXVRAI",BDD!$Z$2:$Z$3) -> 0 | BG97: =SUMIF(BDD!$BH$2:$BH$3,"Banc 119FAUXVRAIVRAIFAUXFAUX",BDD!$Z$2:$Z$3) -> 0 | BH97: =SUMIF(BDD!$BH$2:$BH$3,"Banc 119FAUXVRAIFAUXVRAIFAUX",BDD!$Z$2:$Z$3) -> 0 | BI97: =SUMIF(BDD!$BH$2:$BH$3,"Banc 119FAUXVRAIFAUXFAUXVRAI",BDD!$Z$2:$Z$3) -> 0 | BJ97: =SUMIF(BDD!$BH$2:$BH$3,"Banc 119VRAIFAUXVRAIFAUXFAUX",BDD!$Z$2:$Z$3) -> 0 | BK97: =SUMIF(BDD!$BH$2:$BH$3,"Banc 119VRAIFAUXFAUXVRAIFAUX",BDD!$Z$2:$Z$3) -> 0 | BL97: =SUMIF(BDD!$BH$2:$BH$3,"Banc 119VRAIFAUXFAUXFAUXVRAI",BDD!$Z$2:$Z$3) -> 0 | BM97: =SUMIF(BDD!$BH$2:$BH$3,"Banc 119FAUXVRAIVRAIFAUXFAUX",BDD!$Z$2:$Z$3) -> 0 | BN97: =SUMIF(BDD!$BH$2:$BH$3,"Banc 119FAUXVRAIFAUXVRAIFAUX",BDD!$Z$2:$Z$3) -> 0 | BO97: =SUMIF(BDD!$BH$2:$BH$3,"Banc 119FAUXVRAIFAUXFAUXVRAI",BDD!$Z$2:$Z$3) -> 0 | BP97: =SUMIF(BDD!$BH$2:$BH$3,"Banc 119VRAIFAUXVRAIFAUXFAUX",BDD!$Z$2:$Z$3) -> 0 | BQ97: =SUMIF(BDD!$BH$2:$BH$3,"Banc 119VRAIFAUXFAUXVRAIFAUX",BDD!$Z$2:$Z$3) -> 0 | BR97: =SUMIF(BDD!$BH$2:$BH$3,"Banc 119VRAIFAUXFAUXFAUXVRAI",BDD!$Z$2:$Z$3) -> 0 | BS97: =SUMIF(BDD!$BH$2:$BH$3,"Banc 119FAUXVRAIVRAIFAUXFAUX",BDD!$Z$2:$Z$3) -> 0 | BT97: =SUMIF(BDD!$BH$2:$BH$3,"Banc 119FAUXVRAIFAUXVRAIFAUX",BDD!$Z$2:$Z$3) -> 0 | BU97: =SUMIF(BDD!$BH$2:$BH$3,"Banc 119FAUXVRAIFAUXFAUXVRAI",BDD!$Z$2:$Z$3) -> 0
A98: Banc 123 | B98: =SUMIF(BDD!$BH$2:$BH$3,"Banc 123VRAIFAUXVRAIFAUXFAUX",BDD!$Z$2:$Z$3) -> 0 | C98: =SUMIF(BDD!$BH$2:$BH$3,"Banc 123VRAIFAUXFAUXVRAIFAUX",BDD!$Z$2:$Z$3) -> 0 | D98: =SUMIF(BDD!$BH$2:$BH$3,"Banc 123VRAIFAUXFAUXFAUXVRAI",BDD!$Z$2:$Z$3) -> 0 | E98: =SUMIF(BDD!$BH$2:$BH$3,"Banc 123FAUXVRAIVRAIFAUXFAUX",BDD!$Z$2:$Z$3) -> 0 | F98: =SUMIF(BDD!$BH$2:$BH$3,"Banc 123FAUXVRAIFAUXVRAIFAUX",BDD!$Z$2:$Z$3) -> 0 | G98: =SUMIF(BDD!$BH$2:$BH$3,"Banc 123FAUXVRAIFAUXFAUXVRAI",BDD!$Z$2:$Z$3) -> 0 | H98: =SUMIF(BDD!$BH$2:$BH$3,"Banc 123VRAIFAUXVRAIFAUXFAUX",BDD!$Z$2:$Z$3) -> 0 | I98: =SUMIF(BDD!$BH$2:$BH$3,"Banc 123VRAIFAUXFAUXVRAIFAUX",BDD!$Z$2:$Z$3) -> 0 | J98: =SUMIF(BDD!$BH$2:$BH$3,"Banc 123VRAIFAUXFAUXFAUXVRAI",BDD!$Z$2:$Z$3) -> 0 | K98: =SUMIF(BDD!$BH$2:$BH$3,"Banc 123FAUXVRAIVRAIFAUXFAUX",BDD!$Z$2:$Z$3) -> 0 | L98: =SUMIF(BDD!$BH$2:$BH$3,"Banc 123FAUXVRAIFAUXVRAIFAUX",BDD!$Z$2:$Z$3) -> 0 | M98: =SUMIF(BDD!$BH$2:$BH$3,"Banc 123FAUXVRAIFAUXFAUXVRAI",BDD!$Z$2:$Z$3) -> 0 | N98: =SUMIF(BDD!$BH$2:$BH$683,"Banc 123VRAIFAUXVRAIFAUXFAUX",BDD!$Z$2:$Z$683) -> 0 | O98: =SUMIF(BDD!$BH$2:$BH$683,"Banc 123VRAIFAUXFAUXVRAIFAUX",BDD!$Z$2:$Z$683) -> 0 | P98: =SUMIF(BDD!$BH$2:$BH$683,"Banc 123VRAIFAUXFAUXFAUXVRAI",BDD!$Z$2:$Z$683) -> 0 | Q98: =SUMIF(BDD!$BH$2:$BH$683,"Banc 123FAUXVRAIVRAIFAUXFAUX",BDD!$Z$2:$Z$683) -> 0 | R98: =SUMIF(BDD!$BH$2:$BH$683,"Banc 123FAUXVRAIFAUXVRAIFAUX",BDD!$Z$2:$Z$683) -> 0 | S98: =SUMIF(BDD!$BH$2:$BH$683,"Banc 123FAUXVRAIFAUXFAUXVRAI",BDD!$Z$2:$Z$683) -> 32 | T98: =SUMIF(BDD!$BH$2:$BH$3,"Banc 123VRAIFAUXVRAIFAUXFAUX",BDD!$Z$2:$Z$3) -> 0 | U98: =SUMIF(BDD!$BH$2:$BH$3,"Banc 123VRAIFAUXFAUXVRAIFAUX",BDD!$Z$2:$Z$3) -> 0 | V98: =SUMIF(BDD!$BH$2:$BH$3,"Banc 123VRAIFAUXFAUXFAUXVRAI",BDD!$Z$2:$Z$3) -> 0 | W98: =SUMIF(BDD!$BH$2:$BH$3,"Banc 123FAUXVRAIVRAIFAUXFAUX",BDD!$Z$2:$Z$3) -> 0 | X98: =SUMIF(BDD!$BH$2:$BH$3,"Banc 123FAUXVRAIFAUXVRAIFAUX",BDD!$Z$2:$Z$3) -> 0 | Y98: =SUMIF(BDD!$BH$2:$BH$3,"Banc 123FAUXVRAIFAUXFAUXVRAI",BDD!$Z$2:$Z$3) -> 0 | Z98: =SUMIF(BDD!$BH$2:$BH$3,"Banc 123VRAIFAUXVRAIFAUXFAUX",BDD!$Z$2:$Z$3) -> 0 | AA98: =SUMIF(BDD!$BH$2:$BH$3,"Banc 123VRAIFAUXFAUXVRAIFAUX",BDD!$Z$2:$Z$3) -> 0 | AB98: =SUMIF(BDD!$BH$2:$BH$3,"Banc 123VRAIFAUXFAUXFAUXVRAI",BDD!$Z$2:$Z$3) -> 0 | AC98: =SUMIF(BDD!$BH$2:$BH$3,"Banc 123FAUXVRAIVRAIFAUXFAUX",BDD!$Z$2:$Z$3) -> 0 | AD98: =SUMIF(BDD!$BH$2:$BH$3,"Banc 123FAUXVRAIFAUXVRAIFAUX",BDD!$Z$2:$Z$3) -> 0 | AE98: =SUMIF(BDD!$BH$2:$BH$3,"Banc 123FAUXVRAIFAUXFAUXVRAI",BDD!$Z$2:$Z$3) -> 0 | AF98: =SUMIF(BDD!$BH$2:$BH$3,"Banc 123VRAIFAUXVRAIFAUXFAUX",BDD!$Z$2:$Z$3) -> 0 | AG98: =SUMIF(BDD!$BH$2:$BH$3,"Banc 123VRAIFAUXFAUXVRAIFAUX",BDD!$Z$2:$Z$3) -> 0 | AH98: =SUMIF(BDD!$BH$2:$BH$3,"Banc 123VRAIFAUXFAUXFAUXVRAI",BDD!$Z$2:$Z$3) -> 0 | AI98: =SUMIF(BDD!$BH$2:$BH$3,"Banc 123FAUXVRAIVRAIFAUXFAUX",BDD!$Z$2:$Z$3) -> 0 | AJ98: =SUMIF(BDD!$BH$2:$BH$3,"Banc 123FAUXVRAIFAUXVRAIFAUX",BDD!$Z$2:$Z$3) -> 0 | AK98: =SUMIF(BDD!$BH$2:$BH$3,"Banc 123FAUXVRAIFAUXFAUXVRAI",BDD!$Z$2:$Z$3) -> 0 | AL98: =SUMIF(BDD!$BH$2:$BH$3,"Banc 123VRAIFAUXVRAIFAUXFAUX",BDD!$Z$2:$Z$3) -> 0 | AM98: =SUMIF(BDD!$BH$2:$BH$3,"Banc 123VRAIFAUXFAUXVRAIFAUX",BDD!$Z$2:$Z$3) -> 0 | AN98: =SUMIF(BDD!$BH$2:$BH$3,"Banc 123VRAIFAUXFAUXFAUXVRAI",BDD!$Z$2:$Z$3) -> 0 | AO98: =SUMIF(BDD!$BH$2:$BH$3,"Banc 123FAUXVRAIVRAIFAUXFAUX",BDD!$Z$2:$Z$3) -> 0 | AP98: =SUMIF(BDD!$BH$2:$BH$3,"Banc 123FAUXVRAIFAUXVRAIFAUX",BDD!$Z$2:$Z$3) -> 0 | AQ98: =SUMIF(BDD!$BH$2:$BH$3,"Banc 123FAUXVRAIFAUXFAUXVRAI",BDD!$Z$2:$Z$3) -> 0 | AR98: =SUMIF(BDD!$BH$2:$BH$3,"Banc 123VRAIFAUXVRAIFAUXFAUX",BDD!$Z$2:$Z$3) -> 0 | AS98: =SUMIF(BDD!$BH$2:$BH$3,"Banc 123VRAIFAUXFAUXVRAIFAUX",BDD!$Z$2:$Z$3) -> 0 | AT98: =SUMIF(BDD!$BH$2:$BH$3,"Banc 123VRAIFAUXFAUXFAUXVRAI",BDD!$Z$2:$Z$3) -> 0 | AU98: =SUMIF(BDD!$BH$2:$BH$3,"Banc 123FAUXVRAIVRAIFAUXFAUX",BDD!$Z$2:$Z$3) -> 0 | AV98: =SUMIF(BDD!$BH$2:$BH$3,"Banc 123FAUXVRAIFAUXVRAIFAUX",BDD!$Z$2:$Z$3) -> 0 | AW98: =SUMIF(BDD!$BH$2:$BH$3,"Banc 123FAUXVRAIFAUXFAUXVRAI",BDD!$Z$2:$Z$3) -> 0 | AX98: =SUMIF(BDD!$BH$2:$BH$3,"Banc 123VRAIFAUXVRAIFAUXFAUX",BDD!$Z$2:$Z$3) -> 0 | AY98: =SUMIF(BDD!$BH$2:$BH$3,"Banc 123VRAIFAUXFAUXVRAIFAUX",BDD!$Z$2:$Z$3) -> 0 | AZ98: =SUMIF(BDD!$BH$2:$BH$3,"Banc 123VRAIFAUXFAUXFAUXVRAI",BDD!$Z$2:$Z$3) -> 0 | BA98: =SUMIF(BDD!$BH$2:$BH$3,"Banc 123FAUXVRAIVRAIFAUXFAUX",BDD!$Z$2:$Z$3) -> 0 | BB98: =SUMIF(BDD!$BH$2:$BH$3,"Banc 123FAUXVRAIFAUXVRAIFAUX",BDD!$Z$2:$Z$3) -> 0 | BC98: =SUMIF(BDD!$BH$2:$BH$3,"Banc 123FAUXVRAIFAUXFAUXVRAI",BDD!$Z$2:$Z$3) -> 0 | BD98: =SUMIF(BDD!$BH$2:$BH$3,"Banc 123VRAIFAUXVRAIFAUXFAUX",BDD!$Z$2:$Z$3) -> 0 | BE98: =SUMIF(BDD!$BH$2:$BH$3,"Banc 123VRAIFAUXFAUXVRAIFAUX",BDD!$Z$2:$Z$3) -> 0 | BF98: =SUMIF(BDD!$BH$2:$BH$3,"Banc 123VRAIFAUXFAUXFAUXVRAI",BDD!$Z$2:$Z$3) -> 0 | BG98: =SUMIF(BDD!$BH$2:$BH$3,"Banc 123FAUXVRAIVRAIFAUXFAUX",BDD!$Z$2:$Z$3) -> 0 | BH98: =SUMIF(BDD!$BH$2:$BH$3,"Banc 123FAUXVRAIFAUXVRAIFAUX",BDD!$Z$2:$Z$3) -> 0 | BI98: =SUMIF(BDD!$BH$2:$BH$3,"Banc 123FAUXVRAIFAUXFAUXVRAI",BDD!$Z$2:$Z$3) -> 0 | BJ98: =SUMIF(BDD!$BH$2:$BH$3,"Banc 123VRAIFAUXVRAIFAUXFAUX",BDD!$Z$2:$Z$3) -> 0 | BK98: =SUMIF(BDD!$BH$2:$BH$3,"Banc 123VRAIFAUXFAUXVRAIFAUX",BDD!$Z$2:$Z$3) -> 0 | BL98: =SUMIF(BDD!$BH$2:$BH$3,"Banc 123VRAIFAUXFAUXFAUXVRAI",BDD!$Z$2:$Z$3) -> 0 | BM98: =SUMIF(BDD!$BH$2:$BH$3,"Banc 123FAUXVRAIVRAIFAUXFAUX",BDD!$Z$2:$Z$3) -> 0 | BN98: =SUMIF(BDD!$BH$2:$BH$3,"Banc 123FAUXVRAIFAUXVRAIFAUX",BDD!$Z$2:$Z$3) -> 0 | BO98: =SUMIF(BDD!$BH$2:$BH$3,"Banc 123FAUXVRAIFAUXFAUXVRAI",BDD!$Z$2:$Z$3) -> 0 | BP98: =SUMIF(BDD!$BH$2:$BH$3,"Banc 123VRAIFAUXVRAIFAUXFAUX",BDD!$Z$2:$Z$3) -> 0 | BQ98: =SUMIF(BDD!$BH$2:$BH$3,"Banc 123VRAIFAUXFAUXVRAIFAUX",BDD!$Z$2:$Z$3) -> 0 | BR98: =SUMIF(BDD!$BH$2:$BH$3,"Banc 123VRAIFAUXFAUXFAUXVRAI",BDD!$Z$2:$Z$3) -> 0 | BS98: =SUMIF(BDD!$BH$2:$BH$3,"Banc 123FAUXVRAIVRAIFAUXFAUX",BDD!$Z$2:$Z$3) -> 0 | BT98: =SUMIF(BDD!$BH$2:$BH$3,"Banc 123FAUXVRAIFAUXVRAIFAUX",BDD!$Z$2:$Z$3) -> 0 | BU98: =SUMIF(BDD!$BH$2:$BH$3,"Banc 123FAUXVRAIFAUXFAUXVRAI",BDD!$Z$2:$Z$3) -> 0
A99: Banc 126 | B99: =SUMIF(BDD!$BH$2:$BH$3,"Banc 126VRAIFAUXVRAIFAUXFAUX",BDD!$Z$2:$Z$3) -> 0 | C99: =SUMIF(BDD!$BH$2:$BH$3,"Banc 126VRAIFAUXFAUXVRAIFAUX",BDD!$Z$2:$Z$3) -> 0 | D99: =SUMIF(BDD!$BH$2:$BH$3,"Banc 126VRAIFAUXFAUXFAUXVRAI",BDD!$Z$2:$Z$3) -> 0 | E99: =SUMIF(BDD!$BH$2:$BH$3,"Banc 126FAUXVRAIVRAIFAUXFAUX",BDD!$Z$2:$Z$3) -> 0 | F99: =SUMIF(BDD!$BH$2:$BH$3,"Banc 126FAUXVRAIFAUXVRAIFAUX",BDD!$Z$2:$Z$3) -> 0 | G99: =SUMIF(BDD!$BH$2:$BH$3,"Banc 126FAUXVRAIFAUXFAUXVRAI",BDD!$Z$2:$Z$3) -> 0 | H99: =SUMIF(BDD!$BH$2:$BH$3,"Banc 126VRAIFAUXVRAIFAUXFAUX",BDD!$Z$2:$Z$3) -> 0 | I99: =SUMIF(BDD!$BH$2:$BH$3,"Banc 126VRAIFAUXFAUXVRAIFAUX",BDD!$Z$2:$Z$3) -> 0 | J99: =SUMIF(BDD!$BH$2:$BH$3,"Banc 126VRAIFAUXFAUXFAUXVRAI",BDD!$Z$2:$Z$3) -> 0 | K99: =SUMIF(BDD!$BH$2:$BH$3,"Banc 126FAUXVRAIVRAIFAUXFAUX",BDD!$Z$2:$Z$3) -> 0 | L99: =SUMIF(BDD!$BH$2:$BH$3,"Banc 126FAUXVRAIFAUXVRAIFAUX",BDD!$Z$2:$Z$3) -> 0 | M99: =SUMIF(BDD!$BH$2:$BH$3,"Banc 126FAUXVRAIFAUXFAUXVRAI",BDD!$Z$2:$Z$3) -> 0 | N99: =SUMIF(BDD!$BH$2:$BH$683,"Banc 126VRAIFAUXVRAIFAUXFAUX",BDD!$Z$2:$Z$683) -> 0 | O99: =SUMIF(BDD!$BH$2:$BH$683,"Banc 126VRAIFAUXFAUXVRAIFAUX",BDD!$Z$2:$Z$683) -> 0 | P99: =SUMIF(BDD!$BH$2:$BH$683,"Banc 126VRAIFAUXFAUXFAUXVRAI",BDD!$Z$2:$Z$683) -> 0 | Q99: =SUMIF(BDD!$BH$2:$BH$683,"Banc 126FAUXVRAIVRAIFAUXFAUX",BDD!$Z$2:$Z$683) -> 0.3 | R99: =SUMIF(BDD!$BH$2:$BH$683,"Banc 126FAUXVRAIFAUXVRAIFAUX",BDD!$Z$2:$Z$683) -> 0 | S99: =SUMIF(BDD!$BH$2:$BH$683,"Banc 126FAUXVRAIFAUXFAUXVRAI",BDD!$Z$2:$Z$683) -> 0 | T99: =SUMIF(BDD!$BH$2:$BH$3,"Banc 126VRAIFAUXVRAIFAUXFAUX",BDD!$Z$2:$Z$3) -> 0 | U99: =SUMIF(BDD!$BH$2:$BH$3,"Banc 126VRAIFAUXFAUXVRAIFAUX",BDD!$Z$2:$Z$3) -> 0 | V99: =SUMIF(BDD!$BH$2:$BH$3,"Banc 126VRAIFAUXFAUXFAUXVRAI",BDD!$Z$2:$Z$3) -> 0 | W99: =SUMIF(BDD!$BH$2:$BH$3,"Banc 126FAUXVRAIVRAIFAUXFAUX",BDD!$Z$2:$Z$3) -> 0 | X99: =SUMIF(BDD!$BH$2:$BH$3,"Banc 126FAUXVRAIFAUXVRAIFAUX",BDD!$Z$2:$Z$3) -> 0 | Y99: =SUMIF(BDD!$BH$2:$BH$3,"Banc 126FAUXVRAIFAUXFAUXVRAI",BDD!$Z$2:$Z$3) -> 0 | Z99: =SUMIF(BDD!$BH$2:$BH$3,"Banc 126VRAIFAUXVRAIFAUXFAUX",BDD!$Z$2:$Z$3) -> 0 | AA99: =SUMIF(BDD!$BH$2:$BH$3,"Banc 126VRAIFAUXFAUXVRAIFAUX",BDD!$Z$2:$Z$3) -> 0 | AB99: =SUMIF(BDD!$BH$2:$BH$3,"Banc 126VRAIFAUXFAUXFAUXVRAI",BDD!$Z$2:$Z$3) -> 0 | AC99: =SUMIF(BDD!$BH$2:$BH$3,"Banc 126FAUXVRAIVRAIFAUXFAUX",BDD!$Z$2:$Z$3) -> 0 | AD99: =SUMIF(BDD!$BH$2:$BH$3,"Banc 126FAUXVRAIFAUXVRAIFAUX",BDD!$Z$2:$Z$3) -> 0 | AE99: =SUMIF(BDD!$BH$2:$BH$3,"Banc 126FAUXVRAIFAUXFAUXVRAI",BDD!$Z$2:$Z$3) -> 0 | AF99: =SUMIF(BDD!$BH$2:$BH$3,"Banc 126VRAIFAUXVRAIFAUXFAUX",BDD!$Z$2:$Z$3) -> 0 | AG99: =SUMIF(BDD!$BH$2:$BH$3,"Banc 126VRAIFAUXFAUXVRAIFAUX",BDD!$Z$2:$Z$3) -> 0 | AH99: =SUMIF(BDD!$BH$2:$BH$3,"Banc 126VRAIFAUXFAUXFAUXVRAI",BDD!$Z$2:$Z$3) -> 0 | AI99: =SUMIF(BDD!$BH$2:$BH$3,"Banc 126FAUXVRAIVRAIFAUXFAUX",BDD!$Z$2:$Z$3) -> 0 | AJ99: =SUMIF(BDD!$BH$2:$BH$3,"Banc 126FAUXVRAIFAUXVRAIFAUX",BDD!$Z$2:$Z$3) -> 0 | AK99: =SUMIF(BDD!$BH$2:$BH$3,"Banc 126FAUXVRAIFAUXFAUXVRAI",BDD!$Z$2:$Z$3) -> 0 | AL99: =SUMIF(BDD!$BH$2:$BH$3,"Banc 126VRAIFAUXVRAIFAUXFAUX",BDD!$Z$2:$Z$3) -> 0 | AM99: =SUMIF(BDD!$BH$2:$BH$3,"Banc 126VRAIFAUXFAUXVRAIFAUX",BDD!$Z$2:$Z$3) -> 0 | AN99: =SUMIF(BDD!$BH$2:$BH$3,"Banc 126VRAIFAUXFAUXFAUXVRAI",BDD!$Z$2:$Z$3) -> 0 | AO99: =SUMIF(BDD!$BH$2:$BH$3,"Banc 126FAUXVRAIVRAIFAUXFAUX",BDD!$Z$2:$Z$3) -> 0 | AP99: =SUMIF(BDD!$BH$2:$BH$3,"Banc 126FAUXVRAIFAUXVRAIFAUX",BDD!$Z$2:$Z$3) -> 0 | AQ99: =SUMIF(BDD!$BH$2:$BH$3,"Banc 126FAUXVRAIFAUXFAUXVRAI",BDD!$Z$2:$Z$3) -> 0 | AR99: =SUMIF(BDD!$BH$2:$BH$3,"Banc 126VRAIFAUXVRAIFAUXFAUX",BDD!$Z$2:$Z$3) -> 0 | AS99: =SUMIF(BDD!$BH$2:$BH$3,"Banc 126VRAIFAUXFAUXVRAIFAUX",BDD!$Z$2:$Z$3) -> 0 | AT99: =SUMIF(BDD!$BH$2:$BH$3,"Banc 126VRAIFAUXFAUXFAUXVRAI",BDD!$Z$2:$Z$3) -> 0 | AU99: =SUMIF(BDD!$BH$2:$BH$3,"Banc 126FAUXVRAIVRAIFAUXFAUX",BDD!$Z$2:$Z$3) -> 0 | AV99: =SUMIF(BDD!$BH$2:$BH$3,"Banc 126FAUXVRAIFAUXVRAIFAUX",BDD!$Z$2:$Z$3) -> 0 | AW99: =SUMIF(BDD!$BH$2:$BH$3,"Banc 126FAUXVRAIFAUXFAUXVRAI",BDD!$Z$2:$Z$3) -> 0 | AX99: =SUMIF(BDD!$BH$2:$BH$3,"Banc 126VRAIFAUXVRAIFAUXFAUX",BDD!$Z$2:$Z$3) -> 0 | AY99: =SUMIF(BDD!$BH$2:$BH$3,"Banc 126VRAIFAUXFAUXVRAIFAUX",BDD!$Z$2:$Z$3) -> 0 | AZ99: =SUMIF(BDD!$BH$2:$BH$3,"Banc 126VRAIFAUXFAUXFAUXVRAI",BDD!$Z$2:$Z$3) -> 0 | BA99: =SUMIF(BDD!$BH$2:$BH$3,"Banc 126FAUXVRAIVRAIFAUXFAUX",BDD!$Z$2:$Z$3) -> 0 | BB99: =SUMIF(BDD!$BH$2:$BH$3,"Banc 126FAUXVRAIFAUXVRAIFAUX",BDD!$Z$2:$Z$3) -> 0 | BC99: =SUMIF(BDD!$BH$2:$BH$3,"Banc 126FAUXVRAIFAUXFAUXVRAI",BDD!$Z$2:$Z$3) -> 0 | BD99: =SUMIF(BDD!$BH$2:$BH$3,"Banc 126VRAIFAUXVRAIFAUXFAUX",BDD!$Z$2:$Z$3) -> 0 | BE99: =SUMIF(BDD!$BH$2:$BH$3,"Banc 126VRAIFAUXFAUXVRAIFAUX",BDD!$Z$2:$Z$3) -> 0 | BF99: =SUMIF(BDD!$BH$2:$BH$3,"Banc 126VRAIFAUXFAUXFAUXVRAI",BDD!$Z$2:$Z$3) -> 0 | BG99: =SUMIF(BDD!$BH$2:$BH$3,"Banc 126FAUXVRAIVRAIFAUXFAUX",BDD!$Z$2:$Z$3) -> 0 | BH99: =SUMIF(BDD!$BH$2:$BH$3,"Banc 126FAUXVRAIFAUXVRAIFAUX",BDD!$Z$2:$Z$3) -> 0 | BI99: =SUMIF(BDD!$BH$2:$BH$3,"Banc 126FAUXVRAIFAUXFAUXVRAI",BDD!$Z$2:$Z$3) -> 0 | BJ99: =SUMIF(BDD!$BH$2:$BH$3,"Banc 126VRAIFAUXVRAIFAUXFAUX",BDD!$Z$2:$Z$3) -> 0 | BK99: =SUMIF(BDD!$BH$2:$BH$3,"Banc 126VRAIFAUXFAUXVRAIFAUX",BDD!$Z$2:$Z$3) -> 0 | BL99: =SUMIF(BDD!$BH$2:$BH$3,"Banc 126VRAIFAUXFAUXFAUXVRAI",BDD!$Z$2:$Z$3) -> 0 | BM99: =SUMIF(BDD!$BH$2:$BH$3,"Banc 126FAUXVRAIVRAIFAUXFAUX",BDD!$Z$2:$Z$3) -> 0 | BN99: =SUMIF(BDD!$BH$2:$BH$3,"Banc 126FAUXVRAIFAUXVRAIFAUX",BDD!$Z$2:$Z$3) -> 0 | BO99: =SUMIF(BDD!$BH$2:$BH$3,"Banc 126FAUXVRAIFAUXFAUXVRAI",BDD!$Z$2:$Z$3) -> 0 | BP99: =SUMIF(BDD!$BH$2:$BH$3,"Banc 126VRAIFAUXVRAIFAUXFAUX",BDD!$Z$2:$Z$3) -> 0 | BQ99: =SUMIF(BDD!$BH$2:$BH$3,"Banc 126VRAIFAUXFAUXVRAIFAUX",BDD!$Z$2:$Z$3) -> 0 | BR99: =SUMIF(BDD!$BH$2:$BH$3,"Banc 126VRAIFAUXFAUXFAUXVRAI",BDD!$Z$2:$Z$3) -> 0 | BS99: =SUMIF(BDD!$BH$2:$BH$3,"Banc 126FAUXVRAIVRAIFAUXFAUX",BDD!$Z$2:$Z$3) -> 0 | BT99: =SUMIF(BDD!$BH$2:$BH$3,"Banc 126FAUXVRAIFAUXVRAIFAUX",BDD!$Z$2:$Z$3) -> 0 | BU99: =SUMIF(BDD!$BH$2:$BH$3,"Banc 126FAUXVRAIFAUXFAUXVRAI",BDD!$Z$2:$Z$3) -> 0
A100: Banc 156 | B100: =SUMIF(BDD!$BH$2:$BH$3,"Banc 156VRAIFAUXVRAIFAUXFAUX",BDD!$Z$2:$Z$3) -> 0 | C100: =SUMIF(BDD!$BH$2:$BH$3,"Banc 156VRAIFAUXFAUXVRAIFAUX",BDD!$Z$2:$Z$3) -> 0 | D100: =SUMIF(BDD!$BH$2:$BH$3,"Banc 156VRAIFAUXFAUXFAUXVRAI",BDD!$Z$2:$Z$3) -> 0 | E100: =SUMIF(BDD!$BH$2:$BH$3,"Banc 156FAUXVRAIVRAIFAUXFAUX",BDD!$Z$2:$Z$3) -> 0 | F100: =SUMIF(BDD!$BH$2:$BH$3,"Banc 156FAUXVRAIFAUXVRAIFAUX",BDD!$Z$2:$Z$3) -> 0 | G100: =SUMIF(BDD!$BH$2:$BH$3,"Banc 156FAUXVRAIFAUXFAUXVRAI",BDD!$Z$2:$Z$3) -> 0 | H100: =SUMIF(BDD!$BH$2:$BH$3,"Banc 156VRAIFAUXVRAIFAUXFAUX",BDD!$Z$2:$Z$3) -> 0 | I100: =SUMIF(BDD!$BH$2:$BH$3,"Banc 156VRAIFAUXFAUXVRAIFAUX",BDD!$Z$2:$Z$3) -> 0 | J100: =SUMIF(BDD!$BH$2:$BH$3,"Banc 156VRAIFAUXFAUXFAUXVRAI",BDD!$Z$2:$Z$3) -> 0 | K100: =SUMIF(BDD!$BH$2:$BH$3,"Banc 156FAUXVRAIVRAIFAUXFAUX",BDD!$Z$2:$Z$3) -> 0 | L100: =SUMIF(BDD!$BH$2:$BH$3,"Banc 156FAUXVRAIFAUXVRAIFAUX",BDD!$Z$2:$Z$3) -> 0 | M100: =SUMIF(BDD!$BH$2:$BH$3,"Banc 156FAUXVRAIFAUXFAUXVRAI",BDD!$Z$2:$Z$3) -> 0 | N100: =SUMIF(BDD!$BH$2:$BH$683,"Banc 156VRAIFAUXVRAIFAUXFAUX",BDD!$Z$2:$Z$683) -> 0 | O100: =SUMIF(BDD!$BH$2:$BH$683,"Banc 156VRAIFAUXFAUXVRAIFAUX",BDD!$Z$2:$Z$683) -> 0 | P100: =SUMIF(BDD!$BH$2:$BH$683,"Banc 156VRAIFAUXFAUXFAUXVRAI",BDD!$Z$2:$Z$683) -> 0 | Q100: =SUMIF(BDD!$BH$2:$BH$683,"Banc 156FAUXVRAIVRAIFAUXFAUX",BDD!$Z$2:$Z$683) -> 0 | R100: =SUMIF(BDD!$BH$2:$BH$683,"Banc 156FAUXVRAIFAUXVRAIFAUX",BDD!$Z$2:$Z$683) -> 0 | S100: =SUMIF(BDD!$BH$2:$BH$683,"Banc 156FAUXVRAIFAUXFAUXVRAI",BDD!$Z$2:$Z$683) -> 0 | T100: =SUMIF(BDD!$BH$2:$BH$3,"Banc 156VRAIFAUXVRAIFAUXFAUX",BDD!$Z$2:$Z$3) -> 0 | U100: =SUMIF(BDD!$BH$2:$BH$3,"Banc 156VRAIFAUXFAUXVRAIFAUX",BDD!$Z$2:$Z$3) -> 0 | V100: =SUMIF(BDD!$BH$2:$BH$3,"Banc 156VRAIFAUXFAUXFAUXVRAI",BDD!$Z$2:$Z$3) -> 0 | W100: =SUMIF(BDD!$BH$2:$BH$3,"Banc 156FAUXVRAIVRAIFAUXFAUX",BDD!$Z$2:$Z$3) -> 0 | X100: =SUMIF(BDD!$BH$2:$BH$3,"Banc 156FAUXVRAIFAUXVRAIFAUX",BDD!$Z$2:$Z$3) -> 0 | Y100: =SUMIF(BDD!$BH$2:$BH$3,"Banc 156FAUXVRAIFAUXFAUXVRAI",BDD!$Z$2:$Z$3) -> 0 | Z100: =SUMIF(BDD!$BH$2:$BH$3,"Banc 156VRAIFAUXVRAIFAUXFAUX",BDD!$Z$2:$Z$3) -> 0 | AA100: =SUMIF(BDD!$BH$2:$BH$3,"Banc 156VRAIFAUXFAUXVRAIFAUX",BDD!$Z$2:$Z$3) -> 0 | AB100: =SUMIF(BDD!$BH$2:$BH$3,"Banc 156VRAIFAUXFAUXFAUXVRAI",BDD!$Z$2:$Z$3) -> 0 | AC100: =SUMIF(BDD!$BH$2:$BH$3,"Banc 156FAUXVRAIVRAIFAUXFAUX",BDD!$Z$2:$Z$3) -> 0 | AD100: =SUMIF(BDD!$BH$2:$BH$3,"Banc 156FAUXVRAIFAUXVRAIFAUX",BDD!$Z$2:$Z$3) -> 0 | AE100: =SUMIF(BDD!$BH$2:$BH$3,"Banc 156FAUXVRAIFAUXFAUXVRAI",BDD!$Z$2:$Z$3) -> 0 | AF100: =SUMIF(BDD!$BH$2:$BH$3,"Banc 156VRAIFAUXVRAIFAUXFAUX",BDD!$Z$2:$Z$3) -> 0 | AG100: =SUMIF(BDD!$BH$2:$BH$3,"Banc 156VRAIFAUXFAUXVRAIFAUX",BDD!$Z$2:$Z$3) -> 0 | AH100: =SUMIF(BDD!$BH$2:$BH$3,"Banc 156VRAIFAUXFAUXFAUXVRAI",BDD!$Z$2:$Z$3) -> 0 | AI100: =SUMIF(BDD!$BH$2:$BH$3,"Banc 156FAUXVRAIVRAIFAUXFAUX",BDD!$Z$2:$Z$3) -> 0 | AJ100: =SUMIF(BDD!$BH$2:$BH$3,"Banc 156FAUXVRAIFAUXVRAIFAUX",BDD!$Z$2:$Z$3) -> 0 | AK100: =SUMIF(BDD!$BH$2:$BH$3,"Banc 156FAUXVRAIFAUXFAUXVRAI",BDD!$Z$2:$Z$3) -> 0 | AL100: =SUMIF(BDD!$BH$2:$BH$3,"Banc 156VRAIFAUXVRAIFAUXFAUX",BDD!$Z$2:$Z$3) -> 0 | AM100: =SUMIF(BDD!$BH$2:$BH$3,"Banc 156VRAIFAUXFAUXVRAIFAUX",BDD!$Z$2:$Z$3) -> 0 | AN100: =SUMIF(BDD!$BH$2:$BH$3,"Banc 156VRAIFAUXFAUXFAUXVRAI",BDD!$Z$2:$Z$3) -> 0 | AO100: =SUMIF(BDD!$BH$2:$BH$3,"Banc 156FAUXVRAIVRAIFAUXFAUX",BDD!$Z$2:$Z$3) -> 0 | AP100: =SUMIF(BDD!$BH$2:$BH$3,"Banc 156FAUXVRAIFAUXVRAIFAUX",BDD!$Z$2:$Z$3) -> 0 | AQ100: =SUMIF(BDD!$BH$2:$BH$3,"Banc 156FAUXVRAIFAUXFAUXVRAI",BDD!$Z$2:$Z$3) -> 0 | AR100: =SUMIF(BDD!$BH$2:$BH$3,"Banc 156VRAIFAUXVRAIFAUXFAUX",BDD!$Z$2:$Z$3) -> 0 | AS100: =SUMIF(BDD!$BH$2:$BH$3,"Banc 156VRAIFAUXFAUXVRAIFAUX",BDD!$Z$2:$Z$3) -> 0 | AT100: =SUMIF(BDD!$BH$2:$BH$3,"Banc 156VRAIFAUXFAUXFAUXVRAI",BDD!$Z$2:$Z$3) -> 0 | AU100: =SUMIF(BDD!$BH$2:$BH$3,"Banc 156FAUXVRAIVRAIFAUXFAUX",BDD!$Z$2:$Z$3) -> 0 | AV100: =SUMIF(BDD!$BH$2:$BH$3,"Banc 156FAUXVRAIFAUXVRAIFAUX",BDD!$Z$2:$Z$3) -> 0 | AW100: =SUMIF(BDD!$BH$2:$BH$3,"Banc 156FAUXVRAIFAUXFAUXVRAI",BDD!$Z$2:$Z$3) -> 0 | AX100: =SUMIF(BDD!$BH$2:$BH$3,"Banc 156VRAIFAUXVRAIFAUXFAUX",BDD!$Z$2:$Z$3) -> 0 | AY100: =SUMIF(BDD!$BH$2:$BH$3,"Banc 156VRAIFAUXFAUXVRAIFAUX",BDD!$Z$2:$Z$3) -> 0 | AZ100: =SUMIF(BDD!$BH$2:$BH$3,"Banc 156VRAIFAUXFAUXFAUXVRAI",BDD!$Z$2:$Z$3) -> 0 | BA100: =SUMIF(BDD!$BH$2:$BH$3,"Banc 156FAUXVRAIVRAIFAUXFAUX",BDD!$Z$2:$Z$3) -> 0 | BB100: =SUMIF(BDD!$BH$2:$BH$3,"Banc 156FAUXVRAIFAUXVRAIFAUX",BDD!$Z$2:$Z$3) -> 0 | BC100: =SUMIF(BDD!$BH$2:$BH$3,"Banc 156FAUXVRAIFAUXFAUXVRAI",BDD!$Z$2:$Z$3) -> 0 | BD100: =SUMIF(BDD!$BH$2:$BH$3,"Banc 156VRAIFAUXVRAIFAUXFAUX",BDD!$Z$2:$Z$3) -> 0 | BE100: =SUMIF(BDD!$BH$2:$BH$3,"Banc 156VRAIFAUXFAUXVRAIFAUX",BDD!$Z$2:$Z$3) -> 0 | BF100: =SUMIF(BDD!$BH$2:$BH$3,"Banc 156VRAIFAUXFAUXFAUXVRAI",BDD!$Z$2:$Z$3) -> 0 | BG100: =SUMIF(BDD!$BH$2:$BH$3,"Banc 156FAUXVRAIVRAIFAUXFAUX",BDD!$Z$2:$Z$3) -> 0 | BH100: =SUMIF(BDD!$BH$2:$BH$3,"Banc 156FAUXVRAIFAUXVRAIFAUX",BDD!$Z$2:$Z$3) -> 0 | BI100: =SUMIF(BDD!$BH$2:$BH$3,"Banc 156FAUXVRAIFAUXFAUXVRAI",BDD!$Z$2:$Z$3) -> 0 | BJ100: =SUMIF(BDD!$BH$2:$BH$3,"Banc 156VRAIFAUXVRAIFAUXFAUX",BDD!$Z$2:$Z$3) -> 0 | BK100: =SUMIF(BDD!$BH$2:$BH$3,"Banc 156VRAIFAUXFAUXVRAIFAUX",BDD!$Z$2:$Z$3) -> 0 | BL100: =SUMIF(BDD!$BH$2:$BH$3,"Banc 156VRAIFAUXFAUXFAUXVRAI",BDD!$Z$2:$Z$3) -> 0 | BM100: =SUMIF(BDD!$BH$2:$BH$3,"Banc 156FAUXVRAIVRAIFAUXFAUX",BDD!$Z$2:$Z$3) -> 0 | BN100: =SUMIF(BDD!$BH$2:$BH$3,"Banc 156FAUXVRAIFAUXVRAIFAUX",BDD!$Z$2:$Z$3) -> 0 | BO100: =SUMIF(BDD!$BH$2:$BH$3,"Banc 156FAUXVRAIFAUXFAUXVRAI",BDD!$Z$2:$Z$3) -> 0 | BP100: =SUMIF(BDD!$BH$2:$BH$3,"Banc 156VRAIFAUXVRAIFAUXFAUX",BDD!$Z$2:$Z$3) -> 0 | BQ100: =SUMIF(BDD!$BH$2:$BH$3,"Banc 156VRAIFAUXFAUXVRAIFAUX",BDD!$Z$2:$Z$3) -> 0 | BR100: =SUMIF(BDD!$BH$2:$BH$3,"Banc 156VRAIFAUXFAUXFAUXVRAI",BDD!$Z$2:$Z$3) -> 0 | BS100: =SUMIF(BDD!$BH$2:$BH$3,"Banc 156FAUXVRAIVRAIFAUXFAUX",BDD!$Z$2:$Z$3) -> 0 | BT100: =SUMIF(BDD!$BH$2:$BH$3,"Banc 156FAUXVRAIFAUXVRAIFAUX",BDD!$Z$2:$Z$3) -> 0 | BU100: =SUMIF(BDD!$BH$2:$BH$3,"Banc 156FAUXVRAIFAUXFAUXVRAI",BDD!$Z$2:$Z$3) -> 0

Sheet Indicateur Zone10
B2: Suivi des arrêts par banc
A3: Banc zone 10 | B3: Janvier | C3: Février | D3: Mars | E3: Avril | F3: Mai | G3: Juin | H3: Juillet | I3: Août | J3: Septembre | K3: Octobre | L3: Novembre | M3: Décembre
A4: Banc 007 | B4: =SUMIF(BDD!$H$2:$H$3,'Indicateur Zone10'!$A4,BDD!$Z$2:$Z$3) -> 0 | C4: =SUMIF(BDD!$H$2:$H$3,'Indicateur Zone10'!$A4,BDD!$Z$2:$Z$3) -> 0 | D4: =SUMIF(BDD!$H$2:$H$683,'Indicateur Zone10'!$A$4,BDD!$Z$2:$Z$683) -> 0.2 | E4: =SUMIF(BDD!$H$2:$H$3,'Indicateur Zone10'!$A4,BDD!$Z$2:$Z$3) -> 0 | F4: =SUMIF(BDD!$H$2:$H$3,'Indicateur Zone10'!$A4,BDD!$Z$2:$Z$3) -> 0 | G4: =SUMIF(BDD!$H$2:$H$3,'Indicateur Zone10'!$A4,BDD!$Z$2:$Z$3) -> 0 | H4: =SUMIF(BDD!$H$2:$H$3,'Indicateur Zone10'!$A4,BDD!$Z$2:$Z$3) -> 0 | I4: =SUMIF(BDD!$H$2:$H$3,'Indicateur Zone10'!$A4,BDD!$Z$2:$Z$3) -> 0 | J4: =SUMIF(BDD!$H$2:$H$3,'Indicateur Zone10'!$A4,BDD!$Z$2:$Z$3) -> 0 | K4: =SUMIF(BDD!$H$2:$H$3,'Indicateur Zone10'!$A4,BDD!$Z$2:$Z$3) -> 0 | L4: =SUMIF(BDD!$H$2:$H$3,'Indicateur Zone10'!$A4,BDD!$Z$2:$Z$3) -> 0 | M4: =SUMIF(BDD!$H$2:$H$3,'Indicateur Zone10'!$A4,BDD!$Z$2:$Z$3) -> 0
A5: Banc 008 | B5: =SUMIF(BDD!$H$2:$H$3,'Indicateur Zone10'!$A5,BDD!$Z$2:$Z$3) -> 0 | C5: =SUMIF(BDD!$H$2:$H$3,'Indicateur Zone10'!$A5,BDD!$Z$2:$Z$3) -> 0 | D5: =SUMIF(BDD!$H$2:$H$683,'Indicateur Zone10'!$A$5,BDD!$Z$2:$Z$683) -> 0.1 | E5: =SUMIF(BDD!$H$2:$H$3,'Indicateur Zone10'!$A5,BDD!$Z$2:$Z$3) -> 0 | F5: =SUMIF(BDD!$H$2:$H$3,'Indicateur Zone10'!$A5,BDD!$Z$2:$Z$3) -> 0 | G5: =SUMIF(BDD!$H$2:$H$3,'Indicateur Zone10'!$A5,BDD!$Z$2:$Z$3) -> 0 | H5: =SUMIF(BDD!$H$2:$H$3,'Indicateur Zone10'!$A5,BDD!$Z$2:$Z$3) -> 0 | I5: =SUMIF(BDD!$H$2:$H$3,'Indicateur Zone10'!$A5,BDD!$Z$2:$Z$3) -> 0 | J5: =SUMIF(BDD!$H$2:$H$3,'Indicateur Zone10'!$A5,BDD!$Z$2:$Z$3) -> 0 | K5: =SUMIF(BDD!$H$2:$H$3,'Indicateur Zone10'!$A5,BDD!$Z$2:$Z$3) -> 0 | L5: =SUMIF(BDD!$H$2:$H$3,'Indicateur Zone10'!$A5,BDD!$Z$2:$Z$3) -> 0 | M5: =SUMIF(BDD!$H$2:$H$3,'Indicateur Zone10'!$A5,BDD!$Z$2:$Z$3) -> 0
A6: Banc 113 | B6: =SUMIF(BDD!$H$2:$H$3,'Indicateur Zone10'!$A6,BDD!$Z$2:$Z$3) -> 0 | C6: =SUMIF(BDD!$H$2:$H$3,'Indicateur Zone10'!$A6,BDD!$Z$2:$Z$3) -> 0 | D6: =SUMIF(BDD!$H$2:$H$683,'Indicateur Zone10'!$A$6,BDD!$Z$2:$Z$683) -> 0.05 | E6: =SUMIF(BDD!$H$2:$H$3,'Indicateur Zone10'!$A6,BDD!$Z$2:$Z$3) -> 0 | F6: =SUMIF(BDD!$H$2:$H$3,'Indicateur Zone10'!$A6,BDD!$Z$2:$Z$3) -> 0 | G6: =SUMIF(BDD!$H$2:$H$3,'Indicateur Zone10'!$A6,BDD!$Z$2:$Z$3) -> 0 | H6: =SUMIF(BDD!$H$2:$H$3,'Indicateur Zone10'!$A6,BDD!$Z$2:$Z$3) -> 0 | I6: =SUMIF(BDD!$H$2:$H$3,'Indicateur Zone10'!$A6,BDD!$Z$2:$Z$3) -> 0 | J6: =SUMIF(BDD!$H$2:$H$3,'Indicateur Zone10'!$A6,BDD!$Z$2:$Z$3) -> 0 | K6: =SUMIF(BDD!$H$2:$H$3,'Indicateur Zone10'!$A6,BDD!$Z$2:$Z$3) -> 0 | L6: =SUMIF(BDD!$H$2:$H$3,'Indicateur Zone10'!$A6,BDD!$Z$2:$Z$3) -> 0 | M6: =SUMIF(BDD!$H$2:$H$3,'Indicateur Zone10'!$A6,BDD!$Z$2:$Z$3) -> 0
A7: Banc 115 | B7: =SUMIF(BDD!$H$2:$H$3,'Indicateur Zone10'!$A7,BDD!$Z$2:$Z$3) -> 0 | C7: =SUMIF(BDD!$H$2:$H$3,'Indicateur Zone10'!$A7,BDD!$Z$2:$Z$3) -> 0 | D7: =SUMIF(BDD!$H$2:$H$683,'Indicateur Zone10'!$A$7,BDD!$Z$2:$Z$683) -> 0 | E7: =SUMIF(BDD!$H$2:$H$3,'Indicateur Zone10'!$A7,BDD!$Z$2:$Z$3) -> 0 | F7: =SUMIF(BDD!$H$2:$H$3,'Indicateur Zone10'!$A7,BDD!$Z$2:$Z$3) -> 0 | G7: =SUMIF(BDD!$H$2:$H$3,'Indicateur Zone10'!$A7,BDD!$Z$2:$Z$3) -> 0 | H7: =SUMIF(BDD!$H$2:$H$3,'Indicateur Zone10'!$A7,BDD!$Z$2:$Z$3) -> 0 | I7: =SUMIF(BDD!$H$2:$H$3,'Indicateur Zone10'!$A7,BDD!$Z$2:$Z$3) -> 0 | J7: =SUMIF(BDD!$H$2:$H$3,'Indicateur Zone10'!$A7,BDD!$Z$2:$Z$3) -> 0 | K7: =SUMIF(BDD!$H$2:$H$3,'Indicateur Zone10'!$A7,BDD!$Z$2:$Z$3) -> 0 | L7: =SUMIF(BDD!$H$2:$H$3,'Indicateur Zone10'!$A7,BDD!$Z$2:$Z$3) -> 0 | M7: =SUMIF(BDD!$H$2:$H$3,'Indicateur Zone10'!$A7,BDD!$Z$2:$Z$3) -> 0
A8: Banc 120 | B8: =SUMIF(BDD!$H$2:$H$3,'Indicateur Zone10'!$A8,BDD!$Z$2:$Z$3) -> 0 | C8: =SUMIF(BDD!$H$2:$H$3,'Indicateur Zone10'!$A8,BDD!$Z$2:$Z$3) -> 0 | D8: =SUMIF(BDD!$H$2:$H$683,'Indicateur Zone10'!$A$8,BDD!$Z$2:$Z$683) -> 0.1 | E8: =SUMIF(BDD!$H$2:$H$3,'Indicateur Zone10'!$A8,BDD!$Z$2:$Z$3) -> 0 | F8: =SUMIF(BDD!$H$2:$H$3,'Indicateur Zone10'!$A8,BDD!$Z$2:$Z$3) -> 0 | G8: =SUMIF(BDD!$H$2:$H$3,'Indicateur Zone10'!$A8,BDD!$Z$2:$Z$3) -> 0 | H8: =SUMIF(BDD!$H$2:$H$3,'Indicateur Zone10'!$A8,BDD!$Z$2:$Z$3) -> 0 | I8: =SUMIF(BDD!$H$2:$H$3,'Indicateur Zone10'!$A8,BDD!$Z$2:$Z$3) -> 0 | J8: =SUMIF(BDD!$H$2:$H$3,'Indicateur Zone10'!$A8,BDD!$Z$2:$Z$3) -> 0 | K8: =SUMIF(BDD!$H$2:$H$3,'Indicateur Zone10'!$A8,BDD!$Z$2:$Z$3) -> 0 | L8: =SUMIF(BDD!$H$2:$H$3,'Indicateur Zone10'!$A8,BDD!$Z$2:$Z$3) -> 0 | M8: =SUMIF(BDD!$H$2:$H$3,'Indicateur Zone10'!$A8,BDD!$Z$2:$Z$3) -> 0
A9: Banc 120 bis | B9: =SUMIF(BDD!$H$2:$H$3,'Indicateur Zone10'!$A9,BDD!$Z$2:$Z$3) -> 0 | C9: =SUMIF(BDD!$H$2:$H$3,'Indicateur Zone10'!$A9,BDD!$Z$2:$Z$3) -> 0 | D9: =SUMIF(BDD!$H$2:$H$683,'Indicateur Zone10'!$A$9,BDD!$Z$2:$Z$683) -> 0 | E9: =SUMIF(BDD!$H$2:$H$3,'Indicateur Zone10'!$A9,BDD!$Z$2:$Z$3) -> 0 | F9: =SUMIF(BDD!$H$2:$H$3,'Indicateur Zone10'!$A9,BDD!$Z$2:$Z$3) -> 0 | G9: =SUMIF(BDD!$H$2:$H$3,'Indicateur Zone10'!$A9,BDD!$Z$2:$Z$3) -> 0 | H9: =SUMIF(BDD!$H$2:$H$3,'Indicateur Zone10'!$A9,BDD!$Z$2:$Z$3) -> 0 | I9: =SUMIF(BDD!$H$2:$H$3,'Indicateur Zone10'!$A9,BDD!$Z$2:$Z$3) -> 0 | J9: =SUMIF(BDD!$H$2:$H$3,'Indicateur Zone10'!$A9,BDD!$Z$2:$Z$3) -> 0 | K9: =SUMIF(BDD!$H$2:$H$3,'Indicateur Zone10'!$A9,BDD!$Z$2:$Z$3) -> 0 | L9: =SUMIF(BDD!$H$2:$H$3,'Indicateur Zone10'!$A9,BDD!$Z$2:$Z$3) -> 0 | M9: =SUMIF(BDD!$H$2:$H$3,'Indicateur Zone10'!$A9,BDD!$Z$2:$Z$3) -> 0
A10: Banc 125 | B10: =SUMIF(BDD!$H$2:$H$3,'Indicateur Zone10'!$A10,BDD!$Z$2:$Z$3) -> 0 | C10: =SUMIF(BDD!$H$2:$H$3,'Indicateur Zone10'!$A10,BDD!$Z$2:$Z$3) -> 0 | D10: =SUMIF(BDD!$H$2:$H$683,'Indicateur Zone10'!$A$10,BDD!$Z$2:$Z$683) -> 4.8 | E10: =SUMIF(BDD!$H$2:$H$3,'Indicateur Zone10'!$A10,BDD!$Z$2:$Z$3) -> 0 | F10: =SUMIF(BDD!$H$2:$H$3,'Indicateur Zone10'!$A10,BDD!$Z$2:$Z$3) -> 0 | G10: =SUMIF(BDD!$H$2:$H$3,'Indicateur Zone10'!$A10,BDD!$Z$2:$Z$3) -> 0 | H10: =SUMIF(BDD!$H$2:$H$3,'Indicateur Zone10'!$A10,BDD!$Z$2:$Z$3) -> 0 | I10: =SUMIF(BDD!$H$2:$H$3,'Indicateur Zone10'!$A10,BDD!$Z$2:$Z$3) -> 0 | J10: =SUMIF(BDD!$H$2:$H$3,'Indicateur Zone10'!$A10,BDD!$Z$2:$Z$3) -> 0 | K10: =SUMIF(BDD!$H$2:$H$3,'Indicateur Zone10'!$A10,BDD!$Z$2:$Z$3) -> 0 | L10: =SUMIF(BDD!$H$2:$H$3,'Indicateur Zone10'!$A10,BDD!$Z$2:$Z$3) -> 0 | M10: =SUMIF(BDD!$H$2:$H$3,'Indicateur Zone10'!$A10,BDD!$Z$2:$Z$3) -> 0
A11: Banc 128 | B11: =SUMIF(BDD!$H$2:$H$3,'Indicateur Zone10'!$A11,BDD!$Z$2:$Z$3) -> 0 | C11: =SUMIF(BDD!$H$2:$H$3,'Indicateur Zone10'!$A11,BDD!$Z$2:$Z$3) -> 0 | D11: =SUMIF(BDD!$H$2:$H$683,'Indicateur Zone10'!$A$11,BDD!$Z$2:$Z$683) -> 1 | E11: =SUMIF(BDD!$H$2:$H$3,'Indicateur Zone10'!$A11,BDD!$Z$2:$Z$3) -> 0 | F11: =SUMIF(BDD!$H$2:$H$3,'Indicateur Zone10'!$A11,BDD!$Z$2:$Z$3) -> 0 | G11: =SUMIF(BDD!$H$2:$H$3,'Indicateur Zone10'!$A11,BDD!$Z$2:$Z$3) -> 0 | H11: =SUMIF(BDD!$H$2:$H$3,'Indicateur Zone10'!$A11,BDD!$Z$2:$Z$3) -> 0 | I11: =SUMIF(BDD!$H$2:$H$3,'Indicateur Zone10'!$A11,BDD!$Z$2:$Z$3) -> 0 | J11: =SUMIF(BDD!$H$2:$H$3,'Indicateur Zone10'!$A11,BDD!$Z$2:$Z$3) -> 0 | K11: =SUMIF(BDD!$H$2:$H$3,'Indicateur Zone10'!$A11,BDD!$Z$2:$Z$3) -> 0 | L11: =SUMIF(BDD!$H$2:$H$3,'Indicateur Zone10'!$A11,BDD!$Z$2:$Z$3) -> 0 | M11: =SUMIF(BDD!$H$2:$H$3,'Indicateur Zone10'!$A11,BDD!$Z$2:$Z$3) -> 0
A12: Banc 131 | B12: =SUMIF(BDD!$H$2:$H$3,'Indicateur Zone10'!$A12,BDD!$Z$2:$Z$3) -> 0 | C12: =SUMIF(BDD!$H$2:$H$3,'Indicateur Zone10'!$A12,BDD!$Z$2:$Z$3) -> 0 | D12: =SUMIF(BDD!$H$2:$H$683,'Indicateur Zone10'!$A$4,BDD!$Z$2:$Z$683) -> 0.2 | E12: =SUMIF(BDD!$H$2:$H$3,'Indicateur Zone10'!$A12,BDD!$Z$2:$Z$3) -> 0 | F12: =SUMIF(BDD!$H$2:$H$3,'Indicateur Zone10'!$A12,BDD!$Z$2:$Z$3) -> 0 | G12: =SUMIF(BDD!$H$2:$H$3,'Indicateur Zone10'!$A12,BDD!$Z$2:$Z$3) -> 0 | H12: =SUMIF(BDD!$H$2:$H$3,'Indicateur Zone10'!$A12,BDD!$Z$2:$Z$3) -> 0 | I12: =SUMIF(BDD!$H$2:$H$3,'Indicateur Zone10'!$A12,BDD!$Z$2:$Z$3) -> 0 | J12: =SUMIF(BDD!$H$2:$H$3,'Indicateur Zone10'!$A12,BDD!$Z$2:$Z$3) -> 0 | K12: =SUMIF(BDD!$H$2:$H$3,'Indicateur Zone10'!$A12,BDD!$Z$2:$Z$3) -> 0 | L12: =SUMIF(BDD!$H$2:$H$3,'Indicateur Zone10'!$A12,BDD!$Z$2:$Z$3) -> 0 | M12: =SUMIF(BDD!$H$2:$H$3,'Indicateur Zone10'!$A12,BDD!$Z$2:$Z$3) -> 0
B33: Suivi du correctif et du préventif
A34: Type de maintenance | B34: Janvier | C34: Février | D34: Mars | E34: Avril | F34: Mai | G34: Juin | H34: Juillet | I34: Août | J34: Septembre | K34: Octobre | L34: Novembre | M34: Décembre
A35: Corrective | B35: =SUM(B57:B65) -> 0 | C35: =SUM(D57:D65) -> 0 | D35: =SUM(F57:F65) -> 3.6 | E35: =SUM(H57:H65) -> 0 | F35: =SUM(J57:J65) -> 0 | G35: =SUM(L57:L65) -> 0 | H35: =SUM(N57:N65) -> 0 | I35: =SUM(P57:P65) -> 0 | J35: =SUM(R57:R65) -> 0 | K35: =SUM(T57:T65) -> 0 | L35: =SUM(V57:V65) -> 0 | M35: =SUM(X57:X65) -> 0
A36: Préventive | B36: =SUM(C57:C65) -> 0 | C36: =SUM(E57:E65) -> 0 | D36: =SUM(G57:G65) -> 0.15 | E36: =SUM(I57:I65) -> 0 | F36: =SUM(K57:K65) -> 0 | G36: =SUM(M57:M65) -> 0 | H36: =SUM(O57:O65) -> 0 | I36: =SUM(Q57:Q65) -> 0 | J36: =SUM(S57:S65) -> 0 | K36: =SUM(U57:U65) -> 0 | L36: =SUM(W57:W65) -> 0 | M36: =SUM(Y57:Y65) -> 0
B54: Suivi du correctif et du préventif par banc
B55: Janvier | D55: Février | F55: Mars | H55: Avril | J55: Mai | L55: Juin | N55: Juillet | P55: Août | R55: Septembre | T55: Octobre | V55: Novembre | X55: Décembre
A56: Banc zone 10 | B56: Corrective | C56: Préventive | D56: Corrective | E56: Préventive | F56: Corrective | G56: Préventive | H56: Corrective | I56: Préventive | J56: Corrective | K56: Préventive | L56: Corrective | M56: Préventive | N56: Corrective | O56: Préventive | P56: Corrective | Q56: Préventive | R56: Corrective | S56: Préventive | T56: Corrective | U56: Préventive | V56: Corrective | W56: Préventive | X56: Corrective | Y56: Préventive
A57: Banc 007 | B57: =SUMIF(BDD!$BG$2:$BG$3,"Banc 007VRAIFAUX",BDD!$Z$2:$Z$3) -> 0 | C57: =SUMIF(BDD!$BG$2:$BG$3,"Banc 007FAUXVRAI",BDD!$Z$2:$Z$3) -> 0 | D57: =SUMIF(BDD!$BG$2:$BG$3,"Banc 007VRAIFAUX",BDD!$Z$2:$Z$3) -> 0 | E57: =SUMIF(BDD!$BG$2:$BG$3,"Banc 007FAUXVRAI",BDD!$Z$2:$Z$3) -> 0 | F57: =SUMIF(BDD!$BG$2:$BG$683,"Banc 007VRAIFAUX",BDD!$Z$2:$Z$683) -> 0.2 | G57: =SUMIF(BDD!$BG$2:$BG$683,"Banc 007FAUXvrai",BDD!$Z$2:$Z$683) -> 0 | H57: =SUMIF(BDD!$BG$2:$BG$3,"Banc 007VRAIFAUX",BDD!$Z$2:$Z$3) -> 0 | I57: =SUMIF(BDD!$BG$2:$BG$3,"Banc 007FAUXVRAI",BDD!$Z$2:$Z$3) -> 0 | J57: =SUMIF(BDD!$BG$2:$BG$3,"Banc 007VRAIFAUX",BDD!$Z$2:$Z$3) -> 0 | K57: =SUMIF(BDD!$BG$2:$BG$3,"Banc 007FAUXVRAI",BDD!$Z$2:$Z$3) -> 0 | L57: =SUMIF(BDD!$BG$2:$BG$3,"Banc 007VRAIFAUX",BDD!$Z$2:$Z$3) -> 0 | M57: =SUMIF(BDD!$BG$2:$BG$3,"Banc 007FAUXVRAI",BDD!$Z$2:$Z$3) -> 0 | N57: =SUMIF(BDD!$BG$2:$BG$3,"Banc 007VRAIFAUX",BDD!$Z$2:$Z$3) -> 0 | O57: =SUMIF(BDD!$BG$2:$BG$3,"Banc 007FAUXVRAI",BDD!$Z$2:$Z$3) -> 0 | P57: =SUMIF(BDD!$BG$2:$BG$3,"Banc 007VRAIFAUX",BDD!$Z$2:$Z$3) -> 0 | Q57: =SUMIF(BDD!$BG$2:$BG$3,"Banc 007FAUXVRAI",BDD!$Z$2:$Z$3) -> 0 | R57: =SUMIF(BDD!$BG$2:$BG$3,"Banc 007VRAIFAUX",BDD!$Z$2:$Z$3) -> 0 | S57: =SUMIF(BDD!$BG$2:$BG$3,"Banc 007FAUXVRAI",BDD!$Z$2:$Z$3) -> 0 | T57: =SUMIF(BDD!$BG$2:$BG$3,"Banc 007VRAIFAUX",BDD!$Z$2:$Z$3) -> 0 | U57: =SUMIF(BDD!$BG$2:$BG$3,"Banc 007FAUXVRAI",BDD!$Z$2:$Z$3) -> 0 | V57: =SUMIF(BDD!$BG$2:$BG$3,"Banc 007VRAIFAUX",BDD!$Z$2:$Z$3) -> 0 | W57: =SUMIF(BDD!$BG$2:$BG$3,"Banc 007FAUXVRAI",BDD!$Z$2:$Z$3) -> 0 | X57: =SUMIF(BDD!$BG$2:$BG$3,"Banc 007VRAIFAUX",BDD!$Z$2:$Z$3) -> 0 | Y57: =SUMIF(BDD!$BG$2:$BG$3,"Banc 007FAUXVRAI",BDD!$Z$2:$Z$3) -> 0
